Workbook

Sheet Q_1_P
A1: "1. S kým z triedy by si chcel sedieť v jednej lavici?"
B2: 3
B3: 28 | D3: 1 | E3: 2 | F3: 3 | G3: 4 | H3: 5 | I3: 6 | J3: 7 | K3: 8 | L3: 9 | M3: 10 | N3: 11 | O3: 12 | P3: 13 | Q3: 14 | R3: 15 | S3: 16 | T3: 17 | U3: 18 | V3: 19 | W3: 20 | X3: 21 | Y3: 22 | Z3: 23 | AA3: 24 | AB3: 25 | AC3: 26 | AD3: 27 | AE3: 28
D4: "01_Oso m" | E4: "02_Oso m" | F4: "03_Oso m" | G4: "04_Oso m" | H4: "05_Oso m" | I4: "*06_Oso m" | J4: "07_Oso m" | K4: "08_Oso m" | L4: "09_Oso f" | M4: "**10_Oso m" | N4: "11_Oso m" | O4: "12_Oso m" | P4: "13_Oso m" | Q4: "14_Oso m" | R4: "15_Oso f" | S4: "16_Oso f" | T4: "17_Oso f" | U4: "18_Oso f" | V4: "19_Oso f" | W4: "20_Oso f" | X4: "21_Oso f" | Y4: "22_Oso f" | Z4: "23_Oso f" | AA4: "24_Oso f" | AB4: "25_Oso f" | AC4: "26_Oso f" | AD4: "27_Oso f" | AE4: "28_Oso f"
A5: → | B5: 1 | C5: "01_Oso m" | H5: 1 | M5: 3 | N5: 2 | AF5: 3 | AQ5: 2 | AR5: 0 | AS5: 1 | AT5: 1 | AU5: 4 | AV5: 0 | AW5: 4 | AX5: 4 | AY5: 6 | AZ5: 2 | BA5: 3 | BB5: 3 | BC5: 1 | BD5: 2 | BE5: 0 | BF5: 2 | BG5: 0 | BH5: 4 | BI5: 1 | BJ5: 2 | BK5: 2 | BL5: 5 | BM5: 10 | BN5: 3 | BO5: 3 | BP5: 2 | BQ5: 8 | BR5: 6
B6: 2 | C6: "02_Oso m" | K6: 1 | L6: 3 | N6: 2 | AF6: 3 | AQ6: 3 | AR6: 3 | AS6: 3 | AT6: 3 | AU6: 3 | AV6: 3 | AW6: 3 | AX6: 3 | AY6: 3 | AZ6: 3 | BA6: 3 | BB6: 3 | BC6: 3 | BD6: 3 | BE6: 3 | BF6: 3 | BG6: 3 | BH6: 3 | BI6: 3 | BJ6: 3 | BK6: 3 | BL6: 3 | BM6: 3 | BN6: 3 | BO6: 3 | BP6: 3 | BQ6: 3 | BR6: 0
B7: 3 | C7: "03_Oso m" | L7: 2 | O7: 3 | AE7: 1 | AF7: 3 | AQ7: 2 | AR7: 0 | AS7: 1 | AT7: 0 | AU7: 2 | AV7: 0 | AW7: 2 | AX7: 0 | AY7: 2 | AZ7: 1 | BA7: 0 | BB7: 0 | BC7: 1 | BD7: 1 | BE7: 0 | BF7: 1 | BG7: 0 | BH7: 3 | BI7: 0 | BJ7: 1 | BK7: 1 | BL7: 1 | BM7: 2 | BN7: 2 | BO7: 2 | BP7: 1 | BQ7: 2 | BR7: 0
B8: 4 | C8: "04_Oso m" | Z8: 3 | AB8: 1 | AE8: 2 | AF8: 3
B9: 5 | C9: "05_Oso m" | D9: 1 | J9: 3 | L9: 2 | AF9: 3
B10: 6 | C10: "*06_Oso m" | M10: 3 | N10: 1 | O10: 2 | AF10: 3
B11: 7 | C11: "07_Oso m" | H11: 3 | L11: 1 | AE11: 2 | AF11: 3
B12: 8 | C12: "08_Oso m" | J12: 2 | L12: 3 | AE12: 1 | AF12: 3
B13: 9 | C13: "09_Oso f" | F13: 2 | J13: 3 | AE13: 1 | AF13: 3
B14: 10 | C14: "**10_Oso m" | D14: 1 | H14: 2 | K14: 3 | AF14: 3
B15: 11 | C15: "11_Oso m" | J15: 2 | K15: 1 | AE15: 3 | AF15: 3
B16: 12 | C16: "12_Oso m" | W16: 2 | X16: 3 | Z16: 1 | AF16: 3
B17: 13 | C17: "13_Oso m" | G17: 2 | O17: 3 | Q17: 1 | AF17: 3
B18: 14 | C18: "14_Oso m" | K18: 3 | L18: 2 | P18: 1 | AF18: 3
B19: 15 | C19: "15_Oso f" | Y19: 3 | Z19: 2 | AC19: 1 | AF19: 3
B20: 16 | C20: "16_Oso f" | Y20: 3 | AA20: 2 | AD20: 1 | AF20: 3
B21: 17 | C21: "17_Oso f" | S21: 2 | Y21: 1 | AD21: 3 | AF21: 3
B22: 18 | C22: "18_Oso f" | W22: 2 | Z22: 3 | AD22: 1 | AF22: 3
B23: 19 | C23: "19_Oso f" | U23: 1 | Z23: 3 | AD23: 2 | AF23: 3
B24: 20 | C24: "20_Oso f" | U24: 2 | Z24: 3 | AD24: 1 | AF24: 3
B25: 21 | C25: "21_Oso f" | Y25: 3 | AA25: 1 | AD25: 2 | AF25: 3
B26: 22 | C26: "22_Oso f" | Z26: 2 | AB26: 1 | AD26: 3 | AF26: 3
B27: 23 | C27: "23_Oso f" | H27: 3 | U27: 1 | AB27: 2 | AF27: 3
B28: 24 | C28: "24_Oso f" | V28: 1 | X28: 2 | AC28: 3 | AF28: 3
B29: 25 | C29: "25_Oso f" | Y29: 2 | Z29: 1 | AD29: 3 | AF29: 3
B30: 26 | C30: "26_Oso f" | Q30: 1 | Z30: 3 | AA30: 2 | AF30: 3
B31: 27 | C31: "27_Oso f" | S31: 2 | U31: 1 | Z31: 3 | AF31: 3
B32: 28 | C32: "28_Oso f" | AF32: 0
D33: 2 | E33: 0 | F33: 1 | G33: 1 | H33: 4 | I33: 0 | J33: 4 | K33: 4 | L33: 6 | M33: 2 | N33: 3 | O33: 3 | P33: 1 | Q33: 2 | R33: 0 | S33: 2 | T33: 0 | U33: 4 | V33: 1 | W33: 2 | X33: 2 | Y33: 5 | Z33: 10 | AA33: 3 | AB33: 3 | AC33: 2 | AD33: 8 | AE33: 6 | AF33: =SUM($D$33:$AE$33) -> 81
D37: 1 | E37: 2 | F37: 3 | G37: 4 | H37: 5 | I37: 6 | J37: 7 | K37: 8 | L37: 9 | M37: 10 | N37: 11 | O37: 12 | P37: 13 | Q37: 14 | R37: 15 | S37: 16 | T37: 17 | U37: 18 | V37: 19 | W37: 20 | X37: 21 | Y37: 22 | Z37: 23 | AA37: 24 | AB37: 25 | AC37: 26 | AD37: 27 | AE37: 28
D38: "01_Oso m" | E38: "02_Oso m" | F38: "03_Oso m" | G38: "04_Oso m" | H38: "05_Oso m" | I38: "*06_Oso m" | J38: "07_Oso m" | K38: "08_Oso m" | L38: "09_Oso f" | M38: "**10_Oso m" | N38: "11_Oso m" | O38: "12_Oso m" | P38: "13_Oso m" | Q38: "14_Oso m" | R38: "15_Oso f" | S38: "16_Oso f" | T38: "17_Oso f" | U38: "18_Oso f" | V38: "19_Oso f" | W38: "20_Oso f" | X38: "21_Oso f" | Y38: "22_Oso f" | Z38: "23_Oso f" | AA38: "24_Oso f" | AB38: "25_Oso f" | AC38: "26_Oso f" | AD38: "27_Oso f" | AE38: "28_Oso f"
B39: 1 | C39: "01_Oso m" | D39: =IF(D5<>0,D$3,"") ->  | H39: 5 | M39: 10 | N39: 11 | AG39: 5, 10, 11, | AH39: 16, 17, 23, | AI39: =CONCATENATE(AG39,AH39) -> 5, 10, 11, 16, 17, 23, | AK39: 5 | AL39: 10 | AM39: 11 | AN39: 2
B40: 2 | C40: "02_Oso m" | D40: =IF(D6<>0,D$3,"") ->  | K40: 8 | L40: 9 | N40: 11 | AG40: 8, 9, 11, | AH40: 4, 6, 10, | AI40: 8, 9, 11, 4, 6, 10, | AK40: 8 | AL40: 9 | AM40: 11 | AN40: 0
B41: 3 | C41: "03_Oso m" | D41: =IF(D7<>0,D$3,"") ->  | L41: 9 | O41: 12 | AE41: 28 | AG41: 9, 12, 28, | AH41: 5, 6, 10, | AI41: 9, 12, 28, 5, 6, 10, | AK41: 9 | AL41: 12 | AM41: 28 | AN41: 1
B42: 4 | C42: "04_Oso m" | D42: =IF(D8<>0,D$3,"") ->  | Z42: 23 | AB42: 25 | AE42: 28 | AG42: 23, 25, 28, | AH42: 10, 21, 24, | AI42: 23, 25, 28, 10, 21, 24, | AK42: 23 | AL42: 25 | AM42: 28 | AN42: 0
B43: 5 | C43: "05_Oso m" | D43: =IF(D9<>0,D$3,"") -> 1 | J43: 7 | L43: 9 | AG43: 1, 7, 9, | AH43: 4, 12, 27, | AI43: 1, 7, 9, 4, 12, 27, | AK43: 1 | AL43: 7 | AM43: 9 | AN43: 2
B44: 6 | C44: "*06_Oso m" | D44: =IF(D10<>0,D$3,"") ->  | M44: 10 | N44: 11 | O44: 12 | AG44: 10, 11, 12, | AH44: 17, 20, 22, | AI44: 10, 11, 12, 17, 20, 22, | AK44: 10 | AL44: 11 | AM44: 12 | AN44: 0
B45: 7 | C45: "07_Oso m" | D45: =IF(D11<>0,D$3,"") ->  | H45: 5 | L45: 9 | AE45: 28 | AG45: 5, 9, 28, | AH45: 2, 6, 10, | AI45: 5, 9, 28, 2, 6, 10, | AK45: 5 | AL45: 9 | AM45: 28 | AN45: 2
B46: 8 | C46: "08_Oso m" | D46: =IF(D12<>0,D$3,"") ->  | J46: 7 | L46: 9 | AE46: 28 | AG46: 7, 9, 28, | AH46: 6, 10, 24, | AI46: 7, 9, 28, 6, 10, 24, | AK46: 7 | AL46: 9 | AM46: 28 | AN46: 0
B47: 9 | C47: "09_Oso f" | D47: =IF(D13<>0,D$3,"") ->  | F47: 3 | J47: 7 | AE47: 28 | AG47: 3, 7, 28, | AH47: 15, 23, 25, | AI47: 3, 7, 28, 15, 23, 25, | AK47: 3 | AL47: 7 | AM47: 28 | AN47: 2
B48: 10 | C48: "**10_Oso m" | D48: =IF(D14<>0,D$3,"") -> 1 | H48: 5 | K48: 8 | AG48: 1, 5, 8, | AH48: 4, 16, 18, | AI48: 1, 5, 8, 4, 16, 18, | AK48: 1 | AL48: 5 | AM48: 8 | AN48: 1
B49: 11 | C49: "11_Oso m" | D49: =IF(D15<>0,D$3,"") ->  | J49: 7 | K49: 8 | AE49: 28 | AG49: 7, 8, 28, | AH49: 2, 4, 10, | AI49: 7, 8, 28, 2, 4, 10, | AK49: 7 | AL49: 8 | AM49: 28 | AN49: 0
B50: 12 | C50: "12_Oso m" | D50: =IF(D16<>0,D$3,"") ->  | W50: 20 | X50: 21 | Z50: 23 | AG50: 20, 21, 23, | AH50: 2, 5, 22, | AI50: 20, 21, 23, 2, 5, 22, | AK50: 20 | AL50: 21 | AM50: 23 | AN50: 0
B51: 13 | C51: "13_Oso m" | D51: =IF(D17<>0,D$3,"") ->  | G51: 4 | O51: 12 | Q51: 14 | AG51: 4, 12, 14, | AH51: 6, 21, 0, | AI51: 4, 12, 14, 6, 21, 0, | AK51: 4 | AL51: 12 | AM51: 14 | AN51: 1
B52: 14 | C52: "14_Oso m" | D52: =IF(D18<>0,D$3,"") ->  | K52: 8 | L52: 9 | P52: 13 | AG52: 8, 9, 13, | AH52: 2, 6, 10, | AI52: 8, 9, 13, 2, 6, 10, | AK52: 8 | AL52: 9 | AM52: 13 | AN52: 1
B53: 15 | C53: "15_Oso f" | D53: =IF(D19<>0,D$3,"") ->  | Y53: 22 | Z53: 23 | AC53: 26 | AG53: 22, 23, 26, | AH53: 4, 6, 10, | AI53: 22, 23, 26, 4, 6, 10, | AK53: 22 | AL53: 23 | AM53: 26 | AN53: 0
B54: 16 | C54: "16_Oso f" | D54: =IF(D20<>0,D$3,"") ->  | Y54: 22 | AA54: 24 | AD54: 27 | AG54: 22, 24, 27, | AH54: 2, 6, 10, | AI54: 22, 24, 27, 2, 6, 10, | AK54: 22 | AL54: 24 | AM54: 27 | AN54: 1
B55: 17 | C55: "17_Oso f" | D55: =IF(D21<>0,D$3,"") ->  | S55: 16 | Y55: 22 | AD55: 27 | AG55: 16, 22, 27, | AH55: 6, 8, 10, | AI55: 16, 22, 27, 6, 8, 10, | AK55: 16 | AL55: 22 | AM55: 27 | AN55: 0
B56: 18 | C56: "18_Oso f" | D56: =IF(D22<>0,D$3,"") ->  | W56: 20 | Z56: 23 | AD56: 27 | AG56: 20, 23, 27, | AH56: 2, 6, 10, | AI56: 20, 23, 27, 2, 6, 10, | AK56: 20 | AL56: 23 | AM56: 27 | AN56: 3
B57: 19 | C57: "19_Oso f" | D57: =IF(D23<>0,D$3,"") ->  | U57: 18 | Z57: 23 | AD57: 27 | AG57: 18, 23, 27, | AH57: 2, 6, 10, | AI57: 18, 23, 27, 2, 6, 10, | AK57: 18 | AL57: 23 | AM57: 27 | AN57: 0
B58: 20 | C58: "20_Oso f" | D58: =IF(D24<>0,D$3,"") ->  | U58: 18 | Z58: 23 | AD58: 27 | AG58: 18, 23, 27, | AH58: 4, 6, 10, | AI58: 18, 23, 27, 4, 6, 10, | AK58: 18 | AL58: 23 | AM58: 27 | AN58: 1
B59: 21 | C59: "21_Oso f" | D59: =IF(D25<>0,D$3,"") ->  | Y59: 22 | AA59: 24 | AD59: 27 | AG59: 22, 24, 27, | AH59: 2, 6, 10, | AI59: 22, 24, 27, 2, 6, 10, | AK59: 22 | AL59: 24 | AM59: 27 | AN59: 1
B60: 22 | C60: "22_Oso f" | D60: =IF(D26<>0,D$3,"") ->  | Z60: 23 | AB60: 25 | AD60: 27 | AG60: 23, 25, 27, | AH60: 2, 6, 10, | AI60: 23, 25, 27, 2, 6, 10, | AK60: 23 | AL60: 25 | AM60: 27 | AN60: 1
B61: 23 | C61: "23_Oso f" | D61: =IF(D27<>0,D$3,"") ->  | H61: 5 | U61: 18 | AB61: 25 | AG61: 5, 18, 25, | AH61: 2, 6, 10, | AI61: 5, 18, 25, 2, 6, 10, | AK61: 5 | AL61: 18 | AM61: 25 | AN61: 2
B62: 24 | C62: "24_Oso f" | D62: =IF(D28<>0,D$3,"") ->  | V62: 19 | X62: 21 | AC62: 26 | AG62: 19, 21, 26, | AH62: 6, 10, 12, | AI62: 19, 21, 26, 6, 10, 12, | AK62: 19 | AL62: 21 | AM62: 26 | AN62: 2
B63: 25 | C63: "25_Oso f" | D63: =IF(D29<>0,D$3,"") ->  | Y63: 22 | Z63: 23 | AD63: 27 | AG63: 22, 23, 27, | AH63: 2, 6, 10, | AI63: 22, 23, 27, 2, 6, 10, | AK63: 22 | AL63: 23 | AM63: 27 | AN63: 2
B64: 26 | C64: "26_Oso f" | D64: =IF(D30<>0,D$3,"") ->  | Q64: 14 | Z64: 23 | AA64: 24 | AG64: 14, 23, 24, | AH64: 2, 6, 10, | AI64: 14, 23, 24, 2, 6, 10, | AK64: 14 | AL64: 23 | AM64: 24 | AN64: 1
B65: 27 | C65: "27_Oso f" | D65: =IF(D31<>0,D$3,"") ->  | S65: 16 | U65: 18 | Z65: 23 | AG65: 16, 18, 23, | AH65: 6, 10, 12, | AI65: 16, 18, 23, 6, 10, 12, | AK65: 16 | AL65: 18 | AM65: 23 | AN65: 2
B66: 28 | C66: "28_Oso f" | D66: =IF(D32<>0,D$3,"") ->  | AG66: 0, 0, 0, | AH66: 0, 0, 0, | AI66: 0, 0, 0, 0, 0, 0, | AK66: 0 | AL66: 0 | AM66: 0 | AN66: 0
AN67: =SUM($AN$39:$AN$66) -> 28

Sheet Q_1_N
A1: "1. S kým z triedy by si nechcel sedieť v jednej lavici?"
B2: 3
B3: 28 | D3: 1 | E3: 2 | F3: 3 | G3: 4 | H3: 5 | I3: 6 | J3: 7 | K3: 8 | L3: 9 | M3: 10 | N3: 11 | O3: 12 | P3: 13 | Q3: 14 | R3: 15 | S3: 16 | T3: 17 | U3: 18 | V3: 19 | W3: 20 | X3: 21 | Y3: 22 | Z3: 23 | AA3: 24 | AB3: 25 | AC3: 26 | AD3: 27 | AE3: 28
D4: "01_Oso m" | E4: "02_Oso m" | F4: "03_Oso m" | G4: "04_Oso m" | H4: "05_Oso m" | I4: "*06_Oso m" | J4: "07_Oso m" | K4: "08_Oso m" | L4: "09_Oso f" | M4: "**10_Oso m" | N4: "11_Oso m" | O4: "12_Oso m" | P4: "13_Oso m" | Q4: "14_Oso m" | R4: "15_Oso f" | S4: "16_Oso f" | T4: "17_Oso f" | U4: "18_Oso f" | V4: "19_Oso f" | W4: "20_Oso f" | X4: "21_Oso f" | Y4: "22_Oso f" | Z4: "23_Oso f" | AA4: "24_Oso f" | AB4: "25_Oso f" | AC4: "26_Oso f" | AD4: "27_Oso f" | AE4: "28_Oso f"
A5: → | B5: 1 | C5: "01_Oso m" | S5: 2 | T5: 1 | Z5: 3 | AF5: 3 | AQ5: 0 | AR5: 12 | AS5: 0 | AT5: 6 | AU5: 2 | AV5: 19 | AW5: 0 | AX5: 1 | AY5: 0 | AZ5: 20 | BA5: 0 | BB5: 3 | BC5: 0 | BD5: 0 | BE5: 1 | BF5: 2 | BG5: 2 | BH5: 1 | BI5: 0 | BJ5: 1 | BK5: 2 | BL5: 2 | BM5: 2 | BN5: 2 | BO5: 1 | BP5: 0 | BQ5: 1 | BR5: 0
B6: 2 | C6: "02_Oso m" | G6: 3 | I6: 2 | M6: 1 | AF6: 3 | AQ6: 3 | AR6: 3 | AS6: 3 | AT6: 3 | AU6: 3 | AV6: 3 | AW6: 3 | AX6: 3 | AY6: 3 | AZ6: 3 | BA6: 3 | BB6: 3 | BC6: 2 | BD6: 3 | BE6: 3 | BF6: 3 | BG6: 3 | BH6: 3 | BI6: 3 | BJ6: 3 | BK6: 3 | BL6: 3 | BM6: 3 | BN6: 3 | BO6: 3 | BP6: 3 | BQ6: 3 | BR6: 0
B7: 3 | C7: "03_Oso m" | H7: 2 | I7: 3 | M7: 1 | AF7: 3 | AQ7: 0 | AR7: 0 | AS7: 0 | AT7: 1 | AU7: 1 | AV7: 3 | AW7: 0 | AX7: 0 | AY7: 0 | AZ7: 3 | BA7: 0 | BB7: 1 | BC7: 0 | BD7: 0 | BE7: 0 | BF7: 1 | BG7: 1 | BH7: 1 | BI7: 0 | BJ7: 1 | BK7: 0 | BL7: 1 | BM7: 0 | BN7: 0 | BO7: 0 | BP7: 0 | BQ7: 0 | BR7: 0
B8: 4 | C8: "04_Oso m" | M8: 2 | X8: 1 | AA8: 3 | AF8: 3
B9: 5 | C9: "05_Oso m" | G9: 2 | O9: 3 | AD9: 1 | AF9: 3
B10: 6 | C10: "*06_Oso m" | T10: 1 | W10: 2 | Y10: 3 | AF10: 3
B11: 7 | C11: "07_Oso m" | E11: 3 | I11: 1 | M11: 2 | AF11: 3
B12: 8 | C12: "08_Oso m" | I12: 2 | M12: 3 | AA12: 1 | AF12: 3
B13: 9 | C13: "09_Oso f" | R13: 3 | Z13: 1 | AB13: 2 | AF13: 3
B14: 10 | C14: "**10_Oso m" | G14: 2 | S14: 1 | U14: 3 | AF14: 3
B15: 11 | C15: "11_Oso m" | E15: 1 | G15: 2 | M15: 3 | AF15: 3
B16: 12 | C16: "12_Oso m" | E16: 3 | H16: 2 | Y16: 1 | AF16: 3
B17: 13 | C17: "13_Oso m" | I17: 1 | X17: 2 | AF17: 2
B18: 14 | C18: "14_Oso m" | E18: 1 | I18: 3 | M18: 2 | AF18: 3
B19: 15 | C19: "15_Oso f" | G19: 3 | I19: 1 | M19: 2 | AF19: 3
B20: 16 | C20: "16_Oso f" | E20: 3 | I20: 2 | M20: 1 | AF20: 3
B21: 17 | C21: "17_Oso f" | I21: 1 | K21: 3 | M21: 2 | AF21: 3
B22: 18 | C22: "18_Oso f" | E22: 3 | I22: 2 | M22: 1 | AF22: 3
B23: 19 | C23: "19_Oso f" | E23: 1 | I23: 2 | M23: 3 | AF23: 3
B24: 20 | C24: "20_Oso f" | G24: 3 | I24: 1 | M24: 2 | AF24: 3
B25: 21 | C25: "21_Oso f" | E25: 1 | I25: 3 | M25: 2 | AF25: 3
B26: 22 | C26: "22_Oso f" | E26: 3 | I26: 2 | M26: 1 | AF26: 3
B27: 23 | C27: "23_Oso f" | E27: 2 | I27: 1 | M27: 3 | AF27: 3
B28: 24 | C28: "24_Oso f" | I28: 1 | M28: 3 | O28: 2 | AF28: 3
B29: 25 | C29: "25_Oso f" | E29: 3 | I29: 1 | M29: 2 | AF29: 3
B30: 26 | C30: "26_Oso f" | E30: 1 | I30: 2 | M30: 3 | AF30: 3
B31: 27 | C31: "27_Oso f" | I31: 1 | M31: 2 | O31: 3 | AF31: 3
B32: 28 | C32: "28_Oso f" | AF32: 0
D33: 0 | E33: 12 | F33: 0 | G33: 6 | H33: 2 | I33: 19 | J33: 0 | K33: 1 | L33: 0 | M33: 20 | N33: 0 | O33: 3 | P33: 0 | Q33: 0 | R33: 1 | S33: 2 | T33: 2 | U33: 1 | V33: 0 | W33: 1 | X33: 2 | Y33: 2 | Z33: 2 | AA33: 2 | AB33: 1 | AC33: 0 | AD33: 1 | AE33: 0 | AF33: =SUM($D$33:$AE$33) -> 80
D37: 1 | E37: 2 | F37: 3 | G37: 4 | H37: 5 | I37: 6 | J37: 7 | K37: 8 | L37: 9 | M37: 10 | N37: 11 | O37: 12 | P37: 13 | Q37: 14 | R37: 15 | S37: 16 | T37: 17 | U37: 18 | V37: 19 | W37: 20 | X37: 21 | Y37: 22 | Z37: 23 | AA37: 24 | AB37: 25 | AC37: 26 | AD37: 27 | AE37: 28
D38: "01_Oso m" | E38: "02_Oso m" | F38: "03_Oso m" | G38: "04_Oso m" | H38: "05_Oso m" | I38: "*06_Oso m" | J38: "07_Oso m" | K38: "08_Oso m" | L38: "09_Oso f" | M38: "**10_Oso m" | N38: "11_Oso m" | O38: "12_Oso m" | P38: "13_Oso m" | Q38: "14_Oso m" | R38: "15_Oso f" | S38: "16_Oso f" | T38: "17_Oso f" | U38: "18_Oso f" | V38: "19_Oso f" | W38: "20_Oso f" | X38: "21_Oso f" | Y38: "22_Oso f" | Z38: "23_Oso f" | AA38: "24_Oso f" | AB38: "25_Oso f" | AC38: "26_Oso f" | AD38: "27_Oso f" | AE38: "28_Oso f"
B39: 1 | C39: "01_Oso m" | D39: =IF(D5<>0,D$3,"") ->  | S39: 16 | T39: 17 | Z39: 23 | AG39: 16, 17, 23, | AK39: 16 | AL39: 17 | AM39: 23 | AN39: 0
B40: 2 | C40: "02_Oso m" | G40: 4 | I40: 6 | M40: 10 | AG40: 4, 6, 10, | AK40: 4 | AL40: 6 | AM40: 10 | AN40: 0
B41: 3 | C41: "03_Oso m" | H41: 5 | I41: 6 | M41: 10 | AG41: 5, 6, 10, | AK41: 5 | AL41: 6 | AM41: 10 | AN41: 0
B42: 4 | C42: "04_Oso m" | M42: 10 | X42: 21 | AA42: 24 | AG42: 10, 21, 24, | AK42: 10 | AL42: 21 | AM42: 24 | AN42: 1
B43: 5 | C43: "05_Oso m" | G43: 4 | O43: 12 | AD43: 27 | AG43: 4, 12, 27, | AK43: 4 | AL43: 12 | AM43: 27 | AN43: 1
B44: 6 | C44: "*06_Oso m" | T44: 17 | W44: 20 | Y44: 22 | AG44: 17, 20, 22, | AK44: 17 | AL44: 20 | AM44: 22 | AN44: 3
B45: 7 | C45: "07_Oso m" | E45: 2 | I45: 6 | M45: 10 | AG45: 2, 6, 10, | AK45: 2 | AL45: 6 | AM45: 10 | AN45: 0
B46: 8 | C46: "08_Oso m" | I46: 6 | M46: 10 | AA46: 24 | AG46: 6, 10, 24, | AK46: 6 | AL46: 10 | AM46: 24 | AN46: 0
B47: 9 | C47: "09_Oso f" | R47: 15 | Z47: 23 | AB47: 25 | AG47: 15, 23, 25, | AK47: 15 | AL47: 23 | AM47: 25 | AN47: 0
B48: 10 | C48: "**10_Oso m" | G48: =IF(G14<>0,G$3,"") -> 4 | S48: 16 | U48: 18 | AG48: 4, 16, 18, | AK48: 4 | AL48: 16 | AM48: 18 | AN48: 3
B49: 11 | C49: "11_Oso m" | D49: =IF(D15<>0,D$3,"") ->  | E49: 2 | G49: 4 | M49: 10 | AG49: 2, 4, 10, | AK49: 2 | AL49: 4 | AM49: 10 | AN49: 0
B50: 12 | C50: "12_Oso m" | E50: 2 | H50: 5 | Y50: 22 | AG50: 2, 5, 22, | AK50: 2 | AL50: 5 | AM50: 22 | AN50: 1
B51: 13 | C51: "13_Oso m" | I51: 6 | X51: 21 | AG51: 6, 21, 0, | AK51: 6 | AL51: 21 | AM51: 0 | AN51: 0
B52: 14 | C52: "14_Oso m" | E52: 2 | I52: 6 | M52: 10 | AG52: 2, 6, 10, | AK52: 2 | AL52: 6 | AM52: 10 | AN52: 0
B53: 15 | C53: "15_Oso f" | G53: 4 | I53: 6 | M53: 10 | AG53: 4, 6, 10, | AK53: 4 | AL53: 6 | AM53: 10 | AN53: 0
B54: 16 | C54: "16_Oso f" | E54: 2 | I54: 6 | M54: 10 | AG54: 2, 6, 10, | AK54: 2 | AL54: 6 | AM54: 10 | AN54: 1
B55: 17 | C55: "17_Oso f" | I55: 6 | K55: 8 | M55: 10 | AG55: 6, 8, 10, | AK55: 6 | AL55: 8 | AM55: 10 | AN55: 1
B56: 18 | C56: "18_Oso f" | E56: 2 | I56: 6 | M56: 10 | AG56: 2, 6, 10, | AK56: 2 | AL56: 6 | AM56: 10 | AN56: 1
B57: 19 | C57: "19_Oso f" | E57: 2 | I57: 6 | M57: 10 | AG57: 2, 6, 10, | AK57: 2 | AL57: 6 | AM57: 10 | AN57: 0
B58: 20 | C58: "20_Oso f" | G58: =IF(G24<>0,G$3,"") -> 4 | I58: 6 | M58: 10 | AG58: 4, 6, 10, | AK58: 4 | AL58: 6 | AM58: 10 | AN58: 1
B59: 21 | C59: "21_Oso f" | D59: =IF(D25<>0,D$3,"") ->  | E59: 2 | I59: 6 | M59: 10 | AG59: 2, 6, 10, | AK59: 2 | AL59: 6 | AM59: 10 | AN59: 0
B60: 22 | C60: "22_Oso f" | E60: 2 | I60: 6 | M60: 10 | AG60: 2, 6, 10, | AK60: 2 | AL60: 6 | AM60: 10 | AN60: 1
B61: 23 | C61: "23_Oso f" | E61: 2 | I61: 6 | M61: 10 | AG61: 2, 6, 10, | AK61: 2 | AL61: 6 | AM61: 10 | AN61: 0
B62: 24 | C62: "24_Oso f" | I62: 6 | M62: 10 | O62: 12 | AG62: 6, 10, 12, | AK62: 6 | AL62: 10 | AM62: 12 | AN62: 0
B63: 25 | C63: "25_Oso f" | E63: 2 | I63: 6 | M63: 10 | AG63: 2, 6, 10, | AK63: 2 | AL63: 6 | AM63: 10 | AN63: 0
B64: 26 | C64: "26_Oso f" | E64: 2 | I64: 6 | M64: 10 | AG64: 2, 6, 10, | AK64: 2 | AL64: 6 | AM64: 10 | AN64: 0
B65: 27 | C65: "27_Oso f" | I65: 6 | M65: 10 | O65: 12 | AG65: 6, 10, 12, | AK65: 6 | AL65: 10 | AM65: 12 | AN65: 0
B66: 28 | C66: "28_Oso f" | AG66: 0, 0, 0, | AK66: 0 | AL66: 0 | AM66: 0 | AN66: 0
AN67: =SUM($AN$39:$AN$66) -> 14

Sheet Q_2_P
A1: "2. S kým z triedy by si najradšej písaval úlohy a učieval sa?"
B2: 3
B3: 28 | D3: 1 | E3: 2 | F3: 3 | G3: 4 | H3: 5 | I3: 6 | J3: 7 | K3: 8 | L3: 9 | M3: 10 | N3: 11 | O3: 12 | P3: 13 | Q3: 14 | R3: 15 | S3: 16 | T3: 17 | U3: 18 | V3: 19 | W3: 20 | X3: 21 | Y3: 22 | Z3: 23 | AA3: 24 | AB3: 25 | AC3: 26 | AD3: 27 | AE3: 28
D4: "01_Oso m" | E4: "02_Oso m" | F4: "03_Oso m" | G4: "04_Oso m" | H4: "05_Oso m" | I4: "*06_Oso m" | J4: "07_Oso m" | K4: "08_Oso m" | L4: "09_Oso f" | M4: "**10_Oso m" | N4: "11_Oso m" | O4: "12_Oso m" | P4: "13_Oso m" | Q4: "14_Oso m" | R4: "15_Oso f" | S4: "16_Oso f" | T4: "17_Oso f" | U4: "18_Oso f" | V4: "19_Oso f" | W4: "20_Oso f" | X4: "21_Oso f" | Y4: "22_Oso f" | Z4: "23_Oso f" | AA4: "24_Oso f" | AB4: "25_Oso f" | AC4: "26_Oso f" | AD4: "27_Oso f" | AE4: "28_Oso f"
A5: → | B5: 1 | C5: "01_Oso m" | H5: 1 | J5: 3 | N5: 2 | AF5: 3 | AQ5: 1 | AR5: 0 | AS5: 3 | AT5: 1 | AU5: 1 | AV5: 0 | AW5: 6 | AX5: 4 | AY5: 7 | AZ5: 0 | BA5: 1 | BB5: 0 | BC5: 1 | BD5: 2 | BE5: 2 | BF5: 0 | BG5: 0 | BH5: 5 | BI5: 2 | BJ5: 1 | BK5: 1 | BL5: 1 | BM5: 14 | BN5: 0 | BO5: 9 | BP5: 6 | BQ5: 5 | BR5: 8
B6: 2 | C6: "02_Oso m" | J6: 3 | K6: 1 | L6: 2 | AF6: 3 | AQ6: 3 | AR6: 3 | AS6: 3 | AT6: 3 | AU6: 3 | AV6: 3 | AW6: 3 | AX6: 3 | AY6: 3 | AZ6: 3 | BA6: 3 | BB6: 3 | BC6: 3 | BD6: 3 | BE6: 3 | BF6: 3 | BG6: 3 | BH6: 3 | BI6: 3 | BJ6: 3 | BK6: 3 | BL6: 3 | BM6: 3 | BN6: 3 | BO6: 3 | BP6: 3 | BQ6: 3 | BR6: 0
B7: 3 | C7: "03_Oso m" | J7: 1 | Z7: 2 | AE7: 3 | AF7: 3 | AQ7: 1 | AR7: 0 | AS7: 1 | AT7: 1 | AU7: 1 | AV7: 0 | AW7: 2 | AX7: 0 | AY7: 1 | AZ7: 0 | BA7: 0 | BB7: 0 | BC7: 1 | BD7: 0 | BE7: 1 | BF7: 0 | BG7: 0 | BH7: 3 | BI7: 1 | BJ7: 1 | BK7: 0 | BL7: 1 | BM7: 3 | BN7: 0 | BO7: 3 | BP7: 2 | BQ7: 1 | BR7: 0
B8: 4 | C8: "04_Oso m" | L8: 1 | P8: 3 | Q8: 2 | AF8: 3
B9: 5 | C9: "05_Oso m" | D9: 1 | L9: 2 | AE9: 3 | AF9: 3
B10: 6 | C10: "*06_Oso m" | Z10: 3 | AB10: 2 | AC10: 1 | AF10: 3
B11: 7 | C11: "07_Oso m" | F11: 2 | L11: 1 | AE11: 3 | AF11: 3
B12: 8 | C12: "08_Oso m" | J12: 1 | L12: 2 | AE12: 3 | AF12: 3
B13: 9 | C13: "09_Oso f" | F13: 1 | J13: 3 | AE13: 2 | AF13: 3
B14: 10 | C14: "**10_Oso m" | F14: 2 | L14: 3 | Z14: 1 | AF14: 3
B15: 11 | C15: "11_Oso m" | J15: 1 | K15: 2 | AE15: 3 | AF15: 3
B16: 12 | C16: "12_Oso m" | K16: 3 | Z16: 1 | AD16: 2 | AF16: 3
B17: 13 | C17: "13_Oso m" | G17: 3 | Q17: 1 | AE17: 2 | AF17: 3
B18: 14 | C18: "14_Oso m" | K18: 1 | L18: 2 | AE18: 3 | AF18: 3
B19: 15 | C19: "15_Oso f" | Z19: 3 | AB19: 2 | AC19: 1 | AF19: 3
B20: 16 | C20: "16_Oso f" | Z20: 3 | AB20: 2 | AD20: 1 | AF20: 3
B21: 17 | C21: "17_Oso f" | R21: 1 | AC21: 2 | AD21: 3 | AF21: 3
B22: 18 | C22: "18_Oso f" | V22: 2 | Z22: 1 | AD22: 3 | AF22: 3
B23: 19 | C23: "19_Oso f" | U23: 1 | Z23: 2 | AD23: 3 | AF23: 3
B24: 20 | C24: "20_Oso f" | U24: 1 | Z24: 3 | AB24: 2 | AF24: 3
B25: 21 | C25: "21_Oso f" | U25: 3 | Z25: 2 | AB25: 1 | AF25: 3
B26: 22 | C26: "22_Oso f" | Z26: 2 | AB26: 3 | AC26: 1 | AF26: 3
B27: 23 | C27: "23_Oso f" | U27: 3 | W27: 2 | AB27: 1 | AF27: 3
B28: 24 | C28: "24_Oso f" | V28: 3 | X28: 1 | AC28: 2 | AF28: 3
B29: 25 | C29: "25_Oso f" | Y29: 3 | Z29: 1 | AC29: 2 | AF29: 3
B30: 26 | C30: "26_Oso f" | R30: 3 | Z30: 2 | AB30: 1 | AF30: 3
B31: 27 | C31: "27_Oso f" | U31: 2 | Z31: 1 | AB31: 3 | AF31: 3
B32: 28 | C32: "28_Oso f" | AF32: 0
D33: 1 | E33: 0 | F33: 3 | G33: 1 | H33: 1 | I33: 0 | J33: 6 | K33: 4 | L33: 7 | M33: 0 | N33: 1 | O33: 0 | P33: 1 | Q33: 2 | R33: 2 | S33: 0 | T33: 0 | U33: 5 | V33: 2 | W33: 1 | X33: 1 | Y33: 1 | Z33: 14 | AA33: 0 | AB33: 9 | AC33: 6 | AD33: 5 | AE33: 8 | AF33: =SUM($D$33:$AE$33) -> 81
D37: 1 | E37: 2 | F37: 3 | G37: 4 | H37: 5 | I37: 6 | J37: 7 | K37: 8 | L37: 9 | M37: 10 | N37: 11 | O37: 12 | P37: 13 | Q37: 14 | R37: 15 | S37: 16 | T37: 17 | U37: 18 | V37: 19 | W37: 20 | X37: 21 | Y37: 22 | Z37: 23 | AA37: 24 | AB37: 25 | AC37: 26 | AD37: 27 | AE37: 28
D38: "01_Oso m" | E38: "02_Oso m" | F38: "03_Oso m" | G38: "04_Oso m" | H38: "05_Oso m" | I38: "*06_Oso m" | J38: "07_Oso m" | K38: "08_Oso m" | L38: "09_Oso f" | M38: "**10_Oso m" | N38: "11_Oso m" | O38: "12_Oso m" | P38: "13_Oso m" | Q38: "14_Oso m" | R38: "15_Oso f" | S38: "16_Oso f" | T38: "17_Oso f" | U38: "18_Oso f" | V38: "19_Oso f" | W38: "20_Oso f" | X38: "21_Oso f" | Y38: "22_Oso f" | Z38: "23_Oso f" | AA38: "24_Oso f" | AB38: "25_Oso f" | AC38: "26_Oso f" | AD38: "27_Oso f" | AE38: "28_Oso f"
B39: 1 | C39: "01_Oso m" | D39: =IF(D5<>0,D$3,"") ->  | H39: 5 | J39: 7 | N39: 11 | AG39: 5, 7, 11, | AH39: 17, 23, 27, | AI39: =CONCATENATE(AG39,AH39) -> 5, 7, 11, 17, 23, 27, | AK39: 5 | AL39: 7 | AM39: 11 | AN39: 1
B40: 2 | C40: "02_Oso m" | J40: 7 | K40: 8 | L40: 9 | AG40: 7, 8, 9, | AH40: 4, 6, 10, | AI40: 7, 8, 9, 4, 6, 10, | AK40: 7 | AL40: 8 | AM40: 9 | AN40: 0
B41: 3 | C41: "03_Oso m" | J41: 7 | Z41: 23 | AE41: 28 | AG41: 7, 23, 28, | AH41: 4, 6, 10, | AI41: 7, 23, 28, 4, 6, 10, | AK41: 7 | AL41: 23 | AM41: 28 | AN41: 1
B42: 4 | C42: "04_Oso m" | L42: 9 | P42: 13 | Q42: 14 | AG42: 9, 13, 14, | AH42: 2, 6, 10, | AI42: 9, 13, 14, 2, 6, 10, | AK42: 9 | AL42: 13 | AM42: 14 | AN42: 1
B43: 5 | C43: "05_Oso m" | D43: 1 | L43: 9 | AE43: 28 | AG43: 1, 9, 28, | AH43: 4, 6, 10, | AI43: 1, 9, 28, 4, 6, 10, | AK43: 1 | AL43: 9 | AM43: 28 | AN43: 1
B44: 6 | C44: "*06_Oso m" | Z44: 23 | AB44: 25 | AC44: 26 | AG44: 23, 25, 26, | AH44: 2, 4, 24, | AI44: 23, 25, 26, 2, 4, 24, | AK44: 23 | AL44: 25 | AM44: 26 | AN44: 0
B45: 7 | C45: "07_Oso m" | F45: 3 | L45: 9 | AE45: 28 | AG45: 3, 9, 28, | AH45: 2, 6, 10, | AI45: 3, 9, 28, 2, 6, 10, | AK45: 3 | AL45: 9 | AM45: 28 | AN45: 2
B46: 8 | C46: "08_Oso m" | J46: 7 | L46: 9 | AE46: 28 | AG46: 7, 9, 28, | AH46: 4, 6, 10, | AI46: 7, 9, 28, 4, 6, 10, | AK46: 7 | AL46: 9 | AM46: 28 | AN46: 0
B47: 9 | C47: "09_Oso f" | F47: 3 | J47: 7 | AE47: 28 | AG47: 3, 7, 28, | AH47: 15, 17, 23, | AI47: 3, 7, 28, 15, 17, 23, | AK47: 3 | AL47: 7 | AM47: 28 | AN47: 1
B48: 10 | C48: "**10_Oso m" | F48: 3 | G48: =IF(G14<>0,G$3,"") ->  | L48: 9 | Z48: 23 | AG48: 3, 9, 23, | AH48: 2, 6, 12, | AI48: 3, 9, 23, 2, 6, 12, | AK48: 3 | AL48: 9 | AM48: 23 | AN48: 0
B49: 11 | C49: "11_Oso m" | D49: =IF(D15<>0,D$3,"") ->  | J49: 7 | K49: 8 | AE49: 28 | AG49: 7, 8, 28, | AH49: 2, 4, 10, | AI49: 7, 8, 28, 2, 4, 10, | AK49: 7 | AL49: 8 | AM49: 28 | AN49: 0
B50: 12 | C50: "12_Oso m" | K50: 8 | Z50: 23 | AD50: 27 | AG50: 8, 23, 27, | AH50: 5, 6, 10, | AI50: 8, 23, 27, 5, 6, 10, | AK50: 8 | AL50: 23 | AM50: 27 | AN50: 0
B51: 13 | C51: "13_Oso m" | G51: 4 | Q51: 14 | AE51: 28 | AG51: 4, 14, 28, | AH51: 6, 10, 12, | AI51: 4, 14, 28, 6, 10, 12, | AK51: 4 | AL51: 14 | AM51: 28 | AN51: 1
B52: 14 | C52: "14_Oso m" | K52: 8 | L52: 9 | AE52: 28 | AG52: 8, 9, 28, | AH52: 2, 6, 10, | AI52: 8, 9, 28, 2, 6, 10, | AK52: 8 | AL52: 9 | AM52: 28 | AN52: 0
B53: 15 | C53: "15_Oso f" | Z53: 23 | AB53: 25 | AC53: 26 | AG53: 23, 25, 26, | AH53: 2, 6, 10, | AI53: 23, 25, 26, 2, 6, 10, | AK53: 23 | AL53: 25 | AM53: 26 | AN53: 1
B54: 16 | C54: "16_Oso f" | Z54: 23 | AB54: 25 | AD54: 27 | AG54: 23, 25, 27, | AH54: 2, 6, 10, | AI54: 23, 25, 27, 2, 6, 10, | AK54: 23 | AL54: 25 | AM54: 27 | AN54: 0
B55: 17 | C55: "17_Oso f" | R55: 15 | AC55: 26 | AD55: 27 | AG55: 15, 26, 27, | AH55: 1, 6, 8, | AI55: 15, 26, 27, 1, 6, 8, | AK55: 15 | AL55: 26 | AM55: 27 | AN55: 0
B56: 18 | C56: "18_Oso f" | V56: 19 | Z56: 23 | AD56: 27 | AG56: 19, 23, 27, | AH56: 2, 6, 10, | AI56: 19, 23, 27, 2, 6, 10, | AK56: 19 | AL56: 23 | AM56: 27 | AN56: 3
B57: 19 | C57: "19_Oso f" | U57: 18 | Z57: 23 | AD57: 27 | AG57: 18, 23, 27, | AH57: 2, 6, 10, | AI57: 18, 23, 27, 2, 6, 10, | AK57: 18 | AL57: 23 | AM57: 27 | AN57: 1
B58: 20 | C58: "20_Oso f" | G58: =IF(G24<>0,G$3,"") ->  | U58: 18 | Z58: 23 | AB58: 25 | AG58: 18, 23, 25, | AH58: 6, 10, 12, | AI58: 18, 23, 25, 6, 10, 12, | AK58: 18 | AL58: 23 | AM58: 25 | AN58: 1
B59: 21 | C59: "21_Oso f" | D59: =IF(D25<>0,D$3,"") ->  | U59: 18 | Z59: 23 | AB59: 25 | AG59: 18, 23, 25, | AH59: 2, 6, 10, | AI59: 18, 23, 25, 2, 6, 10, | AK59: 18 | AL59: 23 | AM59: 25 | AN59: 0
B60: 22 | C60: "22_Oso f" | Z60: 23 | AB60: 25 | AC60: 26 | AG60: 23, 25, 26, | AH60: 5, 6, 10, | AI60: 23, 25, 26, 5, 6, 10, | AK60: 23 | AL60: 25 | AM60: 26 | AN60: 1
B61: 23 | C61: "23_Oso f" | U61: 18 | W61: 20 | AB61: 25 | AG61: 18, 20, 25, | AH61: 6, 12, 27, | AI61: 18, 20, 25, 6, 12, 27, | AK61: 18 | AL61: 20 | AM61: 25 | AN61: 3
B62: 24 | C62: "24_Oso f" | V62: 19 | X62: 21 | AC62: 26 | AG62: 19, 21, 26, | AH62: 2, 4, 20, | AI62: 19, 21, 26, 2, 4, 20, | AK62: 19 | AL62: 21 | AM62: 26 | AN62: 0
B63: 25 | C63: "25_Oso f" | Y63: 22 | Z63: 23 | AC63: 26 | AG63: 22, 23, 26, | AH63: 4, 5, 6, | AI63: 22, 23, 26, 4, 5, 6, | AK63: 22 | AL63: 23 | AM63: 26 | AN63: 3
B64: 26 | C64: "26_Oso f" | R64: 15 | Z64: 23 | AB64: 25 | AG64: 15, 23, 25, | AH64: 4, 16, 17, | AI64: 15, 23, 25, 4, 16, 17, | AK64: 15 | AL64: 23 | AM64: 25 | AN64: 2
B65: 27 | C65: "27_Oso f" | U65: 18 | Z65: 23 | AB65: 25 | AG65: 18, 23, 25, | AH65: 2, 4, 10, | AI65: 18, 23, 25, 2, 4, 10, | AK65: 18 | AL65: 23 | AM65: 25 | AN65: 1
B66: 28 | C66: "28_Oso f" | AG66: 0, 0, 0, | AH66: 0, 0, 0, | AI66: 0, 0, 0, 0, 0, 0, | AK66: 0 | AL66: 0 | AM66: 0 | AN66: 0
AN67: =SUM($AN$39:$AN$66) -> 24

Sheet Q_2_N
A1: "2. S kým z triedy by si v žiadnom prípade nechcel písavať úlohy a učievať sa?"
B2: 3
B3: 28 | D3: 1 | E3: 2 | F3: 3 | G3: 4 | H3: 5 | I3: 6 | J3: 7 | K3: 8 | L3: 9 | M3: 10 | N3: 11 | O3: 12 | P3: 13 | Q3: 14 | R3: 15 | S3: 16 | T3: 17 | U3: 18 | V3: 19 | W3: 20 | X3: 21 | Y3: 22 | Z3: 23 | AA3: 24 | AB3: 25 | AC3: 26 | AD3: 27 | AE3: 28
D4: "01_Oso m" | E4: "02_Oso m" | F4: "03_Oso m" | G4: "04_Oso m" | H4: "05_Oso m" | I4: "*06_Oso m" | J4: "07_Oso m" | K4: "08_Oso m" | L4: "09_Oso f" | M4: "**10_Oso m" | N4: "11_Oso m" | O4: "12_Oso m" | P4: "13_Oso m" | Q4: "14_Oso m" | R4: "15_Oso f" | S4: "16_Oso f" | T4: "17_Oso f" | U4: "18_Oso f" | V4: "19_Oso f" | W4: "20_Oso f" | X4: "21_Oso f" | Y4: "22_Oso f" | Z4: "23_Oso f" | AA4: "24_Oso f" | AB4: "25_Oso f" | AC4: "26_Oso f" | AD4: "27_Oso f" | AE4: "28_Oso f"
A5: → | B5: 1 | C5: "01_Oso m" | T5: 1 | Z5: 3 | AD5: 2 | AF5: 3 | AQ5: 1 | AR5: 13 | AS5: 0 | AT5: 10 | AU5: 3 | AV5: 20 | AW5: 0 | AX5: 1 | AY5: 0 | AZ5: 18 | BA5: 0 | BB5: 4 | BC5: 0 | BD5: 0 | BE5: 1 | BF5: 1 | BG5: 3 | BH5: 0 | BI5: 0 | BJ5: 1 | BK5: 0 | BL5: 0 | BM5: 2 | BN5: 1 | BO5: 0 | BP5: 0 | BQ5: 2 | BR5: 0
B6: 2 | C6: "02_Oso m" | G6: 3 | I6: 2 | M6: 1 | AF6: 3 | AQ6: 3 | AR6: 3 | AS6: 3 | AT6: 3 | AU6: 3 | AV6: 3 | AW6: 3 | AX6: 3 | AY6: 3 | AZ6: 3 | BA6: 3 | BB6: 3 | BC6: 3 | BD6: 3 | BE6: 3 | BF6: 3 | BG6: 3 | BH6: 3 | BI6: 3 | BJ6: 3 | BK6: 3 | BL6: 3 | BM6: 3 | BN6: 3 | BO6: 3 | BP6: 3 | BQ6: 3 | BR6: 0
B7: 3 | C7: "03_Oso m" | G7: 2 | I7: 3 | M7: 1 | AF7: 3 | AQ7: 1 | AR7: 3 | AS7: 0 | AT7: 2 | AU7: 0 | AV7: 2 | AW7: 0 | AX7: 0 | AY7: 0 | AZ7: 2 | BA7: 0 | BB7: 1 | BC7: 0 | BD7: 0 | BE7: 0 | BF7: 0 | BG7: 1 | BH7: 0 | BI7: 0 | BJ7: 0 | BK7: 0 | BL7: 0 | BM7: 0 | BN7: 0 | BO7: 0 | BP7: 0 | BQ7: 0 | BR7: 0
B8: 4 | C8: "04_Oso m" | E8: 1 | I8: 3 | M8: 2 | AF8: 3
B9: 5 | C9: "05_Oso m" | G9: 3 | I9: 1 | M9: 2 | AF9: 3
B10: 6 | C10: "*06_Oso m" | E10: 2 | G10: 3 | AA10: 1 | AF10: 3
B11: 7 | C11: "07_Oso m" | E11: 3 | I11: 1 | M11: 2 | AF11: 3
B12: 8 | C12: "08_Oso m" | G12: 3 | I12: 1 | M12: 2 | AF12: 3
B13: 9 | C13: "09_Oso f" | R13: 2 | T13: 3 | Z13: 1 | AF13: 3
B14: 10 | C14: "**10_Oso m" | E14: 3 | I14: 1 | O14: 2 | AF14: 3
B15: 11 | C15: "11_Oso m" | E15: 1 | G15: 2 | M15: 3 | AF15: 3
B16: 12 | C16: "12_Oso m" | H16: 1 | I16: 2 | M16: 3 | AF16: 3
B17: 13 | C17: "13_Oso m" | I17: 2 | M17: 1 | O17: 3 | AF17: 3
B18: 14 | C18: "14_Oso m" | E18: 1 | I18: 3 | M18: 2 | AF18: 3
B19: 15 | C19: "15_Oso f" | E19: 3 | I19: 1 | M19: 2 | AF19: 3
B20: 16 | C20: "16_Oso f" | E20: 3 | I20: 2 | M20: 1 | AF20: 3
B21: 17 | C21: "17_Oso f" | D21: 3 | I21: 1 | K21: 2 | AF21: 3
B22: 18 | C22: "18_Oso f" | E22: 3 | I22: 1 | M22: 2 | AF22: 3
B23: 19 | C23: "19_Oso f" | E23: 1 | I23: 2 | M23: 3 | AF23: 3
B24: 20 | C24: "20_Oso f" | I24: 1 | M24: 2 | O24: 3 | AF24: 3
B25: 21 | C25: "21_Oso f" | E25: 1 | I25: 2 | M25: 3 | AF25: 3
B26: 22 | C26: "22_Oso f" | H26: 2 | I26: 1 | M26: 3 | AF26: 3
B27: 23 | C27: "23_Oso f" | I27: 1 | O27: 2 | AD27: 3 | AF27: 3
B28: 24 | C28: "24_Oso f" | E28: 1 | G28: 2 | W28: 3 | AF28: 3
B29: 25 | C29: "25_Oso f" | G29: 2 | H29: 3 | I29: 1 | AF29: 3
B30: 26 | C30: "26_Oso f" | G30: 1 | S30: 2 | T30: 3 | AF30: 3
B31: 27 | C31: "27_Oso f" | E31: 1 | G31: 2 | M31: 3 | AF31: 3
B32: 28 | C32: "28_Oso f" | AF32: 0
D33: 1 | E33: 13 | F33: 0 | G33: 10 | H33: 3 | I33: 20 | J33: 0 | K33: 1 | L33: 0 | M33: 18 | N33: 0 | O33: 4 | P33: 0 | Q33: 0 | R33: 1 | S33: 1 | T33: 3 | U33: 0 | V33: 0 | W33: 1 | X33: 0 | Y33: 0 | Z33: 2 | AA33: 1 | AB33: 0 | AC33: 0 | AD33: 2 | AE33: 0 | AF33: =SUM($D$33:$AE$33) -> 81
D37: 1 | E37: 2 | F37: 3 | G37: 4 | H37: 5 | I37: 6 | J37: 7 | K37: 8 | L37: 9 | M37: 10 | N37: 11 | O37: 12 | P37: 13 | Q37: 14 | R37: 15 | S37: 16 | T37: 17 | U37: 18 | V37: 19 | W37: 20 | X37: 21 | Y37: 22 | Z37: 23 | AA37: 24 | AB37: 25 | AC37: 26 | AD37: 27 | AE37: 28
D38: "01_Oso m" | E38: "02_Oso m" | F38: "03_Oso m" | G38: "04_Oso m" | H38: "05_Oso m" | I38: "*06_Oso m" | J38: "07_Oso m" | K38: "08_Oso m" | L38: "09_Oso f" | M38: "**10_Oso m" | N38: "11_Oso m" | O38: "12_Oso m" | P38: "13_Oso m" | Q38: "14_Oso m" | R38: "15_Oso f" | S38: "16_Oso f" | T38: "17_Oso f" | U38: "18_Oso f" | V38: "19_Oso f" | W38: "20_Oso f" | X38: "21_Oso f" | Y38: "22_Oso f" | Z38: "23_Oso f" | AA38: "24_Oso f" | AB38: "25_Oso f" | AC38: "26_Oso f" | AD38: "27_Oso f" | AE38: "28_Oso f"
B39: 1 | C39: "01_Oso m" | D39: =IF(D5<>0,D$3,"") ->  | T39: 17 | Z39: 23 | AD39: 27 | AG39: 17, 23, 27, | AK39: 17 | AL39: 23 | AM39: 27 | AN39: 1
B40: 2 | C40: "02_Oso m" | G40: 4 | I40: 6 | M40: 10 | AG40: 4, 6, 10, | AK40: 4 | AL40: 6 | AM40: 10 | AN40: 3
B41: 3 | C41: "03_Oso m" | G41: 4 | I41: 6 | M41: 10 | AG41: 4, 6, 10, | AK41: 4 | AL41: 6 | AM41: 10 | AN41: 0
B42: 4 | C42: "04_Oso m" | E42: 2 | I42: 6 | M42: 10 | AG42: 2, 6, 10, | AK42: 2 | AL42: 6 | AM42: 10 | AN42: 2
B43: 5 | C43: "05_Oso m" | G43: 4 | I43: 6 | M43: 10 | AG43: 4, 6, 10, | AK43: 4 | AL43: 6 | AM43: 10 | AN43: 0
B44: 6 | C44: "*06_Oso m" | E44: 2 | G44: 4 | AA44: 24 | AG44: 2, 4, 24, | AK44: 2 | AL44: 4 | AM44: 24 | AN44: 2
B45: 7 | C45: "07_Oso m" | E45: 2 | I45: 6 | M45: 10 | AG45: 2, 6, 10, | AK45: 2 | AL45: 6 | AM45: 10 | AN45: 0
B46: 8 | C46: "08_Oso m" | G46: 4 | I46: 6 | M46: 10 | AG46: 4, 6, 10, | AK46: 4 | AL46: 6 | AM46: 10 | AN46: 0
B47: 9 | C47: "09_Oso f" | R47: 15 | T47: 17 | Z47: 23 | AG47: 15, 17, 23, | AK47: 15 | AL47: 17 | AM47: 23 | AN47: 0
B48: 10 | C48: "**10_Oso m" | E48: 2 | G48: =IF(G14<>0,G$3,"") ->  | I48: 6 | O48: 12 | AG48: 2, 6, 12, | AK48: 2 | AL48: 6 | AM48: 12 | AN48: 2
B49: 11 | C49: "11_Oso m" | D49: =IF(D15<>0,D$3,"") ->  | E49: 2 | G49: 4 | M49: 10 | AG49: 2, 4, 10, | AK49: 2 | AL49: 4 | AM49: 10 | AN49: 0
B50: 12 | C50: "12_Oso m" | H50: 5 | I50: 6 | M50: 10 | AG50: 5, 6, 10, | AK50: 5 | AL50: 6 | AM50: 10 | AN50: 1
B51: 13 | C51: "13_Oso m" | I51: 6 | M51: 10 | O51: 12 | AG51: 6, 10, 12, | AK51: 6 | AL51: 10 | AM51: 12 | AN51: 0
B52: 14 | C52: "14_Oso m" | E52: 2 | I52: 6 | M52: 10 | AG52: 2, 6, 10, | AK52: 2 | AL52: 6 | AM52: 10 | AN52: 0
B53: 15 | C53: "15_Oso f" | E53: 2 | I53: 6 | M53: 10 | AG53: 2, 6, 10, | AK53: 2 | AL53: 6 | AM53: 10 | AN53: 0
B54: 16 | C54: "16_Oso f" | E54: 2 | I54: 6 | M54: 10 | AG54: 2, 6, 10, | AK54: 2 | AL54: 6 | AM54: 10 | AN54: 0
B55: 17 | C55: "17_Oso f" | D55: 1 | I55: 6 | K55: 8 | AG55: 1, 6, 8, | AK55: 1 | AL55: 6 | AM55: 8 | AN55: 1
B56: 18 | C56: "18_Oso f" | E56: 2 | I56: 6 | M56: 10 | AG56: 2, 6, 10, | AK56: 2 | AL56: 6 | AM56: 10 | AN56: 0
B57: 19 | C57: "19_Oso f" | E57: 2 | I57: 6 | M57: 10 | AG57: 2, 6, 10, | AK57: 2 | AL57: 6 | AM57: 10 | AN57: 0
B58: 20 | C58: "20_Oso f" | G58: =IF(G24<>0,G$3,"") ->  | I58: 6 | M58: 10 | O58: 12 | AG58: 6, 10, 12, | AK58: 6 | AL58: 10 | AM58: 12 | AN58: 0
B59: 21 | C59: "21_Oso f" | D59: =IF(D25<>0,D$3,"") ->  | E59: 2 | I59: 6 | M59: 10 | AG59: 2, 6, 10, | AK59: 2 | AL59: 6 | AM59: 10 | AN59: 0
B60: 22 | C60: "22_Oso f" | H60: 5 | I60: 6 | M60: 10 | AG60: 5, 6, 10, | AK60: 5 | AL60: 6 | AM60: 10 | AN60: 0
B61: 23 | C61: "23_Oso f" | I61: 6 | O61: 12 | AD61: 27 | AG61: 6, 12, 27, | AK61: 6 | AL61: 12 | AM61: 27 | AN61: 0
B62: 24 | C62: "24_Oso f" | E62: 2 | G62: 4 | W62: 20 | AG62: 2, 4, 20, | AK62: 2 | AL62: 4 | AM62: 20 | AN62: 0
B63: 25 | C63: "25_Oso f" | G63: 4 | H63: 5 | I63: 6 | AG63: 4, 5, 6, | AK63: 4 | AL63: 5 | AM63: 6 | AN63: 0
B64: 26 | C64: "26_Oso f" | G64: 4 | S64: 16 | T64: 17 | AG64: 4, 16, 17, | AK64: 4 | AL64: 16 | AM64: 17 | AN64: 0
B65: 27 | C65: "27_Oso f" | E65: 2 | G65: 4 | M65: 10 | AG65: 2, 4, 10, | AK65: 2 | AL65: 4 | AM65: 10 | AN65: 0
B66: 28 | C66: "28_Oso f" | AG66: 0, 0, 0, | AK66: 0 | AL66: 0 | AM66: 0 | AN66: 0
AN67: =SUM($AN$39:$AN$66) -> 12

Sheet Q_3_P
A1: "3. S kým z triedy by si chcel stráviť prázdniny na pustom ostrove?"
B2: 3
B3: 28 | D3: 1 | E3: 2 | F3: 3 | G3: 4 | H3: 5 | I3: 6 | J3: 7 | K3: 8 | L3: 9 | M3: 10 | N3: 11 | O3: 12 | P3: 13 | Q3: 14 | R3: 15 | S3: 16 | T3: 17 | U3: 18 | V3: 19 | W3: 20 | X3: 21 | Y3: 22 | Z3: 23 | AA3: 24 | AB3: 25 | AC3: 26 | AD3: 27 | AE3: 28
D4: "01_Oso m" | E4: "02_Oso m" | F4: "03_Oso m" | G4: "04_Oso m" | H4: "05_Oso m" | I4: "*06_Oso m" | J4: "07_Oso m" | K4: "08_Oso m" | L4: "09_Oso f" | M4: "**10_Oso m" | N4: "11_Oso m" | O4: "12_Oso m" | P4: "13_Oso m" | Q4: "14_Oso m" | R4: "15_Oso f" | S4: "16_Oso f" | T4: "17_Oso f" | U4: "18_Oso f" | V4: "19_Oso f" | W4: "20_Oso f" | X4: "21_Oso f" | Y4: "22_Oso f" | Z4: "23_Oso f" | AA4: "24_Oso f" | AB4: "25_Oso f" | AC4: "26_Oso f" | AD4: "27_Oso f" | AE4: "28_Oso f"
A5: → | B5: 1 | C5: "01_Oso m" | H5: 1 | M5: 2 | N5: 3 | AF5: 3 | AQ5: 1 | AR5: 0 | AS5: 2 | AT5: 0 | AU5: 4 | AV5: 2 | AW5: 4 | AX5: 4 | AY5: 5 | AZ5: 3 | BA5: 4 | BB5: 4 | BC5: 0 | BD5: 1 | BE5: 1 | BF5: 4 | BG5: 1 | BH5: 5 | BI5: 2 | BJ5: 3 | BK5: 4 | BL5: 3 | BM5: 9 | BN5: 1 | BO5: 3 | BP5: 1 | BQ5: 6 | BR5: 4
B6: 2 | C6: "02_Oso m" | J6: 3 | K6: 2 | L6: 1 | AF6: 3 | AQ6: 3 | AR6: 3 | AS6: 3 | AT6: 3 | AU6: 3 | AV6: 3 | AW6: 3 | AX6: 3 | AY6: 3 | AZ6: 3 | BA6: 3 | BB6: 3 | BC6: 3 | BD6: 3 | BE6: 3 | BF6: 3 | BG6: 3 | BH6: 3 | BI6: 3 | BJ6: 3 | BK6: 3 | BL6: 3 | BM6: 3 | BN6: 3 | BO6: 3 | BP6: 3 | BQ6: 3 | BR6: 0
B7: 3 | C7: "03_Oso m" | J7: 3 | L7: 2 | AE7: 1 | AF7: 3 | AQ7: 1 | AR7: 0 | AS7: 2 | AT7: 0 | AU7: 1 | AV7: 1 | AW7: 2 | AX7: 1 | AY7: 1 | AZ7: 3 | BA7: 2 | BB7: 0 | BC7: 0 | BD7: 0 | BE7: 0 | BF7: 1 | BG7: 0 | BH7: 3 | BI7: 1 | BJ7: 0 | BK7: 1 | BL7: 0 | BM7: 2 | BN7: 1 | BO7: 1 | BP7: 0 | BQ7: 2 | BR7: 0
B8: 4 | C8: "04_Oso m" | H8: 1 | L8: 3 | O8: 2 | AF8: 3
B9: 5 | C9: "05_Oso m" | I9: 2 | M9: 1 | AE9: 3 | AF9: 3
B10: 6 | C10: "*06_Oso m" | M10: 3 | N10: 1 | O10: 2 | AF10: 3
B11: 7 | C11: "07_Oso m" | F11: 3 | K11: 1 | N11: 2 | AF11: 3
B12: 8 | C12: "08_Oso m" | L12: 3 | N12: 1 | O12: 2 | AF12: 3
B13: 9 | C13: "09_Oso f" | F13: 3 | J13: 2 | AE13: 1 | AF13: 3
B14: 10 | C14: "**10_Oso m" | D14: 3 | H14: 2 | I14: 1 | AF14: 3
B15: 11 | C15: "11_Oso m" | J15: 2 | K15: 1 | AE15: 3 | AF15: 3
B16: 12 | C16: "12_Oso m" | W16: 2 | Z16: 1 | AD16: 3 | AF16: 3
B17: 13 | C17: "13_Oso m" | L17: 2 | O17: 3 | Q17: 1 | AF17: 3
B18: 14 | C18: "14_Oso m" | K18: 1 | Z18: 2 | AC18: 3 | AF18: 3
B19: 15 | C19: "15_Oso f" | Y19: 1 | Z19: 3 | AB19: 2 | AF19: 3
B20: 16 | C20: "16_Oso f" | U20: 3 | W20: 1 | AD20: 2 | AF20: 3
B21: 17 | C21: "17_Oso f" | S21: 1 | X21: 3 | Y21: 2 | AF21: 3
B22: 18 | C22: "18_Oso f" | S22: 3 | Z22: 2 | AD22: 1 | AF22: 3
B23: 19 | C23: "19_Oso f" | T23: 1 | Z23: 3 | AD23: 2 | AF23: 3
B24: 20 | C24: "20_Oso f" | U24: 3 | Z24: 2 | AD24: 1 | AF24: 3
B25: 21 | C25: "21_Oso f" | U25: 2 | V25: 3 | AA25: 1 | AF25: 3
B26: 22 | C26: "22_Oso f" | S26: 2 | X26: 1 | Z26: 3 | AF26: 3
B27: 23 | C27: "23_Oso f" | H27: 3 | U27: 2 | AB27: 1 | AF27: 3
B28: 24 | C28: "24_Oso f" | R28: 2 | X28: 3 | AB28: 1 | AF28: 3
B29: 25 | C29: "25_Oso f" | S29: 3 | Z29: 1 | AD29: 2 | AF29: 3
B30: 26 | C30: "26_Oso f" | W30: 1 | X30: 2 | Y30: 3 | AF30: 3
B31: 27 | C31: "27_Oso f" | U31: 3 | V31: 1 | Z31: 2 | AF31: 3
B32: 28 | C32: "28_Oso f" | AF32: 0
D33: 1 | E33: 0 | F33: 2 | G33: 0 | H33: 4 | I33: 2 | J33: 4 | K33: 4 | L33: 5 | M33: 3 | N33: 4 | O33: 4 | P33: 0 | Q33: 1 | R33: 1 | S33: 4 | T33: 1 | U33: 5 | V33: 2 | W33: 3 | X33: 4 | Y33: 3 | Z33: 9 | AA33: 1 | AB33: 3 | AC33: 1 | AD33: 6 | AE33: 4 | AF33: =SUM($D$33:$AE$33) -> 81
D37: 1 | E37: 2 | F37: 3 | G37: 4 | H37: 5 | I37: 6 | J37: 7 | K37: 8 | L37: 9 | M37: 10 | N37: 11 | O37: 12 | P37: 13 | Q37: 14 | R37: 15 | S37: 16 | T37: 17 | U37: 18 | V37: 19 | W37: 20 | X37: 21 | Y37: 22 | Z37: 23 | AA37: 24 | AB37: 25 | AC37: 26 | AD37: 27 | AE37: 28
D38: "01_Oso m" | E38: "02_Oso m" | F38: "03_Oso m" | G38: "04_Oso m" | H38: "05_Oso m" | I38: "*06_Oso m" | J38: "07_Oso m" | K38: "08_Oso m" | L38: "09_Oso f" | M38: "**10_Oso m" | N38: "11_Oso m" | O38: "12_Oso m" | P38: "13_Oso m" | Q38: "14_Oso m" | R38: "15_Oso f" | S38: "16_Oso f" | T38: "17_Oso f" | U38: "18_Oso f" | V38: "19_Oso f" | W38: "20_Oso f" | X38: "21_Oso f" | Y38: "22_Oso f" | Z38: "23_Oso f" | AA38: "24_Oso f" | AB38: "25_Oso f" | AC38: "26_Oso f" | AD38: "27_Oso f" | AE38: "28_Oso f"
B39: 1 | C39: "01_Oso m" | D39: =IF(D5<>0,D$3,"") ->  | H39: 5 | M39: 10 | N39: 11 | AG39: 5, 10, 11, | AH39: 17, 20, 27, | AI39: =CONCATENATE(AG39,AH39) -> 5, 10, 11, 17, 20, 27, | AK39: 5 | AL39: 10 | AM39: 11 | AN39: 1
B40: 2 | C40: "02_Oso m" | J40: 7 | K40: 8 | L40: 9 | AG40: 7, 8, 9, | AH40: 4, 10, 11, | AI40: 7, 8, 9, 4, 10, 11, | AK40: 7 | AL40: 8 | AM40: 9 | AN40: 0
B41: 3 | C41: "03_Oso m" | J41: 7 | L41: 9 | AE41: 28 | AG41: 7, 9, 28, | AH41: 2, 5, 27, | AI41: 7, 9, 28, 2, 5, 27, | AK41: 7 | AL41: 9 | AM41: 28 | AN41: 2
B42: 4 | C42: "04_Oso m" | H42: 5 | L42: 9 | O42: 12 | AG42: 5, 9, 12, | AH42: 21, 24, 27, | AI42: 5, 9, 12, 21, 24, 27, | AK42: 5 | AL42: 9 | AM42: 12 | AN42: 0
B43: 5 | C43: "05_Oso m" | I43: 6 | M43: 10 | AE43: 28 | AG43: 6, 10, 28, | AH43: 4, 19, 24, | AI43: 6, 10, 28, 4, 19, 24, | AK43: 6 | AL43: 10 | AM43: 28 | AN43: 1
B44: 6 | C44: "*06_Oso m" | M44: 10 | N44: 11 | O44: 12 | AG44: 10, 11, 12, | AH44: 15, 16, 17, | AI44: 10, 11, 12, 15, 16, 17, | AK44: 10 | AL44: 11 | AM44: 12 | AN44: 1
B45: 7 | C45: "07_Oso m" | F45: 3 | K45: 8 | N45: 11 | AG45: 3, 8, 11, | AH45: 2, 5, 27, | AI45: 3, 8, 11, 2, 5, 27, | AK45: 3 | AL45: 8 | AM45: 11 | AN45: 2
B46: 8 | C46: "08_Oso m" | L46: 9 | N46: 11 | O46: 12 | AG46: 9, 11, 12, | AH46: 4, 6, 10, | AI46: 9, 11, 12, 4, 6, 10, | AK46: 9 | AL46: 11 | AM46: 12 | AN46: 1
B47: 9 | C47: "09_Oso f" | F47: 3 | J47: 7 | AE47: 28 | AG47: 3, 7, 28, | AH47: 15, 23, 25, | AI47: 3, 7, 28, 15, 23, 25, | AK47: 3 | AL47: 7 | AM47: 28 | AN47: 1
B48: 10 | C48: "**10_Oso m" | D48: 1 | G48: =IF(G14<>0,G$3,"") ->  | H48: 5 | I48: 6 | AG48: 1, 5, 6, | AH48: 18, 25, 27, | AI48: 1, 5, 6, 18, 25, 27, | AK48: 1 | AL48: 5 | AM48: 6 | AN48: 3
B49: 11 | C49: "11_Oso m" | D49: =IF(D15<>0,D$3,"") ->  | J49: 7 | K49: 8 | AE49: 28 | AG49: 7, 8, 28, | AH49: 2, 4, 10, | AI49: 7, 8, 28, 2, 4, 10, | AK49: 7 | AL49: 8 | AM49: 28 | AN49: 2
B50: 12 | C50: "12_Oso m" | W50: 20 | Z50: 23 | AD50: 27 | AG50: 20, 23, 27, | AH50: 2, 8, 18, | AI50: 20, 23, 27, 2, 8, 18, | AK50: 20 | AL50: 23 | AM50: 27 | AN50: 0
B51: 13 | C51: "13_Oso m" | L51: 9 | O51: 12 | Q51: 14 | AG51: 9, 12, 14, | AH51: 6, 10, 27, | AI51: 9, 12, 14, 6, 10, 27, | AK51: 9 | AL51: 12 | AM51: 14 | AN51: 0
B52: 14 | C52: "14_Oso m" | K52: 8 | Z52: 23 | AC52: 26 | AG52: 8, 23, 26, | AH52: 2, 6, 10, | AI52: 8, 23, 26, 2, 6, 10, | AK52: 8 | AL52: 23 | AM52: 26 | AN52: 0
B53: 15 | C53: "15_Oso f" | Y53: 22 | Z53: 23 | AB53: 25 | AG53: 22, 23, 25, | AH53: 2, 6, 10, | AI53: 22, 23, 25, 2, 6, 10, | AK53: 22 | AL53: 23 | AM53: 25 | AN53: 0
B54: 16 | C54: "16_Oso f" | U54: 18 | W54: 20 | AD54: 27 | AG54: 18, 20, 27, | AH54: 2, 6, 10, | AI54: 18, 20, 27, 2, 6, 10, | AK54: 18 | AL54: 20 | AM54: 27 | AN54: 1
B55: 17 | C55: "17_Oso f" | S55: 16 | X55: 21 | Y55: 22 | AG55: 16, 21, 22, | AH55: 1, 6, 10, | AI55: 16, 21, 22, 1, 6, 10, | AK55: 16 | AL55: 21 | AM55: 22 | AN55: 0
B56: 18 | C56: "18_Oso f" | S56: 16 | Z56: 23 | AD56: 27 | AG56: 16, 23, 27, | AH56: 2, 6, 10, | AI56: 16, 23, 27, 2, 6, 10, | AK56: 16 | AL56: 23 | AM56: 27 | AN56: 3
B57: 19 | C57: "19_Oso f" | T57: 17 | Z57: 23 | AD57: 27 | AG57: 17, 23, 27, | AH57: 2, 6, 10, | AI57: 17, 23, 27, 2, 6, 10, | AK57: 17 | AL57: 23 | AM57: 27 | AN57: 1
B58: 20 | C58: "20_Oso f" | G58: =IF(G24<>0,G$3,"") ->  | U58: 18 | Z58: 23 | AD58: 27 | AG58: 18, 23, 27, | AH58: 4, 6, 7, | AI58: 18, 23, 27, 4, 6, 7, | AK58: 18 | AL58: 23 | AM58: 27 | AN58: 0
B59: 21 | C59: "21_Oso f" | D59: =IF(D25<>0,D$3,"") ->  | U59: 18 | V59: 19 | AA59: 24 | AG59: 18, 19, 24, | AH59: 2, 6, 10, | AI59: 18, 19, 24, 2, 6, 10, | AK59: 18 | AL59: 19 | AM59: 24 | AN59: 1
B60: 22 | C60: "22_Oso f" | S60: 16 | X60: 21 | Z60: 23 | AG60: 16, 21, 23, | AH60: 4, 6, 10, | AI60: 16, 21, 23, 4, 6, 10, | AK60: 16 | AL60: 21 | AM60: 23 | AN60: 0
B61: 23 | C61: "23_Oso f" | H61: 5 | U61: 18 | AB61: 25 | AG61: 5, 18, 25, | AH61: 6, 7, 10, | AI61: 5, 18, 25, 6, 7, 10, | AK61: 5 | AL61: 18 | AM61: 25 | AN61: 2
B62: 24 | C62: "24_Oso f" | R62: 15 | X62: 21 | AB62: 25 | AG62: 15, 21, 25, | AH62: 16, 20, 22, | AI62: 15, 21, 25, 16, 20, 22, | AK62: 15 | AL62: 21 | AM62: 25 | AN62: 1
B63: 25 | C63: "25_Oso f" | S63: 16 | Z63: 23 | AD63: 27 | AG63: 16, 23, 27, | AH63: 6, 10, 12, | AI63: 16, 23, 27, 6, 10, 12, | AK63: 16 | AL63: 23 | AM63: 27 | AN63: 1
B64: 26 | C64: "26_Oso f" | W64: 20 | X64: 21 | Y64: 22 | AG64: 20, 21, 22, | AH64: 2, 6, 10, | AI64: 20, 21, 22, 2, 6, 10, | AK64: 20 | AL64: 21 | AM64: 22 | AN64: 0
B65: 27 | C65: "27_Oso f" | U65: 18 | V65: 19 | Z65: 23 | AG65: 18, 19, 23, | AH65: 2, 6, 10, | AI65: 18, 19, 23, 2, 6, 10, | AK65: 18 | AL65: 19 | AM65: 23 | AN65: 2
B66: 28 | C66: "28_Oso f" | AG66: 0, 0, 0, | AH66: 0, 0, 0, | AI66: 0, 0, 0, 0, 0, 0, | AK66: 0 | AL66: 0 | AM66: 0 | AN66: 0
AN67: =SUM($AN$39:$AN$66) -> 26

Sheet Q_3_N
A1: "3. S kým z triedy by si nechcel stráviť prázdniny na pustom ostrove?"
B2: 3
B3: 28 | D3: 1 | E3: 2 | F3: 3 | G3: 4 | H3: 5 | I3: 6 | J3: 7 | K3: 8 | L3: 9 | M3: 10 | N3: 11 | O3: 12 | P3: 13 | Q3: 14 | R3: 15 | S3: 16 | T3: 17 | U3: 18 | V3: 19 | W3: 20 | X3: 21 | Y3: 22 | Z3: 23 | AA3: 24 | AB3: 25 | AC3: 26 | AD3: 27 | AE3: 28
D4: "01_Oso m" | E4: "02_Oso m" | F4: "03_Oso m" | G4: "04_Oso m" | H4: "05_Oso m" | I4: "*06_Oso m" | J4: "07_Oso m" | K4: "08_Oso m" | L4: "09_Oso f" | M4: "**10_Oso m" | N4: "11_Oso m" | O4: "12_Oso m" | P4: "13_Oso m" | Q4: "14_Oso m" | R4: "15_Oso f" | S4: "16_Oso f" | T4: "17_Oso f" | U4: "18_Oso f" | V4: "19_Oso f" | W4: "20_Oso f" | X4: "21_Oso f" | Y4: "22_Oso f" | Z4: "23_Oso f" | AA4: "24_Oso f" | AB4: "25_Oso f" | AC4: "26_Oso f" | AD4: "27_Oso f" | AE4: "28_Oso f"
A5: → | B5: 1 | C5: "01_Oso m" | T5: 2 | W5: 3 | AD5: 1 | AF5: 3 | AQ5: 1 | AR5: 12 | AS5: 0 | AT5: 6 | AU5: 2 | AV5: 15 | AW5: 2 | AX5: 1 | AY5: 0 | AZ5: 16 | BA5: 1 | BB5: 1 | BC5: 0 | BD5: 0 | BE5: 2 | BF5: 2 | BG5: 2 | BH5: 2 | BI5: 1 | BJ5: 2 | BK5: 1 | BL5: 1 | BM5: 1 | BN5: 2 | BO5: 2 | BP5: 0 | BQ5: 6 | BR5: 0
B6: 2 | C6: "02_Oso m" | G6: 3 | M6: 1 | N6: 2 | AF6: 3 | AQ6: 3 | AR6: 3 | AS6: 3 | AT6: 3 | AU6: 3 | AV6: 3 | AW6: 3 | AX6: 3 | AY6: 3 | AZ6: 3 | BA6: 3 | BB6: 3 | BC6: 3 | BD6: 3 | BE6: 3 | BF6: 3 | BG6: 3 | BH6: 3 | BI6: 3 | BJ6: 3 | BK6: 3 | BL6: 3 | BM6: 3 | BN6: 3 | BO6: 3 | BP6: 3 | BQ6: 3 | BR6: 0
B7: 3 | C7: "03_Oso m" | E7: 3 | H7: 1 | AD7: 2 | AF7: 3 | AQ7: 1 | AR7: 1 | AS7: 0 | AT7: 0 | AU7: 0 | AV7: 3 | AW7: 0 | AX7: 0 | AY7: 0 | AZ7: 3 | BA7: 1 | BB7: 0 | BC7: 0 | BD7: 0 | BE7: 1 | BF7: 1 | BG7: 2 | BH7: 1 | BI7: 0 | BJ7: 0 | BK7: 0 | BL7: 0 | BM7: 0 | BN7: 0 | BO7: 1 | BP7: 0 | BQ7: 1 | BR7: 0
B8: 4 | C8: "04_Oso m" | X8: 2 | AA8: 1 | AD8: 3 | AF8: 3
B9: 5 | C9: "05_Oso m" | G9: 2 | V9: 3 | AA9: 1 | AF9: 3
B10: 6 | C10: "*06_Oso m" | R10: 2 | S10: 3 | T10: 1 | AF10: 3
B11: 7 | C11: "07_Oso m" | E11: 2 | H11: 3 | AD11: 1 | AF11: 3
B12: 8 | C12: "08_Oso m" | G12: 3 | I12: 1 | M12: 2 | AF12: 3
B13: 9 | C13: "09_Oso f" | R13: 3 | Z13: 1 | AB13: 2 | AF13: 3
B14: 10 | C14: "**10_Oso m" | U14: 3 | AB14: 2 | AD14: 1 | AF14: 3
B15: 11 | C15: "11_Oso m" | E15: 2 | G15: 1 | M15: 3 | AF15: 3
B16: 12 | C16: "12_Oso m" | E16: 1 | K16: 3 | U16: 2 | AF16: 3
B17: 13 | C17: "13_Oso m" | I17: 1 | M17: 3 | AD17: 2 | AF17: 3
B18: 14 | C18: "14_Oso m" | E18: 1 | I18: 3 | M18: 2 | AF18: 3
B19: 15 | C19: "15_Oso f" | E19: 3 | I19: 1 | M19: 2 | AF19: 3
B20: 16 | C20: "16_Oso f" | E20: 3 | I20: 2 | M20: 1 | AF20: 3
B21: 17 | C21: "17_Oso f" | D21: 2 | I21: 1 | M21: 3 | AF21: 3
B22: 18 | C22: "18_Oso f" | E22: 3 | I22: 2 | M22: 1 | AF22: 3
B23: 19 | C23: "19_Oso f" | E23: 1 | I23: 2 | M23: 3 | AF23: 3
B24: 20 | C24: "20_Oso f" | G24: 1 | I24: 2 | J24: 3 | AF24: 3
B25: 21 | C25: "21_Oso f" | E25: 1 | I25: 3 | M25: 2 | AF25: 3
B26: 22 | C26: "22_Oso f" | G26: 3 | I26: 1 | M26: 2 | AF26: 3
B27: 23 | C27: "23_Oso f" | I27: 2 | J27: 3 | M27: 1 | AF27: 3
B28: 24 | C28: "24_Oso f" | S28: 3 | W28: 2 | Y28: 1 | AF28: 3
B29: 25 | C29: "25_Oso f" | I29: 1 | M29: 2 | O29: 3 | AF29: 3
B30: 26 | C30: "26_Oso f" | E30: 2 | I30: 1 | M30: 3 | AF30: 3
B31: 27 | C31: "27_Oso f" | E31: 1 | I31: 2 | M31: 3 | AF31: 3
B32: 28 | C32: "28_Oso f" | AF32: 0
D33: 1 | E33: 12 | F33: 0 | G33: 6 | H33: 2 | I33: 15 | J33: 2 | K33: 1 | L33: 0 | M33: 16 | N33: 1 | O33: 1 | P33: 0 | Q33: 0 | R33: 2 | S33: 2 | T33: 2 | U33: 2 | V33: 1 | W33: 2 | X33: 1 | Y33: 1 | Z33: 1 | AA33: 2 | AB33: 2 | AC33: 0 | AD33: 6 | AE33: 0 | AF33: =SUM($D$33:$AE$33) -> 81
D37: 1 | E37: 2 | F37: 3 | G37: 4 | H37: 5 | I37: 6 | J37: 7 | K37: 8 | L37: 9 | M37: 10 | N37: 11 | O37: 12 | P37: 13 | Q37: 14 | R37: 15 | S37: 16 | T37: 17 | U37: 18 | V37: 19 | W37: 20 | X37: 21 | Y37: 22 | Z37: 23 | AA37: 24 | AB37: 25 | AC37: 26 | AD37: 27 | AE37: 28
D38: "01_Oso m" | E38: "02_Oso m" | F38: "03_Oso m" | G38: "04_Oso m" | H38: "05_Oso m" | I38: "*06_Oso m" | J38: "07_Oso m" | K38: "08_Oso m" | L38: "09_Oso f" | M38: "**10_Oso m" | N38: "11_Oso m" | O38: "12_Oso m" | P38: "13_Oso m" | Q38: "14_Oso m" | R38: "15_Oso f" | S38: "16_Oso f" | T38: "17_Oso f" | U38: "18_Oso f" | V38: "19_Oso f" | W38: "20_Oso f" | X38: "21_Oso f" | Y38: "22_Oso f" | Z38: "23_Oso f" | AA38: "24_Oso f" | AB38: "25_Oso f" | AC38: "26_Oso f" | AD38: "27_Oso f" | AE38: "28_Oso f"
B39: 1 | C39: "01_Oso m" | D39: =IF(D5<>0,D$3,"") ->  | T39: 17 | W39: 20 | AD39: 27 | AG39: 17, 20, 27, | AK39: 17 | AL39: 20 | AM39: 27 | AN39: 1
B40: 2 | C40: "02_Oso m" | G40: 4 | M40: 10 | N40: 11 | AG40: 4, 10, 11, | AK40: 4 | AL40: 10 | AM40: 11 | AN40: 1
B41: 3 | C41: "03_Oso m" | E41: 2 | H41: 5 | AD41: 27 | AG41: 2, 5, 27, | AK41: 2 | AL41: 5 | AM41: 27 | AN41: 0
B42: 4 | C42: "04_Oso m" | X42: 21 | AA42: 24 | AD42: 27 | AG42: 21, 24, 27, | AK42: 21 | AL42: 24 | AM42: 27 | AN42: 0
B43: 5 | C43: "05_Oso m" | G43: 4 | V43: 19 | AA43: 24 | AG43: 4, 19, 24, | AK43: 4 | AL43: 19 | AM43: 24 | AN43: 0
B44: 6 | C44: "*06_Oso m" | R44: 15 | S44: 16 | T44: 17 | AG44: 15, 16, 17, | AK44: 15 | AL44: 16 | AM44: 17 | AN44: 3
B45: 7 | C45: "07_Oso m" | E45: 2 | H45: 5 | AD45: 27 | AG45: 2, 5, 27, | AK45: 2 | AL45: 5 | AM45: 27 | AN45: 0
B46: 8 | C46: "08_Oso m" | G46: 4 | I46: 6 | M46: 10 | AG46: 4, 6, 10, | AK46: 4 | AL46: 6 | AM46: 10 | AN46: 0
B47: 9 | C47: "09_Oso f" | R47: 15 | Z47: 23 | AB47: 25 | AG47: 15, 23, 25, | AK47: 15 | AL47: 23 | AM47: 25 | AN47: 0
B48: 10 | C48: "**10_Oso m" | G48: =IF(G14<>0,G$3,"") ->  | U48: 18 | AB48: 25 | AD48: 27 | AG48: 18, 25, 27, | AK48: 18 | AL48: 25 | AM48: 27 | AN48: 3
B49: 11 | C49: "11_Oso m" | D49: =IF(D15<>0,D$3,"") ->  | E49: 2 | G49: 4 | M49: 10 | AG49: 2, 4, 10, | AK49: 2 | AL49: 4 | AM49: 10 | AN49: 1
B50: 12 | C50: "12_Oso m" | E50: 2 | K50: 8 | U50: 18 | AG50: 2, 8, 18, | AK50: 2 | AL50: 8 | AM50: 18 | AN50: 0
B51: 13 | C51: "13_Oso m" | I51: 6 | M51: 10 | AD51: 27 | AG51: 6, 10, 27, | AK51: 6 | AL51: 10 | AM51: 27 | AN51: 0
B52: 14 | C52: "14_Oso m" | E52: 2 | I52: 6 | M52: 10 | AG52: 2, 6, 10, | AK52: 2 | AL52: 6 | AM52: 10 | AN52: 0
B53: 15 | C53: "15_Oso f" | E53: 2 | I53: 6 | M53: 10 | AG53: 2, 6, 10, | AK53: 2 | AL53: 6 | AM53: 10 | AN53: 1
B54: 16 | C54: "16_Oso f" | E54: 2 | I54: 6 | M54: 10 | AG54: 2, 6, 10, | AK54: 2 | AL54: 6 | AM54: 10 | AN54: 1
B55: 17 | C55: "17_Oso f" | D55: 1 | I55: 6 | M55: 10 | AG55: 1, 6, 10, | AK55: 1 | AL55: 6 | AM55: 10 | AN55: 2
B56: 18 | C56: "18_Oso f" | E56: 2 | I56: 6 | M56: 10 | AG56: 2, 6, 10, | AK56: 2 | AL56: 6 | AM56: 10 | AN56: 1
B57: 19 | C57: "19_Oso f" | E57: 2 | I57: 6 | M57: 10 | AG57: 2, 6, 10, | AK57: 2 | AL57: 6 | AM57: 10 | AN57: 0
B58: 20 | C58: "20_Oso f" | G58: =IF(G24<>0,G$3,"") -> 4 | I58: 6 | J58: 7 | AG58: 4, 6, 7, | AK58: 4 | AL58: 6 | AM58: 7 | AN58: 0
B59: 21 | C59: "21_Oso f" | D59: =IF(D25<>0,D$3,"") ->  | E59: 2 | I59: 6 | M59: 10 | AG59: 2, 6, 10, | AK59: 2 | AL59: 6 | AM59: 10 | AN59: 0
B60: 22 | C60: "22_Oso f" | G60: 4 | I60: 6 | M60: 10 | AG60: 4, 6, 10, | AK60: 4 | AL60: 6 | AM60: 10 | AN60: 0
B61: 23 | C61: "23_Oso f" | I61: 6 | J61: 7 | M61: 10 | AG61: 6, 7, 10, | AK61: 6 | AL61: 7 | AM61: 10 | AN61: 0
B62: 24 | C62: "24_Oso f" | S62: 16 | W62: 20 | Y62: 22 | AG62: 16, 20, 22, | AK62: 16 | AL62: 20 | AM62: 22 | AN62: 0
B63: 25 | C63: "25_Oso f" | I63: 6 | M63: 10 | O63: 12 | AG63: 6, 10, 12, | AK63: 6 | AL63: 10 | AM63: 12 | AN63: 1
B64: 26 | C64: "26_Oso f" | E64: 2 | I64: 6 | M64: 10 | AG64: 2, 6, 10, | AK64: 2 | AL64: 6 | AM64: 10 | AN64: 0
B65: 27 | C65: "27_Oso f" | E65: 2 | I65: 6 | M65: 10 | AG65: 2, 6, 10, | AK65: 2 | AL65: 6 | AM65: 10 | AN65: 1
B66: 28 | C66: "28_Oso f" | AG66: 0, 0, 0, | AK66: 0 | AL66: 0 | AM66: 0 | AN66: 0
AN67: =SUM($AN$39:$AN$66) -> 16

Sheet Q_4_P
A1: "4. Kto by najlepšie dokázal hájiť záujmy triedy?"
B2: 3
B3: 28 | D3: 1 | E3: 2 | F3: 3 | G3: 4 | H3: 5 | I3: 6 | J3: 7 | K3: 8 | L3: 9 | M3: 10 | N3: 11 | O3: 12 | P3: 13 | Q3: 14 | R3: 15 | S3: 16 | T3: 17 | U3: 18 | V3: 19 | W3: 20 | X3: 21 | Y3: 22 | Z3: 23 | AA3: 24 | AB3: 25 | AC3: 26 | AD3: 27 | AE3: 28
D4: "01_Oso m" | E4: "02_Oso m" | F4: "03_Oso m" | G4: "04_Oso m" | H4: "05_Oso m" | I4: "*06_Oso m" | J4: "07_Oso m" | K4: "08_Oso m" | L4: "09_Oso f" | M4: "**10_Oso m" | N4: "11_Oso m" | O4: "12_Oso m" | P4: "13_Oso m" | Q4: "14_Oso m" | R4: "15_Oso f" | S4: "16_Oso f" | T4: "17_Oso f" | U4: "18_Oso f" | V4: "19_Oso f" | W4: "20_Oso f" | X4: "21_Oso f" | Y4: "22_Oso f" | Z4: "23_Oso f" | AA4: "24_Oso f" | AB4: "25_Oso f" | AC4: "26_Oso f" | AD4: "27_Oso f" | AE4: "28_Oso f"
A5: → | B5: 1 | C5: "01_Oso m" | R5: 1 | Z5: 3 | AC5: 2 | AF5: 3 | AQ5: 0 | AR5: 0 | AS5: 0 | AT5: 0 | AU5: 2 | AV5: 0 | AW5: 2 | AX5: 1 | AY5: 10 | AZ5: 0 | BA5: 0 | BB5: 0 | BC5: 0 | BD5: 0 | BE5: 8 | BF5: 0 | BG5: 0 | BH5: 2 | BI5: 0 | BJ5: 3 | BK5: 0 | BL5: 0 | BM5: 25 | BN5: 0 | BO5: 12 | BP5: 8 | BQ5: 0 | BR5: 8
B6: 2 | C6: "02_Oso m" | J6: 3 | Z6: 1 | AB6: 2 | AF6: 3 | AQ6: 3 | AR6: 3 | AS6: 3 | AT6: 3 | AU6: 3 | AV6: 3 | AW6: 3 | AX6: 3 | AY6: 3 | AZ6: 3 | BA6: 3 | BB6: 3 | BC6: 3 | BD6: 3 | BE6: 3 | BF6: 3 | BG6: 3 | BH6: 3 | BI6: 3 | BJ6: 3 | BK6: 3 | BL6: 3 | BM6: 3 | BN6: 3 | BO6: 3 | BP6: 3 | BQ6: 3 | BR6: 0
B7: 3 | C7: "03_Oso m" | Z7: 1 | AC7: 2 | AE7: 3 | AF7: 3 | AQ7: 0 | AR7: 0 | AS7: 0 | AT7: 0 | AU7: 1 | AV7: 0 | AW7: 0 | AX7: 0 | AY7: 0 | AZ7: 0 | BA7: 0 | BB7: 0 | BC7: 0 | BD7: 0 | BE7: 1 | BF7: 0 | BG7: 0 | BH7: 2 | BI7: 0 | BJ7: 2 | BK7: 0 | BL7: 0 | BM7: 3 | BN7: 0 | BO7: 2 | BP7: 1 | BQ7: 0 | BR7: 0
B8: 4 | C8: "04_Oso m" | L8: 2 | R8: 1 | Z8: 3 | AF8: 3
B9: 5 | C9: "05_Oso m" | L9: 3 | Z9: 2 | AE9: 1 | AF9: 3
B10: 6 | C10: "*06_Oso m" | K10: 3 | Z10: 1 | AC10: 2 | AF10: 3
B11: 7 | C11: "07_Oso m" | R11: 3 | Z11: 1 | AC11: 2 | AF11: 3
B12: 8 | C12: "08_Oso m" | L12: 3 | Z12: 1 | AC12: 2 | AF12: 3
B13: 9 | C13: "09_Oso f" | Z13: 1 | AB13: 3 | AE13: 2 | AF13: 3
B14: 10 | C14: "**10_Oso m" | L14: 1 | Z14: 3 | AE14: 2 | AF14: 3
B15: 11 | C15: "11_Oso m" | J15: 2 | L15: 1 | AE15: 3 | AF15: 3
B16: 12 | C16: "12_Oso m" | L16: 3 | Z16: 1 | AE16: 2 | AF16: 3
B17: 13 | C17: "13_Oso m" | Z17: 1 | AB17: 2 | AE17: 3 | AF17: 3
B18: 14 | C18: "14_Oso m" | L18: 3 | Z18: 1 | AE18: 2 | AF18: 3
B19: 15 | C19: "15_Oso f" | H19: 3 | Z19: 2 | AB19: 1 | AF19: 3
B20: 16 | C20: "16_Oso f" | R20: 1 | Z20: 2 | AB20: 3 | AF20: 3
B21: 17 | C21: "17_Oso f" | R21: 1 | Z21: 3 | AC21: 2 | AF21: 3
B22: 18 | C22: "18_Oso f" | W22: 2 | Z22: 1 | AB22: 3 | AF22: 3
B23: 19 | C23: "19_Oso f" | L23: 3 | Z23: 1 | AB23: 2 | AF23: 3
B24: 20 | C24: "20_Oso f" | L24: 2 | U24: 3 | Z24: 1 | AF24: 3
B25: 21 | C25: "21_Oso f" | L25: 2 | Z25: 1 | AB25: 3 | AF25: 3
B26: 22 | C26: "22_Oso f" | Z26: 2 | AB26: 1 | AC26: 3 | AF26: 3
B27: 23 | C27: "23_Oso f" | H27: 3 | U27: 1 | W27: 2 | AF27: 3
B28: 24 | C28: "24_Oso f" | R28: 3 | Z28: 1 | AB28: 2 | AF28: 3
B29: 25 | C29: "25_Oso f" | R29: 2 | Z29: 1 | AC29: 3 | AF29: 3
B30: 26 | C30: "26_Oso f" | R30: 3 | Z30: 1 | AB30: 2 | AF30: 3
B31: 27 | C31: "27_Oso f" | W31: 3 | Z31: 1 | AB31: 2 | AF31: 3
B32: 28 | C32: "28_Oso f" | AF32: 0
D33: 0 | E33: 0 | F33: 0 | G33: 0 | H33: 2 | I33: 0 | J33: 2 | K33: 1 | L33: 10 | M33: 0 | N33: 0 | O33: 0 | P33: 0 | Q33: 0 | R33: 8 | S33: 0 | T33: 0 | U33: 2 | V33: 0 | W33: 3 | X33: 0 | Y33: 0 | Z33: 25 | AA33: 0 | AB33: 12 | AC33: 8 | AD33: 0 | AE33: 8 | AF33: =SUM($D$33:$AE$33) -> 81
D37: 1 | E37: 2 | F37: 3 | G37: 4 | H37: 5 | I37: 6 | J37: 7 | K37: 8 | L37: 9 | M37: 10 | N37: 11 | O37: 12 | P37: 13 | Q37: 14 | R37: 15 | S37: 16 | T37: 17 | U37: 18 | V37: 19 | W37: 20 | X37: 21 | Y37: 22 | Z37: 23 | AA37: 24 | AB37: 25 | AC37: 26 | AD37: 27 | AE37: 28
D38: "01_Oso m" | E38: "02_Oso m" | F38: "03_Oso m" | G38: "04_Oso m" | H38: "05_Oso m" | I38: "*06_Oso m" | J38: "07_Oso m" | K38: "08_Oso m" | L38: "09_Oso f" | M38: "**10_Oso m" | N38: "11_Oso m" | O38: "12_Oso m" | P38: "13_Oso m" | Q38: "14_Oso m" | R38: "15_Oso f" | S38: "16_Oso f" | T38: "17_Oso f" | U38: "18_Oso f" | V38: "19_Oso f" | W38: "20_Oso f" | X38: "21_Oso f" | Y38: "22_Oso f" | Z38: "23_Oso f" | AA38: "24_Oso f" | AB38: "25_Oso f" | AC38: "26_Oso f" | AD38: "27_Oso f" | AE38: "28_Oso f"
B39: 1 | C39: "01_Oso m" | D39: =IF(D5<>0,D$3,"") ->  | R39: 15 | Z39: 23 | AC39: 26 | AG39: 15, 23, 26, | AH39: 6, 8, 10, | AI39: =CONCATENATE(AG39,AH39) -> 15, 23, 26, 6, 8, 10, | AK39: 15 | AL39: 23 | AM39: 26 | AN39: 0
B40: 2 | C40: "02_Oso m" | J40: 7 | Z40: 23 | AB40: 25 | AG40: 7, 23, 25, | AH40: 4, 6, 10, | AI40: 7, 23, 25, 4, 6, 10, | AK40: 7 | AL40: 23 | AM40: 25 | AN40: 0
B41: 3 | C41: "03_Oso m" | Z41: 23 | AC41: 26 | AE41: 28 | AG41: 23, 26, 28, | AH41: 4, 6, 10, | AI41: 23, 26, 28, 4, 6, 10, | AK41: 23 | AL41: 26 | AM41: 28 | AN41: 0
B42: 4 | C42: "04_Oso m" | L42: 9 | R42: 15 | Z42: 23 | AG42: 9, 15, 23, | AH42: 2, 6, 10, | AI42: 9, 15, 23, 2, 6, 10, | AK42: 9 | AL42: 15 | AM42: 23 | AN42: 0
B43: 5 | C43: "05_Oso m" | L43: 9 | Z43: 23 | AE43: 28 | AG43: 9, 23, 28, | AH43: 2, 24, 27, | AI43: 9, 23, 28, 2, 24, 27, | AK43: 9 | AL43: 23 | AM43: 28 | AN43: 1
B44: 6 | C44: "*06_Oso m" | K44: 8 | Z44: 23 | AC44: 26 | AG44: 8, 23, 26, | AH44: 2, 4, 24, | AI44: 8, 23, 26, 2, 4, 24, | AK44: 8 | AL44: 23 | AM44: 26 | AN44: 0
B45: 7 | C45: "07_Oso m" | R45: 15 | Z45: 23 | AC45: 26 | AG45: 15, 23, 26, | AH45: 2, 6, 10, | AI45: 15, 23, 26, 2, 6, 10, | AK45: 15 | AL45: 23 | AM45: 26 | AN45: 0
B46: 8 | C46: "08_Oso m" | L46: 9 | Z46: 23 | AC46: 26 | AG46: 9, 23, 26, | AH46: 4, 6, 10, | AI46: 9, 23, 26, 4, 6, 10, | AK46: 9 | AL46: 23 | AM46: 26 | AN46: 0
B47: 9 | C47: "09_Oso f" | Z47: 23 | AB47: 25 | AE47: 28 | AG47: 23, 25, 28, | AH47: 2, 6, 10, | AI47: 23, 25, 28, 2, 6, 10, | AK47: 23 | AL47: 25 | AM47: 28 | AN47: 0
B48: 10 | C48: "**10_Oso m" | G48: =IF(G14<>0,G$3,"") ->  | L48: 9 | Z48: 23 | AE48: 28 | AG48: 9, 23, 28, | AH48: 2, 18, 25, | AI48: 9, 23, 28, 2, 18, 25, | AK48: 9 | AL48: 23 | AM48: 28 | AN48: 0
B49: 11 | C49: "11_Oso m" | D49: =IF(D15<>0,D$3,"") ->  | J49: 7 | L49: 9 | AE49: 28 | AG49: 7, 9, 28, | AH49: 2, 4, 10, | AI49: 7, 9, 28, 2, 4, 10, | AK49: 7 | AL49: 9 | AM49: 28 | AN49: 0
B50: 12 | C50: "12_Oso m" | L50: 9 | Z50: 23 | AE50: 28 | AG50: 9, 23, 28, | AH50: 2, 6, 10, | AI50: 9, 23, 28, 2, 6, 10, | AK50: 9 | AL50: 23 | AM50: 28 | AN50: 0
B51: 13 | C51: "13_Oso m" | Z51: 23 | AB51: 25 | AE51: 28 | AG51: 23, 25, 28, | AH51: 2, 6, 10, | AI51: 23, 25, 28, 2, 6, 10, | AK51: 23 | AL51: 25 | AM51: 28 | AN51: 0
B52: 14 | C52: "14_Oso m" | L52: 9 | Z52: 23 | AE52: 28 | AG52: 9, 23, 28, | AH52: 2, 6, 10, | AI52: 9, 23, 28, 2, 6, 10, | AK52: 9 | AL52: 23 | AM52: 28 | AN52: 0
B53: 15 | C53: "15_Oso f" | H53: 5 | Z53: 23 | AB53: 25 | AG53: 5, 23, 25, | AH53: 2, 6, 10, | AI53: 5, 23, 25, 2, 6, 10, | AK53: 5 | AL53: 23 | AM53: 25 | AN53: 1
B54: 16 | C54: "16_Oso f" | R54: 15 | Z54: 23 | AB54: 25 | AG54: 15, 23, 25, | AH54: 2, 6, 10, | AI54: 15, 23, 25, 2, 6, 10, | AK54: 15 | AL54: 23 | AM54: 25 | AN54: 0
B55: 17 | C55: "17_Oso f" | R55: 15 | Z55: 23 | AC55: 26 | AG55: 15, 23, 26, | AH55: 10, 16, 27, | AI55: 15, 23, 26, 10, 16, 27, | AK55: 15 | AL55: 23 | AM55: 26 | AN55: 0
B56: 18 | C56: "18_Oso f" | W56: 20 | Z56: 23 | AB56: 25 | AG56: 20, 23, 25, | AH56: 2, 6, 10, | AI56: 20, 23, 25, 2, 6, 10, | AK56: 20 | AL56: 23 | AM56: 25 | AN56: 2
B57: 19 | C57: "19_Oso f" | L57: 9 | Z57: 23 | AB57: 25 | AG57: 9, 23, 25, | AH57: 2, 6, 10, | AI57: 9, 23, 25, 2, 6, 10, | AK57: 9 | AL57: 23 | AM57: 25 | AN57: 0
B58: 20 | C58: "20_Oso f" | G58: =IF(G24<>0,G$3,"") ->  | L58: 9 | U58: 18 | Z58: 23 | AG58: 9, 18, 23, | AH58: 2, 8, 24, | AI58: 9, 18, 23, 2, 8, 24, | AK58: 9 | AL58: 18 | AM58: 23 | AN58: 2
B59: 21 | C59: "21_Oso f" | D59: =IF(D25<>0,D$3,"") ->  | L59: 9 | Z59: 23 | AB59: 25 | AG59: 9, 23, 25, | AH59: 2, 6, 10, | AI59: 9, 23, 25, 2, 6, 10, | AK59: 9 | AL59: 23 | AM59: 25 | AN59: 0
B60: 22 | C60: "22_Oso f" | Z60: 23 | AB60: 25 | AC60: 26 | AG60: 23, 25, 26, | AH60: 2, 6, 10, | AI60: 23, 25, 26, 2, 6, 10, | AK60: 23 | AL60: 25 | AM60: 26 | AN60: 0
B61: 23 | C61: "23_Oso f" | H61: 5 | U61: 18 | W61: 20 | AG61: 5, 18, 20, | AH61: 2, 8, 24, | AI61: 5, 18, 20, 2, 8, 24, | AK61: 5 | AL61: 18 | AM61: 20 | AN61: 3
B62: 24 | C62: "24_Oso f" | R62: 15 | Z62: 23 | AB62: 25 | AG62: 15, 23, 25, | AH62: 2, 5, 17, | AI62: 15, 23, 25, 2, 5, 17, | AK62: 15 | AL62: 23 | AM62: 25 | AN62: 0
B63: 25 | C63: "25_Oso f" | R63: 15 | Z63: 23 | AC63: 26 | AG63: 15, 23, 26, | AH63: 6, 10, 12, | AI63: 15, 23, 26, 6, 10, 12, | AK63: 15 | AL63: 23 | AM63: 26 | AN63: 2
B64: 26 | C64: "26_Oso f" | R64: 15 | Z64: 23 | AB64: 25 | AG64: 15, 23, 25, | AH64: 11, 12, 13, | AI64: 15, 23, 25, 11, 12, 13, | AK64: 15 | AL64: 23 | AM64: 25 | AN64: 1
B65: 27 | C65: "27_Oso f" | W65: 20 | Z65: 23 | AB65: 25 | AG65: 20, 23, 25, | AH65: 2, 6, 10, | AI65: 20, 23, 25, 2, 6, 10, | AK65: 20 | AL65: 23 | AM65: 25 | AN65: 0
B66: 28 | C66: "28_Oso f" | AG66: 0, 0, 0, | AH66: 0, 0, 0, | AI66: 0, 0, 0, 0, 0, 0, | AK66: 0 | AL66: 0 | AM66: 0 | AN66: 0
AN67: =SUM($AN$39:$AN$66) -> 12

Sheet Q_4_N
A1: "4. Koho by si vôbec nevybral na hájenie záujmov triedy?"
B2: 3
B3: 28 | D3: 1 | E3: 2 | F3: 3 | G3: 4 | H3: 5 | I3: 6 | J3: 7 | K3: 8 | L3: 9 | M3: 10 | N3: 11 | O3: 12 | P3: 13 | Q3: 14 | R3: 15 | S3: 16 | T3: 17 | U3: 18 | V3: 19 | W3: 20 | X3: 21 | Y3: 22 | Z3: 23 | AA3: 24 | AB3: 25 | AC3: 26 | AD3: 27 | AE3: 28
D4: "01_Oso m" | E4: "02_Oso m" | F4: "03_Oso m" | G4: "04_Oso m" | H4: "05_Oso m" | I4: "*06_Oso m" | J4: "07_Oso m" | K4: "08_Oso m" | L4: "09_Oso f" | M4: "**10_Oso m" | N4: "11_Oso m" | O4: "12_Oso m" | P4: "13_Oso m" | Q4: "14_Oso m" | R4: "15_Oso f" | S4: "16_Oso f" | T4: "17_Oso f" | U4: "18_Oso f" | V4: "19_Oso f" | W4: "20_Oso f" | X4: "21_Oso f" | Y4: "22_Oso f" | Z4: "23_Oso f" | AA4: "24_Oso f" | AB4: "25_Oso f" | AC4: "26_Oso f" | AD4: "27_Oso f" | AE4: "28_Oso f"
A5: → | B5: 1 | C5: "01_Oso m" | I5: 2 | K5: 3 | M5: 1 | AF5: 3 | AQ5: 0 | AR5: 20 | AS5: 0 | AT5: 5 | AU5: 1 | AV5: 18 | AW5: 0 | AX5: 3 | AY5: 0 | AZ5: 20 | BA5: 1 | BB5: 2 | BC5: 1 | BD5: 0 | BE5: 0 | BF5: 1 | BG5: 1 | BH5: 1 | BI5: 0 | BJ5: 0 | BK5: 0 | BL5: 0 | BM5: 0 | BN5: 4 | BO5: 1 | BP5: 0 | BQ5: 2 | BR5: 0
B6: 2 | C6: "02_Oso m" | G6: 2 | I6: 3 | M6: 1 | AF6: 3 | AQ6: 3 | AR6: 3 | AS6: 3 | AT6: 3 | AU6: 3 | AV6: 3 | AW6: 3 | AX6: 3 | AY6: 3 | AZ6: 3 | BA6: 3 | BB6: 3 | BC6: 3 | BD6: 3 | BE6: 3 | BF6: 3 | BG6: 3 | BH6: 3 | BI6: 3 | BJ6: 3 | BK6: 3 | BL6: 3 | BM6: 3 | BN6: 3 | BO6: 3 | BP6: 3 | BQ6: 3 | BR6: 0
B7: 3 | C7: "03_Oso m" | G7: 3 | I7: 1 | M7: 2 | AF7: 3 | AQ7: 0 | AR7: 3 | AS7: 0 | AT7: 2 | AU7: 1 | AV7: 2 | AW7: 0 | AX7: 0 | AY7: 0 | AZ7: 3 | BA7: 0 | BB7: 0 | BC7: 0 | BD7: 0 | BE7: 0 | BF7: 0 | BG7: 0 | BH7: 1 | BI7: 0 | BJ7: 0 | BK7: 0 | BL7: 0 | BM7: 0 | BN7: 1 | BO7: 1 | BP7: 0 | BQ7: 0 | BR7: 0
B8: 4 | C8: "04_Oso m" | E8: 3 | I8: 2 | M8: 1 | AF8: 3
B9: 5 | C9: "05_Oso m" | E9: 3 | AA9: 2 | AD9: 1 | AF9: 3
B10: 6 | C10: "*06_Oso m" | E10: 2 | G10: 3 | AA10: 1 | AF10: 3
B11: 7 | C11: "07_Oso m" | E11: 2 | I11: 1 | M11: 3 | AF11: 3
B12: 8 | C12: "08_Oso m" | G12: 3 | I12: 2 | M12: 1 | AF12: 3
B13: 9 | C13: "09_Oso f" | E13: 1 | I13: 3 | M13: 2 | AF13: 3
B14: 10 | C14: "**10_Oso m" | E14: 1 | U14: 2 | AB14: 3 | AF14: 3
B15: 11 | C15: "11_Oso m" | E15: 2 | G15: 3 | M15: 1 | AF15: 3
B16: 12 | C16: "12_Oso m" | E16: 3 | I16: 1 | M16: 2 | AF16: 3
B17: 13 | C17: "13_Oso m" | E17: 3 | I17: 1 | M17: 2 | AF17: 3
B18: 14 | C18: "14_Oso m" | E18: 1 | I18: 3 | M18: 2 | AF18: 3
B19: 15 | C19: "15_Oso f" | E19: 3 | I19: 1 | M19: 2 | AF19: 3
B20: 16 | C20: "16_Oso f" | E20: 3 | I20: 2 | M20: 1 | AF20: 3
B21: 17 | C21: "17_Oso f" | M21: 3 | S21: 1 | AD21: 2 | AF21: 3
B22: 18 | C22: "18_Oso f" | E22: 2 | I22: 3 | M22: 1 | AF22: 3
B23: 19 | C23: "19_Oso f" | E23: 1 | I23: 2 | M23: 3 | AF23: 3
B24: 20 | C24: "20_Oso f" | E24: 2 | K24: 1 | AA24: 3 | AF24: 3
B25: 21 | C25: "21_Oso f" | E25: 1 | I25: 3 | M25: 2 | AF25: 3
B26: 22 | C26: "22_Oso f" | E26: 3 | I26: 2 | M26: 1 | AF26: 3
B27: 23 | C27: "23_Oso f" | E27: 1 | K27: 2 | AA27: 3 | AF27: 3
B28: 24 | C28: "24_Oso f" | E28: 1 | H28: 2 | T28: 3 | AF28: 3
B29: 25 | C29: "25_Oso f" | I29: 1 | M29: 2 | O29: 3 | AF29: 3
B30: 26 | C30: "26_Oso f" | N30: 3 | O30: 1 | P30: 2 | AF30: 3
B31: 27 | C31: "27_Oso f" | E31: 3 | I31: 2 | M31: 1 | AF31: 3
B32: 28 | C32: "28_Oso f" | AF32: 0
D33: 0 | E33: 20 | F33: 0 | G33: 5 | H33: 1 | I33: 18 | J33: 0 | K33: 3 | L33: 0 | M33: 20 | N33: 1 | O33: 2 | P33: 1 | Q33: 0 | R33: 0 | S33: 1 | T33: 1 | U33: 1 | V33: 0 | W33: 0 | X33: 0 | Y33: 0 | Z33: 0 | AA33: 4 | AB33: 1 | AC33: 0 | AD33: 2 | AE33: 0 | AF33: =SUM($D$33:$AE$33) -> 81
D37: 1 | E37: 2 | F37: 3 | G37: 4 | H37: 5 | I37: 6 | J37: 7 | K37: 8 | L37: 9 | M37: 10 | N37: 11 | O37: 12 | P37: 13 | Q37: 14 | R37: 15 | S37: 16 | T37: 17 | U37: 18 | V37: 19 | W37: 20 | X37: 21 | Y37: 22 | Z37: 23 | AA37: 24 | AB37: 25 | AC37: 26 | AD37: 27 | AE37: 28
D38: "01_Oso m" | E38: "02_Oso m" | F38: "03_Oso m" | G38: "04_Oso m" | H38: "05_Oso m" | I38: "*06_Oso m" | J38: "07_Oso m" | K38: "08_Oso m" | L38: "09_Oso f" | M38: "**10_Oso m" | N38: "11_Oso m" | O38: "12_Oso m" | P38: "13_Oso m" | Q38: "14_Oso m" | R38: "15_Oso f" | S38: "16_Oso f" | T38: "17_Oso f" | U38: "18_Oso f" | V38: "19_Oso f" | W38: "20_Oso f" | X38: "21_Oso f" | Y38: "22_Oso f" | Z38: "23_Oso f" | AA38: "24_Oso f" | AB38: "25_Oso f" | AC38: "26_Oso f" | AD38: "27_Oso f" | AE38: "28_Oso f"
B39: 1 | C39: "01_Oso m" | D39: =IF(D5<>0,D$3,"") ->  | I39: 6 | K39: 8 | M39: 10 | AG39: 6, 8, 10, | AK39: 6 | AL39: 8 | AM39: 10 | AN39: 0
B40: 2 | C40: "02_Oso m" | G40: 4 | I40: 6 | M40: 10 | AG40: 4, 6, 10, | AK40: 4 | AL40: 6 | AM40: 10 | AN40: 3
B41: 3 | C41: "03_Oso m" | G41: 4 | I41: 6 | M41: 10 | AG41: 4, 6, 10, | AK41: 4 | AL41: 6 | AM41: 10 | AN41: 0
B42: 4 | C42: "04_Oso m" | E42: 2 | I42: 6 | M42: 10 | AG42: 2, 6, 10, | AK42: 2 | AL42: 6 | AM42: 10 | AN42: 2
B43: 5 | C43: "05_Oso m" | E43: 2 | AA43: 24 | AD43: 27 | AG43: 2, 24, 27, | AK43: 2 | AL43: 24 | AM43: 27 | AN43: 1
B44: 6 | C44: "*06_Oso m" | E44: 2 | G44: 4 | AA44: 24 | AG44: 2, 4, 24, | AK44: 2 | AL44: 4 | AM44: 24 | AN44: 2
B45: 7 | C45: "07_Oso m" | E45: 2 | I45: 6 | M45: 10 | AG45: 2, 6, 10, | AK45: 2 | AL45: 6 | AM45: 10 | AN45: 0
B46: 8 | C46: "08_Oso m" | G46: 4 | I46: 6 | M46: 10 | AG46: 4, 6, 10, | AK46: 4 | AL46: 6 | AM46: 10 | AN46: 0
B47: 9 | C47: "09_Oso f" | E47: 2 | I47: 6 | M47: 10 | AG47: 2, 6, 10, | AK47: 2 | AL47: 6 | AM47: 10 | AN47: 0
B48: 10 | C48: "**10_Oso m" | E48: 2 | G48: =IF(G14<>0,G$3,"") ->  | U48: 18 | AB48: 25 | AG48: 2, 18, 25, | AK48: 2 | AL48: 18 | AM48: 25 | AN48: 3
B49: 11 | C49: "11_Oso m" | D49: =IF(D15<>0,D$3,"") ->  | E49: 2 | G49: 4 | M49: 10 | AG49: 2, 4, 10, | AK49: 2 | AL49: 4 | AM49: 10 | AN49: 0
B50: 12 | C50: "12_Oso m" | E50: 2 | I50: 6 | M50: 10 | AG50: 2, 6, 10, | AK50: 2 | AL50: 6 | AM50: 10 | AN50: 0
B51: 13 | C51: "13_Oso m" | E51: 2 | I51: 6 | M51: 10 | AG51: 2, 6, 10, | AK51: 2 | AL51: 6 | AM51: 10 | AN51: 0
B52: 14 | C52: "14_Oso m" | E52: 2 | I52: 6 | M52: 10 | AG52: 2, 6, 10, | AK52: 2 | AL52: 6 | AM52: 10 | AN52: 0
B53: 15 | C53: "15_Oso f" | E53: 2 | I53: 6 | M53: 10 | AG53: 2, 6, 10, | AK53: 2 | AL53: 6 | AM53: 10 | AN53: 0
B54: 16 | C54: "16_Oso f" | E54: 2 | I54: 6 | M54: 10 | AG54: 2, 6, 10, | AK54: 2 | AL54: 6 | AM54: 10 | AN54: 0
B55: 17 | C55: "17_Oso f" | M55: 10 | S55: 16 | AD55: 27 | AG55: 10, 16, 27, | AK55: 10 | AL55: 16 | AM55: 27 | AN55: 0
B56: 18 | C56: "18_Oso f" | E56: 2 | I56: 6 | M56: 10 | AG56: 2, 6, 10, | AK56: 2 | AL56: 6 | AM56: 10 | AN56: 1
B57: 19 | C57: "19_Oso f" | E57: 2 | I57: 6 | M57: 10 | AG57: 2, 6, 10, | AK57: 2 | AL57: 6 | AM57: 10 | AN57: 0
B58: 20 | C58: "20_Oso f" | E58: 2 | G58: =IF(G24<>0,G$3,"") ->  | K58: 8 | AA58: 24 | AG58: 2, 8, 24, | AK58: 2 | AL58: 8 | AM58: 24 | AN58: 0
B59: 21 | C59: "21_Oso f" | D59: =IF(D25<>0,D$3,"") ->  | E59: 2 | I59: 6 | M59: 10 | AG59: 2, 6, 10, | AK59: 2 | AL59: 6 | AM59: 10 | AN59: 0
B60: 22 | C60: "22_Oso f" | E60: 2 | I60: 6 | M60: 10 | AG60: 2, 6, 10, | AK60: 2 | AL60: 6 | AM60: 10 | AN60: 0
B61: 23 | C61: "23_Oso f" | E61: 2 | K61: 8 | AA61: 24 | AG61: 2, 8, 24, | AK61: 2 | AL61: 8 | AM61: 24 | AN61: 0
B62: 24 | C62: "24_Oso f" | E62: 2 | H62: 5 | T62: 17 | AG62: 2, 5, 17, | AK62: 2 | AL62: 5 | AM62: 17 | AN62: 1
B63: 25 | C63: "25_Oso f" | I63: 6 | M63: 10 | O63: 12 | AG63: 6, 10, 12, | AK63: 6 | AL63: 10 | AM63: 12 | AN63: 1
B64: 26 | C64: "26_Oso f" | N64: 11 | O64: 12 | P64: 13 | AG64: 11, 12, 13, | AK64: 11 | AL64: 12 | AM64: 13 | AN64: 0
B65: 27 | C65: "27_Oso f" | E65: 2 | I65: 6 | M65: 10 | AG65: 2, 6, 10, | AK65: 2 | AL65: 6 | AM65: 10 | AN65: 0
B66: 28 | C66: "28_Oso f" | AG66: 0, 0, 0, | AK66: 0 | AL66: 0 | AM66: 0 | AN66: 0
AN67: =SUM($AN$39:$AN$66) -> 14

Sheet Q_5_P
A1: "5. Komu z triedy by si zveril svoje tajomstvo?"
B2: 3
B3: 28 | D3: 1 | E3: 2 | F3: 3 | G3: 4 | H3: 5 | I3: 6 | J3: 7 | K3: 8 | L3: 9 | M3: 10 | N3: 11 | O3: 12 | P3: 13 | Q3: 14 | R3: 15 | S3: 16 | T3: 17 | U3: 18 | V3: 19 | W3: 20 | X3: 21 | Y3: 22 | Z3: 23 | AA3: 24 | AB3: 25 | AC3: 26 | AD3: 27 | AE3: 28
D4: "01_Oso m" | E4: "02_Oso m" | F4: "03_Oso m" | G4: "04_Oso m" | H4: "05_Oso m" | I4: "*06_Oso m" | J4: "07_Oso m" | K4: "08_Oso m" | L4: "09_Oso f" | M4: "**10_Oso m" | N4: "11_Oso m" | O4: "12_Oso m" | P4: "13_Oso m" | Q4: "14_Oso m" | R4: "15_Oso f" | S4: "16_Oso f" | T4: "17_Oso f" | U4: "18_Oso f" | V4: "19_Oso f" | W4: "20_Oso f" | X4: "21_Oso f" | Y4: "22_Oso f" | Z4: "23_Oso f" | AA4: "24_Oso f" | AB4: "25_Oso f" | AC4: "26_Oso f" | AD4: "27_Oso f" | AE4: "28_Oso f"
A5: → | B5: 1 | C5: "01_Oso m" | H5: 1 | J5: 3 | N5: 2 | AF5: 3 | AQ5: 2 | AR5: 0 | AS5: 1 | AT5: 1 | AU5: 2 | AV5: 1 | AW5: 5 | AX5: 3 | AY5: 3 | AZ5: 1 | BA5: 4 | BB5: 2 | BC5: 2 | BD5: 3 | BE5: 0 | BF5: 0 | BG5: 0 | BH5: 5 | BI5: 4 | BJ5: 2 | BK5: 3 | BL5: 3 | BM5: 11 | BN5: 2 | BO5: 6 | BP5: 2 | BQ5: 6 | BR5: 5
B6: 2 | C6: "02_Oso m" | J6: 2 | L6: 3 | Z6: 1 | AF6: 3 | AQ6: 3 | AR6: 3 | AS6: 3 | AT6: 3 | AU6: 3 | AV6: 1 | AW6: 3 | AX6: 3 | AY6: 3 | AZ6: 3 | BA6: 3 | BB6: 3 | BC6: 3 | BD6: 3 | BE6: 3 | BF6: 3 | BG6: 3 | BH6: 3 | BI6: 3 | BJ6: 3 | BK6: 3 | BL6: 3 | BM6: 3 | BN6: 3 | BO6: 3 | BP6: 3 | BQ6: 3 | BR6: 0
B7: 3 | C7: "03_Oso m" | J7: 3 | L7: 2 | AE7: 1 | AF7: 3 | AQ7: 1 | AR7: 0 | AS7: 1 | AT7: 0 | AU7: 2 | AV7: 0 | AW7: 1 | AX7: 0 | AY7: 1 | AZ7: 1 | BA7: 1 | BB7: 2 | BC7: 2 | BD7: 2 | BE7: 0 | BF7: 0 | BG7: 0 | BH7: 3 | BI7: 2 | BJ7: 1 | BK7: 1 | BL7: 0 | BM7: 3 | BN7: 2 | BO7: 2 | BP7: 1 | BQ7: 3 | BR7: 0
B8: 4 | C8: "04_Oso m" | N8: 2 | Z8: 3 | AE8: 1 | AF8: 3
B9: 5 | C9: "05_Oso m" | D9: 2 | M9: 1 | AE9: 3 | AF9: 3
B10: 6 | C10: "*06_Oso m" | N10: 1 | AF10: 1
B11: 7 | C11: "07_Oso m" | K11: 1 | N11: 2 | Q11: 3 | AF11: 3
B12: 8 | C12: "08_Oso m" | L12: 1 | Z12: 3 | AC12: 2 | AF12: 3
B13: 9 | C13: "09_Oso f" | F13: 2 | J13: 3 | AE13: 1 | AF13: 3
B14: 10 | C14: "**10_Oso m" | D14: 1 | H14: 2 | I14: 3 | AF14: 3
B15: 11 | C15: "11_Oso m" | J15: 1 | K15: 3 | AE15: 2 | AF15: 3
B16: 12 | C16: "12_Oso m" | P16: 2 | Q16: 1 | W16: 3 | AF16: 3
B17: 13 | C17: "13_Oso m" | G17: 2 | O17: 3 | Q17: 1 | AF17: 3
B18: 14 | C18: "14_Oso m" | K18: 2 | O18: 3 | P18: 1 | AF18: 3
B19: 15 | C19: "15_Oso f" | Y19: 3 | Z19: 1 | AB19: 2 | AF19: 3
B20: 16 | C20: "16_Oso f" | Z20: 3 | AB20: 2 | AD20: 1 | AF20: 3
B21: 17 | C21: "17_Oso f" | X21: 3 | Y21: 1 | AD21: 2 | AF21: 3
B22: 18 | C22: "18_Oso f" | V22: 2 | Z22: 3 | AD22: 1 | AF22: 3
B23: 19 | C23: "19_Oso f" | U23: 1 | Z23: 2 | AD23: 3 | AF23: 3
B24: 20 | C24: "20_Oso f" | U24: 1 | Z24: 2 | AB24: 3 | AF24: 3
B25: 21 | C25: "21_Oso f" | U25: 2 | Y25: 3 | AA25: 1 | AF25: 3
B26: 22 | C26: "22_Oso f" | Z26: 3 | AB26: 1 | AD26: 2 | AF26: 3
B27: 23 | C27: "23_Oso f" | U27: 2 | AB27: 1 | AD27: 3 | AF27: 3
B28: 24 | C28: "24_Oso f" | V28: 3 | X28: 1 | AC28: 2 | AF28: 3
B29: 25 | C29: "25_Oso f" | W29: 3 | X29: 2 | Z29: 1 | AF29: 3
B30: 26 | C30: "26_Oso f" | V30: 2 | AA30: 1 | AB30: 3 | AF30: 3
B31: 27 | C31: "27_Oso f" | U31: 1 | V31: 3 | Z31: 2 | AF31: 3
B32: 28 | C32: "28_Oso f" | AF32: 0
D33: 2 | E33: 0 | F33: 1 | G33: 1 | H33: 2 | I33: 1 | J33: 5 | K33: 3 | L33: 3 | M33: 1 | N33: 4 | O33: 2 | P33: 2 | Q33: 3 | R33: 0 | S33: 0 | T33: 0 | U33: 5 | V33: 4 | W33: 2 | X33: 3 | Y33: 3 | Z33: 11 | AA33: 2 | AB33: 6 | AC33: 2 | AD33: 6 | AE33: 5 | AF33: =SUM($D$33:$AE$33) -> 79
D37: 1 | E37: 2 | F37: 3 | G37: 4 | H37: 5 | I37: 6 | J37: 7 | K37: 8 | L37: 9 | M37: 10 | N37: 11 | O37: 12 | P37: 13 | Q37: 14 | R37: 15 | S37: 16 | T37: 17 | U37: 18 | V37: 19 | W37: 20 | X37: 21 | Y37: 22 | Z37: 23 | AA37: 24 | AB37: 25 | AC37: 26 | AD37: 27 | AE37: 28
D38: "01_Oso m" | E38: "02_Oso m" | F38: "03_Oso m" | G38: "04_Oso m" | H38: "05_Oso m" | I38: "*06_Oso m" | J38: "07_Oso m" | K38: "08_Oso m" | L38: "09_Oso f" | M38: "**10_Oso m" | N38: "11_Oso m" | O38: "12_Oso m" | P38: "13_Oso m" | Q38: "14_Oso m" | R38: "15_Oso f" | S38: "16_Oso f" | T38: "17_Oso f" | U38: "18_Oso f" | V38: "19_Oso f" | W38: "20_Oso f" | X38: "21_Oso f" | Y38: "22_Oso f" | Z38: "23_Oso f" | AA38: "24_Oso f" | AB38: "25_Oso f" | AC38: "26_Oso f" | AD38: "27_Oso f" | AE38: "28_Oso f"
B39: 1 | C39: "01_Oso m" | D39: =IF(D5<>0,D$3,"") ->  | H39: 5 | J39: 7 | N39: 11 | AG39: 5, 7, 11, | AH39: 4, 12, 27, | AI39: =CONCATENATE(AG39,AH39) -> 5, 7, 11, 4, 12, 27, | AK39: 5 | AL39: 7 | AM39: 11 | AN39: 1
B40: 2 | C40: "02_Oso m" | J40: 7 | L40: 9 | Z40: 23 | AG40: 7, 9, 23, | AH40: 4, 6, 10, | AI40: 7, 9, 23, 4, 6, 10, | AK40: 7 | AL40: 9 | AM40: 23 | AN40: 0
B41: 3 | C41: "03_Oso m" | J41: 7 | L41: 9 | AE41: 28 | AG41: 7, 9, 28, | AH41: 1, 4, 5, | AI41: 7, 9, 28, 1, 4, 5, | AK41: 7 | AL41: 9 | AM41: 28 | AN41: 1
B42: 4 | C42: "04_Oso m" | N42: 11 | Z42: 23 | AE42: 28 | AG42: 11, 23, 28, | AH42: 3, 19, 24, | AI42: 11, 23, 28, 3, 19, 24, | AK42: 11 | AL42: 23 | AM42: 28 | AN42: 0
B43: 5 | C43: "05_Oso m" | D43: 1 | M43: 10 | AE43: 28 | AG43: 1, 10, 28, | AH43: 2, 4, 19, | AI43: 1, 10, 28, 2, 4, 19, | AK43: 1 | AL43: 10 | AM43: 28 | AN43: 2
B44: 6 | C44: "*06_Oso m" | N44: 11 | AG44: 11, 0, 0, | AH44: 20, 23, 25, | AI44: 11, 0, 0, 20, 23, 25, | AK44: 11 | AL44: 0 | AM44: 0 | AN44: 0
B45: 7 | C45: "07_Oso m" | K45: 8 | N45: 11 | Q45: 14 | AG45: 8, 11, 14, | AH45: 21, 23, 27, | AI45: 8, 11, 14, 21, 23, 27, | AK45: 8 | AL45: 11 | AM45: 14 | AN45: 1
B46: 8 | C46: "08_Oso m" | L46: 9 | Z46: 23 | AC46: 26 | AG46: 9, 23, 26, | AH46: 3, 6, 10, | AI46: 9, 23, 26, 3, 6, 10, | AK46: 9 | AL46: 23 | AM46: 26 | AN46: 0
B47: 9 | C47: "09_Oso f" | F47: 3 | J47: 7 | AE47: 28 | AG47: 3, 7, 28, | AH47: 6, 10, 15, | AI47: 3, 7, 28, 6, 10, 15, | AK47: 3 | AL47: 7 | AM47: 28 | AN47: 1
B48: 10 | C48: "**10_Oso m" | D48: 1 | G48: =IF(G14<>0,G$3,"") ->  | H48: 5 | I48: 6 | AG48: 1, 5, 6, | AH48: 23, 25, 27, | AI48: 1, 5, 6, 23, 25, 27, | AK48: 1 | AL48: 5 | AM48: 6 | AN48: 1
B49: 11 | C49: "11_Oso m" | D49: =IF(D15<>0,D$3,"") ->  | J49: 7 | K49: 8 | AE49: 28 | AG49: 7, 8, 28, | AH49: 2, 4, 10, | AI49: 7, 8, 28, 2, 4, 10, | AK49: 7 | AL49: 8 | AM49: 28 | AN49: 1
B50: 12 | C50: "12_Oso m" | P50: 13 | Q50: 14 | W50: 20 | AG50: 13, 14, 20, | AH50: 2, 5, 10, | AI50: 13, 14, 20, 2, 5, 10, | AK50: 13 | AL50: 14 | AM50: 20 | AN50: 2
B51: 13 | C51: "13_Oso m" | G51: 4 | O51: 12 | Q51: 14 | AG51: 4, 12, 14, | AH51: 6, 10, 25, | AI51: 4, 12, 14, 6, 10, 25, | AK51: 4 | AL51: 12 | AM51: 14 | AN51: 2
B52: 14 | C52: "14_Oso m" | K52: 8 | O52: 12 | P52: 13 | AG52: 8, 12, 13, | AH52: 2, 5, 10, | AI52: 8, 12, 13, 2, 5, 10, | AK52: 8 | AL52: 12 | AM52: 13 | AN52: 2
B53: 15 | C53: "15_Oso f" | Y53: 22 | Z53: 23 | AB53: 25 | AG53: 22, 23, 25, | AH53: 16, 24, 27, | AI53: 22, 23, 25, 16, 24, 27, | AK53: 22 | AL53: 23 | AM53: 25 | AN53: 0
B54: 16 | C54: "16_Oso f" | Z54: 23 | AB54: 25 | AD54: 27 | AG54: 23, 25, 27, | AH54: 2, 6, 10, | AI54: 23, 25, 27, 2, 6, 10, | AK54: 23 | AL54: 25 | AM54: 27 | AN54: 0
B55: 17 | C55: "17_Oso f" | X55: 21 | Y55: 22 | AD55: 27 | AG55: 21, 22, 27, | AH55: 6, 10, 16, | AI55: 21, 22, 27, 6, 10, 16, | AK55: 21 | AL55: 22 | AM55: 27 | AN55: 0
B56: 18 | C56: "18_Oso f" | V56: 19 | Z56: 23 | AD56: 27 | AG56: 19, 23, 27, | AH56: 2, 6, 10, | AI56: 19, 23, 27, 2, 6, 10, | AK56: 19 | AL56: 23 | AM56: 27 | AN56: 3
B57: 19 | C57: "19_Oso f" | U57: 18 | Z57: 23 | AD57: 27 | AG57: 18, 23, 27, | AH57: 2, 6, 10, | AI57: 18, 23, 27, 2, 6, 10, | AK57: 18 | AL57: 23 | AM57: 27 | AN57: 2
B58: 20 | C58: "20_Oso f" | G58: =IF(G24<>0,G$3,"") ->  | U58: 18 | Z58: 23 | AB58: 25 | AG58: 18, 23, 25, | AH58: 4, 6, 22, | AI58: 18, 23, 25, 4, 6, 22, | AK58: 18 | AL58: 23 | AM58: 25 | AN58: 1
B59: 21 | C59: "21_Oso f" | D59: =IF(D25<>0,D$3,"") ->  | U59: 18 | Y59: 22 | AA59: 24 | AG59: 18, 22, 24, | AH59: 2, 6, 10, | AI59: 18, 22, 24, 2, 6, 10, | AK59: 18 | AL59: 22 | AM59: 24 | AN59: 1
B60: 22 | C60: "22_Oso f" | Z60: 23 | AB60: 25 | AD60: 27 | AG60: 23, 25, 27, | AH60: 4, 5, 12, | AI60: 23, 25, 27, 4, 5, 12, | AK60: 23 | AL60: 25 | AM60: 27 | AN60: 0
B61: 23 | C61: "23_Oso f" | U61: 18 | AB61: 25 | AD61: 27 | AG61: 18, 25, 27, | AH61: 7, 10, 22, | AI61: 18, 25, 27, 7, 10, 22, | AK61: 18 | AL61: 25 | AM61: 27 | AN61: 3
B62: 24 | C62: "24_Oso f" | V62: 19 | X62: 21 | AC62: 26 | AG62: 19, 21, 26, | AH62: 17, 20, 22, | AI62: 19, 21, 26, 17, 20, 22, | AK62: 19 | AL62: 21 | AM62: 26 | AN62: 2
B63: 25 | C63: "25_Oso f" | W63: 20 | X63: 21 | Z63: 23 | AG63: 20, 21, 23, | AH63: 5, 6, 10, | AI63: 20, 21, 23, 5, 6, 10, | AK63: 20 | AL63: 21 | AM63: 23 | AN63: 2
B64: 26 | C64: "26_Oso f" | V64: 19 | AA64: 24 | AB64: 25 | AG64: 19, 24, 25, | AH64: 5, 6, 7, | AI64: 19, 24, 25, 5, 6, 7, | AK64: 19 | AL64: 24 | AM64: 25 | AN64: 1
B65: 27 | C65: "27_Oso f" | U65: 18 | V65: 19 | Z65: 23 | AG65: 18, 19, 23, | AH65: 5, 6, 10, | AI65: 18, 19, 23, 5, 6, 10, | AK65: 18 | AL65: 19 | AM65: 23 | AN65: 3
B66: 28 | C66: "28_Oso f" | AG66: 0, 0, 0, | AH66: 0, 0, 0, | AI66: 0, 0, 0, 0, 0, 0, | AK66: 0 | AL66: 0 | AM66: 0 | AN66: 0
AN67: =SUM($AN$39:$AN$66) -> 32

Sheet Q_5_N
A1: "5. Komu z triedy by si nikdy nezveril svoje tajomstvo?"
B2: 3
B3: 28 | D3: 1 | E3: 2 | F3: 3 | G3: 4 | H3: 5 | I3: 6 | J3: 7 | K3: 8 | L3: 9 | M3: 10 | N3: 11 | O3: 12 | P3: 13 | Q3: 14 | R3: 15 | S3: 16 | T3: 17 | U3: 18 | V3: 19 | W3: 20 | X3: 21 | Y3: 22 | Z3: 23 | AA3: 24 | AB3: 25 | AC3: 26 | AD3: 27 | AE3: 28
D4: "01_Oso m" | E4: "02_Oso m" | F4: "03_Oso m" | G4: "04_Oso m" | H4: "05_Oso m" | I4: "*06_Oso m" | J4: "07_Oso m" | K4: "08_Oso m" | L4: "09_Oso f" | M4: "**10_Oso m" | N4: "11_Oso m" | O4: "12_Oso m" | P4: "13_Oso m" | Q4: "14_Oso m" | R4: "15_Oso f" | S4: "16_Oso f" | T4: "17_Oso f" | U4: "18_Oso f" | V4: "19_Oso f" | W4: "20_Oso f" | X4: "21_Oso f" | Y4: "22_Oso f" | Z4: "23_Oso f" | AA4: "24_Oso f" | AB4: "25_Oso f" | AC4: "26_Oso f" | AD4: "27_Oso f" | AE4: "28_Oso f"
A5: → | B5: 1 | C5: "01_Oso m" | G5: 2 | O5: 3 | AD5: 1 | AF5: 3 | AQ5: 1 | AR5: 8 | AS5: 2 | AT5: 7 | AU5: 7 | AV5: 13 | AW5: 2 | AX5: 0 | AY5: 0 | AZ5: 15 | BA5: 0 | BB5: 2 | BC5: 0 | BD5: 0 | BE5: 1 | BF5: 2 | BG5: 1 | BH5: 0 | BI5: 2 | BJ5: 2 | BK5: 1 | BL5: 3 | BM5: 3 | BN5: 2 | BO5: 3 | BP5: 0 | BQ5: 4 | BR5: 0
B6: 2 | C6: "02_Oso m" | G6: 1 | I6: 2 | M6: 3 | AF6: 3 | AQ6: 3 | AR6: 3 | AS6: 3 | AT6: 3 | AU6: 3 | AV6: 3 | AW6: 3 | AX6: 3 | AY6: 3 | AZ6: 3 | BA6: 3 | BB6: 3 | BC6: 3 | BD6: 3 | BE6: 3 | BF6: 3 | BG6: 3 | BH6: 3 | BI6: 3 | BJ6: 3 | BK6: 3 | BL6: 3 | BM6: 3 | BN6: 3 | BO6: 3 | BP6: 3 | BQ6: 3 | BR6: 0
B7: 3 | C7: "03_Oso m" | D7: 3 | G7: 1 | H7: 2 | AF7: 3 | AQ7: 0 | AR7: 0 | AS7: 1 | AT7: 1 | AU7: 0 | AV7: 2 | AW7: 1 | AX7: 0 | AY7: 0 | AZ7: 3 | BA7: 0 | BB7: 0 | BC7: 0 | BD7: 0 | BE7: 0 | BF7: 0 | BG7: 0 | BH7: 0 | BI7: 0 | BJ7: 1 | BK7: 0 | BL7: 0 | BM7: 2 | BN7: 0 | BO7: 2 | BP7: 0 | BQ7: 1 | BR7: 0
B8: 4 | C8: "04_Oso m" | F8: 2 | V8: 1 | AA8: 3 | AF8: 3
B9: 5 | C9: "05_Oso m" | E9: 3 | G9: 1 | V9: 2 | AF9: 3
B10: 6 | C10: "*06_Oso m" | W10: 3 | Z10: 1 | AB10: 2 | AF10: 3
B11: 7 | C11: "07_Oso m" | X11: 1 | Z11: 3 | AD11: 2 | AF11: 3
B12: 8 | C12: "08_Oso m" | F12: 1 | I12: 3 | M12: 2 | AF12: 3
B13: 9 | C13: "09_Oso f" | I13: 1 | M13: 2 | R13: 3 | AF13: 3
B14: 10 | C14: "**10_Oso m" | Z14: 3 | AB14: 2 | AD14: 1 | AF14: 3
B15: 11 | C15: "11_Oso m" | E15: 1 | G15: 2 | M15: 3 | AF15: 3
B16: 12 | C16: "12_Oso m" | E16: 2 | H16: 1 | M16: 3 | AF16: 3
B17: 13 | C17: "13_Oso m" | I17: 1 | M17: 2 | AB17: 3 | AF17: 3
B18: 14 | C18: "14_Oso m" | E18: 1 | H18: 3 | M18: 2 | AF18: 3
B19: 15 | C19: "15_Oso f" | S19: 1 | AA19: 3 | AD19: 2 | AF19: 3
B20: 16 | C20: "16_Oso f" | E20: 3 | I20: 2 | M20: 1 | AF20: 3
B21: 17 | C21: "17_Oso f" | I21: 1 | M21: 2 | S21: 3 | AF21: 3
B22: 18 | C22: "18_Oso f" | E22: 3 | I22: 2 | M22: 1 | AF22: 3
B23: 19 | C23: "19_Oso f" | E23: 1 | I23: 2 | M23: 3 | AF23: 3
B24: 20 | C24: "20_Oso f" | G24: 2 | I24: 3 | Y24: 1 | AF24: 3
B25: 21 | C25: "21_Oso f" | E25: 1 | I25: 3 | M25: 2 | AF25: 3
B26: 22 | C26: "22_Oso f" | G26: 2 | H26: 1 | O26: 3 | AF26: 3
B27: 23 | C27: "23_Oso f" | J27: 2 | M27: 3 | Y27: 1 | AF27: 3
B28: 24 | C28: "24_Oso f" | T28: 3 | W28: 2 | Y28: 1 | AF28: 3
B29: 25 | C29: "25_Oso f" | H29: 3 | I29: 1 | M29: 2 | AF29: 3
B30: 26 | C30: "26_Oso f" | H30: 1 | I30: 3 | J30: 2 | AF30: 3
B31: 27 | C31: "27_Oso f" | H31: 3 | I31: 1 | M31: 2 | AF31: 3
B32: 28 | C32: "28_Oso f" | AF32: 0
D33: 1 | E33: 8 | F33: 2 | G33: 7 | H33: 7 | I33: 13 | J33: 2 | K33: 0 | L33: 0 | M33: 15 | N33: 0 | O33: 2 | P33: 0 | Q33: 0 | R33: 1 | S33: 2 | T33: 1 | U33: 0 | V33: 2 | W33: 2 | X33: 1 | Y33: 3 | Z33: 3 | AA33: 2 | AB33: 3 | AC33: 0 | AD33: 4 | AE33: 0 | AF33: =SUM($D$33:$AE$33) -> 81
D37: 1 | E37: 2 | F37: 3 | G37: 4 | H37: 5 | I37: 6 | J37: 7 | K37: 8 | L37: 9 | M37: 10 | N37: 11 | O37: 12 | P37: 13 | Q37: 14 | R37: 15 | S37: 16 | T37: 17 | U37: 18 | V37: 19 | W37: 20 | X37: 21 | Y37: 22 | Z37: 23 | AA37: 24 | AB37: 25 | AC37: 26 | AD37: 27 | AE37: 28
D38: "01_Oso m" | E38: "02_Oso m" | F38: "03_Oso m" | G38: "04_Oso m" | H38: "05_Oso m" | I38: "*06_Oso m" | J38: "07_Oso m" | K38: "08_Oso m" | L38: "09_Oso f" | M38: "**10_Oso m" | N38: "11_Oso m" | O38: "12_Oso m" | P38: "13_Oso m" | Q38: "14_Oso m" | R38: "15_Oso f" | S38: "16_Oso f" | T38: "17_Oso f" | U38: "18_Oso f" | V38: "19_Oso f" | W38: "20_Oso f" | X38: "21_Oso f" | Y38: "22_Oso f" | Z38: "23_Oso f" | AA38: "24_Oso f" | AB38: "25_Oso f" | AC38: "26_Oso f" | AD38: "27_Oso f" | AE38: "28_Oso f"
B39: 1 | C39: "01_Oso m" | D39: =IF(D5<>0,D$3,"") ->  | G39: 4 | O39: 12 | AD39: 27 | AG39: 4, 12, 27, | AK39: 4 | AL39: 12 | AM39: 27 | AN39: 0
B40: 2 | C40: "02_Oso m" | G40: 4 | I40: 6 | M40: 10 | AG40: 4, 6, 10, | AK40: 4 | AL40: 6 | AM40: 10 | AN40: 0
B41: 3 | C41: "03_Oso m" | D41: 1 | G41: 4 | H41: 5 | AG41: 1, 4, 5, | AK41: 1 | AL41: 4 | AM41: 5 | AN41: 1
B42: 4 | C42: "04_Oso m" | F42: 3 | V42: 19 | AA42: 24 | AG42: 3, 19, 24, | AK42: 3 | AL42: 19 | AM42: 24 | AN42: 1
B43: 5 | C43: "05_Oso m" | E43: 2 | G43: 4 | V43: 19 | AG43: 2, 4, 19, | AK43: 2 | AL43: 4 | AM43: 19 | AN43: 0
B44: 6 | C44: "*06_Oso m" | W44: 20 | Z44: 23 | AB44: 25 | AG44: 20, 23, 25, | AK44: 20 | AL44: 23 | AM44: 25 | AN44: 2
B45: 7 | C45: "07_Oso m" | X45: 21 | Z45: 23 | AD45: 27 | AG45: 21, 23, 27, | AK45: 21 | AL45: 23 | AM45: 27 | AN45: 1
B46: 8 | C46: "08_Oso m" | F46: 3 | I46: 6 | M46: 10 | AG46: 3, 6, 10, | AK46: 3 | AL46: 6 | AM46: 10 | AN46: 0
B47: 9 | C47: "09_Oso f" | I47: 6 | M47: 10 | R47: 15 | AG47: 6, 10, 15, | AK47: 6 | AL47: 10 | AM47: 15 | AN47: 0
B48: 10 | C48: "**10_Oso m" | G48: =IF(G14<>0,G$3,"") ->  | Z48: 23 | AB48: 25 | AD48: 27 | AG48: 23, 25, 27, | AK48: 23 | AL48: 25 | AM48: 27 | AN48: 3
B49: 11 | C49: "11_Oso m" | D49: =IF(D15<>0,D$3,"") ->  | E49: 2 | G49: 4 | M49: 10 | AG49: 2, 4, 10, | AK49: 2 | AL49: 4 | AM49: 10 | AN49: 0
B50: 12 | C50: "12_Oso m" | E50: 2 | H50: 5 | M50: 10 | AG50: 2, 5, 10, | AK50: 2 | AL50: 5 | AM50: 10 | AN50: 0
B51: 13 | C51: "13_Oso m" | I51: 6 | M51: 10 | AB51: 25 | AG51: 6, 10, 25, | AK51: 6 | AL51: 10 | AM51: 25 | AN51: 0
B52: 14 | C52: "14_Oso m" | E52: 2 | H52: 5 | M52: 10 | AG52: 2, 5, 10, | AK52: 2 | AL52: 5 | AM52: 10 | AN52: 0
B53: 15 | C53: "15_Oso f" | S53: 16 | AA53: 24 | AD53: 27 | AG53: 16, 24, 27, | AK53: 16 | AL53: 24 | AM53: 27 | AN53: 0
B54: 16 | C54: "16_Oso f" | E54: 2 | I54: 6 | M54: 10 | AG54: 2, 6, 10, | AK54: 2 | AL54: 6 | AM54: 10 | AN54: 0
B55: 17 | C55: "17_Oso f" | I55: 6 | M55: 10 | S55: 16 | AG55: 6, 10, 16, | AK55: 6 | AL55: 10 | AM55: 16 | AN55: 0
B56: 18 | C56: "18_Oso f" | E56: 2 | I56: 6 | M56: 10 | AG56: 2, 6, 10, | AK56: 2 | AL56: 6 | AM56: 10 | AN56: 0
B57: 19 | C57: "19_Oso f" | E57: 2 | I57: 6 | M57: 10 | AG57: 2, 6, 10, | AK57: 2 | AL57: 6 | AM57: 10 | AN57: 0
B58: 20 | C58: "20_Oso f" | G58: =IF(G24<>0,G$3,"") -> 4 | I58: 6 | Y58: 22 | AG58: 4, 6, 22, | AK58: 4 | AL58: 6 | AM58: 22 | AN58: 1
B59: 21 | C59: "21_Oso f" | D59: =IF(D25<>0,D$3,"") ->  | E59: 2 | I59: 6 | M59: 10 | AG59: 2, 6, 10, | AK59: 2 | AL59: 6 | AM59: 10 | AN59: 0
B60: 22 | C60: "22_Oso f" | G60: 4 | H60: 5 | O60: 12 | AG60: 4, 5, 12, | AK60: 4 | AL60: 5 | AM60: 12 | AN60: 0
B61: 23 | C61: "23_Oso f" | J61: 7 | M61: 10 | Y61: 22 | AG61: 7, 10, 22, | AK61: 7 | AL61: 10 | AM61: 22 | AN61: 2
B62: 24 | C62: "24_Oso f" | T62: 17 | W62: 20 | Y62: 22 | AG62: 17, 20, 22, | AK62: 17 | AL62: 20 | AM62: 22 | AN62: 0
B63: 25 | C63: "25_Oso f" | H63: 5 | I63: 6 | M63: 10 | AG63: 5, 6, 10, | AK63: 5 | AL63: 6 | AM63: 10 | AN63: 2
B64: 26 | C64: "26_Oso f" | H64: 5 | I64: 6 | J64: 7 | AG64: 5, 6, 7, | AK64: 5 | AL64: 6 | AM64: 7 | AN64: 0
B65: 27 | C65: "27_Oso f" | H65: 5 | I65: 6 | M65: 10 | AG65: 5, 6, 10, | AK65: 5 | AL65: 6 | AM65: 10 | AN65: 1
B66: 28 | C66: "28_Oso f" | AG66: 0, 0, 0, | AK66: 0 | AL66: 0 | AM66: 0 | AN66: 0
AN67: =SUM($AN$39:$AN$66) -> 14

Sheet Questions
B1: → | C1: Hlavička sgm. Nemazať! | D1: "Version 01.00","Škola","Psychológ","Obdobie","Dátum","Trieda"
D2: Názvy do grafov↓
A3: 1. Q_1_P | B3: P | C3: "1. S kým z triedy by si chcel sedieť v jednej lavici?" | D3: Sedieť
A4: 2. Q_1_N | B4: N | C4: "1. S kým z triedy by si nechcel sedieť v jednej lavici?"
A6: 3. Q_2_P | B6: P | C6: "2. S kým z triedy by si najradšej písaval úlohy a učieval sa?" | D6: Učiť sa
A7: 4. Q_2_N | B7: N | C7: "2. S kým z triedy by si v žiadnom prípade nechcel písavať úlohy a učievať sa?"
A9: 5. Q_3_P | B9: P | C9: "3. S kým z triedy by si chcel stráviť prázdniny na pustom ostrove?" | D9: Pustý ostrov
A10: 6. Q_3_N | B10: N | C10: "3. S kým z triedy by si nechcel stráviť prázdniny na pustom ostrove?"
A12: 7. Q_4_P | B12: P | C12: "4. Kto by najlepšie dokázal hájiť záujmy triedy?" | D12: Hájiť záujmy
A13: 8. Q_4_N | B13: N | C13: "4. Koho by si vôbec nevybral na hájenie záujmov triedy?"
A15: 9. Q_5_P | B15: P | C15: "5. Komu z triedy by si zveril svoje tajomstvo?" | D15: Tajomstvo
A16: 10. Q_5_N | B16: N | C16: "5. Komu z triedy by si nikdy nezveril svoje tajomstvo?"

Sheet Sgm_Q1
B1: "Version 01.00","Škola","Psychológ","Obdobie","Dátum","Trieda"
B2: 28
A3: 1 | B3: "01_Oso m"
A4: 2 | B4: "02_Oso m"
A5: 3 | B5: "03_Oso m"
A6: 4 | B6: "04_Oso m"
A7: 5 | B7: "05_Oso m"
A8: 6 | B8: "*06_Oso m"
A9: 7 | B9: "07_Oso m"
A10: 8 | B10: "08_Oso m"
A11: 9 | B11: "09_Oso f"
A12: 10 | B12: "**10_Oso m"
A13: 11 | B13: "11_Oso m"
A14: 12 | B14: "12_Oso m"
A15: 13 | B15: "13_Oso m"
A16: 14 | B16: "14_Oso m"
A17: 15 | B17: "15_Oso f"
A18: 16 | B18: "16_Oso f"
A19: 17 | B19: "17_Oso f"
A20: 18 | B20: "18_Oso f"
A21: 19 | B21: "19_Oso f"
A22: 20 | B22: "20_Oso f"
A23: 21 | B23: "21_Oso f"
A24: 22 | B24: "22_Oso f"
A25: 23 | B25: "23_Oso f"
A26: 24 | B26: "24_Oso f"
A27: 25 | B27: "25_Oso f"
A28: 26 | B28: "26_Oso f"
A29: 27 | B29: "27_Oso f"
A30: 28 | B30: "28_Oso f"
B31: 3 "",""
B32: "1. S kým z triedy by si chcel sedieť v jednej lavici?"
B33: ""
B34: ""
B35: "1. S kým z triedy by si nechcel sedieť v jednej lavici?"
B36: 5, 10, 11, 16, 17, 23,
B37: 8, 9, 11, 4, 6, 10,
B38: 9, 12, 28, 5, 6, 10,
B39: 23, 25, 28, 10, 21, 24,
B40: 1, 7, 9, 4, 12, 27,
B41: 10, 11, 12, 17, 20, 22,
B42: 5, 9, 28, 2, 6, 10,
B43: 7, 9, 28, 6, 10, 24,
B44: 3, 7, 28, 15, 23, 25,
B45: 1, 5, 8, 4, 16, 18,
B46: 7, 8, 28, 2, 4, 10,
B47: 20, 21, 23, 2, 5, 22,
B48: 4, 12, 14, 6, 21, 0,
B49: 8, 9, 13, 2, 6, 10,
B50: 22, 23, 26, 4, 6, 10,
B51: 22, 24, 27, 2, 6, 10,
B52: 16, 22, 27, 6, 8, 10,
B53: 20, 23, 27, 2, 6, 10,
B54: 18, 23, 27, 2, 6, 10,
B55: 18, 23, 27, 4, 6, 10,
B56: 22, 24, 27, 2, 6, 10,
B57: 23, 25, 27, 2, 6, 10,
B58: 5, 18, 25, 2, 6, 10,
B59: 19, 21, 26, 6, 10, 12,
B60: 22, 23, 27, 2, 6, 10,
B61: 14, 23, 24, 2, 6, 10,
B62: 16, 18, 23, 6, 10, 12,
B63: 0, 0, 0, 0, 0, 0,

Sheet Sgm_Q2
B1: "Version 01.00","Škola","Psychológ","Obdobie","Dátum","Trieda"
B2: 28
A3: 1 | B3: "01_Oso m"
A4: 2 | B4: "02_Oso m"
A5: 3 | B5: "03_Oso m"
A6: 4 | B6: "04_Oso m"
A7: 5 | B7: "05_Oso m"
A8: 6 | B8: "*06_Oso m"
A9: 7 | B9: "07_Oso m"
A10: 8 | B10: "08_Oso m"
A11: 9 | B11: "09_Oso f"
A12: 10 | B12: "**10_Oso m"
A13: 11 | B13: "11_Oso m"
A14: 12 | B14: "12_Oso m"
A15: 13 | B15: "13_Oso m"
A16: 14 | B16: "14_Oso m"
A17: 15 | B17: "15_Oso f"
A18: 16 | B18: "16_Oso f"
A19: 17 | B19: "17_Oso f"
A20: 18 | B20: "18_Oso f"
A21: 19 | B21: "19_Oso f"
A22: 20 | B22: "20_Oso f"
A23: 21 | B23: "21_Oso f"
A24: 22 | B24: "22_Oso f"
A25: 23 | B25: "23_Oso f"
A26: 24 | B26: "24_Oso f"
A27: 25 | B27: "25_Oso f"
A28: 26 | B28: "26_Oso f"
A29: 27 | B29: "27_Oso f"
A30: 28 | B30: "28_Oso f"
B31: 3 "",""
B32: "2. S kým z triedy by si najradšej písaval úlohy a učieval sa?"
B33: ""
B34: ""
B35: "2. S kým z triedy by si v žiadnom prípade nechcel písavať úlohy a učievať sa?"
B36: 5, 7, 11, 17, 23, 27,
B37: 7, 8, 9, 4, 6, 10,
B38: 7, 23, 28, 4, 6, 10,
B39: 9, 13, 14, 2, 6, 10,
B40: 1, 9, 28, 4, 6, 10,
B41: 23, 25, 26, 2, 4, 24,
B42: 3, 9, 28, 2, 6, 10,
B43: 7, 9, 28, 4, 6, 10,
B44: 3, 7, 28, 15, 17, 23,
B45: 3, 9, 23, 2, 6, 12,
B46: 7, 8, 28, 2, 4, 10,
B47: 8, 23, 27, 5, 6, 10,
B48: 4, 14, 28, 6, 10, 12,
B49: 8, 9, 28, 2, 6, 10,
B50: 23, 25, 26, 2, 6, 10,
B51: 23, 25, 27, 2, 6, 10,
B52: 15, 26, 27, 1, 6, 8,
B53: 19, 23, 27, 2, 6, 10,
B54: 18, 23, 27, 2, 6, 10,
B55: 18, 23, 25, 6, 10, 12,
B56: 18, 23, 25, 2, 6, 10,
B57: 23, 25, 26, 5, 6, 10,
B58: 18, 20, 25, 6, 12, 27,
B59: 19, 21, 26, 2, 4, 20,
B60: 22, 23, 26, 4, 5, 6,
B61: 15, 23, 25, 4, 16, 17,
B62: 18, 23, 25, 2, 4, 10,
B63: 0, 0, 0, 0, 0, 0,

Sheet Sgm_Q3
B1: "Version 01.00","Škola","Psychológ","Obdobie","Dátum","Trieda"
B2: 28
A3: 1 | B3: "01_Oso m"
A4: 2 | B4: "02_Oso m"
A5: 3 | B5: "03_Oso m"
A6: 4 | B6: "04_Oso m"
A7: 5 | B7: "05_Oso m"
A8: 6 | B8: "*06_Oso m"
A9: 7 | B9: "07_Oso m"
A10: 8 | B10: "08_Oso m"
A11: 9 | B11: "09_Oso f"
A12: 10 | B12: "**10_Oso m"
A13: 11 | B13: "11_Oso m"
A14: 12 | B14: "12_Oso m"
A15: 13 | B15: "13_Oso m"
A16: 14 | B16: "14_Oso m"
A17: 15 | B17: "15_Oso f"
A18: 16 | B18: "16_Oso f"
A19: 17 | B19: "17_Oso f"
A20: 18 | B20: "18_Oso f"
A21: 19 | B21: "19_Oso f"
A22: 20 | B22: "20_Oso f"
A23: 21 | B23: "21_Oso f"
A24: 22 | B24: "22_Oso f"
A25: 23 | B25: "23_Oso f"
A26: 24 | B26: "24_Oso f"
A27: 25 | B27: "25_Oso f"
A28: 26 | B28: "26_Oso f"
A29: 27 | B29: "27_Oso f"
A30: 28 | B30: "28_Oso f"
B31: 3 "",""
B32: "3. S kým z triedy by si chcel stráviť prázdniny na pustom ostrove?"
B33: ""
B34: ""
B35: "3. S kým z triedy by si nechcel stráviť prázdniny na pustom ostrove?"
B36: 5, 10, 11, 17, 20, 27,
B37: 7, 8, 9, 4, 10, 11,
B38: 7, 9, 28, 2, 5, 27,
B39: 5, 9, 12, 21, 24, 27,
B40: 6, 10, 28, 4, 19, 24,
B41: 10, 11, 12, 15, 16, 17,
B42: 3, 8, 11, 2, 5, 27,
B43: 9, 11, 12, 4, 6, 10,
B44: 3, 7, 28, 15, 23, 25,
B45: 1, 5, 6, 18, 25, 27,
B46: 7, 8, 28, 2, 4, 10,
B47: 20, 23, 27, 2, 8, 18,
B48: 9, 12, 14, 6, 10, 27,
B49: 8, 23, 26, 2, 6, 10,
B50: 22, 23, 25, 2, 6, 10,
B51: 18, 20, 27, 2, 6, 10,
B52: 16, 21, 22, 1, 6, 10,
B53: 16, 23, 27, 2, 6, 10,
B54: 17, 23, 27, 2, 6, 10,
B55: 18, 23, 27, 4, 6, 7,
B56: 18, 19, 24, 2, 6, 10,
B57: 16, 21, 23, 4, 6, 10,
B58: 5, 18, 25, 6, 7, 10,
B59: 15, 21, 25, 16, 20, 22,
B60: 16, 23, 27, 6, 10, 12,
B61: 20, 21, 22, 2, 6, 10,
B62: 18, 19, 23, 2, 6, 10,
B63: 0, 0, 0, 0, 0, 0,

Sheet Sgm_Q4
B1: "Version 01.00","Škola","Psychológ","Obdobie","Dátum","Trieda"
B2: 28
A3: 1 | B3: "01_Oso m"
A4: 2 | B4: "02_Oso m"
A5: 3 | B5: "03_Oso m"
A6: 4 | B6: "04_Oso m"
A7: 5 | B7: "05_Oso m"
A8: 6 | B8: "*06_Oso m"
A9: 7 | B9: "07_Oso m"
A10: 8 | B10: "08_Oso m"
A11: 9 | B11: "09_Oso f"
A12: 10 | B12: "**10_Oso m"
A13: 11 | B13: "11_Oso m"
A14: 12 | B14: "12_Oso m"
A15: 13 | B15: "13_Oso m"
A16: 14 | B16: "14_Oso m"
A17: 15 | B17: "15_Oso f"
A18: 16 | B18: "16_Oso f"
A19: 17 | B19: "17_Oso f"
A20: 18 | B20: "18_Oso f"
A21: 19 | B21: "19_Oso f"
A22: 20 | B22: "20_Oso f"
A23: 21 | B23: "21_Oso f"
A24: 22 | B24: "22_Oso f"
A25: 23 | B25: "23_Oso f"
A26: 24 | B26: "24_Oso f"
A27: 25 | B27: "25_Oso f"
A28: 26 | B28: "26_Oso f"
A29: 27 | B29: "27_Oso f"
A30: 28 | B30: "28_Oso f"
B31: 3 "",""
B32: "4. Kto by najlepšie dokázal hájiť záujmy triedy?"
B33: ""
B34: ""
B35: "4. Koho by si vôbec nevybral na hájenie záujmov triedy?"
B36: 15, 23, 26, 6, 8, 10,
B37: 7, 23, 25, 4, 6, 10,
B38: 23, 26, 28, 4, 6, 10,
B39: 9, 15, 23, 2, 6, 10,
B40: 9, 23, 28, 2, 24, 27,
B41: 8, 23, 26, 2, 4, 24,
B42: 15, 23, 26, 2, 6, 10,
B43: 9, 23, 26, 4, 6, 10,
B44: 23, 25, 28, 2, 6, 10,
B45: 9, 23, 28, 2, 18, 25,
B46: 7, 9, 28, 2, 4, 10,
B47: 9, 23, 28, 2, 6, 10,
B48: 23, 25, 28, 2, 6, 10,
B49: 9, 23, 28, 2, 6, 10,
B50: 5, 23, 25, 2, 6, 10,
B51: 15, 23, 25, 2, 6, 10,
B52: 15, 23, 26, 10, 16, 27,
B53: 20, 23, 25, 2, 6, 10,
B54: 9, 23, 25, 2, 6, 10,
B55: 9, 18, 23, 2, 8, 24,
B56: 9, 23, 25, 2, 6, 10,
B57: 23, 25, 26, 2, 6, 10,
B58: 5, 18, 20, 2, 8, 24,
B59: 15, 23, 25, 2, 5, 17,
B60: 15, 23, 26, 6, 10, 12,
B61: 15, 23, 25, 11, 12, 13,
B62: 20, 23, 25, 2, 6, 10,
B63: 0, 0, 0, 0, 0, 0,

Sheet Sgm_Q5
B1: "Version 01.00","Škola","Psychológ","Obdobie","Dátum","Trieda"
B2: 28
A3: 1 | B3: "01_Oso m"
A4: 2 | B4: "02_Oso m"
A5: 3 | B5: "03_Oso m"
A6: 4 | B6: "04_Oso m"
A7: 5 | B7: "05_Oso m"
A8: 6 | B8: "*06_Oso m"
A9: 7 | B9: "07_Oso m"
A10: 8 | B10: "08_Oso m"
A11: 9 | B11: "09_Oso f"
A12: 10 | B12: "**10_Oso m"
A13: 11 | B13: "11_Oso m"
A14: 12 | B14: "12_Oso m"
A15: 13 | B15: "13_Oso m"
A16: 14 | B16: "14_Oso m"
A17: 15 | B17: "15_Oso f"
A18: 16 | B18: "16_Oso f"
A19: 17 | B19: "17_Oso f"
A20: 18 | B20: "18_Oso f"
A21: 19 | B21: "19_Oso f"
A22: 20 | B22: "20_Oso f"
A23: 21 | B23: "21_Oso f"
A24: 22 | B24: "22_Oso f"
A25: 23 | B25: "23_Oso f"
A26: 24 | B26: "24_Oso f"
A27: 25 | B27: "25_Oso f"
A28: 26 | B28: "26_Oso f"
A29: 27 | B29: "27_Oso f"
A30: 28 | B30: "28_Oso f"
B31: 3 "",""
B32: "5. Komu z triedy by si zveril svoje tajomstvo?"
B33: ""
B34: ""
B35: "5. Komu z triedy by si nikdy nezveril svoje tajomstvo?"
B36: 5, 7, 11, 4, 12, 27,
B37: 7, 9, 23, 4, 6, 10,
B38: 7, 9, 28, 1, 4, 5,
B39: 11, 23, 28, 3, 19, 24,
B40: 1, 10, 28, 2, 4, 19,
B41: 11, 0, 0, 20, 23, 25,
B42: 8, 11, 14, 21, 23, 27,
B43: 9, 23, 26, 3, 6, 10,
B44: 3, 7, 28, 6, 10, 15,
B45: 1, 5, 6, 23, 25, 27,
B46: 7, 8, 28, 2, 4, 10,
B47: 13, 14, 20, 2, 5, 10,
B48: 4, 12, 14, 6, 10, 25,
B49: 8, 12, 13, 2, 5, 10,
B50: 22, 23, 25, 16, 24, 27,
B51: 23, 25, 27, 2, 6, 10,
B52: 21, 22, 27, 6, 10, 16,
B53: 19, 23, 27, 2, 6, 10,
B54: 18, 23, 27, 2, 6, 10,
B55: 18, 23, 25, 4, 6, 22,
B56: 18, 22, 24, 2, 6, 10,
B57: 23, 25, 27, 4, 5, 12,
B58: 18, 25, 27, 7, 10, 22,
B59: 19, 21, 26, 17, 20, 22,
B60: 20, 21, 23, 5, 6, 10,
B61: 19, 24, 25, 5, 6, 7,
B62: 18, 19, 23, 5, 6, 10,
B63: 0, 0, 0, 0, 0, 0,

Sheet Sumy_All_Q
D1: 1 | E1: 2 | F1: 3 | G1: 4 | H1: 5 | I1: 6 | J1: 7 | K1: 8 | L1: 9 | M1: 10 | N1: 11 | O1: 12 | P1: 13 | Q1: 14 | R1: 15 | S1: 16 | T1: 17 | U1: 18 | V1: 19 | W1: 20 | X1: 21 | Y1: 22 | Z1: 23 | AA1: 24 | AB1: 25 | AC1: 26 | AD1: 27 | AE1: 28 | AF1: 29 | AG1: 30 | AH1: 31 | AI1: 32 | AJ1: 33 | AK1: 34 | AL1: 35 | AM1: 36 | AN1: 37 | AO1: 38 | AP1: 39 | AQ1: 40 | BJ1: 1 | BK1: 2 | BL1: 3 | BM1: 4 | BN1: 5
A2: Počet volieb | B2: 3 | BJ2: Otázka 1 | BK2: Otázka 2 | BL2: Otázka 3 | BM2: Otázka 4 | BN2: Otázka 5
A3: Počet osôb | B3: 28 | AT3: 1 | AU3: 2 | AV3: 3 | AW3: 4 | AX3: 5 | BJ3: Sedieť | BK3: Učiť sa | BL3: Pustý ostrov | BM3: Hájiť záujmy | BN3: Tajomstvo
D4: "01_Oso m" | E4: "02_Oso m" | F4: "03_Oso m" | G4: "04_Oso m" | H4: "05_Oso m" | I4: "*06_Oso m" | J4: "07_Oso m" | K4: "08_Oso m" | L4: "09_Oso f" | M4: "**10_Oso m" | N4: "11_Oso m" | O4: "12_Oso m" | P4: "13_Oso m" | Q4: "14_Oso m" | R4: "15_Oso f" | S4: "16_Oso f" | T4: "17_Oso f" | U4: "18_Oso f" | V4: "19_Oso f" | W4: "20_Oso f" | X4: "21_Oso f" | Y4: "22_Oso f" | Z4: "23_Oso f" | AA4: "24_Oso f" | AB4: "25_Oso f" | AC4: "26_Oso f" | AD4: "27_Oso f" | AE4: "28_Oso f" | AR4: Total | AS4: Len keď chceme | AT4: C Koherencia; Icc; KH = (M+*q)/( U+ *p) | AU4: IN Intensity; Nespokojnosť IN = (2*(P-2*M+))/(d*(N/2)) | AV4: IK Kohézia; Co; KL = M+/ MAX M+ | AW4: IG Integrácia Ig = 1 - (OPOp/(N-d)); OPO FILA | AX4: IZ Izolácia Iz = OPOp/(N - d); OPO FILA | AY4: POP | AZ4: REJ | BA4: CON | BB4: AVE | BC4: OPO WALSH | BD4: IZO | BE4: POP % | BF4: REJ % | BG4: CON % | BH4: AVE % | BI4: OPO % | BJ4: IZO % | BK4: C korig | BL4: IN korig | BM4: Významnosť koherencie C korig | BN4: Významnosť nespokojnosti IN korig | BO4: Významnosť kohézia IK korig | BP4: Významnosť disociácie ID korig | BQ4: Významnosť integrácie IG | BR4: Významnosť izolácie IZ | BS4: Významnosť populárni POP % | BT4: Významnosť odmietaní REJ % | BU4: Významnosť kontroverzní CON % | BV4: Významnosť priemerní AVE % | BW4: Významnosť opomíjaní OPO % | BX4: NEG | BZ4: Kvantily z N = 58 tried; 1579 žiakov | CA4: C korig Koherencia 25% | CB4: C korig Koherencia 50% | CC4: C korig Koherencia 75% | CD4: IN korig Nespokojnosť 25% | CE4: IN korig Nespokojnosť 50% | CF4: IN korig Nespokojnosť 75% | CG4: IK Kohézia 25% | CH4: IK Kohézia 50% | CI4: IK Kohézia 75% | CJ4: ID Disociácia 25% | CK4: ID Disociácia 50% | CL4: ID Disociácia 75% | CM4: IG Integrácia 25% | CN4: IG Integrácia 50% | CO4: IG Integrácia 75% | CP4: IZ Izolácia 25% | CQ4: IZ Izolácia 50% | CR4: IZ Izolácia 75% | CS4: Populárni POP % 25% | CT4: Populárni POP % 50% | CU4: Populárni POP % 75% | CV4: Odmietaní REJ % 25% | CW4: Odmietaní REJ % 50% | CX4: Odmietaní REJ % 75% | CY4: Kontroverzní CON % 25% | CZ4: Kontroverzní CON % 50% | DA4: Kontroverzní CON % 75% | DB4: Priemerní AVE % 25% | DC4: Priemerní AVE % 50% | DD4: Priemerní AVE % 75% | DE4: Opomíjaní OPO % 25% | DF4: Opomíjaní OPO % 50% | DG4: Opomíjaní OPO % 75%
A5: Q_1_P | B5: Sel_p_r | C5: =CONCATENATE($BJ$3, " P") -> Sedieť P | D5: 2 | E5: 0 | F5: 1 | G5: 1 | H5: 4 | I5: 0 | J5: 4 | K5: 4 | L5: 6 | M5: 2 | N5: 3 | O5: 3 | P5: 1 | Q5: 2 | R5: 0 | S5: 2 | T5: 0 | U5: 4 | V5: 1 | W5: 2 | X5: 2 | Y5: 5 | Z5: 10 | AA5: 3 | AB5: 3 | AC5: 2 | AD5: 8 | AE5: 6 | AR5: =SUM(D5:AQ5) -> 81 | AS5: =CONCATENATE($BJ$3, " P") -> Sedieť P | AT5: =IF(AR5<>0,IF($B$2<>0,IF($B$3<>"",IF(AR7<>0,(AR7/2*(1-$B$2/($B$3-1)))/((AR5-AR7/2)*($B$2/($B$3-1))),""),""),""),"") -> 1.671641791 | AU5: =IF(AR5<>0,IF($B$2<>0,IF($B$3<>"",2*(AR5-2*AR7/2)/($B$2*($B$3/2)),""),""),"") -> 2.523809524 | AV5: =IF(AR5<>0,IF($B$3<>"",IF($B$2<>0,(AR7/2)/(($B$2*$B$3)/2),""),""),"") -> 0.3333333333 | AW5: =IF(AR5<>0,IF(AX5<>"",1-AX5,""),"") -> 0.84 | AX5: =IF(AR5<>0,IF($B$2<>"",IF($B$3<>"",AR12/($B$3-$B$2),""),""),"") -> 0.16 | AY5: =Individualne!AR22 -> 5 | AZ5: =Individualne!AR23 -> 4 | BA5: =Individualne!AR25 -> 0 | BB5: =Individualne!AR26 -> 19 | BC5: =Individualne!AR27 -> 2 | BD5: =Individualne!AR28 -> 0 | BE5: =(AY5/($B$3-$B$2))*100 -> 20 | BF5: 16 | BG5: 0 | BH5: 76 | BI5: 8 | BJ5: 0 | BK5: =IF(AT5<>" ",IF(AT5<>"",AT5/(($B$3-4)*0.333333333333),""),"") -> 0.2089552239 | BL5: =IF(AU5<>" ",IF(AU5<>"",AU5/(($B$3-4)*0.333333333333),""),"") -> 0.3154761905 | BM5: =IF(AR5<>0,IF(BK5<CA5,"znížený",IF(BK5>=CA5,IF(BK5<CB5,"dolný priemer",IF(BK5>=CB5,IF(BK5<CC5,"horný priemer",IF(BK5>=CC5,"nadpriemer","xxx")))))),"") -> znížený | BN5: =IF(AR5<>0,IF(BL5<CD5,"znížený",IF(BL5>=CD5,IF(BL5<CE5,"dolný priemer",IF(BL5>=CE5,IF(BL5<CF5,"horný priemer",IF(BL5>=CF5,"nadpriemer","xxx")))))),"") -> nadpriemer | BO5: =IF(AR5<>0,IF(AV5<CG5,"znížený",IF(AV5>=CG5,IF(AV5<CH5,"dolný priemer",IF(AV5>=CH5,IF(AV5<CI5,"horný priemer",IF(AV5>=CI5,"nadpriemer","xxx")))))),"") -> znížený | BP5: =IF(AR8<>0,IF(AV10<CJ5,"znížený",IF(AV10>=CJ5,IF(AV10<CK5,"dolný priemer",IF(AV10>=CK5,IF(AV10<CL5,"horný priemer",IF(AV10>=CL5,"nadpriemer","xxx")))))),"") -> horný priemer | BQ5: =IF(AR5<>0,IF(AW5<CM5,"znížený",IF(AW5>=CM5,IF(AW5<CN5,"dolný priemer",IF(AW5>=CN5,IF(AW5<CO5,"horný priemer",IF(AW5>=CO5,"nadpriemer","xxx")))))),"") -> znížený | BR5: =IF(AR5<>0,IF(AX5<CP5,"znížený",IF(AX5>=CP5,IF(AX5<CQ5,"dolný priemer",IF(AX5>=CQ5,IF(AX5<CR5,"horný priemer",IF(AX5>=CR5,"nadpriemer","xxx")))))),"") -> nadpriemer | BS5: =IF(AR5<>0,IF(BE5<CS5,"znížený",IF(BE5>=CS5,IF(BE5<CT5,"dolný priemer",IF(BE5>=CT5,IF(BE5<CU5,"horný priemer",IF(BE5>=CU5,"nadpriemer","xxx")))))),"") -> znížený | BT5: =IF(AR5<>0,IF(BF5<CV5,"znížený",IF(BF5>=CV5,IF(BF5<CW5,"dolný priemer",IF(BF5>=CW5,IF(BF5<CX5,"horný priemer",IF(BF5>=CX5,"nadpriemer","xxx")))))),"") -> znížený | BU5: =IF(AR5<>0,IF(BG5<CY5,"znížený",IF(BG5>=CY5,IF(BG5<CZ5,"dolný priemer",IF(BG5>=CZ5,IF(BG5<DA5,"horný priemer",IF(BG5>=DA5,"nadpriemer","xxx")))))),"") -> dolný priemer | BV5: =IF(AR5<>0,IF(BH5<DB5,"znížený",IF(BH5>=DB5,IF(BH5<DC5,"dolný priemer",IF(BH5>=DC5,IF(BH5<DD5,"horný priemer",IF(BH5>=DD5,"nadpriemer","xxx")))))),"") -> nadpriemer | BW5: =IF(AR5<>0,IF(BI5<DE5,"znížený",IF(BI5>=DE5,IF(BI5<DF5,"dolný priemer",IF(BI5>=DF5,IF(BI5<DG5,"horný priemer",IF(BI5>=DG5,"nadpriemer","xxx")))))),"") -> nadpriemer | BX5: =Individualne!AR24 -> 0 | BZ5: Sedieť | CA5: 0.279003268 | CB5: 0.3249528598 | CC5: 0.3907221425 | CD5: 0.1920303834 | CE5: 0.224586556 | CF5: 0.2618647183 | CG5: 0.3651026393 | CH5: 0.4276190476 | CI5: 0.4959677419 | CJ5: 0.08729485003 | CK5: 0.1247086247 | CL5: 0.1728919072 | CM5: 0.8736413043 | CN5: 0.9124040921 | CO5: 0.9529220779 | CP5: 0.04707792208 | CQ5: 0.08759590793 | CR5: 0.1263586957 | CS5: 25 | CT5: 28.57142857 | CU5: 32.03571429 | CV5: 17.21014493 | CW5: 21.73913043 | CX5: 25.96618357 | CY5: 0 | CZ5: 3.571428571 | DA5: 5.671506352 | DB5: 47.55639098 | DC5: 53.25630252 | DD5: 60.75310559 | DE5: 0 | DF5: 0 | DG5: 4.761904762
A6: Q_1_P | B6: Sel_p_g | C6: =CONCATENATE($BJ$3, " P") -> Sedieť P | D6: 3 | E6: 3 | F6: 3 | G6: 3 | H6: 3 | I6: 3 | J6: 3 | K6: 3 | L6: 3 | M6: 3 | N6: 3 | O6: 3 | P6: 3 | Q6: 3 | R6: 3 | S6: 3 | T6: 3 | U6: 3 | V6: 3 | W6: 3 | X6: 3 | Y6: 3 | Z6: 3 | AA6: 3 | AB6: 3 | AC6: 3 | AD6: 3 | AE6: 0 | AR6: =SUM(D6:AQ6) -> 81 | AS6: =CONCATENATE($BK$3, " P") -> Učiť sa P | AT6: =IF($B$2<>0,IF($B$3<>"",IF(AR17<>0,(AR17/2*(1-$B$2/($B$3-1)))/((AR15-AR17/2)*($B$2/($B$3-1)))," ")," ")," ") -> 1.391304348 | AU6: =IF(AR15<>0,IF($B$2<>0,IF($B$3<>"",2*(AR15-2*AR17/2)/($B$2*($B$3/2)),""),""),"") -> 2.714285714 | AV6: =IF(AR15<>0,IF($B$3<>"",IF($B$2<>0,(AR17/2)/(($B$2*$B$3)/2),""),""),"") -> 0.2857142857 | AW6: =IF(AR15<>0,IF(AX6<>"",1-AX6,""),"") -> 0.72 | AX6: =IF(AR5<>0,IF($B$2<>"",IF($B$3<>"",AR22/($B$3-$B$2),""),""),"") -> 0.28 | AY6: =Individualne!AR80 -> 7 | AZ6: =Individualne!AR81 -> 5 | BA6: =Individualne!AR83 -> 0 | BB6: =Individualne!AR84 -> 16 | BC6: =Individualne!AR85 -> 3 | BD6: =Individualne!AR86 -> 0 | BE6: 28 | BF6: 20 | BG6: 0 | BH6: 64 | BI6: 12 | BJ6: 0 | BK6: =IF(AT6<>" ",IF(AT6<>"",AT6/(($B$3-4)*0.333333333333),""),"") -> 0.1739130435 | BL6: 0.3392857143 | BM6: =IF(AR15<>0,IF(BK6<CA6,"znížený",IF(BK6>=CA6,IF(BK6<CB6,"dolný priemer",IF(BK6>=CB6,IF(BK6<CC6,"horný priemer",IF(BK6>=CC6,"nadpriemer","xxx")))))),"") -> znížený | BN6: =IF(AR15<>0,IF(BL6<CD6,"znížený",IF(BL6>=CD6,IF(BL6<CE6,"dolný priemer",IF(BL6>=CE6,IF(BL6<CF6,"horný priemer",IF(BL6>=CF6,"nadpriemer","xxx")))))),"") -> nadpriemer | BO6: =IF(AR15<>0,IF(AV6<CG6,"znížený",IF(AV6>=CG6,IF(AV6<CH6,"dolný priemer",IF(AV6>=CH6,IF(AV6<CI6,"horný priemer",IF(AV6>=CI6,"nadpriemer","xxx")))))),"") -> dolný priemer | BP6: =IF(AR18<>0,IF(AV11<CJ6,"znížený",IF(AV11>=CJ6,IF(AV11<CK6,"dolný priemer",IF(AV11>=CK6,IF(AV11<CL6,"horný priemer",IF(AV11>=CL6,"nadpriemer","xxx")))))),"") -> horný priemer | BQ6: =IF(AR15<>0,IF(AW6<CM6,"znížený",IF(AW6>=CM6,IF(AW6<CN6,"dolný priemer",IF(AW6>=CN6,IF(AW6<CO6,"horný priemer",IF(AW6>=CO6,"nadpriemer","xxx")))))),"") -> znížený | BR6: =IF(AR15<>0,IF(AX6<CP6,"znížený",IF(AX6>=CP6,IF(AX6<CQ6,"dolný priemer",IF(AX6>=CQ6,IF(AX6<CR6,"horný priemer",IF(AX6>=CR6,"nadpriemer","xxx")))))),"") -> nadpriemer | BS6: =IF(AR15<>0,IF(BE6<CS6,"znížený",IF(BE6>=CS6,IF(BE6<CT6,"dolný priemer",IF(BE6>=CT6,IF(BE6<CU6,"horný priemer",IF(BE6>=CU6,"nadpriemer","xxx")))))),"") -> horný priemer | BT6: =IF(AR15<>0,IF(BF6<CV6,"znížený",IF(BF6>=CV6,IF(BF6<CW6,"dolný priemer",IF(BF6>=CW6,IF(BF6<CX6,"horný priemer",IF(BF6>=CX6,"nadpriemer","xxx")))))),"") -> dolný priemer | BU6: =IF(AR15<>0,IF(BG6<CY6,"znížený",IF(BG6>=CY6,IF(BG6<CZ6,"dolný priemer",IF(BG6>=CZ6,IF(BG6<DA6,"horný priemer",IF(BG6>=DA6,"nadpriemer","xxx")))))),"") -> horný priemer | BV6: =IF(AR15<>0,IF(BH6<DB6,"znížený",IF(BH6>=DB6,IF(BH6<DC6,"dolný priemer",IF(BH6>=DC6,IF(BH6<DD6,"horný priemer",IF(BH6>=DD6,"nadpriemer","xxx")))))),"") -> nadpriemer | BW6: =IF(AR15<>0,IF(BI6<DE6,"znížený",IF(BI6>=DE6,IF(BI6<DF6,"dolný priemer",IF(BI6>=DF6,IF(BI6<DG6,"horný priemer",IF(BI6>=DG6,"nadpriemer","xxx")))))),"") -> nadpriemer | BX6: =Individualne!AR82 -> 0 | BZ6: Učiť sa | CA6: 0.1836124402 | CB6: 0.2325097847 | CC6: 0.287456446 | CD6: 0.2228916916 | CE6: 0.2746428571 | CF6: 0.321491009 | CG6: 0.2769607843 | CH6: 0.31625 | CI6: 0.3601398601 | CJ6: 0.0827020202 | CK6: 0.1143695015 | CL6: 0.1570512821 | CM6: 0.7727272727 | CN6: 0.8268365817 | CO6: 0.8947368421 | CP6: 0.1052631579 | CQ6: 0.1731634183 | CR6: 0.2272727273 | CS6: 22.69061584 | CT6: 27.27272727 | CU6: 32.03571429 | CV6: 17.85714286 | CW6: 22.40143369 | CX6: 28.57142857 | CY6: 0 | CZ6: 0 | DA6: 4.887218045 | DB6: 43.32298137 | DC6: 48.91304348 | DD6: 57.33082707 | DE6: 3.41954023 | DF6: 5.131578947 | DG6: 9.889643463
A7: Q_1_P | B7: Rec_p | C7: =CONCATENATE($BJ$3, " mutual P") -> Sedieť mutual P | D7: 2 | E7: 0 | F7: 1 | G7: 0 | H7: 2 | I7: 0 | J7: 2 | K7: 0 | L7: 2 | M7: 1 | N7: 0 | O7: 0 | P7: 1 | Q7: 1 | R7: 0 | S7: 1 | T7: 0 | U7: 3 | V7: 0 | W7: 1 | X7: 1 | Y7: 1 | Z7: 2 | AA7: 2 | AB7: 2 | AC7: 1 | AD7: 2 | AE7: 0 | AR7: =SUM(D7:AQ7) -> 28 | AS7: =CONCATENATE($BL$3, " P") -> Pustý ostrov P | AT7: =IF(AR25<>0,IF($B$2<>0,IF($B$3<>"",IF(AR27<>0,(AR27/2*(1-$B$2/($B$3-1)))/((AR25-AR27/2)*($B$2/($B$3-1))),""),""),""),"") -> 1.529411765 | AU7: =IF(AR25<>0,IF($B$2<>0,IF($B$3<>"",2*(AR25-2*AR27/2)/($B$2*($B$3/2)),""),""),"") -> 2.619047619 | AV7: =IF(AR25<>0,IF($B$3<>"",IF($B$2<>0,(AR27/2)/(($B$2*$B$3)/2),""),""),"") -> 0.3095238095 | AW7: =IF(AR25<>0,IF(AX7<>"",1-AX7,""),"") -> 0.88 | AX7: =IF(AR5<>0,IF($B$2<>"",IF($B$3<>"",AR32/($B$3-$B$2),""),""),"") -> 0.12 | AY7: =Individualne!AR138 -> 4 | AZ7: =Individualne!AR139 -> 3 | BA7: =Individualne!AR141 -> 2 | BB7: =Individualne!AR142 -> 19 | BC7: =Individualne!AR143 -> 1 | BD7: =Individualne!AR144 -> 0 | BE7: 16 | BF7: 12 | BG7: 8 | BH7: 76 | BI7: 4 | BJ7: 0 | BK7: 0.1911764706 | BL7: 0.3273809524 | BM7: =IF(AR25<>0,IF(BK7<CA7,"znížený",IF(BK7>=CA7,IF(BK7<CB7,"dolný priemer",IF(BK7>=CB7,IF(BK7<CC7,"horný priemer",IF(BK7>=CC7,"nadpriemer","xxx")))))),"") -> znížený | BN7: =IF(AR25<>0,IF(BL7<CD7,"znížený",IF(BL7>=CD7,IF(BL7<CE7,"dolný priemer",IF(BL7>=CE7,IF(BL7<CF7,"horný priemer",IF(BL7>=CF7,"nadpriemer","xxx")))))),"") -> nadpriemer | BO7: =IF(AR25<>0,IF(AV7<CG7,"znížený",IF(AV7>=CG7,IF(AV7<CH7,"dolný priemer",IF(AV7>=CH7,IF(AV7<CI7,"horný priemer",IF(AV7>=CI7,"nadpriemer","xxx")))))),"") -> znížený | BP7: =IF(AR28<>0,IF(AV12<CJ7,"znížený",IF(AV12>=CJ7,IF(AV12<CK7,"dolný priemer",IF(AV12>=CK7,IF(AV12<CL7,"horný priemer",IF(AV12>=CL7,"nadpriemer","xxx")))))),"") -> nadpriemer | BQ7: =IF(AR25<>0,IF(AW7<CM7,"znížený",IF(AW7>=CM7,IF(AW7<CN7,"dolný priemer",IF(AW7>=CN7,IF(AW7<CO7,"horný priemer",IF(AW7>=CO7,"nadpriemer","xxx")))))),"") -> dolný priemer | BR7: =IF(AR25<>0,IF(AX7<CP7,"znížený",IF(AX7>=CP7,IF(AX7<CQ7,"dolný priemer",IF(AX7>=CQ7,IF(AX7<CR7,"horný priemer",IF(AX7>=CR7,"nadpriemer","xxx")))))),"") -> horný priemer | BS7: =IF(AR25<>0,IF(BE7<CS7,"znížený",IF(BE7>=CS7,IF(BE7<CT7,"dolný priemer",IF(BE7>=CT7,IF(BE7<CU7,"horný priemer",IF(BE7>=CU7,"nadpriemer","xxx")))))),"") -> znížený | BT7: =IF(AR25<>0,IF(BF7<CV7,"znížený",IF(BF7>=CV7,IF(BF7<CW7,"dolný priemer",IF(BF7>=CW7,IF(BF7<CX7,"horný priemer",IF(BF7>=CX7,"nadpriemer","xxx")))))),"") -> znížený | BU7: =IF(AR25<>0,IF(BG7<CY7,"znížený",IF(BG7>=CY7,IF(BG7<CZ7,"dolný priemer",IF(BG7>=CZ7,IF(BG7<DA7,"horný priemer",IF(BG7>=DA7,"nadpriemer","xxx")))))),"") -> horný priemer | BV7: =IF(AR25<>0,IF(BH7<DB7,"znížený",IF(BH7>=DB7,IF(BH7<DC7,"dolný priemer",IF(BH7>=DC7,IF(BH7<DD7,"horný priemer",IF(BH7>=DD7,"nadpriemer","xxx")))))),"") -> nadpriemer | BW7: =IF(AR25<>0,IF(BI7<DE7,"znížený",IF(BI7>=DE7,IF(BI7<DF7,"dolný priemer",IF(BI7>=DF7,IF(BI7<DG7,"horný priemer",IF(BI7>=DG7,"nadpriemer","xxx")))))),"") -> horný priemer | BX7: =Individualne!AR140 -> 0 | BZ7: Pustý ostrov | CA7: 0.2431467181 | CB7: 0.289010989 | CC7: 0.340106383 | CD7: 0.1956424769 | CE7: 0.2473832528 | CF7: 0.2933811802 | CG7: 0.3333333333 | CH7: 0.3740740741 | CI7: 0.4462365591 | CJ7: 0.06060606061 | CK7: 0.1223344557 | CL7: 0.1748792271 | CM7: 0.8636363636 | CN7: 0.8982758621 | CO7: 0.9505952381 | CP7: 0.0494047619 | CQ7: 0.1017241379 | CR7: 0.1363636364 | CS7: 21.05263158 | CT7: 28.0625 | CU7: 32.44047619 | CV7: 17.21014493 | CW7: 22.40143369 | CX7: 26.08695652 | CY7: 3.639846743 | CZ7: 6.696428571 | DA7: 10.81349206 | DB7: 43.32298137 | DC7: 50 | DD7: 56.67701863 | DE7: 0 | DF7: 3.175403226 | DG7: 5.417956656
A8: Q_1_N | B8: Sel_n_r | C8: =CONCATENATE($BJ$3, " N") -> Sedieť N | D8: 0 | E8: 12 | F8: 0 | G8: 6 | H8: 2 | I8: 19 | J8: 0 | K8: 1 | L8: 0 | M8: 20 | N8: 0 | O8: 3 | P8: 0 | Q8: 0 | R8: 1 | S8: 2 | T8: 2 | U8: 1 | V8: 0 | W8: 1 | X8: 2 | Y8: 2 | Z8: 2 | AA8: 2 | AB8: 1 | AC8: 0 | AD8: 1 | AE8: 0 | AR8: =SUM(D8:AQ8) -> 80 | AS8: =CONCATENATE($BM$3, " P") -> Hájiť záujmy P | AT8: =IF(AR35<>0,IF($B$2<>0,IF($B$3<>"",IF(AR37<>0,(AR37/2*(1-$B$2/($B$3-1)))/((AR35-AR37/2)*($B$2/($B$3-1))),""),""),""),"") -> 0.64 | AU8: =IF(AR35<>0,IF($B$2<>0,IF($B$3<>"",2*(AR35-2*AR37/2)/($B$2*($B$3/2)),""),""),"") -> 3.285714286 | AV8: =IF(AR35<>0,IF($B$3<>"",IF($B$2<>0,(AR37/2)/(($B$2*$B$3)/2),""),""),"") -> 0.1428571429 | AW8: =IF(AR35<>0,IF(AX8<>"",1-AX8,""),"") -> 0.32 | AX8: =IF(AR5<>0,IF($B$2<>"",IF($B$3<>"",AR42/($B$3-$B$2),""),""),"") -> 0.68 | AY8: =Individualne!AR196 -> 6 | AZ8: =Individualne!AR197 -> 3 | BA8: =Individualne!AR199 -> 0 | BB8: =Individualne!AR200 -> 19 | BC8: =Individualne!AR201 -> 14 | BD8: =Individualne!AR202 -> 0 | BE8: 24 | BF8: 12 | BG8: 0 | BH8: 76 | BI8: 56 | BJ8: 0 | BK8: 0.08 | BL8: 0.4107142857 | BM8: =IF(AR35<>0,IF(BK8<CA8,"znížený",IF(BK8>=CA8,IF(BK8<CB8,"dolný priemer",IF(BK8>=CB8,IF(BK8<CC8,"horný priemer",IF(BK8>=CC8,"nadpriemer","xxx")))))),"") -> dolný priemer | BN8: =IF(AR35<>0,IF(BL8<CD8,"znížený",IF(BL8>=CD8,IF(BL8<CE8,"dolný priemer",IF(BL8>=CE8,IF(BL8<CF8,"horný priemer",IF(BL8>=CF8,"nadpriemer","xxx")))))),"") -> horný priemer | BO8: =IF(AR35<>0,IF(AV8<CG8,"znížený",IF(AV8>=CG8,IF(AV8<CH8,"dolný priemer",IF(AV8>=CH8,IF(AV8<CI8,"horný priemer",IF(AV8>=CI8,"nadpriemer","xxx")))))),"") -> horný priemer | BP8: =IF(AR38<>0,IF(AV13<CJ8,"znížený",IF(AV13>=CJ8,IF(AV13<CK8,"dolný priemer",IF(AV13>=CK8,IF(AV13<CL8,"horný priemer",IF(AV13>=CL8,"nadpriemer","xxx")))))),"") -> nadpriemer | BQ8: =IF(AR35<>0,IF(AW8<CM8,"znížený",IF(AW8>=CM8,IF(AW8<CN8,"dolný priemer",IF(AW8>=CN8,IF(AW8<CO8,"horný priemer",IF(AW8>=CO8,"nadpriemer","xxx")))))),"") -> znížený | BR8: =IF(AR35<>0,IF(AX8<CP8,"znížený",IF(AX8>=CP8,IF(AX8<CQ8,"dolný priemer",IF(AX8>=CQ8,IF(AX8<CR8,"horný priemer",IF(AX8>=CR8,"nadpriemer","xxx")))))),"") -> nadpriemer | BS8: =IF(AR35<>0,IF(BE8<CS8,"znížený",IF(BE8>=CS8,IF(BE8<CT8,"dolný priemer",IF(BE8>=CT8,IF(BE8<CU8,"horný priemer",IF(BE8>=CU8,"nadpriemer","xxx")))))),"") -> nadpriemer | BT8: =IF(AR35<>0,IF(BF8<CV8,"znížený",IF(BF8>=CV8,IF(BF8<CW8,"dolný priemer",IF(BF8>=CW8,IF(BF8<CX8,"horný priemer",IF(BF8>=CX8,"nadpriemer","xxx")))))),"") -> znížený | BU8: =IF(AR35<>0,IF(BG8<CY8,"znížený",IF(BG8>=CY8,IF(BG8<CZ8,"dolný priemer",IF(BG8>=CZ8,IF(BG8<DA8,"horný priemer",IF(BG8>=DA8,"nadpriemer","xxx")))))),"") -> horný priemer | BV8: =IF(AR35<>0,IF(BH8<DB8,"znížený",IF(BH8>=DB8,IF(BH8<DC8,"dolný priemer",IF(BH8>=DC8,IF(BH8<DD8,"horný priemer",IF(BH8>=DD8,"nadpriemer","xxx")))))),"") -> nadpriemer | BW8: =IF(AR35<>0,IF(BI8<DE8,"znížený",IF(BI8>=DE8,IF(BI8<DF8,"dolný priemer",IF(BI8>=DF8,IF(BI8<DG8,"horný priemer",IF(BI8>=DG8,"nadpriemer","xxx")))))),"") -> nadpriemer | BX8: =Individualne!AR198 -> 0 | BZ8: Hájiť záujmy | CA8: 0.0752016129 | CB8: 0.088664422 | CC8: 0.1237157534 | CD8: 0.2985846601 | CE8: 0.3536439665 | CF8: 0.4127380952 | CG8: 0.119047619 | CH8: 0.1408730159 | CI8: 0.1760233918 | CJ8: 0.06987295826 | CK8: 0.1066666667 | CL8: 0.1507820137 | CM8: 0.5107142857 | CN8: 0.6086956522 | CO8: 0.704248366 | CP8: 0.295751634 | CQ8: 0.3913043478 | CR8: 0.4892857143 | CS8: 14.16256158 | CT8: 18.01948052 | CU8: 21.96180556 | CV8: 17.35382309 | CW8: 21.05263158 | CX8: 25 | CY8: 0 | CZ8: 0 | DA8: 4.347826087 | DB8: 28.42857143 | DC8: 38.75 | DD8: 48.61111111 | DE8: 14.9537037 | DF8: 24.5 | DG8: 33.69565217
A9: Q_1_N | B9: Sel_n_g | C9: =CONCATENATE($BJ$3, " N") -> Sedieť N | D9: 3 | E9: 3 | F9: 3 | G9: 3 | H9: 3 | I9: 3 | J9: 3 | K9: 3 | L9: 3 | M9: 3 | N9: 3 | O9: 3 | P9: 2 | Q9: 3 | R9: 3 | S9: 3 | T9: 3 | U9: 3 | V9: 3 | W9: 3 | X9: 3 | Y9: 3 | Z9: 3 | AA9: 3 | AB9: 3 | AC9: 3 | AD9: 3 | AE9: 0 | AR9: =SUM(D9:AQ9) -> 80 | AS9: =CONCATENATE($BN$3, " P") -> Tajomstvo P | AT9: =IF(AR45<>0,IF($B$2<>0,IF($B$3<>"",IF(AR47<>0,(AR47/2*(1-$B$2/($B$3-1)))/((AR45-AR47/2)*($B$2/($B$3-1))),""),""),""),"") -> 2.031746032 | AU9: =IF(AR45<>0,IF($B$2<>0,IF($B$3<>"",2*(AR45-2*AR47/2)/($B$2*($B$3/2)),""),""),"") -> 2.238095238 | AV9: =IF(AR45<>0,IF($B$3<>"",IF($B$2<>0,(AR47/2)/(($B$2*$B$3)/2),""),""),"") -> 0.380952381 | AW9: =IF(AR45<>0,IF(AX9<>"",1-AX9,""),"") -> 0.84 | AX9: =IF(AR5<>0,IF($B$2<>"",IF($B$3<>"",AR52/($B$3-$B$2),""),""),"") -> 0.16 | AY9: =Individualne!AR254 -> 4 | AZ9: =Individualne!AR255 -> 5 | BA9: =Individualne!AR257 -> 3 | BB9: =Individualne!AR258 -> 16 | BC9: =Individualne!AR259 -> 3 | BD9: =Individualne!AR260 -> 0 | BE9: 16 | BF9: 20 | BG9: 12 | BH9: 64 | BI9: 12 | BJ9: 0 | BK9: 0.253968254 | BL9: 0.2797619048 | BM9: =IF(AR45<>0,IF(BK9<CA9,"znížený",IF(BK9>=CA9,IF(BK9<CB9,"dolný priemer",IF(BK9>=CB9,IF(BK9<CC9,"horný priemer",IF(BK9>=CC9,"nadpriemer","xxx")))))),"") -> dolný priemer | BN9: =IF(AR45<>0,IF(BL9<CD9,"znížený",IF(BL9>=CD9,IF(BL9<CE9,"dolný priemer",IF(BL9>=CE9,IF(BL9<CF9,"horný priemer",IF(BL9>=CF9,"nadpriemer","xxx")))))),"") -> nadpriemer | BO9: =IF(AR45<>0,IF(AV9<CG9,"znížený",IF(AV9>=CG9,IF(AV9<CH9,"dolný priemer",IF(AV9>=CH9,IF(AV9<CI9,"horný priemer",IF(AV9>=CI9,"nadpriemer","xxx")))))),"") -> horný priemer | BP9: =IF(AR48<>0,IF(AV14<CJ9,"znížený",IF(AV14>=CJ9,IF(AV14<CK9,"dolný priemer",IF(AV14>=CK9,IF(AV14<CL9,"horný priemer",IF(AV14>=CL9,"nadpriemer","xxx")))))),"") -> horný priemer | BQ9: =IF(AR45<>0,IF(AW9<CM9,"znížený",IF(AW9>=CM9,IF(AW9<CN9,"dolný priemer",IF(AW9>=CN9,IF(AW9<CO9,"horný priemer",IF(AW9>=CO9,"nadpriemer","xxx")))))),"") -> znížený | BR9: =IF(AR45<>0,IF(AX9<CP9,"znížený",IF(AX9>=CP9,IF(AX9<CQ9,"dolný priemer",IF(AX9>=CQ9,IF(AX9<CR9,"horný priemer",IF(AX9>=CR9,"nadpriemer","xxx")))))),"") -> nadpriemer | BS9: =IF(AR45<>0,IF(BE9<CS9,"znížený",IF(BE9>=CS9,IF(BE9<CT9,"dolný priemer",IF(BE9>=CT9,IF(BE9<CU9,"horný priemer",IF(BE9>=CU9,"nadpriemer","xxx")))))),"") -> znížený | BT9: =IF(AR45<>0,IF(BF9<CV9,"znížený",IF(BF9>=CV9,IF(BF9<CW9,"dolný priemer",IF(BF9>=CW9,IF(BF9<CX9,"horný priemer",IF(BF9>=CX9,"nadpriemer","xxx")))))),"") -> dolný priemer | BU9: =IF(AR45<>0,IF(BG9<CY9,"znížený",IF(BG9>=CY9,IF(BG9<CZ9,"dolný priemer",IF(BG9>=CZ9,IF(BG9<DA9,"horný priemer",IF(BG9>=DA9,"nadpriemer","xxx")))))),"") -> nadpriemer | BV9: =IF(AR45<>0,IF(BH9<DB9,"znížený",IF(BH9>=DB9,IF(BH9<DC9,"dolný priemer",IF(BH9>=DC9,IF(BH9<DD9,"horný priemer",IF(BH9>=DD9,"nadpriemer","xxx")))))),"") -> nadpriemer | BW9: =IF(AR45<>0,IF(BI9<DE9,"znížený",IF(BI9>=DE9,IF(BI9<DF9,"dolný priemer",IF(BI9>=DF9,IF(BI9<DG9,"horný priemer",IF(BI9>=DG9,"nadpriemer","xxx")))))),"") -> nadpriemer | BX9: =Individualne!AR256 -> 0 | BZ9: Tajomstvo | CA9: 0.25 | CB9: 0.2805509528 | CC9: 0.3275193798 | CD9: 0.1827543166 | CE9: 0.2242753623 | CF9: 0.2761904762 | CG9: 0.2716374269 | CH9: 0.3680926916 | CI9: 0.4137529138 | CJ9: 0.1002673797 | CK9: 0.1333333333 | CL9: 0.1800699301 | CM9: 0.8558201058 | CN9: 0.8928571429 | CO9: 0.9326508621 | CP9: 0.06734913793 | CQ9: 0.1071428571 | CR9: 0.1441798942 | CS9: 21.42857143 | CT9: 26.08695652 | CU9: 30.03472222 | CV9: 20 | CW9: 22.72727273 | CX9: 26.08695652 | CY9: 0 | CZ9: 5 | DA9: 10.92032967 | DB9: 42.85714286 | DC9: 50 | DD9: 58.00438596 | DE9: 0 | DF9: 4.083333333 | DG9: 6.25
A10: Q_1_N | B10: Rec_n | C10: =CONCATENATE($BJ$3, " mutual N") -> Sedieť mutual N | D10: 0 | E10: 0 | F10: 0 | G10: 1 | H10: 1 | I10: 3 | J10: 0 | K10: 0 | L10: 0 | M10: 3 | N10: 0 | O10: 1 | P10: 0 | Q10: 0 | R10: 0 | S10: 1 | T10: 1 | U10: 1 | V10: 0 | W10: 1 | X10: 0 | Y10: 1 | Z10: 0 | AA10: 0 | AB10: 0 | AC10: 0 | AD10: 0 | AE10: 0 | AR10: 14 | AS10: =CONCATENATE($BJ$3, " N") -> Sedieť N | AT10: =IF(AR8<>0,IF($B$2<>0,IF($B$3<>"",IF(AR10<>0,(AR10/2*(1-$B$2/($B$3-1)))/((AR8-AR10/2)*($B$2/($B$3-1))),""),""),""),"") -> 0.7671232877 | AU10: =IF(AR8<>0,IF($B$2<>0,IF($B$3<>"",2*(AR8-2*AR10/2)/($B$2*($B$3/2)),""),""),"") -> 3.142857143 | AV10: =IF(AR8<>0,IF($B$3<>"",IF($B$2<>0,(AR10/2)/(($B$2*$B$3)/2),""),""),"") -> 0.1666666667 | AW10: =IF(AR8<>0,IF(AX10<>"",1-AX10,""),"") -> 0.64 | AX10: =IF(AR14<>0,IF($B$2<>"",IF($B$3<>"",AR14/($B$3-$B$2),""),""),"") -> 0.36 | BF10: =BF5*(-1) -> -16 | BK10: =IF(AT10<>" ",IF(AT10<>"",AT10/(($B$3-4)*-0.333333333333),""),"") -> -0.09589041096 | BL10: -0.3928571429 | CV10: =CV5*(-1) -> -17.21014493 | CW10: =CW5*(-1) -> -21.73913043 | CX10: =CX5*(-1) -> -25.96618357
A11: Q_1 | B11: IZO p | C11: =CONCATENATE($BJ$3, " izolovaní P") -> Sedieť izolovaní P | D11: =IF(D5<>"",IF(D6>0,IF(D5 = 0,IF(D6 = 0,1,""),""),""),"") ->  | E11: =IF(E5<>"",IF(E6>0,IF(E5 = 0,IF(E6 = 0,1,""),""),""),"") ->  | AR11: 0 | AS11: =CONCATENATE($BK$3, " N") -> Učiť sa N | AT11: =IF(AR18<>0,IF($B$2<>0,IF($B$3<>"",IF(AR20<>0,(AR20/2*(1-$B$2/($B$3-1)))/((AR18-AR20/2)*($B$2/($B$3-1))),""),""),""),"") -> 0.64 | AU11: =IF(AR18<>0,IF($B$2<>0,IF($B$3<>"",2*(AR18-2*AR20/2)/($B$2*($B$3/2)),""),""),"") -> 3.285714286 | AV11: =IF(AR18<>0,IF($B$3<>"",IF($B$2<>0,(AR20/2)/(($B$2*$B$3)/2),""),""),"") -> 0.1428571429 | AW11: =IF(AR18<>0,IF(AX11<>"",1-AX11,""),"") -> 0.52 | AX11: =IF(AR24<>0,IF($B$2<>"",IF($B$3<>"",AR24/($B$3-$B$2),""),""),"") -> 0.48 | BF11: =BF6*(-1) -> -20 | BK11: -0.08 | BL11: -0.4107142857 | CV11: =CV6*(-1) -> -17.85714286 | CW11: -22.40143369 | CX11: =CX6*(-1) -> -28.57142857
A12: Q_1 | B12: OPO p | C12: =CONCATENATE($BJ$3, " opomenutí P") -> Sedieť opomenutí P | D12: =IF(D6>0,IF(D5<>"",IF(D5 = 0,IF(D6 > 0,1,""),""),""),"") ->  | E12: =IF(E6>0,IF(E5<>"",IF(E5 = 0,IF(E6 > 0,1,""),""),""),"") -> 1 | I12: 1 | R12: 1 | T12: 1 | AR12: 4 | AS12: =CONCATENATE($BL$3, " N") -> Pustý ostrov N | AT12: =IF(AR28<>0,IF($B$2<>0,IF($B$3<>"",IF(AR30<>0,(AR30/2*(1-$B$2/($B$3-1)))/((AR28-AR30/2)*($B$2/($B$3-1))),""),""),""),"") -> 0.8767123288 | AU12: =IF(AR28<>0,IF($B$2<>0,IF($B$3<>"",2*(AR28-2*AR30/2)/($B$2*($B$3/2)),""),""),"") -> 3.095238095 | AV12: =IF(AR28<>0,IF($B$3<>"",IF($B$2<>0,(AR30/2)/(($B$2*$B$3)/2),""),""),"") -> 0.1904761905 | AW12: =IF(AR28<>0,IF(AX12<>"",1-AX12,""),"") -> 0.8 | AX12: =IF(AR34<>0,IF($B$2<>"",IF($B$3<>"",AR34/($B$3-$B$2),""),""),"") -> 0.2 | BF12: =BF7*(-1) -> -12 | BK12: -0.1095890411 | BL12: -0.3869047619 | CV12: -17.21014493 | CW12: -22.40143369 | CX12: =CX7*(-1) -> -26.08695652
A13: Q_1 | B13: IZO n | C13: =CONCATENATE($BJ$3, " izolovaní N") -> Sedieť izolovaní N | D13: =IF(D9>0,IF(D8<>"",IF(D8 = 0,IF(D9 = 0,1,""),""),""),"") ->  | E13: =IF(E9>0,IF(E8<>"",IF(E8 = 0,IF(E9 = 0,1,""),""),""),"") ->  | AR13: 0 | AS13: =CONCATENATE($BM$3, " N") -> Hájiť záujmy N | AT13: =IF(AR38<>0,IF($B$2<>0,IF($B$3<>"",IF(AR40<>0,(AR40/2*(1-$B$2/($B$3-1)))/((AR38-AR40/2)*($B$2/($B$3-1))),""),""),""),"") -> 0.7567567568 | AU13: =IF(AR38<>0,IF($B$2<>0,IF($B$3<>"",2*(AR38-2*AR40/2)/($B$2*($B$3/2)),""),""),"") -> 3.19047619 | AV13: =IF(AR38<>0,IF($B$3<>"",IF($B$2<>0,(AR40/2)/(($B$2*$B$3)/2),""),""),"") -> 0.1666666667 | AW13: =IF(AR38<>0,IF(AX13<>"",1-AX13,""),"") -> 0.52 | AX13: =IF(AR44<>0,IF($B$2<>"",IF($B$3<>"",AR44/($B$3-$B$2),""),""),"") -> 0.48 | BF13: =BF8*(-1) -> -12 | BK13: -0.09459459459 | BL13: -0.3988095238 | CV13: -17.35382309 | CW13: -21.05263158 | CX13: =CX8*(-1) -> -25
A14: Q_1 | B14: OPO n | C14: =CONCATENATE($BJ$3, " opomenutí N") -> Sedieť opomenutí N | D14: =IF(D9>0,IF(D8<>"",IF(D8 = 0,IF(D9 > 0,1,""),""),""),"") -> 1 | E14: =IF(E9>0,IF(E8<>"",IF(E8 = 0,IF(E9 > 0,1,""),""),""),"") ->  | F14: 1 | J14: 1 | L14: 1 | N14: 1 | P14: 1 | Q14: 1 | V14: 1 | AC14: 1 | AR14: 9 | AS14: =CONCATENATE($BN$3, " N") -> Tajomstvo N | AT14: =IF(AR48<>0,IF($B$2<>0,IF($B$3<>"",IF(AR50<>0,(AR50/2*(1-$B$2/($B$3-1)))/((AR48-AR50/2)*($B$2/($B$3-1))),""),""),""),"") -> 0.7567567568 | AU14: =IF(AR48<>0,IF($B$2<>0,IF($B$3<>"",2*(AR48-2*AR50/2)/($B$2*($B$3/2)),""),""),"") -> 3.19047619 | AV14: =IF(AR48<>0,IF($B$3<>"",IF($B$2<>0,(AR50/2)/(($B$2*$B$3)/2),""),""),"") -> 0.1666666667 | AW14: =IF(AR48<>0,IF(AX14<>"",1-AX14,""),"") -> 0.72 | AX14: =IF(AR54<>0,IF($B$2<>"",IF($B$3<>"",AR54/($B$3-$B$2),""),""),"") -> 0.28 | BF14: =BF9*(-1) -> -20 | BK14: -0.09459459459 | BL14: -0.3988095238 | CD14: SE | CE14: UC | CF14: OS | CG14: HA | CH14: TAJ | CV14: -20 | CW14: -22.72727273 | CX14: =CX9*(-1) -> -26.08695652
A15: Q_2_P | B15: Sel_p_r | C15: =CONCATENATE($BK$3, " P") -> Učiť sa P | D15: 1 | E15: 0 | F15: 3 | G15: 1 | H15: 1 | I15: 0 | J15: 6 | K15: 4 | L15: 7 | M15: 0 | N15: 1 | O15: 0 | P15: 1 | Q15: 2 | R15: 2 | S15: 0 | T15: 0 | U15: 5 | V15: 2 | W15: 1 | X15: 1 | Y15: 1 | Z15: 14 | AA15: 0 | AB15: 9 | AC15: 6 | AD15: 5 | AE15: 8 | AR15: =SUM(D15:AQ15) -> 81 | AT15: Koherencia | AU15: Nespokojnosť | AV15: Kohézia | AW15: Integrácia | AX15: Izolácia | AZ15: Hr_1 | BA15: Hr_2 | BQ15: Kódy významností | BU15: Pre graf | BV15: Popisky | BW15: Dummy 1 | BX15: DH | BY15: AM | BZ15: HH | CA15: Dummy 2 | CB15: Popisky vpravo | CD15: OT_1 | CE15: OT_2 | CF15: OT_3 | CG15: OT_4 | CH15: OT_5 | CJ15: Dummy 1 | CK15: Dummy 2
A16: Q_2_P | B16: Sel_p_g | C16: =CONCATENATE($BK$3, " P") -> Učiť sa P | D16: 3 | E16: 3 | F16: 3 | G16: 3 | H16: 3 | I16: 3 | J16: 3 | K16: 3 | L16: 3 | M16: 3 | N16: 3 | O16: 3 | P16: 3 | Q16: 3 | R16: 3 | S16: 3 | T16: 3 | U16: 3 | V16: 3 | W16: 3 | X16: 3 | Y16: 3 | Z16: 3 | AA16: 3 | AB16: 3 | AC16: 3 | AD16: 3 | AE16: 0 | AR16: =SUM(D16:AQ16) -> 81 | AS16: Menovky | AT16: Koher | AU16: Nesp | AV16: Kohéz | AW16: Integ | AX16: Izolá | BQ16: Koherencia C | BR16: =IF(BM5 ="znížený",1,IF(BM5 ="dolný priemer",2,IF(BM5 ="horný priemer",3,IF(BM5 ="nadpriemer",4,"")))) -> 1 | BS16: 1 | BT16: Koherencia C suma | BU16: =BR21 -> 7 | BV16: Koherencia | BW16: 5 | BX16: 10 | BY16: 13 | BZ16: 16 | CA16: 20 | CB16: C korig | CD16: =BR16 -> 1 | CE16: =BR17 -> 1 | CF16: =BR18 -> 1 | CG16: =BR19 -> 2 | CH16: =BR20 -> 2 | CJ16: 1 | CK16: 4
A17: Q_2_P | B17: Rec_p | C17: =CONCATENATE($BK$3, " mutual P") -> Učiť sa mutual P | D17: 1 | E17: 0 | F17: 1 | G17: 1 | H17: 1 | I17: 0 | J17: 2 | K17: 0 | L17: 1 | M17: 0 | N17: 0 | O17: 0 | P17: 1 | Q17: 0 | R17: 1 | S17: 0 | T17: 0 | U17: 3 | V17: 1 | W17: 1 | X17: 0 | Y17: 1 | Z17: 3 | AA17: 0 | AB17: 3 | AC17: 2 | AD17: 1 | AE17: 0 | AR17: =SUM(D17:AQ17) -> 24 | BR17: =IF(BM6 ="znížený",1,IF(BM6 ="dolný priemer",2,IF(BM6 ="horný priemer",3,IF(BM6 ="nadpriemer",4,"")))) -> 1 | BS17: 2 | BT17: Kohézia IK suma | BU17: =BR27 -> 10 | BV17: Kohézia | BW17: 5 | BX17: 10 | BY17: 13 | BZ17: 16 | CA17: 20 | CB17: IK | CD17: =BR22 -> 1 | CE17: =BR23 -> 2 | CF17: =BR24 -> 1 | CG17: =BR25 -> 3 | CH17: =BR26 -> 3 | CJ17: 1 | CK17: 4
A18: Q_2_N | B18: Sel_n_r | C18: =CONCATENATE($BK$3, " N") -> Učiť sa N | D18: 1 | E18: 13 | F18: 0 | G18: 10 | H18: 3 | I18: 20 | J18: 0 | K18: 1 | L18: 0 | M18: 18 | N18: 0 | O18: 4 | P18: 0 | Q18: 0 | R18: 1 | S18: 1 | T18: 3 | U18: 0 | V18: 0 | W18: 1 | X18: 0 | Y18: 0 | Z18: 2 | AA18: 1 | AB18: 0 | AC18: 0 | AD18: 2 | AE18: 0 | AR18: =SUM(D18:AQ18) -> 81 | BR18: =IF(BM7 ="znížený",1,IF(BM7 ="dolný priemer",2,IF(BM7 ="horný priemer",3,IF(BM7 ="nadpriemer",4,"")))) -> 1 | BS18: 3 | BT18: Integrácia IG suma | BU18: =BR33 -> 6 | BV18: Integrácia | BW18: 5 | BX18: 10 | BY18: 13 | BZ18: 16 | CA18: 20 | CB18: IG | CD18: =BR28 -> 1 | CE18: =BR29 -> 1 | CF18: =BR30 -> 2 | CG18: =BR31 -> 1 | CH18: =BR32 -> 1 | CJ18: 1 | CK18: 4
A19: Q_2_N | B19: Sel_n_g | C19: =CONCATENATE($BK$3, " N") -> Učiť sa N | D19: 3 | E19: 3 | F19: 3 | G19: 3 | H19: 3 | I19: 3 | J19: 3 | K19: 3 | L19: 3 | M19: 3 | N19: 3 | O19: 3 | P19: 3 | Q19: 3 | R19: 3 | S19: 3 | T19: 3 | U19: 3 | V19: 3 | W19: 3 | X19: 3 | Y19: 3 | Z19: 3 | AA19: 3 | AB19: 3 | AC19: 3 | AD19: 3 | AE19: 0 | AR19: =SUM(D19:AQ19) -> 81 | BR19: =IF(BM8 ="znížený",1,IF(BM8 ="dolný priemer",2,IF(BM8 ="horný priemer",3,IF(BM8 ="nadpriemer",4,"")))) -> 2 | BS19: 4 | BT19: Populárni POP % suma | BU19: =BR39 -> 10 | BV19: Populárni | BW19: 5 | BX19: 10 | BY19: 13 | BZ19: 16 | CA19: 20 | CB19: POP % | CD19: =BR34 -> 1 | CE19: =BR35 -> 3 | CF19: =BR36 -> 1 | CG19: =BR37 -> 4 | CH19: =BR38 -> 1 | CJ19: 1 | CK19: 4
A20: Q_2_N | B20: Rec_n | C20: =CONCATENATE($BK$3, " mutual N") -> Učiť sa mutual N | D20: 1 | E20: 3 | F20: 0 | G20: 2 | H20: 0 | I20: 2 | J20: 0 | K20: 0 | L20: 0 | M20: 2 | N20: 0 | O20: 1 | P20: 0 | Q20: 0 | R20: 0 | S20: 0 | T20: 1 | U20: 0 | V20: 0 | W20: 0 | X20: 0 | Y20: 0 | Z20: 0 | AA20: 0 | AB20: 0 | AC20: 0 | AD20: 0 | AE20: 0 | AR20: 12 | BR20: =IF(BM9 ="znížený",1,IF(BM9 ="dolný priemer",2,IF(BM9 ="horný priemer",3,IF(BM9 ="nadpriemer",4,"")))) -> 2 | BS20: 5 | BT20: Nespokojnosť IN suma | BU20: =BR45 -> 19 | BV20: Nespokojnosť | BW20: 5 | BX20: 10 | BY20: 13 | BZ20: 16 | CA20: 20 | CB20: IN | CD20: =BR40 -> 4 | CE20: =BR41 -> 4 | CF20: =BR42 -> 4 | CG20: =BR43 -> 3 | CH20: =BR44 -> 4 | CJ20: 1 | CK20: 4
A21: Q_2 | B21: IZO p | C21: =CONCATENATE($BK$3, " izolovaní P") -> Učiť sa izolovaní P | D21: =IF(D15<>"",IF(D16>0,IF(D15 = 0,IF(D16 = 0,1,""),""),""),"") ->  | E21: =IF(E15<>"",IF(E16>0,IF(E15 = 0,IF(E16 = 0,1,""),""),""),"") ->  | AR21: 0 | AS21: =CONCATENATE($BJ$3, " N obrátené") -> Sedieť N obrátené | AT21: =IF(AT10<>"",AT10*(-1)," ") -> -0.7671232877 | AU21: =IF(AU10<>"",AU10*(-1)," ") -> -3.142857143 | AV21: -0.1666666667 | AW21: -0.64 | AX21: -0.36 | AZ21: 6 | BA21: 7 | BP21: 1 | BQ21: Koherencia C suma | BR21: =SUM(BR16:BR20) -> 7 | BS21: 6 | BT21: Disociácia ID suma | BU21: =BR51 -> 17 | BV21: Disociácia | BW21: 5 | BX21: 10 | BY21: 13 | BZ21: 16 | CA21: 20 | CB21: ID | CD21: =BR46 -> 3 | CE21: =BR47 -> 3 | CF21: =BR48 -> 4 | CG21: =BR49 -> 4 | CH21: =BR50 -> 3 | CJ21: 1 | CK21: 4
A22: Q_2 | B22: OPO p | C22: =CONCATENATE($BK$3, " opomenutí P") -> Učiť sa opomenutí P | D22: =IF(D16>0,IF(D15<>"",IF(D15 = 0,IF(D16 > 0,1,""),""),""),"") ->  | E22: =IF(E16>0,IF(E15<>"",IF(E15 = 0,IF(E16 > 0,1,""),""),""),"") -> 1 | I22: 1 | M22: 1 | O22: 1 | S22: 1 | T22: 1 | AA22: 1 | AR22: 7 | AS22: =CONCATENATE($BK$3, " N obrátené") -> Učiť sa N obrátené | AT22: =IF(AT11<>"",AT11*(-1),"") -> -0.64 | AU22: =IF(AU11<>"",AU11*(-1)," ") -> -3.285714286 | AV22: -0.1428571429 | AW22: -0.52 | AX22: -0.48 | AZ22: 6 | BA22: 7 | BQ22: Kohézia IK | BR22: =IF(BO5 ="znížený",1,IF(BO5 ="dolný priemer",2,IF(BO5 ="horný priemer",3,IF(BO5 ="nadpriemer",4,"")))) -> 1 | BS22: 7 | BT22: Izolácia IZ suma | BU22: =BR57 -> 19 | BV22: Izolácia | BW22: 5 | BX22: 10 | BY22: 13 | BZ22: 16 | CA22: 20 | CB22: IZ | CD22: =BR52 -> 4 | CE22: =BR53 -> 4 | CF22: =BR54 -> 3 | CG22: =BR55 -> 4 | CH22: =BR56 -> 4 | CJ22: 1 | CK22: 4
A23: Q_2 | B23: IZO n | C23: =CONCATENATE($BK$3, " izolovaní N") -> Učiť sa izolovaní N | D23: =IF(D19>0,IF(D18<>"",IF(D18 = 0,IF(D19 = 0,1,""),""),""),"") ->  | E23: =IF(E19>0,IF(E18<>"",IF(E18 = 0,IF(E19 = 0,1,""),""),""),"") ->  | AR23: 0 | AS23: =CONCATENATE($BL$3, " N obrátené") -> Pustý ostrov N obrátené | AT23: =IF(AT12<>"",AT12*(-1),"") -> -0.8767123288 | AU23: =IF(AU12<>"",AU12*(-1)," ") -> -3.095238095 | AV23: =IF(AV12<>"",AV12*(-1)," ") -> -0.1904761905 | AW23: -0.8 | AX23: -0.2 | AZ23: 6 | BA23: 7 | BR23: =IF(BO6 ="znížený",1,IF(BO6 ="dolný priemer",2,IF(BO6 ="horný priemer",3,IF(BO6 ="nadpriemer",4,"")))) -> 2 | BS23: 8 | BT23: Odmietaní REJ % suma | BU23: =BR63 -> 7 | BV23: Odmietaní | BW23: 5 | BX23: 10 | BY23: 13 | BZ23: 16 | CA23: 20 | CB23: REJ % | CD23: =BR58 -> 1 | CE23: =BR59 -> 2 | CF23: =BR60 -> 1 | CG23: =BR61 -> 1 | CH23: =BR62 -> 2 | CJ23: 1 | CK23: 4
A24: Q_2 | B24: OPO n | C24: =CONCATENATE($BK$3, " opomenutí N") -> Učiť sa opomenutí N | D24: =IF(D19>0,IF(D18<>"",IF(D18 = 0,IF(D19 > 0,1,""),""),""),"") ->  | E24: =IF(E19>0,IF(E18<>"",IF(E18 = 0,IF(E19 > 0,1,""),""),""),"") ->  | F24: 1 | J24: 1 | L24: 1 | N24: 1 | P24: 1 | Q24: 1 | U24: 1 | V24: 1 | X24: 1 | Y24: 1 | AB24: 1 | AC24: 1 | AR24: 12 | AS24: =CONCATENATE($BM$3, " N obrátené") -> Hájiť záujmy N obrátené | AT24: -0.7567567568 | AU24: =IF(AU13<>"",AU13*(-1)," ") -> -3.19047619 | AV24: -0.1666666667 | AW24: -0.52 | AX24: -0.48 | AZ24: 6 | BA24: 7 | BR24: =IF(BO7 ="znížený",1,IF(BO7 ="dolný priemer",2,IF(BO7 ="horný priemer",3,IF(BO7 ="nadpriemer",4,"")))) -> 1 | BS24: 9 | BT24: Kontroverzní CON % suma | BU24: =BR69 -> 15 | BV24: Kontroverzní | BW24: 5 | BX24: 10 | BY24: 13 | BZ24: 16 | CA24: 20 | CB24: CON % | CD24: =BR64 -> 2 | CE24: =BR65 -> 3 | CF24: =BR66 -> 3 | CG24: =BR67 -> 3 | CH24: =BR68 -> 4 | CJ24: 1 | CK24: 4
A25: Q_3_P | B25: Sel_p_r | C25: =CONCATENATE($BL$3, " P") -> Pustý ostrov P | D25: 1 | E25: 0 | F25: 2 | G25: 0 | H25: 4 | I25: 2 | J25: 4 | K25: 4 | L25: 5 | M25: 3 | N25: 4 | O25: 4 | P25: 0 | Q25: 1 | R25: 1 | S25: 4 | T25: 1 | U25: 5 | V25: 2 | W25: 3 | X25: 4 | Y25: 3 | Z25: 9 | AA25: 1 | AB25: 3 | AC25: 1 | AD25: 6 | AE25: 4 | AR25: =SUM(D25:AQ25) -> 81 | AS25: =CONCATENATE($BN$3, " N obrátené") -> Tajomstvo N obrátené | AT25: =IF(AT14<>0,IF(AT14<>"",AT14*(-1),""),"") -> -0.7567567568 | AU25: =IF(AU14<>"",AU14*(-1),"") -> -3.19047619 | AV25: =IF(AV14<>"",AV14*(-1),"") -> -0.1666666667 | AW25: =IF(AW14<>"",AW14*(-1),"") -> -0.72 | AX25: =IF(AX14<>"",AX14*(-1),"") -> -0.28 | AZ25: 6 | BA25: 7 | BR25: =IF(BO8 ="znížený",1,IF(BO8 ="dolný priemer",2,IF(BO8 ="horný priemer",3,IF(BO8 ="nadpriemer",4,"")))) -> 3 | BS25: 10 | BT25: Opomíjaní OPO % suma | BU25: =BR75 -> 19 | BV25: Opomenutí | BW25: 5 | BX25: 10 | BY25: 13 | BZ25: 16 | CA25: 20 | CB25: OPO % | CD25: =BR70 -> 4 | CE25: =BR71 -> 4 | CF25: =BR72 -> 3 | CG25: =BR73 -> 4 | CH25: =BR74 -> 4 | CJ25: 1 | CK25: 4
A26: Q_3_P | B26: Sel_p_g | C26: =CONCATENATE($BL$3, " P") -> Pustý ostrov P | D26: 3 | E26: 3 | F26: 3 | G26: 3 | H26: 3 | I26: 3 | J26: 3 | K26: 3 | L26: 3 | M26: 3 | N26: 3 | O26: 3 | P26: 3 | Q26: 3 | R26: 3 | S26: 3 | T26: 3 | U26: 3 | V26: 3 | W26: 3 | X26: 3 | Y26: 3 | Z26: 3 | AA26: 3 | AB26: 3 | AC26: 3 | AD26: 3 | AE26: 0 | AR26: =SUM(D26:AQ26) -> 81 | BR26: =IF(BO9 ="znížený",1,IF(BO9 ="dolný priemer",2,IF(BO9 ="horný priemer",3,IF(BO9 ="nadpriemer",4,"")))) -> 3 | BS26: 11 | BT26: Index Lásky | BU26: =(BR21+BR27+BR33+BR39)/4 -> 8.25 | BV26: Index Lásky | BW26: 5 | BX26: 10 | BY26: 13 | BZ26: 16 | CA26: 20 | CB26: Love | CD26: =(CD16+CD17+CD18+CD19)/4 -> 1 | CE26: =(CE16+CE17+CE18+CE19)/4 -> 1.75 | CF26: =(CF16+CF17+CF18+CF19)/4 -> 1.25 | CG26: =(CG16+CG17+CG18+CG19)/4 -> 2.5 | CH26: =(CH16+CH17+CH18+CH19)/4 -> 1.75 | CJ26: 1 | CK26: 4
A27: Q_3_P | B27: Rec_p | C27: =CONCATENATE($BL$3, " mutual P") -> Pustý ostrov mutual P | D27: 1 | E27: 0 | F27: 2 | G27: 0 | H27: 1 | I27: 1 | J27: 2 | K27: 1 | L27: 1 | M27: 3 | N27: 2 | O27: 0 | P27: 0 | Q27: 0 | R27: 0 | S27: 1 | T27: 0 | U27: 3 | V27: 1 | W27: 0 | X27: 1 | Y27: 0 | Z27: 2 | AA27: 1 | AB27: 1 | AC27: 0 | AD27: 2 | AE27: 0 | AR27: =SUM(D27:AQ27) -> 26 | BP27: 2 | BQ27: Kohézia IK suma | BR27: =SUM(BR22:BR26) -> 10 | BS27: 12 | BT27: Index Nenávisti | BU27: =(BR45+BR51+BR57+BR63+BR69+BR75)/6 -> 16 | BV27: Index Nenávisti | BW27: 5 | BX27: 10 | BY27: 13 | BZ27: 16 | CA27: 20 | CB27: Hate | CD27: =(CD20+CD21+CD22+CD23+CD24+CD25)/6 -> 3 | CE27: =(CE20+CE21+CE22+CE23+CE24+CE25)/6 -> 3.333333333 | CF27: =(CF20+CF21+CF22+CF23+CF24+CF25)/6 -> 3 | CG27: =(CG20+CG21+CG22+CG23+CG24+CG25)/6 -> 3.166666667 | CH27: =(CH20+CH21+CH22+CH23+CH24+CH25)/6 -> 3.5 | CJ27: 1 | CK27: 4
A28: Q_3_N | B28: Sel_n_r | C28: =CONCATENATE($BL$3, " N") -> Pustý ostrov N | D28: 1 | E28: 12 | F28: 0 | G28: 6 | H28: 2 | I28: 15 | J28: 2 | K28: 1 | L28: 0 | M28: 16 | N28: 1 | O28: 1 | P28: 0 | Q28: 0 | R28: 2 | S28: 2 | T28: 2 | U28: 2 | V28: 1 | W28: 2 | X28: 1 | Y28: 1 | Z28: 1 | AA28: 2 | AB28: 2 | AC28: 0 | AD28: 6 | AE28: 0 | AR28: =SUM(D28:AQ28) -> 81 | BQ28: Integrácia IG | BR28: =IF(BQ5 ="znížený",1,IF(BQ5 ="dolný priemer",2,IF(BQ5 ="horný priemer",3,IF(BQ5 ="nadpriemer",4,"")))) -> 1 | BU28: Platí pre 5 otázok
A29: Q_3_N | B29: Sel_n_g | C29: =CONCATENATE($BL$3, " N") -> Pustý ostrov N | D29: 3 | E29: 3 | F29: 3 | G29: 3 | H29: 3 | I29: 3 | J29: 3 | K29: 3 | L29: 3 | M29: 3 | N29: 3 | O29: 3 | P29: 3 | Q29: 3 | R29: 3 | S29: 3 | T29: 3 | U29: 3 | V29: 3 | W29: 3 | X29: 3 | Y29: 3 | Z29: 3 | AA29: 3 | AB29: 3 | AC29: 3 | AD29: 3 | AE29: 0 | AR29: =SUM(D29:AQ29) -> 81 | BR29: =IF(BQ6 ="znížený",1,IF(BQ6 ="dolný priemer",2,IF(BQ6 ="horný priemer",3,IF(BQ6 ="nadpriemer",4,"")))) -> 1
A30: Q_3_N | B30: Rec_n | C30: =CONCATENATE($BL$3, " mutual N") -> Pustý ostrov mutual N | D30: 1 | E30: 1 | F30: 0 | G30: 0 | H30: 0 | I30: 3 | J30: 0 | K30: 0 | L30: 0 | M30: 3 | N30: 1 | O30: 0 | P30: 0 | Q30: 0 | R30: 1 | S30: 1 | T30: 2 | U30: 1 | V30: 0 | W30: 0 | X30: 0 | Y30: 0 | Z30: 0 | AA30: 0 | AB30: 1 | AC30: 0 | AD30: 1 | AE30: 0 | AR30: 16 | BR30: =IF(BQ7 ="znížený",1,IF(BQ7 ="dolný priemer",2,IF(BQ7 ="horný priemer",3,IF(BQ7 ="nadpriemer",4,"")))) -> 2
A31: Q_3 | B31: IZO p | C31: =CONCATENATE($BL$3, " izolovaní P") -> Pustý ostrov izolovaní P | D31: =IF(D25<>"",IF(D26>0,IF(D25 = 0,IF(D26 = 0,1,""),""),""),"") ->  | E31: =IF(E25<>"",IF(E26>0,IF(E25 = 0,IF(E26 = 0,1,""),""),""),"") ->  | AR31: 0 | BR31: =IF(BQ8 ="znížený",1,IF(BQ8 ="dolný priemer",2,IF(BQ8 ="horný priemer",3,IF(BQ8 ="nadpriemer",4,"")))) -> 1
A32: Q_3 | B32: OPO p | C32: =CONCATENATE($BL$3, " opomenutí P") -> Pustý ostrov opomenutí P | D32: =IF(D26>0,IF(D25<>"",IF(D25 = 0,IF(D26 > 0,1,""),""),""),"") ->  | E32: =IF(E26>0,IF(E25<>"",IF(E25 = 0,IF(E26 > 0,1,""),""),""),"") -> 1 | G32: 1 | P32: 1 | AR32: 3 | BR32: =IF(BQ9 ="znížený",1,IF(BQ9 ="dolný priemer",2,IF(BQ9 ="horný priemer",3,IF(BQ9 ="nadpriemer",4,"")))) -> 1
A33: Q_3 | B33: IZO n | C33: =CONCATENATE($BL$3, " izolovaní N") -> Pustý ostrov izolovaní N | D33: =IF(D29>0,IF(D28<>"",IF(D28 = 0,IF(D29 = 0,1,""),""),""),"") ->  | E33: =IF(E29>0,IF(E28<>"",IF(E28 = 0,IF(E29 = 0,1,""),""),""),"") ->  | AR33: 0 | BP33: 3 | BQ33: Integrácia IG suma | BR33: =SUM(BR28:BR32) -> 6
A34: Q_3 | B34: OPO n | C34: =CONCATENATE($BL$3, " opomenutí N") -> Pustý ostrov opomenutí N | D34: =IF(D29>0,IF(D28<>"",IF(D28 = 0,IF(D29 > 0,1,""),""),""),"") ->  | E34: =IF(E29>0,IF(E28<>"",IF(E28 = 0,IF(E29 > 0,1,""),""),""),"") ->  | F34: 1 | L34: 1 | P34: 1 | Q34: 1 | AC34: 1 | AR34: 5 | BQ34: Populárni POP % | BR34: =IF(BS5 ="znížený",1,IF(BS5 ="dolný priemer",2,IF(BS5 ="horný priemer",3,IF(BS5 ="nadpriemer",4,"")))) -> 1
A35: Q_4_P | B35: Sel_p_r | C35: =CONCATENATE($BM$3, " P") -> Hájiť záujmy P | D35: 0 | E35: 0 | F35: 0 | G35: 0 | H35: 2 | I35: 0 | J35: 2 | K35: 1 | L35: 10 | M35: 0 | N35: 0 | O35: 0 | P35: 0 | Q35: 0 | R35: 8 | S35: 0 | T35: 0 | U35: 2 | V35: 0 | W35: 3 | X35: 0 | Y35: 0 | Z35: 25 | AA35: 0 | AB35: 12 | AC35: 8 | AD35: 0 | AE35: 8 | AR35: =SUM(D35:AQ35) -> 81 | BR35: =IF(BS6 ="znížený",1,IF(BS6 ="dolný priemer",2,IF(BS6 ="horný priemer",3,IF(BS6 ="nadpriemer",4,"")))) -> 3
A36: Q_4_P | B36: Sel_p_g | C36: =CONCATENATE($BM$3, " P") -> Hájiť záujmy P | D36: 3 | E36: 3 | F36: 3 | G36: 3 | H36: 3 | I36: 3 | J36: 3 | K36: 3 | L36: 3 | M36: 3 | N36: 3 | O36: 3 | P36: 3 | Q36: 3 | R36: 3 | S36: 3 | T36: 3 | U36: 3 | V36: 3 | W36: 3 | X36: 3 | Y36: 3 | Z36: 3 | AA36: 3 | AB36: 3 | AC36: 3 | AD36: 3 | AE36: 0 | AR36: =SUM(D36:AQ36) -> 81 | BR36: =IF(BS7 ="znížený",1,IF(BS7 ="dolný priemer",2,IF(BS7 ="horný priemer",3,IF(BS7 ="nadpriemer",4,"")))) -> 1
A37: Q_4_P | B37: Rec_p | C37: =CONCATENATE($BM$3, " mutual P") -> Hájiť záujmy mutual P | D37: 0 | E37: 0 | F37: 0 | G37: 0 | H37: 1 | I37: 0 | J37: 0 | K37: 0 | L37: 0 | M37: 0 | N37: 0 | O37: 0 | P37: 0 | Q37: 0 | R37: 1 | S37: 0 | T37: 0 | U37: 2 | V37: 0 | W37: 2 | X37: 0 | Y37: 0 | Z37: 3 | AA37: 0 | AB37: 2 | AC37: 1 | AD37: 0 | AE37: 0 | AR37: =SUM(D37:AQ37) -> 12 | BR37: =IF(BS8 ="znížený",1,IF(BS8 ="dolný priemer",2,IF(BS8 ="horný priemer",3,IF(BS8 ="nadpriemer",4,"")))) -> 4
A38: Q_4_N | B38: Sel_n_r | C38: =CONCATENATE($BM$3, " N") -> Hájiť záujmy N | D38: 0 | E38: 20 | F38: 0 | G38: 5 | H38: 1 | I38: 18 | J38: 0 | K38: 3 | L38: 0 | M38: 20 | N38: 1 | O38: 2 | P38: 1 | Q38: 0 | R38: 0 | S38: 1 | T38: 1 | U38: 1 | V38: 0 | W38: 0 | X38: 0 | Y38: 0 | Z38: 0 | AA38: 4 | AB38: 1 | AC38: 0 | AD38: 2 | AE38: 0 | AR38: =SUM(D38:AQ38) -> 81 | BR38: =IF(BS9 ="znížený",1,IF(BS9 ="dolný priemer",2,IF(BS9 ="horný priemer",3,IF(BS9 ="nadpriemer",4,"")))) -> 1
A39: Q_4_N | B39: Sel_n_g | C39: =CONCATENATE($BM$3, " N") -> Hájiť záujmy N | D39: 3 | E39: 3 | F39: 3 | G39: 3 | H39: 3 | I39: 3 | J39: 3 | K39: 3 | L39: 3 | M39: 3 | N39: 3 | O39: 3 | P39: 3 | Q39: 3 | R39: 3 | S39: 3 | T39: 3 | U39: 3 | V39: 3 | W39: 3 | X39: 3 | Y39: 3 | Z39: 3 | AA39: 3 | AB39: 3 | AC39: 3 | AD39: 3 | AE39: 0 | AR39: =SUM(D39:AQ39) -> 81 | BP39: 4 | BQ39: Populárni POP % suma | BR39: =SUM(BR34:BR38) -> 10
A40: Q_4_N | B40: Rec_n | C40: =CONCATENATE($BM$3, " mutual N") -> Hájiť záujmy mutual N | D40: 0 | E40: 3 | F40: 0 | G40: 2 | H40: 1 | I40: 2 | J40: 0 | K40: 0 | L40: 0 | M40: 3 | N40: 0 | O40: 0 | P40: 0 | Q40: 0 | R40: 0 | S40: 0 | T40: 0 | U40: 1 | V40: 0 | W40: 0 | X40: 0 | Y40: 0 | Z40: 0 | AA40: 1 | AB40: 1 | AC40: 0 | AD40: 0 | AE40: 0 | AR40: 14 | BQ40: Nespokojnosť IN | BR40: =IF(BN5 ="znížený",1,IF(BN5 ="dolný priemer",2,IF(BN5 ="horný priemer",3,IF(BN5 ="nadpriemer",4,"")))) -> 4
A41: Q_4 | B41: IZO p | C41: =CONCATENATE($BM$3, " izolovaní P") -> Hájiť záujmy izolovaní P | D41: =IF(D35<>"",IF(D36>0,IF(D35 = 0,IF(D36 = 0,1,""),""),""),"") ->  | E41: =IF(E35<>"",IF(E36>0,IF(E35 = 0,IF(E36 = 0,1,""),""),""),"") ->  | AR41: 0 | BR41: =IF(BN6 ="znížený",1,IF(BN6 ="dolný priemer",2,IF(BN6 ="horný priemer",3,IF(BN6 ="nadpriemer",4,"")))) -> 4
A42: Q_4 | B42: OPO p | C42: =CONCATENATE($BM$3, " opomenutí P") -> Hájiť záujmy opomenutí P | D42: =IF(D36>0,IF(D35<>"",IF(D35 = 0,IF(D36 > 0,1,""),""),""),"") -> 1 | E42: =IF(E36>0,IF(E35<>"",IF(E35 = 0,IF(E36 > 0,1,""),""),""),"") -> 1 | F42: 1 | G42: 1 | I42: 1 | M42: 1 | N42: 1 | O42: 1 | P42: 1 | Q42: 1 | S42: 1 | T42: 1 | V42: 1 | X42: 1 | Y42: 1 | AA42: 1 | AD42: 1 | AR42: 17 | BR42: =IF(BN7 ="znížený",1,IF(BN7 ="dolný priemer",2,IF(BN7 ="horný priemer",3,IF(BN7 ="nadpriemer",4,"")))) -> 4
A43: Q_4 | B43: IZO n | C43: =CONCATENATE($BM$3, " izolovaní N") -> Hájiť záujmy izolovaní N | D43: =IF(D39>0,IF(D38<>"",IF(D38 = 0,IF(D39 = 0,1,""),""),""),"") ->  | E43: =IF(E39>0,IF(E38<>"",IF(E38 = 0,IF(E39 = 0,1,""),""),""),"") ->  | AR43: 0 | BR43: =IF(BN8 ="znížený",1,IF(BN8 ="dolný priemer",2,IF(BN8 ="horný priemer",3,IF(BN8 ="nadpriemer",4,"")))) -> 3
A44: Q_4 | B44: OPO n | C44: =CONCATENATE($BM$3, " opomenutí N") -> Hájiť záujmy opomenutí N | D44: =IF(D39>0,IF(D38<>"",IF(D38 = 0,IF(D39 > 0,1,""),""),""),"") -> 1 | E44: =IF(E39>0,IF(E38<>"",IF(E38 = 0,IF(E39 > 0,1,""),""),""),"") ->  | F44: 1 | J44: 1 | L44: 1 | Q44: 1 | R44: 1 | V44: 1 | W44: 1 | X44: 1 | Y44: 1 | Z44: 1 | AC44: 1 | AR44: 12 | BR44: =IF(BN9 ="znížený",1,IF(BN9 ="dolný priemer",2,IF(BN9 ="horný priemer",3,IF(BN9 ="nadpriemer",4,"")))) -> 4
A45: Q_5_P | B45: Sel_p_r | C45: =CONCATENATE($BN$3, " P") -> Tajomstvo P | D45: 2 | E45: 0 | F45: 1 | G45: 1 | H45: 2 | I45: 1 | J45: 5 | K45: 3 | L45: 3 | M45: 1 | N45: 4 | O45: 2 | P45: 2 | Q45: 3 | R45: 0 | S45: 0 | T45: 0 | U45: 5 | V45: 4 | W45: 2 | X45: 3 | Y45: 3 | Z45: 11 | AA45: 2 | AB45: 6 | AC45: 2 | AD45: 6 | AE45: 5 | AR45: 79 | BP45: 5 | BQ45: Nespokojnosť IN suma | BR45: =SUM(BR40:BR44) -> 19
A46: Q_5_P | B46: Sel_p_g | C46: =CONCATENATE($BN$3, " P") -> Tajomstvo P | D46: 3 | E46: 3 | F46: 3 | G46: 3 | H46: 3 | I46: 1 | J46: 3 | K46: 3 | L46: 3 | M46: 3 | N46: 3 | O46: 3 | P46: 3 | Q46: 3 | R46: 3 | S46: 3 | T46: 3 | U46: 3 | V46: 3 | W46: 3 | X46: 3 | Y46: 3 | Z46: 3 | AA46: 3 | AB46: 3 | AC46: 3 | AD46: 3 | AE46: 0 | AR46: 79 | BQ46: Disociácia ID | BR46: =IF(BP5 ="znížený",1,IF(BP5 ="dolný priemer",2,IF(BP5 ="horný priemer",3,IF(BP5 ="nadpriemer",4,"")))) -> 3
A47: Q_5_P | B47: Rec_p | C47: =CONCATENATE($BN$3, " mutual P") -> Tajomstvo mutual P | D47: 1 | E47: 0 | F47: 1 | G47: 0 | H47: 2 | I47: 0 | J47: 1 | K47: 0 | L47: 1 | M47: 1 | N47: 1 | O47: 2 | P47: 2 | Q47: 2 | R47: 0 | S47: 0 | T47: 0 | U47: 3 | V47: 2 | W47: 1 | X47: 1 | Y47: 0 | Z47: 3 | AA47: 2 | AB47: 2 | AC47: 1 | AD47: 3 | AE47: 0 | AR47: 32 | BR47: =IF(BP6 ="znížený",1,IF(BP6 ="dolný priemer",2,IF(BP6 ="horný priemer",3,IF(BP6 ="nadpriemer",4,"")))) -> 3
A48: Q_5_N | B48: Sel_n_r | C48: =CONCATENATE($BN$3, " N") -> Tajomstvo N | D48: 1 | E48: 8 | F48: 2 | G48: 7 | H48: 7 | I48: 13 | J48: 2 | K48: 0 | L48: 0 | M48: 15 | N48: 0 | O48: 2 | P48: 0 | Q48: 0 | R48: 1 | S48: 2 | T48: 1 | U48: 0 | V48: 2 | W48: 2 | X48: 1 | Y48: 3 | Z48: 3 | AA48: 2 | AB48: 3 | AC48: 0 | AD48: 4 | AE48: 0 | AR48: 81 | BR48: =IF(BP7 ="znížený",1,IF(BP7 ="dolný priemer",2,IF(BP7 ="horný priemer",3,IF(BP7 ="nadpriemer",4,"")))) -> 4
A49: Q_5_N | B49: Sel_n_g | C49: =CONCATENATE($BN$3, " N") -> Tajomstvo N | D49: 3 | E49: 3 | F49: 3 | G49: 3 | H49: 3 | I49: 3 | J49: 3 | K49: 3 | L49: 3 | M49: 3 | N49: 3 | O49: 3 | P49: 3 | Q49: 3 | R49: 3 | S49: 3 | T49: 3 | U49: 3 | V49: 3 | W49: 3 | X49: 3 | Y49: 3 | Z49: 3 | AA49: 3 | AB49: 3 | AC49: 3 | AD49: 3 | AE49: 0 | AR49: 81 | BR49: =IF(BP8 ="znížený",1,IF(BP8 ="dolný priemer",2,IF(BP8 ="horný priemer",3,IF(BP8 ="nadpriemer",4,"")))) -> 4
A50: Q_5_N | B50: Rec_n | C50: =CONCATENATE($BN$3, " mutual N") -> Tajomstvo mutual N | D50: 0 | E50: 0 | F50: 1 | G50: 1 | H50: 0 | I50: 2 | J50: 1 | K50: 0 | L50: 0 | M50: 3 | N50: 0 | O50: 0 | P50: 0 | Q50: 0 | R50: 0 | S50: 0 | T50: 0 | U50: 0 | V50: 0 | W50: 1 | X50: 0 | Y50: 0 | Z50: 2 | AA50: 0 | AB50: 2 | AC50: 0 | AD50: 1 | AE50: 0 | AR50: 14 | BR50: =IF(BP9 ="znížený",1,IF(BP9 ="dolný priemer",2,IF(BP9 ="horný priemer",3,IF(BP9 ="nadpriemer",4,"")))) -> 3
A51: Q_5 | B51: IZO p | C51: =CONCATENATE($BN$3, " izolovaní P") -> Tajomstvo izolovaní P | D51: =IF(D45<>"",IF(D46>0,IF(D45 = 0,IF(D46 = 0,1,""),""),""),"") ->  | E51: =IF(E45<>"",IF(E46>0,IF(E45 = 0,IF(E46 = 0,1,""),""),""),"") ->  | AR51: 0 | BP51: 6 | BQ51: Disociácia ID suma | BR51: =SUM(BR46:BR50) -> 17
A52: Q_5 | B52: OPO p | C52: =CONCATENATE($BN$3, " opomenutí P") -> Tajomstvo opomenutí P | D52: =IF(D46>0,IF(D45<>"",IF(D45 = 0,IF(D46 > 0,1,""),""),""),"") ->  | E52: =IF(E46>0,IF(E45<>"",IF(E45 = 0,IF(E46 > 0,1,""),""),""),"") -> 1 | R52: 1 | S52: 1 | T52: 1 | AR52: 4 | BQ52: Izolácia IZ | BR52: =IF(BR5 ="znížený",1,IF(BR5 ="dolný priemer",2,IF(BR5 ="horný priemer",3,IF(BR5 ="nadpriemer",4,"")))) -> 4
A53: Q_5 | B53: IZO n | C53: =CONCATENATE($BN$3, " izolovaní N") -> Tajomstvo izolovaní N | D53: =IF(D49>0,IF(D48<>"",IF(D48 = 0,IF(D49 = 0,1,""),""),""),"") ->  | E53: =IF(E49>0,IF(E48<>"",IF(E48 = 0,IF(E49 = 0,1,""),""),""),"") ->  | AR53: 0 | BR53: =IF(BR6 ="znížený",1,IF(BR6 ="dolný priemer",2,IF(BR6 ="horný priemer",3,IF(BR6 ="nadpriemer",4,"")))) -> 4
A54: Q_5 | B54: OPO n | C54: =CONCATENATE($BM$3, " opomenutí N") -> Hájiť záujmy opomenutí N | D54: =IF(D49>0,IF(D48<>"",IF(D48 = 0,IF(D49 > 0,1,""),""),""),"") ->  | E54: =IF(E49>0,IF(E48<>"",IF(E48 = 0,IF(E49 > 0,1,""),""),""),"") ->  | K54: 1 | L54: 1 | N54: 1 | P54: 1 | Q54: 1 | U54: 1 | AC54: 1 | AR54: 7 | BR54: =IF(BR7 ="znížený",1,IF(BR7 ="dolný priemer",2,IF(BR7 ="horný priemer",3,IF(BR7 ="nadpriemer",4,"")))) -> 3
BR55: =IF(BR8 ="znížený",1,IF(BR8 ="dolný priemer",2,IF(BR8 ="horný priemer",3,IF(BR8 ="nadpriemer",4,"")))) -> 4
C56: Suma P 1 až 5 | D56: =IF(D4<>"",D5+D15+D25+D35+D45,"") -> 6 | E56: =IF(E4<>"",E5+E15+E25+E35+E45,"") -> 0 | F56: 7 | G56: 3 | H56: 13 | I56: 3 | J56: 21 | K56: 16 | L56: 31 | M56: 6 | N56: 12 | O56: 9 | P56: 4 | Q56: 8 | R56: 11 | S56: 6 | T56: 1 | U56: 21 | V56: 9 | W56: 11 | X56: 10 | Y56: 12 | Z56: 69 | AA56: 6 | AB56: 33 | AC56: 19 | AD56: 25 | AE56: 31 | AR56: 403 | BR56: =IF(BR9 ="znížený",1,IF(BR9 ="dolný priemer",2,IF(BR9 ="horný priemer",3,IF(BR9 ="nadpriemer",4,"")))) -> 4
C57: Suma N 1 až 5 | D57: =IF(D4<>"",D8+D18+D28+D38+D48,"") -> 3 | E57: =IF(E4<>"",E8+E18+E28+E38+E48,"") -> 65 | F57: 2 | G57: 34 | H57: 15 | I57: 85 | J57: 4 | K57: 6 | L57: 0 | M57: 89 | N57: 2 | O57: 12 | P57: 1 | Q57: 0 | R57: 5 | S57: 8 | T57: 9 | U57: 4 | V57: 3 | W57: 6 | X57: 4 | Y57: 6 | Z57: 8 | AA57: 11 | AB57: 7 | AC57: 0 | AD57: 15 | AE57: 0 | AR57: 404 | BP57: 7 | BQ57: Izolácia IZ suma | BR57: =SUM(BR52:BR56) -> 19
C58: Suma N 1 až 5 obrátená | D58: =IF(D4<>"",D57*(-1),"") -> -3 | E58: -65 | F58: -2 | G58: -34 | H58: -15 | I58: -85 | J58: -4 | K58: -6 | L58: 0 | M58: -89 | N58: -2 | O58: -12 | P58: -1 | Q58: 0 | R58: -5 | S58: -8 | T58: -9 | U58: -4 | V58: -3 | W58: -6 | X58: -4 | Y58: -6 | Z58: -8 | AA58: -11 | AB58: =IF(AB4<>"",AB57*(-1),"") -> -7 | AC58: 0 | AD58: -15 | AE58: 0 | BQ58: Odmietaní REJ % | BR58: =IF(BT5 ="znížený",1,IF(BT5 ="dolný priemer",2,IF(BT5 ="horný priemer",3,IF(BT5 ="nadpriemer",4,"")))) -> 1
C59: Suma P1 až P5 mutual | D59: =IF(D4<>"",D7+D17+D27+D37+D47,"") -> 5 | E59: =IF(E4<>"",E7+E17+E27+E37+E47,"") -> 0 | F59: 5 | G59: 1 | H59: 7 | I59: 1 | J59: 7 | K59: 1 | L59: 5 | M59: 5 | N59: 3 | O59: 2 | P59: 4 | Q59: 3 | R59: 2 | S59: 2 | T59: 0 | U59: 14 | V59: 4 | W59: 5 | X59: 3 | Y59: 2 | Z59: 13 | AA59: 5 | AB59: 10 | AC59: 5 | AD59: 8 | AE59: 0 | AR59: 122 | BR59: =IF(BT6 ="znížený",1,IF(BT6 ="dolný priemer",2,IF(BT6 ="horný priemer",3,IF(BT6 ="nadpriemer",4,"")))) -> 2
C60: Suma N1 až N5 Mutual | D60: =IF(D4<>"",D10+D20+D30+D40+D50,"") -> 2 | E60: =IF(E4<>"",E10+E20+E30+E40+E50,"") -> 7 | F60: 1 | G60: 6 | H60: 2 | I60: 12 | J60: 1 | K60: 0 | L60: 0 | M60: 14 | N60: 1 | O60: 2 | P60: 0 | Q60: 0 | R60: 1 | S60: 2 | T60: 4 | U60: 3 | V60: 0 | W60: 2 | X60: 0 | Y60: 1 | Z60: 2 | AA60: 1 | AB60: 4 | AC60: 0 | AD60: 2 | AE60: 0 | AR60: 70 | BR60: =IF(BT7 ="znížený",1,IF(BT7 ="dolný priemer",2,IF(BT7 ="horný priemer",3,IF(BT7 ="nadpriemer",4,"")))) -> 1
C61: Suma N1 až N5 Mutual obrátená | D61: =IF(D4<>"",IF(D60<>"",D60*(-1),""),"") -> -2 | E61: -7 | F61: -1 | G61: -6 | H61: -2 | I61: -12 | J61: -1 | K61: 0 | L61: 0 | M61: -14 | N61: -1 | O61: -2 | P61: 0 | Q61: 0 | R61: -1 | S61: -2 | T61: -4 | U61: -3 | V61: 0 | W61: -2 | X61: 0 | Y61: -1 | Z61: -2 | AA61: -1 | AB61: -4 | AC61: 0 | AD61: -2 | AE61: 0 | AH61: =IF(AH4<>"",IF(AH60<>"",AH60*(-1),""),"") ->  | AI61: =IF(AI4<>"",IF(AI60<>"",AI60*(-1),""),"") ->  | BR61: =IF(BT8 ="znížený",1,IF(BT8 ="dolný priemer",2,IF(BT8 ="horný priemer",3,IF(BT8 ="nadpriemer",4,"")))) -> 1
BR62: =IF(BT9 ="znížený",1,IF(BT9 ="dolný priemer",2,IF(BT9 ="horný priemer",3,IF(BT9 ="nadpriemer",4,"")))) -> 2
D63: 1 | E63: 2 | F63: 3 | G63: 4 | H63: 5 | I63: 6 | J63: 7 | K63: 8 | L63: 9 | M63: 10 | N63: 11 | O63: 12 | P63: 13 | Q63: 14 | R63: 15 | S63: 16 | T63: 17 | U63: 18 | V63: 19 | W63: 20 | X63: 21 | Y63: 22 | Z63: 23 | AA63: 24 | AB63: 25 | AC63: 26 | AD63: 27 | AE63: 28 | AF63: 29 | AG63: 30 | AH63: 31 | AI63: 32 | AJ63: 33 | AK63: 34 | AL63: 35 | AM63: 36 | AN63: 37 | AO63: 38 | AP63: 39 | AQ63: 40 | BP63: 8 | BQ63: Odmietaní REJ % suma | BR63: =SUM(BR58:BR62) -> 7
C64: Pre grafy | BQ64: Kontroverzní CON % | BR64: =IF(BU5 ="znížený",1,IF(BU5 ="dolný priemer",2,IF(BU5 ="horný priemer",3,IF(BU5 ="nadpriemer",4,"")))) -> 2
B65: Q_1 | C65: =CONCATENATE($BJ$3, " Suma N obrátená") -> Sedieť Suma N obrátená | D65: =IF(D8<>"",D8*(-1),"") -> 0 | E65: =IF(E8<>"",E8*(-1),"") -> -12 | F65: 0 | G65: -6 | H65: -2 | I65: -19 | J65: 0 | K65: -1 | L65: 0 | M65: -20 | N65: 0 | O65: -3 | P65: 0 | Q65: 0 | R65: -1 | S65: -2 | T65: -2 | U65: -1 | V65: 0 | W65: -1 | X65: -2 | Y65: -2 | Z65: -2 | AA65: -2 | AB65: =IF(AB8<>"",AB8*(-1),"") -> -1 | AC65: 0 | AD65: -1 | AE65: 0 | BR65: =IF(BU6 ="znížený",1,IF(BU6 ="dolný priemer",2,IF(BU6 ="horný priemer",3,IF(BU6 ="nadpriemer",4,"")))) -> 3
B66: Q_2 | C66: =CONCATENATE($BK$3, " Suma N obrátená") -> Učiť sa Suma N obrátená | D66: =IF(D18<>"",D18*(-1),"") -> -1 | E66: =IF(E18<>"",E18*(-1),"") -> -13 | F66: 0 | G66: -10 | H66: -3 | I66: -20 | J66: 0 | K66: -1 | L66: 0 | M66: -18 | N66: 0 | O66: -4 | P66: 0 | Q66: 0 | R66: -1 | S66: -1 | T66: -3 | U66: 0 | V66: 0 | W66: -1 | X66: 0 | Y66: 0 | Z66: -2 | AA66: -1 | AB66: =IF(AB18<>"",AB18*(-1),"") -> 0 | AC66: 0 | AD66: -2 | AE66: 0 | BR66: =IF(BU7 ="znížený",1,IF(BU7 ="dolný priemer",2,IF(BU7 ="horný priemer",3,IF(BU7 ="nadpriemer",4,"")))) -> 3
B67: Q_3 | C67: =CONCATENATE($BL$3, " Suma N obrátená") -> Pustý ostrov Suma N obrátená | D67: =IF(D28<>"",D28*(-1),"") -> -1 | E67: =IF(E28<>"",E28*(-1),"") -> -12 | F67: 0 | G67: -6 | H67: -2 | I67: -15 | J67: -2 | K67: -1 | L67: 0 | M67: -16 | N67: -1 | O67: -1 | P67: 0 | Q67: 0 | R67: -2 | S67: -2 | T67: -2 | U67: -2 | V67: -1 | W67: -2 | X67: -1 | Y67: -1 | Z67: -1 | AA67: -2 | AB67: =IF(AB28<>"",AB28*(-1),"") -> -2 | AC67: 0 | AD67: -6 | AE67: 0 | BR67: =IF(BU8 ="znížený",1,IF(BU8 ="dolný priemer",2,IF(BU8 ="horný priemer",3,IF(BU8 ="nadpriemer",4,"")))) -> 3
B68: Q_4 | C68: =CONCATENATE($BM$3, " Suma N obrátená") -> Hájiť záujmy Suma N obrátená | D68: =IF(D38<>"",D38*(-1),"") -> 0 | E68: =IF(E38<>"",E38*(-1),"") -> -20 | F68: 0 | G68: -5 | H68: -1 | I68: -18 | J68: 0 | K68: -3 | L68: 0 | M68: -20 | N68: -1 | O68: -2 | P68: -1 | Q68: 0 | R68: 0 | S68: -1 | T68: -1 | U68: -1 | V68: 0 | W68: 0 | X68: 0 | Y68: 0 | Z68: 0 | AA68: -4 | AB68: =IF(AB38<>"",AB38*(-1),"") -> -1 | AC68: 0 | AD68: -2 | AE68: 0 | BR68: =IF(BU9 ="znížený",1,IF(BU9 ="dolný priemer",2,IF(BU9 ="horný priemer",3,IF(BU9 ="nadpriemer",4,"")))) -> 4
B69: Q_5 | C69: =CONCATENATE($BN$3, " Suma N obrátená") -> Tajomstvo Suma N obrátená | D69: =IF(D48<>"",D48*(-1),"") -> -1 | E69: =IF(E48<>"",E48*(-1),"") -> -8 | F69: -2 | G69: -7 | H69: -7 | I69: -13 | J69: -2 | K69: 0 | L69: 0 | M69: -15 | N69: 0 | O69: -2 | P69: 0 | Q69: 0 | R69: -1 | S69: -2 | T69: -1 | U69: 0 | V69: -2 | W69: -2 | X69: -1 | Y69: -3 | Z69: -3 | AA69: -2 | AB69: =IF(AB48<>"",AB48*(-1),"") -> -3 | AC69: 0 | AD69: -4 | AE69: 0 | BP69: 9 | BQ69: Kontroverzní CON %suma | BR69: =SUM(BR64:BR68) -> 15
BQ70: Opomíjaní OPO % | BR70: =IF(BW5 ="znížený",1,IF(BW5 ="dolný priemer",2,IF(BW5 ="horný priemer",3,IF(BW5 ="nadpriemer",4,"")))) -> 4
B71: Q_1 | C71: =CONCATENATE($BJ$3, " Suma N mutual obrátená") -> Sedieť Suma N mutual obrátená | D71: =IF(D10<>"",D10*(-1),"") -> 0 | E71: =IF(E10<>"",E10*(-1),"") -> 0 | F71: 0 | G71: -1 | H71: -1 | I71: -3 | J71: 0 | K71: 0 | L71: 0 | M71: -3 | N71: 0 | O71: -1 | P71: 0 | Q71: 0 | R71: 0 | S71: -1 | T71: -1 | U71: -1 | V71: 0 | W71: -1 | X71: 0 | Y71: -1 | Z71: 0 | AA71: 0 | AB71: 0 | AC71: 0 | AD71: 0 | AE71: 0 | BR71: =IF(BW6 ="znížený",1,IF(BW6 ="dolný priemer",2,IF(BW6 ="horný priemer",3,IF(BW6 ="nadpriemer",4,"")))) -> 4
B72: Q_2 | C72: =CONCATENATE($BK$3, " Suma N mutual obrátená") -> Učiť sa Suma N mutual obrátená | D72: =IF(D20<>"",D20*(-1),"") -> -1 | E72: =IF(E20<>"",E20*(-1),"") -> -3 | F72: 0 | G72: -2 | H72: 0 | I72: -2 | J72: 0 | K72: 0 | L72: 0 | M72: -2 | N72: 0 | O72: -1 | P72: 0 | Q72: 0 | R72: 0 | S72: 0 | T72: -1 | U72: 0 | V72: 0 | W72: 0 | X72: 0 | Y72: 0 | Z72: 0 | AA72: 0 | AB72: 0 | AC72: 0 | AD72: 0 | AE72: 0 | BR72: =IF(BW7 ="znížený",1,IF(BW7 ="dolný priemer",2,IF(BW7 ="horný priemer",3,IF(BW7 ="nadpriemer",4,"")))) -> 3
B73: Q_3 | C73: =CONCATENATE($BL$3, " Suma N mutual obrátená") -> Pustý ostrov Suma N mutual obrátená | D73: =IF(D30<>"",D30*(-1),"") -> -1 | E73: =IF(E30<>"",E30*(-1),"") -> -1 | F73: 0 | G73: 0 | H73: 0 | I73: -3 | J73: 0 | K73: 0 | L73: 0 | M73: -3 | N73: -1 | O73: 0 | P73: 0 | Q73: 0 | R73: -1 | S73: -1 | T73: -2 | U73: -1 | V73: 0 | W73: 0 | X73: 0 | Y73: 0 | Z73: 0 | AA73: 0 | AB73: -1 | AC73: 0 | AD73: -1 | AE73: 0 | BR73: =IF(BW8 ="znížený",1,IF(BW8 ="dolný priemer",2,IF(BW8 ="horný priemer",3,IF(BW8 ="nadpriemer",4,"")))) -> 4
B74: Q_4 | C74: =CONCATENATE($BM$3, " Suma N mutual obrátená") -> Hájiť záujmy Suma N mutual obrátená | D74: =IF(D40<>"",D40*(-1),"") -> 0 | E74: =IF(E40<>"",E40*(-1),"") -> -3 | F74: 0 | G74: -2 | H74: -1 | I74: -2 | J74: 0 | K74: 0 | L74: 0 | M74: -3 | N74: 0 | O74: 0 | P74: 0 | Q74: 0 | R74: 0 | S74: 0 | T74: 0 | U74: -1 | V74: 0 | W74: 0 | X74: 0 | Y74: 0 | Z74: 0 | AA74: -1 | AB74: -1 | AC74: 0 | AD74: 0 | AE74: 0 | BR74: =IF(BW9 ="znížený",1,IF(BW9 ="dolný priemer",2,IF(BW9 ="horný priemer",3,IF(BW9 ="nadpriemer",4,"")))) -> 4
B75: Q_5 | C75: =CONCATENATE($BN$3, " Suma N mutual obrátená") -> Tajomstvo Suma N mutual obrátená | D75: =IF(D50<>"",D50*(-1),"") -> 0 | E75: =IF(E50<>"",E50*(-1),"") -> 0 | F75: -1 | G75: -1 | H75: 0 | I75: -2 | J75: -1 | K75: 0 | L75: 0 | M75: -3 | N75: 0 | O75: 0 | P75: 0 | Q75: 0 | R75: 0 | S75: 0 | T75: 0 | U75: 0 | V75: 0 | W75: -1 | X75: 0 | Y75: 0 | Z75: -2 | AA75: 0 | AB75: -2 | AC75: 0 | AD75: -1 | AE75: 0 | BQ75: Opomíjaní OPO %suma | BR75: =SUM(BR70:BR74) -> 19
A102: 1 - 1, 2
A126: 2 - 3,4
A151: 3 - 5,6
A175: 4 - 7,8
A200: 5 - 17,18
C224: Grafy porovnanie otázok

Sheet Individualne
A1: 1 | B1: 2 | C1: 3 | D1: 4 | E1: 5 | F1: 6 | G1: 7 | H1: 8 | I1: 9 | J1: 10 | K1: 11 | L1: 12 | M1: 13 | N1: 14 | O1: 15 | P1: 16 | Q1: 17 | R1: 18 | S1: 19 | T1: 20 | U1: 21 | V1: 22 | W1: 23 | X1: 24 | Y1: 25 | Z1: 26 | AA1: 27 | AB1: 28 | AC1: 29 | AD1: 30 | AE1: 31 | AF1: 32 | AG1: 33 | AH1: 34 | AI1: 35 | AJ1: 36 | AK1: 37 | AL1: 38 | AM1: 39 | AN1: 40 | AO1: 41 | AP1: 42 | AQ1: 43 | AR1: 44 | AS1: 45 | AT1: 46 | AU1: 47 | AV1: 48 | AW1: 49 | AX1: 50 | AY1: 51 | AZ1: 52 | BA1: 53 | BB1: 54 | BC1: 55 | BD1: 56 | BE1: 57 | BF1: 58 | BG1: 59 | BH1: 60 | BI1: 61 | BJ1: 62 | BK1: 63 | BL1: 64 | BM1: 65 | BN1: 66 | BO1: 67 | BP1: 68 | BQ1: 69 | BR1: 70 | BS1: 71 | BT1: 72 | BU1: 73 | BV1: 74 | BW1: 75 | BX1: 76 | BY1: 77 | BZ1: 78 | CA1: 79 | CB1: 80 | CC1: 81 | CD1: 82 | CE1: 83 | CF1: 84 | CG1: 85 | CH1: 86 | CI1: 87 | CJ1: 88 | CK1: 89 | CL1: 90 | CM1: 91 | CN1: 92 | CO1: 93 | CP1: 94 | CQ1: 95
A2: Počet volieb | B2: 3 | D2: 1 | E2: 2 | F2: 3 | G2: 4 | H2: 5 | I2: 6 | J2: 7 | K2: 8 | L2: 9 | M2: 10 | N2: 11 | O2: 12 | P2: 13 | Q2: 14 | R2: 15 | S2: 16 | T2: 17 | U2: 18 | V2: 19 | W2: 20 | X2: 21 | Y2: 22 | Z2: 23 | AA2: 24 | AB2: 25 | AC2: 26 | AD2: 27 | AE2: 28 | AF2: 29 | AG2: 30 | AH2: 31 | AI2: 32 | AJ2: 33 | AK2: 34 | AL2: 35 | AM2: 36 | AN2: 37 | AO2: 38 | AP2: 39 | AQ2: 40
A3: Počet osôb | B3: 28 | D3: =MID(D4,2,8) -> 01_Oso m | E3: =MID(E4,2,8) -> 02_Oso m | F3: 03_Oso m | G3: 04_Oso m | H3: 05_Oso m | I3: *06_Oso | J3: 07_Oso m | K3: 08_Oso m | L3: 09_Oso f | M3: **10_Oso | N3: 11_Oso m | O3: 12_Oso m | P3: 13_Oso m | Q3: 14_Oso m | R3: 15_Oso f | S3: 16_Oso f | T3: 17_Oso f | U3: 18_Oso f | V3: 19_Oso f | W3: 20_Oso f | X3: 21_Oso f | Y3: 22_Oso f | Z3: 23_Oso f | AA3: 24_Oso f | AB3: 25_Oso f | AC3: 26_Oso f | AD3: 27_Oso f | AE3: 28_Oso f
D4: "01_Oso m" | E4: "02_Oso m" | F4: "03_Oso m" | G4: "04_Oso m" | H4: "05_Oso m" | I4: "*06_Oso m" | J4: "07_Oso m" | K4: "08_Oso m" | L4: "09_Oso f" | M4: "**10_Oso m" | N4: "11_Oso m" | O4: "12_Oso m" | P4: "13_Oso m" | Q4: "14_Oso m" | R4: "15_Oso f" | S4: "16_Oso f" | T4: "17_Oso f" | U4: "18_Oso f" | V4: "19_Oso f" | W4: "20_Oso f" | X4: "21_Oso f" | Y4: "22_Oso f" | Z4: "23_Oso f" | AA4: "24_Oso f" | AB4: "25_Oso f" | AC4: "26_Oso f" | AD4: "27_Oso f" | AE4: "28_Oso f" | AS4: AM | AT4: SD | AU4: MAX | AW4: 1 | AX4: 2 | AY4: 3 | AZ4: 4 | BA4: 5 | BB4: 6 | BC4: 7 | BD4: 8 | BE4: 9 | BF4: 10 | BG4: 11 | BH4: 12 | BI4: 13 | BJ4: 14 | BK4: 15 | BL4: 16 | BM4: 17 | BN4: 18 | BO4: 19 | BP4: 20 | BQ4: 21 | BR4: 22 | BS4: 23 | BT4: 24 | BU4: 25 | BV4: 26 | BW4: 27 | BX4: 28 | BY4: 29 | BZ4: 30 | CA4: 31 | CB4: 32 | CC4: 33 | CD4: 34 | CE4: 35 | CF4: 36 | CG4: 37 | CH4: 38 | CI4: 39 | CJ4: 40
A5: Q_1_P | B5: Sel_p_r | C5: =CONCATENATE($BJ$3, " P") -> P | D5: 2 | E5: 0 | F5: 1 | G5: 1 | H5: 4 | I5: 0 | J5: 4 | K5: 4 | L5: 6 | M5: 2 | N5: 3 | O5: 3 | P5: 1 | Q5: 2 | R5: 0 | S5: 2 | T5: 0 | U5: 4 | V5: 1 | W5: 2 | X5: 2 | Y5: 5 | Z5: 10 | AA5: 3 | AB5: 3 | AC5: 2 | AD5: 8 | AE5: 6 | AR5: =SUM(D5:AQ5) -> 81 | AS5: =IF(AR5>0,AVERAGE(D5:AQ5),"") -> 2.892857143 | AT5: =IF(AR5>0,STDEV(D5:AQ5),"") -> 2.424249188 | AU5: =MAX(D5:AQ5) -> 10
A6: Q_1_P | B6: Sel_p_g | C6: =CONCATENATE($BJ$3, " P") -> P | D6: 3 | E6: 3 | F6: 3 | G6: 3 | H6: 3 | I6: 3 | J6: 3 | K6: 3 | L6: 3 | M6: 3 | N6: 3 | O6: 3 | P6: 3 | Q6: 3 | R6: 3 | S6: 3 | T6: 3 | U6: 3 | V6: 3 | W6: 3 | X6: 3 | Y6: 3 | Z6: 3 | AA6: 3 | AB6: 3 | AC6: 3 | AD6: 3 | AE6: 0 | AR6: =SUM(D6:AQ6) -> 81 | AS6: =IF(AR5>0,AVERAGE(D6:AQ6),"") -> 2.892857143 | AT6: =IF(AR5>0,STDEV(D6:AQ6),"") -> 0.5669467095
A7: Q_1_P | B7: Rec_p | C7: =CONCATENATE($BJ$3, " mutual P") -> mutual P | D7: 2 | E7: 0 | F7: 1 | G7: 0 | H7: 2 | I7: 0 | J7: 2 | K7: 0 | L7: 2 | M7: 1 | N7: 0 | O7: 0 | P7: 1 | Q7: 1 | R7: 0 | S7: 1 | T7: 0 | U7: 3 | V7: 0 | W7: 1 | X7: 1 | Y7: 1 | Z7: 2 | AA7: 2 | AB7: 2 | AC7: 1 | AD7: 2 | AE7: 0 | AR7: 28 | AS7: =IF(AR5>0,AVERAGE(D7:AQ7),"") -> 1 | AT7: =IF(AR5>0,STDEV(D7:AQ7),"") -> 0.9026709338
A8: Q_1_N | B8: Sel_n_r | C8: =CONCATENATE($BJ$3, " N") -> N | D8: 0 | E8: 12 | F8: 0 | G8: 6 | H8: 2 | I8: 19 | J8: 0 | K8: 1 | L8: 0 | M8: 20 | N8: 0 | O8: 3 | P8: 0 | Q8: 0 | R8: 1 | S8: 2 | T8: 2 | U8: 1 | V8: 0 | W8: 1 | X8: 2 | Y8: 2 | Z8: 2 | AA8: 2 | AB8: 1 | AC8: 0 | AD8: 1 | AE8: 0 | AR8: 80 | AS8: =IF(AR5>0,AVERAGE(D8:AQ8),"") -> 2.857142857 | AT8: =IF(AR5>0,STDEV(D8:AQ8),"") -> 5.289502432 | AU8: =MAX(D8:AQ8) -> 20
A9: Q_1_N | B9: Sel_n_g | C9: =CONCATENATE($BJ$3, " N") -> N | D9: 3 | E9: 3 | F9: 3 | G9: 3 | H9: 3 | I9: 3 | J9: 3 | K9: 3 | L9: 3 | M9: 3 | N9: 3 | O9: 3 | P9: 2 | Q9: 3 | R9: 3 | S9: 3 | T9: 3 | U9: 3 | V9: 3 | W9: 3 | X9: 3 | Y9: 3 | Z9: 3 | AA9: 3 | AB9: 3 | AC9: 3 | AD9: 3 | AE9: 0 | AR9: 80 | AS9: =IF(AR5>0,AVERAGE(D9:AQ9),"") -> 2.857142857 | AT9: =IF(AR5>0,STDEV(D9:AQ9),"") -> 0.5909368403
A10: Q_1_N | B10: Rec_n | C10: =CONCATENATE($BJ$3, " mutual N") -> mutual N | D10: 0 | E10: 0 | F10: 0 | G10: 1 | H10: 1 | I10: 3 | J10: 0 | K10: 0 | L10: 0 | M10: 3 | N10: 0 | O10: 1 | P10: 0 | Q10: 0 | R10: 0 | S10: 1 | T10: 1 | U10: 1 | V10: 0 | W10: 1 | X10: 0 | Y10: 1 | Z10: 0 | AA10: 0 | AB10: 0 | AC10: 0 | AD10: 0 | AE10: 0 | AR10: 14 | AS10: =IF(AR5>0,AVERAGE(D10:AQ10),"") -> 0.5 | AT10: =IF(AR5>0,STDEV(D10:AQ10),"") -> 0.8388704928
A11: Q_1 | B11: IZO p | C11: =CONCATENATE($BJ$3, " izolovaní P") -> izolovaní P | D11: =IF(D5<>"",IF(D5 = 0,IF(D6 = 0,1," ")," ")," ") ->  | E11: =IF(E5<>"",IF(E5 = 0,IF(E6 = 0,1," ")," ")," ") ->  | AC11: =IF(AC5<>"",IF(AC5 = 0,IF(AC6 = 0,1," ")," ")," ") ->  | AD11: =IF(AD5<>"",IF(AD5 = 0,IF(AD6 = 0,1," ")," ")," ") ->  | AE11: =IF(AE5<>"",IF(AE5 = 0,IF(AE6 = 0,1," ")," ")," ") ->  | AF11: =IF(AF5<>"",IF(AF5 = 0,IF(AF6 = 0,1," ")," ")," ") ->  | AG11: =IF(AG5<>"",IF(AG5 = 0,IF(AG6 = 0,1," ")," ")," ") ->  | AH11: =IF(AH5<>"",IF(AH5 = 0,IF(AH6 = 0,1," ")," ")," ") ->  | AR11: 0
A12: Q_1 | B12: OPO p | C12: =CONCATENATE($BJ$3, " opomenutí P") -> opomenutí P | D12: =IF(D5<>"",IF(D5 = 0,IF(D6 > 0,1," ")," ")," ") ->  | E12: =IF(E5<>"",IF(E5 = 0,IF(E6 > 0,1," ")," ")," ") -> 1 | I12: 1 | R12: 1 | T12: 1 | AC12: =IF(AC5<>"",IF(AC5 = 0,IF(AC6 > 0,1," ")," ")," ") ->  | AD12: =IF(AD5<>"",IF(AD5 = 0,IF(AD6 > 0,1," ")," ")," ") ->  | AE12: =IF(AE5<>"",IF(AE5 = 0,IF(AE6 > 0,1," ")," ")," ") ->  | AF12: =IF(AF5<>"",IF(AF5 = 0,IF(AF6 > 0,1," ")," ")," ") ->  | AG12: =IF(AG5<>"",IF(AG5 = 0,IF(AG6 > 0,1," ")," ")," ") ->  | AH12: =IF(AH5<>"",IF(AH5 = 0,IF(AH6 > 0,1," ")," ")," ") ->  | AR12: 4
A13: Q_1 | B13: IZO n | C13: =CONCATENATE($BJ$3, " izolovaní N") -> izolovaní N | D13: =IF(D18<>"",IF(D8<>"",IF(D8 = 0,IF(D9 = 0,1," ")," ")," "),"") ->  | E13: =IF(E18<>"",IF(E8<>"",IF(E8 = 0,IF(E9 = 0,1," ")," ")," "),"") ->  | AE13: 1 | AR13: 1
A14: Q_1 | B14: OPO n | C14: =CONCATENATE($BJ$3, " opomenutí N") -> opomenutí N | D14: =IF(D8<>"",IF(D8 = 0,IF(D9 > 0,1," ")," ")," ") -> 1 | F14: 1 | J14: 1 | L14: 1 | N14: 1 | P14: 1 | Q14: 1 | V14: 1 | AC14: =IF(AC8<>"",IF(AC8 = 0,IF(AC9 > 0,1," ")," ")," ") -> 1 | AD14: =IF(AD8<>"",IF(AD8 = 0,IF(AD9 > 0,1," ")," ")," ") ->  | AE14: =IF(AE8<>"",IF(AE8 = 0,IF(AE9 > 0,1," ")," ")," ") ->  | AF14: =IF(AF8<>"",IF(AF8 = 0,IF(AF9 > 0,1," ")," ")," ") ->  | AG14: =IF(AG8<>"",IF(AG8 = 0,IF(AG9 > 0,1," ")," ")," ") ->  | AH14: =IF(AH8<>"",IF(AH8 = 0,IF(AH9 > 0,1," ")," ")," ") ->  | AR14: 9
A15: Podľa Walsha | B15: Social preference and social Impact
A16: Algoritmus 2 používa Group aj Walsh
A17: Q_1 | B17: zLM | C17: z-skóre P | D17: =IF(D5<>"",(D5-$AS$5)/$AT$5,"") -> -0.3683025438 | E17: -1.193300242 | F17: -0.7808013929 | G17: -0.7808013929 | H17: 0.4566951543 | I17: -1.193300242 | J17: 0.4566951543 | K17: 0.4566951543 | L17: 1.281692852 | M17: -0.3683025438 | N17: 0.04419630526 | O17: 0.04419630526 | P17: -0.7808013929 | Q17: -0.3683025438 | R17: -1.193300242 | S17: -0.3683025438 | T17: -1.193300242 | U17: 0.4566951543 | V17: -0.7808013929 | W17: -0.3683025438 | X17: -0.3683025438 | Y17: 0.8691940034 | Z17: 2.931688249 | AA17: 0.04419630526 | AB17: =IF(AB5<>"",(AB5-$AS$5)/$AT$5,"") -> 0.04419630526 | AC17: -0.3683025438 | AD17: 2.106690551 | AE17: 1.281692852
A18: Q_1 | B18: zLL | C18: z-skóre N | D18: =IF($AT$8<>0,IF(D8<>"",(D8-$AS$8)/$AT$8,""),"") -> -0.5401534254 | E18: =IF($AT$8<>0,IF(E8<>"",(E8-$AS$8)/$AT$8,""),"") -> 1.728490961 | F18: -0.5401534254 | G18: 0.5941687679 | H18: -0.1620460276 | I18: 3.051866853 | J18: -0.5401534254 | K18: -0.3510997265 | L18: -0.5401534254 | M18: 3.240920552 | N18: -0.5401534254 | O18: 0.02700767127 | P18: -0.5401534254 | Q18: -0.5401534254 | R18: -0.3510997265 | S18: -0.1620460276 | T18: -0.1620460276 | U18: -0.3510997265 | V18: -0.5401534254 | W18: -0.3510997265 | X18: -0.1620460276 | Y18: -0.1620460276 | Z18: -0.1620460276 | AA18: -0.1620460276 | AB18: =IF($AT$8<>0,IF(AB8<>"",(AB8-$AS$8)/$AT$8,""),"") -> -0.3510997265 | AC18: -0.5401534254 | AD18: -0.3510997265 | AE18: -0.5401534254
A19: Q_1 | B19: SP | C19: Social preference (zLM - zLL) | D19: =IF(D18<>"",IF(D17<>"",D17-D18,""),"") -> 0.1718508816 | E19: =IF(E18<>"",IF(E17<>"",E17-E18,""),"") -> -2.921791203 | F19: -0.2406479675 | G19: -1.374970161 | H19: 0.6187411819 | I19: -4.245167095 | J19: 0.9968485797 | K19: 0.8077948808 | L19: 1.821846278 | M19: -3.609223096 | N19: 0.5843497306 | O19: 0.01718863399 | P19: -0.2406479675 | Q19: 0.1718508816 | R19: -0.8422005154 | S19: -0.2062565162 | T19: -1.031254214 | U19: 0.8077948808 | V19: -0.2406479675 | W19: -0.01720281731 | X19: -0.2062565162 | Y19: 1.031240031 | Z19: 3.093734276 | AA19: 0.2062423329 | AB19: =IF(AB18<>"",IF(AB17<>"",AB17-AB18,""),"") -> 0.3952960317 | AC19: 0.1718508816 | AD19: 2.457790277 | AE19: 1.821846278 | BL19: spočíta pozitívne v kategóriách pre z-skóre | CL19: xi | CM19: všetky | CN19: všetky
A20: Q_1 | B20: SI | C20: Social impact (zLM + zLL) | D20: =IF(D18<>"",IF(D17<>"",D17+D18,""),"") -> -0.9084559692 | E20: =IF(E18<>"",IF(E17<>"",E17+E18,""),"") -> 0.5351907192 | F20: -1.320954818 | G20: -0.186632625 | H20: 0.2946491267 | I20: 1.858566611 | J20: -0.08345827105 | K20: 0.1055954278 | L20: 0.7415394271 | M20: 2.872618008 | N20: -0.4959571201 | O20: 0.07120397652 | P20: -1.320954818 | Q20: -0.9084559692 | R20: -1.544399968 | S20: -0.5303485714 | T20: -1.35534627 | U20: 0.1055954278 | V20: -1.320954818 | W20: -0.7194022703 | X20: -0.5303485714 | Y20: 0.7071479758 | Z20: 2.769642221 | AA20: -0.1178497224 | AB20: =IF(AB18<>"",IF(AB17<>"",AB17+AB18,""),"") -> -0.3069034212 | AC20: -0.9084559692 | AD20: 1.755590824 | AE20: 0.7415394271 | AW20: 1 | AX20: 2 | AY20: 3 | AZ20: 4 | BA20: 5 | BB20: 6 | BC20: 7 | BD20: 8 | BE20: 9 | BF20: 10 | BG20: 11 | BH20: 12 | BI20: 13 | BJ20: 14 | BK20: 15 | BL20: 16 | BM20: 17 | BN20: 18 | BO20: 19 | BP20: 20 | BQ20: 21 | BR20: 22 | BS20: 23 | BT20: 24 | BU20: 25 | BV20: 26 | BW20: 27 | BX20: 28 | BY20: 29 | BZ20: 30 | CA20: 31 | CB20: 32 | CC20: 33 | CD20: 34 | CE20: 35 | CF20: 36 | CG20: 37 | CH20: 38 | CI20: 39 | CJ20: 40 | CK20: Suma | CL20: AM | CM20: AM all | CN20: SD all | CO20: z-skóre | CP20: kategória
C21: OPOMENUTÍ FILA | D21: =IF(D18<>"",IF(D5<>"",IF(D5 = 0,IF(D6 > 0,"OPO"," ")," ")," "),"") ->  | E21: =IF(E18<>"",IF(E5<>"",IF(E5 = 0,IF(E6 > 0,"OPO"," ")," ")," "),"") -> OPO | I21: OPO | R21: OPO | T21: OPO | AR21: =COUNTIF(D21:AQ21,"OPO") -> 4 | AW21: =IF(D21="OPO",D5," ") ->  | AX21: =IF(E21="OPO",E5,"") -> 0 | BB21: 0 | BK21: 0 | BM21: 0 | CK21: =SUM(AW21:CJ21) -> 0 | CL21: =IF(CK21>0,AVERAGE(AW21:CJ21),"") ->  | CM21: =AS5 -> 2.892857143 | CN21: =AT5 -> 2.424249188 | CO21: =IF(CK21>0,(CL21-CM21)/CN21,"") ->  | CP21: OPO Fila | CQ21: 1
B22: A | C22: POPULAR | D22: =IF(D18<>"",IF(D19>1,IF(D17>0,IF(D18<0,"POP",""),""),""),"") ->  | E22: =IF(E18<>"",IF(E19>1,IF(E17>0,IF(E18<0,"POP",""),""),""),"") ->  | L22: POP | Y22: POP | Z22: POP | AD22: POP | AE22: POP | AR22: =COUNTIF(D22:AQ22,"POP") -> 5 | AW22: =IF(D22="POP",D5,"") ->  | AX22: =IF(E22="POP",E5,"") ->  | BE22: 6 | BR22: 5 | BS22: 10 | BW22: 8 | BX22: 6 | CK22: =SUM(AW22:CJ22) -> 35 | CL22: 7 | CM22: =AS5 -> 2.892857143 | CN22: =AT5 -> 2.424249188 | CO22: 1.694191701 | CP22: POP | CQ22: 2
B23: B | C23: REJECTED | D23: =IF(D18<>"",IF(D19<-1,IF(D17<0,IF(D18>0,"REJ",""),""),""),"") ->  | E23: =IF(E18<>"",IF(E19<-1,IF(E17<0,IF(E18>0,"REJ",""),""),""),"") -> REJ | G23: REJ | I23: REJ | M23: REJ | AR23: =COUNTIF(D23:AQ23,"REJ") -> 4 | AW23: =IF(D23="REJ",D5,"") ->  | AX23: =IF(E23="REJ",E5,"") -> 0 | AZ23: 1 | BB23: 0 | BF23: 2 | CK23: 3 | CL23: 0.75 | CM23: =AS5 -> 2.892857143 | CN23: =AT5 -> 2.424249188 | CO23: -0.8839261051 | CP23: REJ | CQ23: 3
B24: C | C24: NEGLECTED | D24: =IF(D18<>"",IF(D20<-1,IF(D17=0,IF(D18=0,"NEG",""),""),""),"") ->  | E24: =IF(E18<>"",IF(E20<-1,IF(E17=0,IF(E18=0,"NEG",""),""),""),"") ->  | AR24: =COUNTIF(D24:AQ24,"NEG") -> 0 | AW24: =IF(D24="NEG",D5,"") ->  | AX24: =IF(E24="NEG",E5,"") ->  | CK24: 0 | CM24: =AS5 -> 2.892857143 | CN24: =AT5 -> 2.424249188 | CP24: NEG | CQ24: 4
B25: D | C25: CONTROVERSIAL | D25: =IF(D18<>"",IF(D17<>"",IF(D20>1,IF(D17>0,IF(D18>0,"CON",""),""),""),""),"") ->  | E25: =IF(E18<>"",IF(E17<>"",IF(E20>1,IF(E17>0,IF(E18>0,"CON",""),""),""),""),"") ->  | AR25: =COUNTIF(D25:AQ25,"CON") -> 0 | AW25: =IF(D25="CON",D5,"") ->  | CK25: 0 | CM25: =AS5 -> 2.892857143 | CN25: =AT5 -> 2.424249188 | CP25: CON | CQ25: 5
A26: *zmenený vzorec | B26: E | C26: AVERAGE STATUS | D26: =IF(D17<>"",IF(D22<>"POP",IF(D23<>"REJ",IF(D24<>"NEG",IF(D25<>"CON","AVE",""),""),""),""),"") -> AVE | E26: =IF(E17<>"",IF(E22<>"POP",IF(E23<>"REJ",IF(E24<>"NEG",IF(E25<>"CON","AVE",""),""),""),""),"") ->  | F26: AVE | H26: AVE | J26: AVE | K26: AVE | N26: AVE | O26: AVE | P26: AVE | Q26: AVE | R26: AVE | S26: AVE | T26: AVE | U26: AVE | V26: AVE | W26: AVE | X26: AVE | AA26: AVE | AB26: AVE | AC26: AVE | AR26: =COUNTIF(D26:AQ26,"AVE") -> 19 | AW26: =IF(D26="AVE",D5,"") -> 2 | AX26: =IF(E26="AVE",E5,"") ->  | AY26: 1 | BA26: 4 | BC26: 4 | BD26: 4 | BG26: 3 | BH26: 3 | BI26: 1 | BJ26: 2 | BK26: 0 | BL26: 2 | BM26: 0 | BN26: 4 | BO26: 1 | BP26: 2 | BQ26: 2 | BT26: 3 | BU26: 3 | BV26: 2 | CK26: 43 | CL26: 2.263157895 | CM26: =AS5 -> 2.892857143 | CN26: =AT5 -> 2.424249188 | CO26: -0.2597502151 | CP26: AVE | CQ26: 6
B27: F | C27: OPOMENUTÍ WALSH | D27: =IF(D23<>"REJ",IF(D18<>"",IF(D5<>"",IF(D5 = 0,IF(D6 > 0,"OPO"," ")," ")," "),""),"") ->  | E27: =IF(E23<>"REJ",IF(E18<>"",IF(E5<>"",IF(E5 = 0,IF(E6 > 0,"OPO"," ")," ")," "),""),"") ->  | R27: OPO | T27: OPO | AR27: =COUNTIF(D27:AQ27,"OPO") -> 2 | AW27: =IF(D27="OPO",D5,"") ->  | AX27: =IF(E27="OPO",E5,"") ->  | BK27: 0 | BM27: 0 | CK27: 0 | CM27: =AS5 -> 2.892857143 | CN27: =AT5 -> 2.424249188 | CP27: OPO Walsh | CQ27: 7
C28: IZOLOVANÍ | D28: =IF(D17<>"",IF(D18<>"",IF(D5<>"",IF(D5 = 0,IF(D6 = 0,"IZO","")," ")," "),""),"") ->  | E28: =IF(E17<>"",IF(E18<>"",IF(E5<>"",IF(E5 = 0,IF(E6 = 0,"IZO","")," ")," "),""),"") ->  | AR28: =COUNTIF(D28:AQ28,"IZO") -> 0 | BL28: spočíta negatívne v kategóriách pre z-skóre | CL28: xi | CM28: všetky | CN28: všetky
C29: Menovky P | D29: =IF(D25="CON","CON",IF(D22="POP","POP","")) ->  | E29: =IF(E25="CON","CON",IF(E22="POP","POP","")) ->  | L29: POP | Y29: POP | Z29: POP | AC29: =IF(AC22="POP","POP","") ->  | AD29: POP | AE29: POP | AW29: 1 | AX29: 2 | AY29: 3 | AZ29: 4 | BA29: 5 | BB29: 6 | BC29: 7 | BD29: 8 | BE29: 9 | BF29: 10 | BG29: 11 | BH29: 12 | BI29: 13 | BJ29: 14 | BK29: 15 | BL29: 16 | BM29: 17 | BN29: 18 | BO29: 19 | BP29: 20 | BQ29: 21 | BR29: 22 | BS29: 23 | BT29: 24 | BU29: 25 | BV29: 26 | BW29: 27 | BX29: 28 | BY29: 29 | BZ29: 30 | CA29: 31 | CB29: 32 | CC29: 33 | CD29: 34 | CE29: 35 | CF29: 36 | CG29: 37 | CH29: 38 | CI29: 39 | CJ29: 40 | CK29: Suma | CL29: AM | CM29: AM all | CN29: SD all | CO29: z-skóre | CP29: kategória
C30: Prekódované pre Target graf 2 Q_1 | D30: =IF(D22="POP",13,IF(D23="REJ",33,IF(D24="NEG",46,IF(D25="CON",60,IF(D26="AVE",74,IF(D21="OPO",46,"")))))) -> 74 | E30: 33 | F30: 74 | G30: 33 | H30: 74 | I30: 33 | J30: 74 | K30: 74 | L30: 13 | M30: 33 | N30: 74 | O30: 74 | P30: 74 | Q30: 74 | R30: 74 | S30: 74 | T30: 74 | U30: 74 | V30: 74 | W30: 74 | X30: 74 | Y30: 13 | Z30: 13 | AA30: 74 | AB30: 74 | AC30: 74 | AD30: 13 | AE30: 13 | AW30: =IF(D21="OPO",D8,"") ->  | AX30: =IF(E21="OPO",E8,"") -> 12 | BB30: 19 | BK30: 1 | BM30: 2 | CK30: =SUM(AW30:CJ30) -> 34 | CL30: =IF(CK30>0,AVERAGE(AW30:CJ30),"") -> 8.5 | CM30: =AS8 -> 2.857142857 | CN30: =AT8 -> 5.289502432 | CO30: =IF(CK30>0,(CL30-CM30)/CN30,"") -> 1.066803015 | CP30: OPO Fila | CQ30: 1
C31: Menovky N | D31: =IF(D25="CON","CON",IF(D23="REJ","REJ","")) ->  | E31: =IF(E25="CON","CON",IF(E23="REJ","REJ","")) -> REJ | G31: REJ | I31: REJ | M31: REJ | AC31: =IF(AC23="REJ","REJ","") ->  | AW31: =IF(D22="POP",D8,"") ->  | AX31: =IF(E22="POP",E8,"") ->  | BE31: 0 | BR31: 2 | BS31: 2 | BW31: 1 | BX31: 0 | CK31: 5 | CL31: 1 | CM31: =AS8 -> 2.857142857 | CN31: =AT8 -> 5.289502432 | CO31: -0.3510997265 | CP31: POP | CQ31: 2
A32: Podľa Group Dynamnics | C32: Algoritmus 3 Target | AW32: =IF(D23="NEG",D8,"") ->  | AX32: =IF(E23="NEG",E8,"") ->  | CK32: 0 | CM32: =AS8 -> 2.857142857 | CN32: =AT8 -> 5.289502432 | CP32: REJ | CQ32: 3
A33: Recieved accteptance | C33: Kategórie Target 3 | D33: =IF(D18<>"",IF(D5<>"",IF(D5>=TRUNC(0.75*$AU$5),"A",IF(D5>=TRUNC(0.5*$AU$5),"B",IF(D5>=TRUNC(0.25*$AU$5),"C",IF(D5<TRUNC(0.25*$AU$5),"D","")))),""),"") -> C | E33: =IF(E18<>"",IF(E5<>"",IF(E5>=TRUNC(0.75*$AU$5),"A",IF(E5>=TRUNC(0.5*$AU$5),"B",IF(E5>=TRUNC(0.25*$AU$5),"C",IF(E5<TRUNC(0.25*$AU$5),"D","")))),""),"") -> D | F33: D | G33: D | H33: C | I33: D | J33: C | K33: C | L33: B | M33: C | N33: C | O33: C | P33: D | Q33: C | R33: D | S33: C | T33: D | U33: C | V33: D | W33: C | X33: C | Y33: B | Z33: A | AA33: C | AB33: C | AC33: C | AD33: A | AE33: B | AW33: =IF(D24="CON",D8,"") ->  | AX33: =IF(E24="CON",E8,"") ->  | CK33: 0 | CM33: =AS8 -> 2.857142857 | CN33: =AT8 -> 5.289502432 | CP33: NEG | CQ33: 4
C34: Prekódované pre Target graf 3 Q_1 | D34: =IF(D18<>"",IF(D5<>"",IF(D5>=TRUNC(0.75*$AU$5),15,IF(D5>=TRUNC(0.5*$AU$5),40,IF(D5>=TRUNC(0.25*$AU$5),56,IF(D5<TRUNC(0.25*$AU$5),73,"")))),""),"") -> 56 | E34: =IF(E18<>"",IF(E5<>"",IF(E5>=TRUNC(0.75*$AU$5),15,IF(E5>=TRUNC(0.5*$AU$5),40,IF(E5>=TRUNC(0.25*$AU$5),56,IF(E5<TRUNC(0.25*$AU$5),73,"")))),""),"") -> 73 | F34: 73 | G34: 73 | H34: 56 | I34: 73 | J34: 56 | K34: 56 | L34: 40 | M34: 56 | N34: 56 | O34: 56 | P34: 73 | Q34: 56 | R34: 73 | S34: 56 | T34: 73 | U34: 56 | V34: 73 | W34: 56 | X34: 56 | Y34: 40 | Z34: 15 | AA34: 56 | AB34: 56 | AC34: 56 | AD34: 15 | AE34: 40 | AW34: =IF(D25="NEG",D8,"") ->  | AX34: =IF(E25="NEG",E8,"") ->  | CK34: 0 | CM34: =AS8 -> 2.857142857 | CN34: =AT8 -> 5.289502432 | CP34: CON | CQ34: 5
AW35: =IF(D26="AVE",D8,"") -> 0 | AX35: =IF(E26="AVE",E8,"") ->  | AY35: 0 | BA35: 2 | BC35: 0 | BD35: 1 | BG35: 0 | BH35: 3 | BI35: 0 | BJ35: 0 | BK35: 1 | BL35: 2 | BM35: 2 | BN35: 1 | BO35: 0 | BP35: 1 | BQ35: 2 | BT35: 2 | BU35: 1 | BV35: 0 | CK35: 18 | CL35: 0.9473684211 | CM35: =AS8 -> 2.857142857 | CN35: =AT8 -> 5.289502432 | CO35: -0.3610499212 | CP35: AVE | CQ35: 6
A36: Podľa Group Dynamnics | C36: Algoritmus 4 Target | AW36: =IF(D27="OPO",D8,"") ->  | AX36: =IF(E27="OPO",E8,"") ->  | BK36: 1 | BM36: 2 | CK36: 3 | CL36: 1.5 | CM36: =AS8 -> 2.857142857 | CN36: =AT8 -> 5.289502432 | CO36: -0.256572877 | CP36: OPO Walsh | CQ36: 7
A37: Recieved rejections | C37: Kategórie Target 4 | D37: =IF(D18<>"",IF(D8<>"",IF(D8>=TRUNC(0.75*$AU$8),"A",IF(D8>=TRUNC(0.5*$AU$8),"B",IF(D8>=TRUNC(0.25*$AU$8),"C",IF(D8<TRUNC(0.25*$AU$8),"D","")))),""),"") -> D | E37: =IF(E18<>"",IF(E8<>"",IF(E8>=TRUNC(0.75*$AU$8),"A",IF(E8>=TRUNC(0.5*$AU$8),"B",IF(E8>=TRUNC(0.25*$AU$8),"C",IF(E8<TRUNC(0.25*$AU$8),"D","")))),""),"") -> B | F37: D | G37: C | H37: D | I37: A | J37: D | K37: D | L37: D | M37: A | N37: D | O37: D | P37: D | Q37: D | R37: D | S37: D | T37: D | U37: D | V37: D | W37: D | X37: D | Y37: D | Z37: D | AA37: D | AB37: D | AC37: D | AD37: D | AE37: D | BL37: spočíta mutuály pozitívne v kategóriách pre z-skóre | CL37: xi
C38: Prekódované pre Target graf 4 Q_1 | D38: =IF(D18<>"",IF(D8<>"",IF(D8>=TRUNC(0.75*$AU$8),15,IF(D8>=TRUNC(0.5*$AU$8),40,IF(D8>=TRUNC(0.25*$AU$8),56,IF(D8<TRUNC(0.25*$AU$8),73,"")))),""),"") -> 73 | E38: =IF(E18<>"",IF(E8<>"",IF(E8>=TRUNC(0.75*$AU$8),15,IF(E8>=TRUNC(0.5*$AU$8),40,IF(E8>=TRUNC(0.25*$AU$8),56,IF(E8<TRUNC(0.25*$AU$8),73,"")))),""),"") -> 40 | F38: 73 | G38: 56 | H38: 73 | I38: 15 | J38: 73 | K38: 73 | L38: 73 | M38: 15 | N38: 73 | O38: 73 | P38: 73 | Q38: 73 | R38: 73 | S38: 73 | T38: 73 | U38: 73 | V38: 73 | W38: 73 | X38: 73 | Y38: 73 | Z38: 73 | AA38: 73 | AB38: 73 | AC38: 73 | AD38: 73 | AE38: 73 | AW38: 1 | AX38: 2 | AY38: 3 | AZ38: 4 | BA38: 5 | BB38: 6 | BC38: 7 | BD38: 8 | BE38: 9 | BF38: 10 | BG38: 11 | BH38: 12 | BI38: 13 | BJ38: 14 | BK38: 15 | BL38: 16 | BM38: 17 | BN38: 18 | BO38: 19 | BP38: 20 | BQ38: 21 | BR38: 22 | BS38: 23 | BT38: 24 | BU38: 25 | BV38: 26 | BW38: 27 | BX38: 28 | BY38: 29 | BZ38: 30 | CA38: 31 | CB38: 32 | CC38: 33 | CD38: 34 | CE38: 35 | CF38: 36 | CG38: 37 | CH38: 38 | CI38: 39 | CJ38: 40 | CK38: Suma | CL38: AM | CM38: AM all | CN38: SD all | CO38: z-skóre | CP38: kategória
AW39: =IF(D21="OPO",D7,"") ->  | AX39: =IF(E21="OPO",E7,"") -> 0 | BB39: 0 | BK39: 0 | BM39: 0 | CK39: =SUM(AW39:CJ39) -> 0 | CL39: =IF(CK39>0,AVERAGE(AW39:CJ39),"") ->  | CM39: =AS7 -> 1 | CN39: =AT7 -> 0.9026709338 | CO39: =IF(CK39>0,(CL39-CM39)/CN39,"") ->  | CP39: OPO Fila | CQ39: 1
A40: Podľa Group Dynamnics | C40: Algoritmus 5 Target | AW40: =IF(D22="POP",D7,"") ->  | AX40: =IF(E22="POP",E7,"") ->  | BE40: 2 | BR40: 1 | BS40: 2 | BW40: 2 | BX40: 0 | CK40: 7 | CL40: 1.4 | CM40: =AS7 -> 1 | CN40: =AT7 -> 0.9026709338 | CO40: 0.4431293675 | CP40: POP | CQ40: 2
A41: Mutual acceptance | B41: Cs+ | C41: Index sociability P | D41: =IF($B$2<>0,IF(D18<>"",IF(D7<>"",D7/($B$2),""),""),"") -> 0.6666666667 | E41: =IF($B$2<>0,IF(E18<>"",IF(E7<>"",E7/($B$2),""),""),"") -> 0 | F41: 0.3333333333 | G41: 0 | H41: 0.6666666667 | I41: 0 | J41: 0.6666666667 | K41: 0 | L41: 0.6666666667 | M41: 0.3333333333 | N41: 0 | O41: 0 | P41: 0.3333333333 | Q41: 0.3333333333 | R41: 0 | S41: 0.3333333333 | T41: 0 | U41: 1 | V41: 0 | W41: 0.3333333333 | X41: 0.3333333333 | Y41: 0.3333333333 | Z41: 0.6666666667 | AA41: 0.6666666667 | AB41: 0.6666666667 | AC41: 0.3333333333 | AD41: 0.6666666667 | AE41: 0 | AW41: =IF(D23="REJ",D7,"") ->  | AX41: =IF(E23="REJ",E7,"") -> 0 | AZ41: 0 | BB41: 0 | BF41: 1 | CK41: 1 | CL41: 0.25 | CM41: =AS7 -> 1 | CN41: =AT7 -> 0.9026709338 | CO41: -0.8308675641 | CP41: REJ | CQ41: 3
C42: Index sociability P kategória Target 5 | D42: =IF(D41<>"",(IF(D41>=0.75,"A",IF(D41>=0.5,"B",IF(D41>=0.25,"C",IF(D41<0.25,"D","x"))))),"") -> B | E42: =IF(E41<>"",(IF(E41>=0.75,"A",IF(E41>=0.5,"B",IF(E41>=0.25,"C",IF(E41<0.25,"D","x"))))),"") -> D | F42: C | G42: D | H42: B | I42: D | J42: B | K42: D | L42: B | M42: C | N42: D | O42: D | P42: C | Q42: C | R42: D | S42: C | T42: D | U42: A | V42: D | W42: C | X42: C | Y42: C | Z42: B | AA42: B | AB42: B | AC42: C | AD42: B | AE42: D | AW42: =IF(D24="NEG",D7,"") ->  | AX42: =IF(E24="NEG",E7,"") ->  | CK42: 0 | CM42: =AS7 -> 1 | CN42: =AT7 -> 0.9026709338 | CP42: NEG | CQ42: 4
C43: Prekódované pre Target graf 5 Q_1 | D43: =IF(D41<>"",(IF(D41>=0.75,15,IF(D41>=0.5,40,IF(D41>=0.25,56,IF(D41<0.25,73,"x"))))),"") -> 40 | E43: 73 | F43: 56 | G43: 73 | H43: 40 | I43: 73 | J43: 40 | K43: 73 | L43: 40 | M43: 56 | N43: 73 | O43: 73 | P43: 56 | Q43: 56 | R43: 73 | S43: 56 | T43: 73 | U43: 15 | V43: 73 | W43: 56 | X43: 56 | Y43: 56 | Z43: 40 | AA43: 40 | AB43: 40 | AC43: 56 | AD43: 40 | AE43: 73 | AW43: =IF(D25="CON",D7,"") ->  | AX43: =IF(E25="CON",E7,"") ->  | CK43: 0 | CM43: =AS7 -> 1 | CN43: =AT7 -> 0.9026709338 | CP43: CON | CQ43: 5
AW44: =IF(D26="AVE",D7,"") -> 2 | AX44: =IF(E26="AVE",E7,"") ->  | AY44: 1 | BA44: 2 | BC44: 2 | BD44: 0 | BG44: 0 | BH44: 0 | BI44: 1 | BJ44: 1 | BK44: 0 | BL44: 1 | BM44: 0 | BN44: 3 | BO44: 0 | BP44: 1 | BQ44: 1 | BT44: 2 | BU44: 2 | BV44: 1 | CK44: 20 | CL44: 1.052631579 | CM44: =AS7 -> 1 | CN44: =AT7 -> 0.9026709338 | CO44: 0.05830649573 | CP44: AVE | CQ44: 6
A45: Podľa Group Dynamnics | C45: Algoritmus 6 Target | AW45: =IF(D27="OPO",D7,"") ->  | AX45: =IF(E27="OPO",E7,"") ->  | BK45: 0 | BM45: 0 | CK45: 0 | CM45: =AS7 -> 1 | CN45: =AT7 -> 0.9026709338 | CP45: OPO Walsh | CQ45: 7
A46: Mutual rejection | B46: Cs– | C46: Index odmietania N | D46: =IF($B$2<>0,IF(D18<>"",IF(D10<>"",D10/$B$2,""),""),"") -> 0 | E46: =IF($B$2<>0,IF(E18<>"",IF(E10<>"",E10/$B$2,""),""),"") -> 0 | F46: 0 | G46: 0.3333333333 | H46: 0.3333333333 | I46: 1 | J46: 0 | K46: 0 | L46: 0 | M46: 1 | N46: 0 | O46: 0.3333333333 | P46: 0 | Q46: 0 | R46: 0 | S46: 0.3333333333 | T46: 0.3333333333 | U46: 0.3333333333 | V46: 0 | W46: 0.3333333333 | X46: 0 | Y46: 0.3333333333 | Z46: 0 | AA46: 0 | AB46: 0 | AC46: 0 | AD46: 0 | AE46: 0 | BL46: spočíta mutuály negatívne v kategóriách pre z-skóre | CL46: xi
C47: Index odmietania P kategória Target 6 | D47: =IF(D46<>"",(IF(D46>=0.75,"A",IF(D46>=0.5,"B",IF(D46>=0.25,"C",IF(D46<0.25,"D","x"))))),"") -> D | E47: =IF(E46<>"",(IF(E46>=0.75,"A",IF(E46>=0.5,"B",IF(E46>=0.25,"C",IF(E46<0.25,"D","x"))))),"") -> D | F47: D | G47: C | H47: C | I47: A | J47: D | K47: D | L47: D | M47: A | N47: D | O47: C | P47: D | Q47: D | R47: D | S47: C | T47: C | U47: C | V47: D | W47: C | X47: D | Y47: C | Z47: D | AA47: D | AB47: D | AC47: D | AD47: D | AE47: D | AW47: 1 | AX47: 2 | AY47: 3 | AZ47: 4 | BA47: 5 | BB47: 6 | BC47: 7 | BD47: 8 | BE47: 9 | BF47: 10 | BG47: 11 | BH47: 12 | BI47: 13 | BJ47: 14 | BK47: 15 | BL47: 16 | BM47: 17 | BN47: 18 | BO47: 19 | BP47: 20 | BQ47: 21 | BR47: 22 | BS47: 23 | BT47: 24 | BU47: 25 | BV47: 26 | BW47: 27 | BX47: 28 | BY47: 29 | BZ47: 30 | CA47: 31 | CB47: 32 | CC47: 33 | CD47: 34 | CE47: 35 | CF47: 36 | CG47: 37 | CH47: 38 | CI47: 39 | CJ47: 40 | CK47: Suma | CL47: AM | CM47: AM all | CN47: SD all | CO47: z-skóre | CP47: kategória
C48: Prekódované pre Target graf 6 Q_1 | D48: =IF(D46<>"",(IF(D46>=0.75,15,IF(D46>=0.5,40,IF(D46>=0.25,56,IF(D46<0.25,73,"x"))))),"") -> 73 | E48: 73 | F48: 73 | G48: 56 | H48: 56 | I48: 15 | J48: 73 | K48: 73 | L48: 73 | M48: 15 | N48: 73 | O48: 56 | P48: 73 | Q48: 73 | R48: 73 | S48: 56 | T48: 56 | U48: 56 | V48: 73 | W48: 56 | X48: 73 | Y48: 56 | Z48: 73 | AA48: 73 | AB48: 73 | AC48: 73 | AD48: 73 | AE48: 73 | AW48: =IF(D21="OPO",D10,"") ->  | AX48: =IF(E21="OPO",E10,"") -> 0 | BB48: 3 | BK48: 0 | BM48: 1 | CK48: =SUM(AW48:CJ48) -> 4 | CL48: =IF(CK48>0,AVERAGE(AW48:CJ48),"") -> 1 | CM48: =AS10 -> 0.5 | CN48: =AT10 -> 0.8388704928 | CO48: =IF(CK48>0,(CL48-CM48)/CN48,"") -> 0.5960395607 | CP48: OPO Fila | CQ48: 1 | CR48: 1
AW49: =IF(D22="POP",D10,"") ->  | AX49: =IF(E22="POP",E10,"") ->  | BE49: 0 | BR49: 1 | BS49: 0 | BW49: 0 | BX49: 0 | CK49: 1 | CL49: 0.2 | CM49: =AS10 -> 0.5 | CN49: =AT10 -> 0.8388704928 | CO49: -0.3576237364 | CP49: POP | CQ49: 2 | CR49: 2
AW50: =IF(D23="REJ",D10,"") ->  | AX50: =IF(E23="REJ",E10,"") -> 0 | AZ50: 1 | BB50: 3 | BF50: 3 | CK50: 7 | CL50: 1.75 | CM50: =AS10 -> 0.5 | CN50: =AT10 -> 0.8388704928 | CO50: 1.490098902 | CP50: REJ | CQ50: 3 | CR50: 3
A51: Podľa Group Dynamnics | C51: Algoritmus 1 Target | AW51: =IF(D24="NEG",D10,"") ->  | AX51: =IF(E24="NEG",E10,"") ->  | CK51: 0 | CM51: =AS10 -> 0.5 | CN51: =AT10 -> 0.8388704928 | CP51: NEG | CQ51: 4 | CR51: 4
C52: Frequenties of positive questions | AW52: =IF(D25="CON",D10,"") ->  | AX52: =IF(E25="CON",E10,"") ->  | CK52: 0 | CM52: =AS10 -> 0.5 | CN52: =AT10 -> 0.8388704928 | CP52: CON | CQ52: 5 | CR52: 5
AW53: =IF(D26="AVE",D10,"") -> 0 | AX53: =IF(E26="AVE",E10,"") ->  | AY53: 0 | BA53: 1 | BC53: 0 | BD53: 0 | BG53: 0 | BH53: 1 | BI53: 0 | BJ53: 0 | BK53: 0 | BL53: 1 | BM53: 1 | BN53: 1 | BO53: 0 | BP53: 1 | BQ53: 0 | BT53: 0 | BU53: 0 | BV53: 0 | CK53: 6 | CL53: 0.3157894737 | CM53: =AS10 -> 0.5 | CN53: =AT10 -> 0.8388704928 | CO53: -0.2195935224 | CP53: AVE | CQ53: 6 | CR53: 6
B54: A | C54: Popular "A" | D54: =IF(D18<>"",IF(D5<>"",IF(D5>3,IF(D8<=1,"A",""),""),""),"") ->  | E54: =IF(E18<>"",IF(E5<>"",IF(E5>3,IF(E8<=1,"A",""),""),""),"") ->  | J54: A | K54: A | L54: A | U54: A | AD54: A | AE54: A | AW54: =IF(D27="OPO",D10,"") ->  | AX54: =IF(E27="OPO",E10,"") ->  | BK54: 0 | BM54: 1 | CK54: 1 | CL54: 0.5 | CM54: =AS10 -> 0.5 | CN54: =AT10 -> 0.8388704928 | CO54: 0 | CP54: OPO Walsh | CQ54: 7 | CR54: 7
B55: B | C55: Liked more than disliked "B" | D55: =IF(D18<>"",IF(D5<>"",IF(D5>D8,IF(D54<>"A","B",""),""),""),"") -> B | F55: B | H55: B | N55: B | P55: B | Q55: B | V55: B | W55: B | Y55: B | Z55: B | AA55: B | AB55: B | AC55: B | CR55: 8
B56: C | C56: Disliked more than liked "C" | D56: =IF(D18<>"",IF(D5<>"",IF(D5<D8,IF(D54<>"A",IF(D58<>"E","C",""),""),""),""),"") ->  | M56: C | R56: C | T56: C | CR56: 9
B57: D | C57: Controversial "D" | D57: =IF(D18<>"",IF(D5<>"",IF(D5>0,IF(D5>0,IF(D5=D8,IF(D54<>"A","D",""),""),""),""),""),"") ->  | O57: D | S57: D | X57: D | CR57: 10
B58: E | C58: Rejected "E" | D58: =IF(D18<>"",IF(D5<>"",IF(D5<=1,IF(D8>3,"E",""),""),""),"") ->  | E58: =IF(E18<>"",IF(E5<>"",IF(E5<=1,IF(E8>3,"E",""),""),""),"") -> E | G58: E | I58: E | CR58: 11
B59: F | C59: Neglected "F" | D59: =IF(D18<>"",IF(D5<>"",IF(D5=0,IF(D8=0,"F",""),""),""),"") ->  | E59: =IF(E18<>"",IF(E5<>"",IF(E5=0,IF(E8=0,"F",""),""),""),"") ->  | CR59: 12
C60: Pomo B | D60: =IF(D17=0,IF(D18=0,"B",""),IF(D55="B","B","")) -> B | F60: B | H60: B | N60: B | P60: B | Q60: B | V60: B | W60: B | Y60: B | Z60: B | AA60: B | AB60: B | AC60: B | CR60: 13
C61: Prekódované pre Target graf 1 Q_1 | D61: =IF(D59="F",87,IF(D57="D",60,IF(D58="E",74,IF(D56="C",46,IF(D54="A",13,IF(D55="B",33,IF(D60="B",33,""))))))) -> 33 | E61: 74 | F61: 33 | G61: 74 | H61: 33 | I61: 74 | J61: 13 | K61: 13 | L61: 13 | M61: 46 | N61: 33 | O61: 60 | P61: 33 | Q61: 33 | R61: 46 | S61: 60 | T61: 46 | U61: 13 | V61: 33 | W61: 33 | X61: 60 | Y61: 33 | Z61: 33 | AA61: 33 | AB61: 33 | AC61: 33 | AD61: 13 | AE61: 13 | AH61: =IF(AH59="F",87,IF(AH57="D",60,IF(AH58="E",74,IF(AH56="C",46,IF(AH54="A",13,IF(AH55="B",33,IF(AH60="B",33,""))))))) ->  | CR61: 14
A62: Otázka č.2 | AS62: AM | AT62: SD | AU62: MAX | CR62: 15
A63: Q_2_P | B63: Sel_p_r | C63: =CONCATENATE($BJ$3, " P") -> P | D63: 1 | E63: 0 | F63: 3 | G63: 1 | H63: 1 | I63: 0 | J63: 6 | K63: 4 | L63: 7 | M63: 0 | N63: 1 | O63: 0 | P63: 1 | Q63: 2 | R63: 2 | S63: 0 | T63: 0 | U63: 5 | V63: 2 | W63: 1 | X63: 1 | Y63: 1 | Z63: 14 | AA63: 0 | AB63: 9 | AC63: 6 | AD63: 5 | AE63: 8 | AR63: =SUM(D63:AQ63) -> 81 | AS63: =IF(AR63>0,AVERAGE(D63:AQ63),"") -> 2.892857143 | AT63: =IF(AR63>0,STDEV(D63:AQ63),"") -> 3.457030257 | AU63: =MAX(D63:AQ63) -> 14 | CR63: 16
A64: Q_2_P | B64: Sel_p_g | C64: =CONCATENATE($BJ$3, " P") -> P | D64: 3 | E64: 3 | F64: 3 | G64: 3 | H64: 3 | I64: 3 | J64: 3 | K64: 3 | L64: 3 | M64: 3 | N64: 3 | O64: 3 | P64: 3 | Q64: 3 | R64: 3 | S64: 3 | T64: 3 | U64: 3 | V64: 3 | W64: 3 | X64: 3 | Y64: 3 | Z64: 3 | AA64: 3 | AB64: 3 | AC64: 3 | AD64: 3 | AE64: 0 | AR64: =SUM(D64:AQ64) -> 81 | AS64: =IF(AR63>0,AVERAGE(D64:AQ64),"") -> 2.892857143 | AT64: =IF(AR63>0,STDEV(D64:AQ64),"") -> 0.5669467095 | CR64: 17
A65: Q_2_P | B65: Rec_p | C65: =CONCATENATE($BJ$3, " mutual P") -> mutual P | D65: 1 | E65: 0 | F65: 1 | G65: 1 | H65: 1 | I65: 0 | J65: 2 | K65: 0 | L65: 1 | M65: 0 | N65: 0 | O65: 0 | P65: 1 | Q65: 0 | R65: 1 | S65: 0 | T65: 0 | U65: 3 | V65: 1 | W65: 1 | X65: 0 | Y65: 1 | Z65: 3 | AA65: 0 | AB65: 3 | AC65: 2 | AD65: 1 | AE65: 0 | AR65: 24 | AS65: =IF(AR63>0,AVERAGE(D65:AQ65),"") -> 0.8571428571 | AT65: =IF(AR63>0,STDEV(D65:AQ65),"") -> 0.9704632614 | CR65: 18
A66: Q_2_N | B66: Sel_n_r | C66: =CONCATENATE($BJ$3, " N") -> N | D66: 1 | E66: 13 | F66: 0 | G66: 10 | H66: 3 | I66: 20 | J66: 0 | K66: 1 | L66: 0 | M66: 18 | N66: 0 | O66: 4 | P66: 0 | Q66: 0 | R66: 1 | S66: 1 | T66: 3 | U66: 0 | V66: 0 | W66: 1 | X66: 0 | Y66: 0 | Z66: 2 | AA66: 1 | AB66: 0 | AC66: 0 | AD66: 2 | AE66: 0 | AR66: 81 | AS66: =IF(AR63>0,AVERAGE(D66:AQ66),"") -> 2.892857143 | AT66: =IF(AR63>0,STDEV(D66:AQ66),"") -> 5.465984278 | AU66: =MAX(D66:AQ66) -> 20 | CR66: 19
A67: Q_2_N | B67: Sel_n_g | C67: =CONCATENATE($BJ$3, " N") -> N | D67: 3 | E67: 3 | F67: 3 | G67: 3 | H67: 3 | I67: 3 | J67: 3 | K67: 3 | L67: 3 | M67: 3 | N67: 3 | O67: 3 | P67: 3 | Q67: 3 | R67: 3 | S67: 3 | T67: 3 | U67: 3 | V67: 3 | W67: 3 | X67: 3 | Y67: 3 | Z67: 3 | AA67: 3 | AB67: 3 | AC67: 3 | AD67: 3 | AE67: 0 | AR67: 81 | AS67: =IF(AR63>0,AVERAGE(D67:AQ67),"") -> 2.892857143 | AT67: =IF(AR63>0,STDEV(D67:AQ67),"") -> 0.5669467095 | CR67: 20
A68: Q_2_N | B68: Rec_n | C68: =CONCATENATE($BJ$3, " mutual N") -> mutual N | D68: 1 | E68: 3 | F68: 0 | G68: 2 | H68: 0 | I68: 2 | J68: 0 | K68: 0 | L68: 0 | M68: 2 | N68: 0 | O68: 1 | P68: 0 | Q68: 0 | R68: 0 | S68: 0 | T68: 1 | U68: 0 | V68: 0 | W68: 0 | X68: 0 | Y68: 0 | Z68: 0 | AA68: 0 | AB68: 0 | AC68: 0 | AD68: 0 | AE68: 0 | AR68: 12 | AS68: =IF(AR63>0,AVERAGE(D68:AQ68),"") -> 0.4285714286 | AT68: =IF(AR63>0,STDEV(D68:AQ68),"") -> 0.835710894 | CR68: 21
A69: Q_2 | B69: IZO p | C69: =CONCATENATE($BJ$3, " izolovaní P") -> izolovaní P | D69: =IF(D75<>"",IF(D63<>"",IF(D63 = 0,IF(D64 = 0,1,""),""),""),"") ->  | E69: =IF(E75<>"",IF(E63<>"",IF(E63 = 0,IF(E64 = 0,1,""),""),""),"") ->  | AR69: 0 | CR69: 22
A70: Q_2 | B70: OPO p | C70: =CONCATENATE($BJ$3, " opomenutí P") -> opomenutí P | D70: =IF(D63<>"",IF(D63 = 0,IF(D64 > 0,1,""),""),"") ->  | E70: =IF(E63<>"",IF(E63 = 0,IF(E64 > 0,1,""),""),"") -> 1 | I70: 1 | M70: 1 | O70: 1 | S70: 1 | T70: 1 | AA70: 1 | AR70: 7 | CR70: 23
A71: Q_2 | B71: IZO n | C71: =CONCATENATE($BJ$3, " izolovaní N") -> izolovaní N | D71: =IF(D76<>"",IF(D66<>"",IF(D66 = 0,IF(D67 = 0,1," ")," ")," "),"") ->  | E71: =IF(E76<>"",IF(E66<>"",IF(E66 = 0,IF(E67 = 0,1," ")," ")," "),"") ->  | AE71: 1 | AR71: 1 | CR71: 24
A72: Q_2 | B72: OPO n | C72: =CONCATENATE($BJ$3, " opomenutí N") -> opomenutí N | D72: =IF(D66<>"",IF(D66 = 0,IF(D67 > 0,1," ")," ")," ") ->  | F72: 1 | J72: 1 | L72: 1 | N72: 1 | P72: 1 | Q72: 1 | U72: 1 | V72: 1 | X72: 1 | Y72: 1 | AB72: 1 | AC72: 1 | AR72: 12 | CR72: 25
A73: Podľa Walsha | B73: Social preference and social Impact | CR73: 26
A74: Algoritmus 2 používa Group aj Walsh | CR74: 27
A75: Q_2 | B75: zLM | C75: z-skóre P | D75: =IF($AT$63<>"",IF(D63<>"",(D63-$AS$63)/$AT$63,""),"") -> -0.5475384946 | E75: =IF($AT$63<>"",IF(E63<>"",(E63-$AS$63)/$AT$63,""),"") -> -0.8368041143 | F75: 0.03099274498 | G75: -0.5475384946 | H75: -0.5475384946 | I75: -0.8368041143 | J75: 0.8987896043 | K75: 0.3202583647 | L75: 1.188055224 | M75: -0.8368041143 | N75: -0.5475384946 | O75: -0.8368041143 | P75: -0.5475384946 | Q75: -0.2582728748 | R75: -0.2582728748 | S75: -0.8368041143 | T75: -0.8368041143 | U75: 0.6095239845 | V75: -0.2582728748 | W75: -0.5475384946 | X75: -0.5475384946 | Y75: -0.5475384946 | Z75: 3.212914562 | AA75: -0.8368041143 | AB75: 1.766586464 | AC75: 0.8987896043 | AD75: 0.6095239845 | AE75: 1.477320844 | CR75: 28
A76: Q_2 | B76: zLL | C76: z-skóre N | D76: =IF($AT$66<>"",IF($AT$66<>0,IF(D66<>"",(D66-$AS$66)/$AT$66,""),""),"") -> -0.3462975828 | E76: =IF($AT$66<>"",IF($AT$66<>0,IF(E66<>"",(E66-$AS$66)/$AT$66,""),""),"") -> 1.849098414 | F76: -0.5292472491 | G76: 1.300249415 | H76: 0.01960174997 | I76: 3.129746078 | J76: -0.5292472491 | K76: -0.3462975828 | L76: -0.5292472491 | M76: 2.763846745 | N76: -0.5292472491 | O76: 0.2025514163 | P76: -0.5292472491 | Q76: -0.5292472491 | R76: -0.3462975828 | S76: -0.3462975828 | T76: 0.01960174997 | U76: -0.5292472491 | V76: -0.5292472491 | W76: -0.3462975828 | X76: -0.5292472491 | Y76: -0.5292472491 | Z76: -0.1633479164 | AA76: -0.3462975828 | AB76: -0.5292472491 | AC76: -0.5292472491 | AD76: -0.1633479164 | AE76: -0.5292472491 | CR76: 29
A77: Q_2 | B77: SP | C77: Social preference (zLM - zLL) | D77: =IF(D76<>"",IF(D75<>"",D75-D76,""),"") -> -0.2012409118 | E77: =IF(E76<>"",IF(E75<>"",E75-E76,""),"") -> -2.685902528 | F77: 0.5602399941 | G77: -1.847787909 | H77: -0.5671402445 | I77: -3.966550192 | J77: 1.428036853 | K77: 0.6665559475 | L77: 1.717302473 | M77: -3.60065086 | N77: -0.01829124545 | O77: -1.039355531 | P77: -0.01829124545 | Q77: 0.2709743743 | R77: 0.08802470796 | S77: -0.4905065316 | T77: -0.8564058643 | U77: 1.138771234 | V77: 0.2709743743 | W77: -0.2012409118 | X77: -0.01829124545 | Y77: -0.01829124545 | Z77: 3.376262479 | AA77: -0.4905065316 | AB77: 2.295833713 | AC77: 1.428036853 | AD77: 0.7728719009 | AE77: 2.006568093 | BL77: spočíta pozitívne v kategóriách pre z-skóre | CL77: xi | CM77: všetky | CN77: všetky | CR77: 30
A78: Q_2 | B78: SI | C78: Social impact (zLM + zLL) | D78: =IF(D76<>"",IF(D75<>"",D75+D76,""),"") -> -0.8938360773 | E78: =IF(E76<>"",IF(E75<>"",E75+E76,""),"") -> 1.012294299 | F78: -0.4982545041 | G78: 0.7527109199 | H78: -0.5279367446 | I78: 2.292941964 | J78: 0.3695423552 | K78: -0.02603921801 | L78: 0.6588079749 | M78: 1.927042631 | N78: -1.076785744 | O78: -0.634252698 | P78: -1.076785744 | Q78: -0.7875201239 | R78: -0.6045704576 | S78: -1.183101697 | T78: -0.8172023644 | U78: 0.0802767354 | V78: -0.7875201239 | W78: -0.8938360773 | X78: -1.076785744 | Y78: -1.076785744 | Z78: 3.049566646 | AA78: -1.183101697 | AB78: 1.237339214 | AC78: 0.3695423552 | AD78: 0.4461760681 | AE78: 0.9480735947 | AW78: 1 | AX78: 2 | AY78: 3 | AZ78: 4 | BA78: 5 | BB78: 6 | BC78: 7 | BD78: 8 | BE78: 9 | BF78: 10 | BG78: 11 | BH78: 12 | BI78: 13 | BJ78: 14 | BK78: 15 | BL78: 16 | BM78: 17 | BN78: 18 | BO78: 19 | BP78: 20 | BQ78: 21 | BR78: 22 | BS78: 23 | BT78: 24 | BU78: 25 | BV78: 26 | BW78: 27 | BX78: 28 | BY78: 29 | BZ78: 30 | CA78: 31 | CB78: 32 | CC78: 33 | CD78: 34 | CE78: 35 | CF78: 36 | CG78: 37 | CH78: 38 | CI78: 39 | CJ78: 40 | CK78: Suma | CL78: AM | CM78: AM all | CN78: SD all | CO78: z-skóre | CP78: kategória | CR78: 31
C79: OPOMENUTÍ FILA | D79: =IF(D76<>"",IF(D63<>"",IF(D63 = 0,IF(D64 > 0,"OPO"," ")," ")," "),"") ->  | E79: =IF(E76<>"",IF(E63<>"",IF(E63 = 0,IF(E64 > 0,"OPO"," ")," ")," "),"") -> OPO | I79: OPO | M79: OPO | O79: OPO | S79: OPO | T79: OPO | AA79: OPO | AR79: =COUNTIF(D79:AQ79,"OPO") -> 7 | AW79: =IF(D79="OPO",D63," ") ->  | AX79: =IF(E79="OPO",E63,"") -> 0 | BB79: 0 | BF79: 0 | BH79: 0 | BL79: 0 | BM79: 0 | BT79: 0 | CK79: =SUM(AW79:CJ79) -> 0 | CL79: =IF(CK79>0,AVERAGE(AW79:CJ79),"") ->  | CM79: =AS63 -> 2.892857143 | CN79: =AT63 -> 3.457030257 | CO79: =IF(CK79>0,(CL79-CM79)/CN79,"") ->  | CP79: OPO Fila | CQ79: 1
C80: POPULAR | D80: =IF(D76<>"",IF(D77>1,IF(D75>0,IF(D76<0,"POP",""),""),""),"") ->  | E80: =IF(E76<>"",IF(E77>1,IF(E75>0,IF(E76<0,"POP",""),""),""),"") ->  | J80: POP | L80: POP | U80: POP | Z80: POP | AB80: POP | AC80: POP | AE80: POP | AR80: =COUNTIF(D80:AQ80,"POP") -> 7 | AW80: =IF(D80="POP",D63,"") ->  | BC80: 6 | BE80: 7 | BN80: 5 | BS80: 14 | BU80: 9 | BV80: 6 | BX80: 8 | CK80: =SUM(AW80:CJ80) -> 55 | CL80: 7.857142857 | CM80: =AS63 -> 2.892857143 | CN80: =AT63 -> 3.457030257 | CO80: 1.435997184 | CP80: POP | CQ80: 2
C81: REJECTED | D81: =IF(D76<>"",IF(D77<-1,IF(D75<0,IF(D76>0,"REJ",""),""),""),"") ->  | E81: =IF(E76<>"",IF(E77<-1,IF(E75<0,IF(E76>0,"REJ",""),""),""),"") -> REJ | G81: REJ | I81: REJ | M81: REJ | O81: REJ | AR81: =COUNTIF(D81:AQ81,"REJ") -> 5 | AW81: =IF(D81="REJ",D63,"") ->  | AX81: 0 | AZ81: 1 | BB81: 0 | BF81: 0 | BH81: 0 | CK81: 1 | CL81: 0.2 | CM81: =AS63 -> 2.892857143 | CN81: =AT63 -> 3.457030257 | CO81: -0.7789509904 | CP81: REJ | CQ81: 3
C82: NEGLECTED | D82: =IF(D76<>"",IF(D78<-1,IF(D75=0,IF(D76=0,"NEG",""),""),""),"") ->  | E82: =IF(E76<>"",IF(E78<-1,IF(E75=0,IF(E76=0,"NEG",""),""),""),"") ->  | AR82: =COUNTIF(D82:AQ82,"NEG") -> 0 | AW82: =IF(D82="NEG",D63,"") ->  | CK82: 0 | CM82: =AS63 -> 2.892857143 | CN82: =AT63 -> 3.457030257 | CP82: NEG | CQ82: 4
C83: CONTROVERSIAL | D83: =IF(D76<>"",IF(D75<>"",IF(D78>1,IF(D75>0,IF(D76>0,"CON",""),""),""),""),"") ->  | E83: =IF(E76<>"",IF(E75<>"",IF(E78>1,IF(E75>0,IF(E76>0,"CON",""),""),""),""),"") ->  | AR83: =COUNTIF(D83:AQ83,"CON") -> 0 | AW83: =IF(D83="CON",D63,"") ->  | CK83: 0 | CM83: =AS63 -> 2.892857143 | CN83: =AT63 -> 3.457030257 | CP83: CON | CQ83: 5
A84: *zmenený vzorec | C84: AVERAGE STATUS | D84: =IF(D75<>"",IF(D80<>"POP",IF(D81<>"REJ",IF(D82<>"NEG",IF(D83<>"CON","AVE",""),""),""),""),"") -> AVE | F84: AVE | H84: AVE | K84: AVE | N84: AVE | P84: AVE | Q84: AVE | R84: AVE | S84: AVE | T84: AVE | V84: AVE | W84: AVE | X84: AVE | Y84: AVE | AA84: AVE | AD84: AVE | AR84: =COUNTIF(D84:AQ84,"AVE") -> 16 | AW84: =IF(D84="AVE",D63,"") -> 1 | AY84: 3 | BA84: 1 | BD84: 4 | BG84: 1 | BI84: 1 | BJ84: 2 | BK84: 2 | BL84: 0 | BM84: 0 | BO84: 2 | BP84: 1 | BQ84: 1 | BR84: 1 | BT84: 0 | BW84: 5 | CK84: 25 | CL84: 1.5625 | CM84: =AS63 -> 2.892857143 | CN84: =AT63 -> 3.457030257 | CO84: -0.3848265834 | CP84: AVE | CQ84: 6
C85: OPOMENUTÍ WALSH | D85: =IF(D81<>"REJ",IF(D76<>"",IF(D63<>"",IF(D63 = 0,IF(D64 > 0,"OPO"," ")," ")," "),""),"") ->  | E85: =IF(E81<>"REJ",IF(E76<>"",IF(E63<>"",IF(E63 = 0,IF(E64 > 0,"OPO"," ")," ")," "),""),"") ->  | S85: OPO | T85: OPO | AA85: OPO | AR85: =COUNTIF(D85:AQ85,"OPO") -> 3 | AW85: =IF(D85="OPO",D63,"") ->  | BL85: 0 | BM85: 0 | BT85: 0 | CK85: 0 | CM85: =AS63 -> 2.892857143 | CN85: =AT63 -> 3.457030257 | CP85: OPO Walsh | CQ85: 7
C86: IZOLOVANÍ | D86: =IF(D75<>"",IF(D76<>"",IF(D63<>"",IF(D63 = 0,IF(D64 = 0,"IZO","")," ")," "),""),"") ->  | E86: =IF(E75<>"",IF(E76<>"",IF(E63<>"",IF(E63 = 0,IF(E64 = 0,"IZO","")," ")," "),""),"") ->  | AR86: =COUNTIF(D86:AQ86,"IZO") -> 0 | BL86: spočíta negatívne v kategóriách pre z-skóre | CL86: xi | CM86: všetky | CN86: všetky
D87: =IF(D83="CON","CON",IF(D80="POP","POP","")) ->  | E87: =IF(E83="CON","CON",IF(E80="POP","POP","")) ->  | J87: POP | L87: POP | U87: POP | Z87: POP | AB87: POP | AC87: =IF(AC80="POP","POP","") -> POP | AE87: POP | AW87: 1 | AX87: 2 | AY87: 3 | AZ87: 4 | BA87: 5 | BB87: 6 | BC87: 7 | BD87: 8 | BE87: 9 | BF87: 10 | BG87: 11 | BH87: 12 | BI87: 13 | BJ87: 14 | BK87: 15 | BL87: 16 | BM87: 17 | BN87: 18 | BO87: 19 | BP87: 20 | BQ87: 21 | BR87: 22 | BS87: 23 | BT87: 24 | BU87: 25 | BV87: 26 | BW87: 27 | BX87: 28 | BY87: 29 | BZ87: 30 | CA87: 31 | CB87: 32 | CC87: 33 | CD87: 34 | CE87: 35 | CF87: 36 | CG87: 37 | CH87: 38 | CI87: 39 | CJ87: 40 | CK87: Suma | CL87: AM | CM87: AM all | CN87: SD all | CO87: z-skóre | CP87: kategória
C88: Prekódované pre Target graf 2 Q_2 | D88: =IF(D80="POP",13,IF(D81="REJ",33,IF(D82="NEG",46,IF(D83="CON",60,IF(D84="AVE",74,IF(D79="OPO",46,"")))))) -> 74 | E88: 33 | F88: 74 | G88: 33 | H88: 74 | I88: 33 | J88: 13 | K88: 74 | L88: 13 | M88: 33 | N88: 74 | O88: 33 | P88: 74 | Q88: 74 | R88: 74 | S88: =IF(S80="POP",13,IF(S81="REJ",33,IF(S82="NEG",46,IF(S83="CON",60,IF(S84="AVE",74,IF(S79="OPO",46,"")))))) -> 74 | T88: =IF(T80="POP",13,IF(T81="REJ",33,IF(T82="NEG",46,IF(T83="CON",60,IF(T84="AVE",74,IF(T79="OPO",46,"")))))) -> 74 | U88: 13 | V88: 74 | W88: 74 | X88: 74 | Y88: 74 | Z88: 13 | AA88: 74 | AB88: 13 | AC88: 13 | AD88: 74 | AE88: 13 | AW88: =IF(D79="OPO",D66,"") ->  | AX88: 13 | BB88: 20 | BF88: 18 | BH88: 4 | BL88: 1 | BM88: 3 | BT88: 1 | CK88: =SUM(AW88:CJ88) -> 60 | CL88: =IF(CK88>0,AVERAGE(AW88:CJ88),"") -> 8.571428571 | CM88: =AS66 -> 2.892857143 | CN88: =AT66 -> 5.465984278 | CO88: =IF(CK88>0,(CL88-CM88)/CN88,"") -> 1.038892748 | CP88: OPO Fila | CQ88: 1
D89: =IF(D83="CON","CON",IF(D81="REJ","REJ","")) ->  | E89: =IF(E83="CON","CON",IF(E81="REJ","REJ","")) -> REJ | G89: REJ | I89: REJ | M89: REJ | O89: REJ | AC89: =IF(AC81="REJ","REJ","") ->  | AW89: =IF(D80="POP",D66,"") ->  | BC89: 0 | BE89: 0 | BN89: 0 | BS89: 2 | BU89: 0 | BV89: 0 | BX89: 0 | CK89: 2 | CL89: 0.2857142857 | CM89: =AS66 -> 2.892857143 | CN89: =AT66 -> 5.465984278 | CO89: -0.4769759159 | CP89: POP | CQ89: 2
A90: Podľa Group Dynamnics | C90: Algoritmus 3 Target | AW90: =IF(D81="NEG",D66,"") ->  | CK90: 0 | CM90: =AS66 -> 2.892857143 | CN90: =AT66 -> 5.465984278 | CP90: REJ | CQ90: 3
A91: Recieved accteptance | C91: Kategórie | D91: =IF(D76<>"",IF(D63<>"",IF(D63>=TRUNC(0.75*$AU$5),"A",IF(D63>=TRUNC(0.5*$AU$5),"B",IF(D63>=TRUNC(0.25*$AU$5),"C",IF(D63<TRUNC(0.25*$AU$5),"D","")))),""),"") -> D | E91: =IF(E76<>"",IF(E63<>"",IF(E63>=TRUNC(0.75*$AU$5),"A",IF(E63>=TRUNC(0.5*$AU$5),"B",IF(E63>=TRUNC(0.25*$AU$5),"C",IF(E63<TRUNC(0.25*$AU$5),"D","")))),""),"") -> D | F91: C | G91: D | H91: D | I91: D | J91: B | K91: C | L91: A | M91: D | N91: D | O91: D | P91: D | Q91: C | R91: C | S91: D | T91: D | U91: B | V91: C | W91: D | X91: D | Y91: D | Z91: A | AA91: D | AB91: A | AC91: B | AD91: B | AE91: A | AW91: =IF(D82="CON",D66,"") ->  | CK91: 0 | CM91: =AS66 -> 2.892857143 | CN91: =AT66 -> 5.465984278 | CP91: NEG | CQ91: 4
C92: Prekódované pre Target graf 3 Q_2 | D92: =IF(D76<>"",IF(D63<>"",IF(D63>=TRUNC(0.75*$AU$5),15,IF(D63>=TRUNC(0.5*$AU$5),40,IF(D63>=TRUNC(0.25*$AU$5),56,IF(D63<TRUNC(0.25*$AU$5),73,"")))),""),"") -> 73 | E92: =IF(E76<>"",IF(E63<>"",IF(E63>=TRUNC(0.75*$AU$5),15,IF(E63>=TRUNC(0.5*$AU$5),40,IF(E63>=TRUNC(0.25*$AU$5),56,IF(E63<TRUNC(0.25*$AU$5),73,"")))),""),"") -> 73 | F92: 56 | G92: 73 | H92: 73 | I92: 73 | J92: 40 | K92: 56 | L92: 15 | M92: 73 | N92: 73 | O92: 73 | P92: 73 | Q92: 56 | R92: 56 | S92: 73 | T92: 73 | U92: 40 | V92: 56 | W92: 73 | X92: 73 | Y92: 73 | Z92: 15 | AA92: 73 | AB92: 15 | AC92: 40 | AD92: 40 | AE92: 15 | AW92: =IF(D83="NEG",D66,"") ->  | CK92: 0 | CM92: =AS66 -> 2.892857143 | CN92: =AT66 -> 5.465984278 | CP92: CON | CQ92: 5
AW93: =IF(D84="AVE",D66,"") -> 1 | AY93: 0 | BA93: 3 | BD93: 1 | BG93: 0 | BI93: 0 | BJ93: 0 | BK93: 1 | BL93: 1 | BM93: 3 | BO93: 0 | BP93: 1 | BQ93: 0 | BR93: 0 | BT93: 1 | BW93: 2 | CK93: 14 | CL93: 0.875 | CM93: =AS66 -> 2.892857143 | CN93: =AT66 -> 5.465984278 | CO93: -0.3691662911 | CP93: AVE | CQ93: 6
A94: Podľa Group Dynamnics | C94: Algoritmus 4 Target | AW94: =IF(D85="OPO",D66,"") ->  | BL94: 1 | BM94: 3 | BT94: 1 | CK94: 5 | CL94: 1.666666667 | CM94: =AS66 -> 2.892857143 | CN94: =AT66 -> 5.465984278 | CO94: -0.2243311385 | CP94: OPO Walsh | CQ94: 7
A95: Recieved rejections | C95: Kategórie | D95: =IF(D76<>"",IF(D66<>"",IF(D66>=TRUNC(0.75*$AU$8),"A",IF(D66>=TRUNC(0.5*$AU$8),"B",IF(D66>=TRUNC(0.25*$AU$8),"C",IF(D66<TRUNC(0.25*$AU$8),"D","")))),""),"") -> D | E95: =IF(E76<>"",IF(E66<>"",IF(E66>=TRUNC(0.75*$AU$8),"A",IF(E66>=TRUNC(0.5*$AU$8),"B",IF(E66>=TRUNC(0.25*$AU$8),"C",IF(E66<TRUNC(0.25*$AU$8),"D","")))),""),"") -> B | F95: D | G95: B | H95: D | I95: A | J95: D | K95: D | L95: D | M95: A | N95: D | O95: D | P95: D | Q95: D | R95: D | S95: D | T95: D | U95: D | V95: D | W95: D | X95: D | Y95: D | Z95: D | AA95: D | AB95: D | AC95: D | AD95: D | AE95: D | BL95: spočíta mutuály pozitívne v kategóriách pre z-skóre | CL95: xi
C96: Prekódované pre Target graf 4 Q_2 | D96: =IF(D76<>"",IF(D66<>"",IF(D66>=TRUNC(0.75*$AU$8),15,IF(D66>=TRUNC(0.5*$AU$8),40,IF(D66>=TRUNC(0.25*$AU$8),56,IF(D66<TRUNC(0.25*$AU$8),73,"")))),""),"") -> 73 | E96: =IF(E76<>"",IF(E66<>"",IF(E66>=TRUNC(0.75*$AU$8),15,IF(E66>=TRUNC(0.5*$AU$8),40,IF(E66>=TRUNC(0.25*$AU$8),56,IF(E66<TRUNC(0.25*$AU$8),73,"")))),""),"") -> 40 | F96: 73 | G96: 40 | H96: 73 | I96: 15 | J96: 73 | K96: 73 | L96: 73 | M96: 15 | N96: 73 | O96: 73 | P96: 73 | Q96: 73 | R96: 73 | S96: 73 | T96: 73 | U96: 73 | V96: 73 | W96: 73 | X96: 73 | Y96: 73 | Z96: 73 | AA96: 73 | AB96: 73 | AC96: 73 | AD96: 73 | AE96: 73 | AW96: 1 | AX96: 2 | AY96: 3 | AZ96: 4 | BA96: 5 | BB96: 6 | BC96: 7 | BD96: 8 | BE96: 9 | BF96: 10 | BG96: 11 | BH96: 12 | BI96: 13 | BJ96: 14 | BK96: 15 | BL96: 16 | BM96: 17 | BN96: 18 | BO96: 19 | BP96: 20 | BQ96: 21 | BR96: 22 | BS96: 23 | BT96: 24 | BU96: 25 | BV96: 26 | BW96: 27 | BX96: 28 | BY96: 29 | BZ96: 30 | CA96: 31 | CB96: 32 | CC96: 33 | CD96: 34 | CE96: 35 | CF96: 36 | CG96: 37 | CH96: 38 | CI96: 39 | CJ96: 40 | CK96: Suma | CL96: AM | CM96: AM all | CN96: SD all | CO96: z-skóre | CP96: kategória
AW97: =IF(D79="OPO",D65,"") ->  | AX97: 0 | BB97: 0 | BF97: 0 | BH97: 0 | BL97: 0 | BM97: 0 | BT97: 0 | CK97: =SUM(AW97:CJ97) -> 0 | CL97: =IF(CK97>0,AVERAGE(AW97:CJ97),"") ->  | CM97: =AS65 -> 0.8571428571 | CN97: =AT65 -> 0.9704632614 | CO97: =IF(CK97>0,(CL97-CM97)/CN97,"") ->  | CP97: OPO Fila | CQ97: 1
A98: Podľa Group Dynamnics | C98: Algoritmus 5 Target | AW98: =IF(D80="POP",D65,"") ->  | BC98: 2 | BE98: 1 | BN98: 3 | BS98: 3 | BU98: 3 | BV98: 2 | BX98: 0 | CK98: 14 | CL98: 2 | CM98: =AS65 -> 0.8571428571 | CN98: =AT65 -> 0.9704632614 | CO98: 1.177640812 | CP98: POP | CQ98: 2
A99: Mutual acceptance | B99: Cs+ | C99: Index sociability P | D99: =IF($B$2<>0,IF(D76<>"",IF(D65<>"",D65/($B$2),""),""),"") -> 0.3333333333 | E99: =IF($B$2<>0,IF(E76<>"",IF(E65<>"",E65/($B$2),""),""),"") -> 0 | F99: 0.3333333333 | G99: 0.3333333333 | H99: 0.3333333333 | I99: 0 | J99: 0.6666666667 | K99: 0 | L99: 0.3333333333 | M99: 0 | N99: 0 | O99: 0 | P99: 0.3333333333 | Q99: 0 | R99: 0.3333333333 | S99: 0 | T99: 0 | U99: 1 | V99: 0.3333333333 | W99: 0.3333333333 | X99: 0 | Y99: 0.3333333333 | Z99: 1 | AA99: 0 | AB99: 1 | AC99: 0.6666666667 | AD99: 0.3333333333 | AE99: 0 | AW99: =IF(D81="REJ",D65,"") ->  | AX99: 0 | AZ99: 1 | BB99: 0 | BF99: 0 | BH99: 0 | CK99: 1 | CL99: 0.2 | CM99: =AS65 -> 0.8571428571 | CN99: =AT65 -> 0.9704632614 | CO99: -0.6771434667 | CP99: REJ | CQ99: 3
C100: Index sociability P kategória | D100: =IF(D99<>"",(IF(D99>=0.75,"A",IF(D99>=0.5,"B",IF(D99>=0.25,"C",IF(D99<0.25,"D","x"))))),"") -> C | E100: D | F100: C | G100: C | H100: C | I100: D | J100: B | K100: D | L100: C | M100: D | N100: D | O100: D | P100: C | Q100: D | R100: C | S100: D | T100: D | U100: A | V100: C | W100: C | X100: D | Y100: C | Z100: A | AA100: D | AB100: A | AC100: B | AD100: C | AE100: D | AW100: =IF(D82="NEG",D65,"") ->  | CK100: 0 | CM100: =AS65 -> 0.8571428571 | CN100: =AT65 -> 0.9704632614 | CP100: NEG | CQ100: 4
C101: Prekódované pre Target graf 5 Q_2 | D101: =IF(D99<>"",(IF(D99>=0.75,15,IF(D99>=0.5,40,IF(D99>=0.25,56,IF(D99<0.25,73,"x"))))),"") -> 56 | E101: 73 | F101: 56 | G101: 56 | H101: 56 | I101: 73 | J101: 40 | K101: 73 | L101: 56 | M101: 73 | N101: 73 | O101: 73 | P101: 56 | Q101: 73 | R101: 56 | S101: 73 | T101: 73 | U101: 15 | V101: 56 | W101: 56 | X101: 73 | Y101: 56 | Z101: 15 | AA101: 73 | AB101: 15 | AC101: 40 | AD101: 56 | AE101: 73 | AW101: =IF(D83="CON",D65,"") ->  | CK101: 0 | CM101: =AS65 -> 0.8571428571 | CN101: =AT65 -> 0.9704632614 | CP101: CON | CQ101: 5
AW102: =IF(D84="AVE",D65,"") -> 1 | AY102: 1 | BA102: 1 | BD102: 0 | BG102: 0 | BI102: 1 | BJ102: 0 | BK102: 1 | BL102: 0 | BM102: 0 | BO102: 1 | BP102: 1 | BQ102: 0 | BR102: 1 | BT102: 0 | BW102: 1 | CK102: 9 | CL102: 0.5625 | CM102: =AS65 -> 0.8571428571 | CN102: =AT65 -> 0.9704632614 | CO102: -0.3036105217 | CP102: AVE | CQ102: 6
A103: Podľa Group Dynamnics | C103: Algoritmus 6 Target | AW103: =IF(D85="OPO",D65,"") ->  | BL103: 0 | BM103: 0 | BT103: 0 | CK103: 0 | CM103: =AS65 -> 0.8571428571 | CN103: =AT65 -> 0.9704632614 | CP103: OPO Walsh | CQ103: 7
A104: Mutual rejection | B104: Cs– | C104: Index odmietania N | D104: =IF($B$2<>0,IF(D76<>"",IF(D68<>"",D68/$B$2,""),""),"") -> 0.3333333333 | E104: =IF($B$2<>0,IF(E76<>"",IF(E68<>"",E68/$B$2,""),""),"") -> 1 | F104: 0 | G104: 0.6666666667 | H104: 0 | I104: 0.6666666667 | J104: 0 | K104: 0 | L104: 0 | M104: 0.6666666667 | N104: 0 | O104: 0.3333333333 | P104: 0 | Q104: 0 | R104: 0 | S104: 0 | T104: 0.3333333333 | U104: 0 | V104: 0 | W104: 0 | X104: 0 | Y104: 0 | Z104: 0 | AA104: 0 | AB104: 0 | AC104: 0 | AD104: 0 | AE104: 0 | BL104: spočíta mutuály negatívne v kategóriách pre z-skóre | CL104: xi
C105: Index odmietania P kategória | D105: =IF(D104<>"",(IF(D104>=0.75,"A",IF(D104>=0.5,"B",IF(D104>=0.25,"C",IF(D104<0.25,"D","x"))))),"") -> C | E105: =IF(E104<>"",(IF(E104>=0.75,"A",IF(E104>=0.5,"B",IF(E104>=0.25,"C",IF(E104<0.25,"D","x"))))),"") -> A | F105: D | G105: B | H105: D | I105: B | J105: D | K105: D | L105: D | M105: B | N105: D | O105: C | P105: D | Q105: D | R105: D | S105: D | T105: C | U105: D | V105: D | W105: D | X105: D | Y105: D | Z105: D | AA105: D | AB105: D | AC105: D | AD105: D | AE105: D | AW105: 1 | AX105: 2 | AY105: 3 | AZ105: 4 | BA105: 5 | BB105: 6 | BC105: 7 | BD105: 8 | BE105: 9 | BF105: 10 | BG105: 11 | BH105: 12 | BI105: 13 | BJ105: 14 | BK105: 15 | BL105: 16 | BM105: 17 | BN105: 18 | BO105: 19 | BP105: 20 | BQ105: 21 | BR105: 22 | BS105: 23 | BT105: 24 | BU105: 25 | BV105: 26 | BW105: 27 | BX105: 28 | BY105: 29 | BZ105: 30 | CA105: 31 | CB105: 32 | CC105: 33 | CD105: 34 | CE105: 35 | CF105: 36 | CG105: 37 | CH105: 38 | CI105: 39 | CJ105: 40 | CK105: Suma | CL105: AM | CM105: AM all | CN105: SD all | CO105: z-skóre | CP105: kategória
C106: Prekódované pre Target graf 6 Q_2 | D106: =IF(D104<>"",(IF(D104>=0.75,15,IF(D104>=0.5,40,IF(D104>=0.25,56,IF(D104<0.25,73,"x"))))),"") -> 56 | E106: 15 | F106: 73 | G106: 40 | H106: 73 | I106: 40 | J106: 73 | K106: 73 | L106: 73 | M106: 40 | N106: 73 | O106: 56 | P106: 73 | Q106: 73 | R106: 73 | S106: 73 | T106: 56 | U106: 73 | V106: 73 | W106: 73 | X106: 73 | Y106: 73 | Z106: 73 | AA106: 73 | AB106: 73 | AC106: 73 | AD106: 73 | AE106: 73 | AW106: =IF(D79="OPO",D68,"") ->  | AX106: 3 | BB106: 2 | BF106: 2 | BH106: 1 | BL106: 0 | BM106: 1 | BT106: 0 | CK106: =SUM(AW106:CJ106) -> 9 | CL106: =IF(CK106>0,AVERAGE(AW106:CJ106),"") -> 1.285714286 | CM106: =AS68 -> 0.4285714286 | CN106: =AT68 -> 0.835710894 | CO106: =IF(CK106>0,(CL106-CM106)/CN106,"") -> 1.025645188 | CP106: OPO Fila | CQ106: 1
A107: 1 | B107: 2 | AW107: =IF(D80="POP",D68,"") ->  | BC107: 0 | BE107: 0 | BN107: 0 | BS107: 0 | BU107: 0 | BV107: 0 | BX107: 0 | CK107: 0 | CM107: =AS68 -> 0.4285714286 | CN107: =AT68 -> 0.835710894 | CP107: POP | CQ107: 2
AW108: =IF(D81="REJ",D68,"") ->  | AX108: 3 | AZ108: 2 | BB108: 2 | BF108: 2 | BH108: 1 | CK108: 10 | CL108: 2 | CM108: =AS68 -> 0.4285714286 | CN108: =AT68 -> 0.835710894 | CO108: 1.880349512 | CP108: REJ | CQ108: 3
A109: Podľa Group Dynamnics | C109: Algoritmus 1 Target | AW109: =IF(D82="NEG",D68,"") ->  | CK109: 0 | CM109: =AS68 -> 0.4285714286 | CN109: =AT68 -> 0.835710894 | CP109: NEG | CQ109: 4
C110: Frequenties of positive questions | AW110: =IF(D83="CON",D68,"") ->  | CK110: 0 | CM110: =AS68 -> 0.4285714286 | CN110: =AT68 -> 0.835710894 | CP110: CON | CQ110: 5
AW111: =IF(D84="AVE",D68,"") -> 1 | AY111: 0 | BA111: 0 | BD111: 0 | BG111: 0 | BI111: 0 | BJ111: 0 | BK111: 0 | BL111: 0 | BM111: 1 | BO111: 0 | BP111: 0 | BQ111: 0 | BR111: 0 | BT111: 0 | BW111: 0 | CK111: 2 | CL111: 0.125 | CM111: =AS68 -> 0.4285714286 | CN111: =AT68 -> 0.835710894 | CO111: -0.3632493375 | CP111: AVE | CQ111: 6
B112: A | C112: Popular "A" | D112: =IF(D76<>"",IF(D63<>"",IF(D63>3,IF(D66<=1,"A",""),""),""),"") ->  | E112: =IF(E76<>"",IF(E63<>"",IF(E63>3,IF(E66<=1,"A",""),""),""),"") ->  | J112: A | K112: A | L112: A | U112: A | AB112: A | AC112: A | AE112: A | AW112: =IF(D85="OPO",D68,"") ->  | BL112: 0 | BM112: 1 | BT112: 0 | CK112: 1 | CL112: 0.3333333333 | CM112: =AS68 -> 0.4285714286 | CN112: =AT68 -> 0.835710894 | CO112: -0.1139605765 | CP112: OPO Walsh | CQ112: 7
B113: B | C113: Liked more than disliked "B" | D113: =IF(D76<>"",IF(D63<>"",IF(D63>D66,IF(D112<>"A","B",""),""),""),"") ->  | E113: =IF(E76<>"",IF(E63<>"",IF(E63>E66,IF(E112<>"A","B",""),""),""),"") ->  | F113: B | N113: B | P113: B | Q113: B | R113: B | V113: B | X113: B | Y113: B | Z113: B | AD113: B
B114: C | C114: Disliked more than liked "C" | D114: =IF(D76<>"",IF(D63<>"",IF(D63<D66,IF(D112<>"A",IF(D116<>"E","C",""),""),""),""),"") ->  | E114: =IF(E76<>"",IF(E63<>"",IF(E63<E66,IF(E112<>"A",IF(E116<>"E","C",""),""),""),""),"") ->  | H114: C | S114: C | T114: C | AA114: C
B115: D | C115: Controversial "D" | D115: =IF(D76<>"",IF(D63<>"",IF(D63>0,IF(D63>0,IF(D63=D66,IF(D112<>"A","D",""),""),""),""),""),"") -> D | E115: =IF(E76<>"",IF(E63<>"",IF(E63>0,IF(E63>0,IF(E63=E66,IF(E112<>"A","D",""),""),""),""),""),"") ->  | W115: D
B116: E | C116: Rejected "E" | D116: =IF(D76<>"",IF(D63<>"",IF(D63<=1,IF(D66>3,"E",""),""),""),"") ->  | E116: =IF(E76<>"",IF(E63<>"",IF(E63<=1,IF(E66>3,"E",""),""),""),"") -> E | G116: E | I116: E | M116: E | O116: E
B117: F | C117: Neglected "F" | D117: =IF(D76<>"",IF(D63<>"",IF(D63=0,IF(D66=0,"F",""),""),""),"") ->  | E117: =IF(E76<>"",IF(E63<>"",IF(E63=0,IF(E66=0,"F",""),""),""),"") -> 
C118: Pomo B | D118: =IF(D75=0,IF(D76=0,"B",""),IF(D113="B","B","")) ->  | E118: =IF(E75=0,IF(E76=0,"B",""),IF(E113="B","B","")) ->  | F118: B | N118: B | P118: B | Q118: B | R118: B | V118: B | X118: B | Y118: B | Z118: B | AD118: B
C119: Prekódované pre Target graf 1 Q_2 | D119: =IF(D117="F",87,IF(D115="D",60,IF(D116="E",74,IF(D114="C",46,IF(D112="A",13,IF(D113="B",33,IF(D118="B",33,""))))))) -> 60 | E119: 74 | F119: 33 | G119: 74 | H119: 46 | I119: 74 | J119: 13 | K119: 13 | L119: 13 | M119: 74 | N119: 33 | O119: 74 | P119: 33 | Q119: 33 | R119: 33 | S119: 46 | T119: 46 | U119: 13 | V119: 33 | W119: 60 | X119: 33 | Y119: 33 | Z119: 33 | AA119: 46 | AB119: 13 | AC119: 13 | AD119: 33 | AE119: 13
A120: Otázka č.3 | AS120: AM | AT120: SD | AU120: MAX
A121: Q_3_P | B121: Sel_p_r | C121: =CONCATENATE($BJ$3, " P") -> P | D121: 1 | E121: 0 | F121: 2 | G121: 0 | H121: 4 | I121: 2 | J121: 4 | K121: 4 | L121: 5 | M121: 3 | N121: 4 | O121: 4 | P121: 0 | Q121: 1 | R121: 1 | S121: 4 | T121: 1 | U121: 5 | V121: 2 | W121: 3 | X121: 4 | Y121: 3 | Z121: 9 | AA121: 1 | AB121: 3 | AC121: 1 | AD121: 6 | AE121: 4 | AR121: =SUM(D121:AQ121) -> 81 | AS121: =IF(AR121>0,AVERAGE(D121:AQ121),"") -> 2.892857143 | AT121: =IF(AR121>0,STDEV(D121:AQ121),"") -> 2.060911084 | AU121: =MAX(D121:AQ121) -> 9
A122: Q_3_P | B122: Sel_p_g | C122: =CONCATENATE($BJ$3, " P") -> P | D122: 3 | E122: 3 | F122: 3 | G122: 3 | H122: 3 | I122: 3 | J122: 3 | K122: 3 | L122: 3 | M122: 3 | N122: 3 | O122: 3 | P122: 3 | Q122: 3 | R122: 3 | S122: 3 | T122: 3 | U122: 3 | V122: 3 | W122: 3 | X122: 3 | Y122: 3 | Z122: 3 | AA122: 3 | AB122: 3 | AC122: 3 | AD122: 3 | AE122: 0 | AR122: =SUM(D122:AQ122) -> 81 | AS122: =IF(AR121>0,AVERAGE(D122:AQ122),"") -> 2.892857143 | AT122: =IF(AR121>0,STDEV(D122:AQ122),"") -> 0.5669467095
A123: Q_3_P | B123: Rec_p | C123: =CONCATENATE($BJ$3, " mutual P") -> mutual P | D123: 1 | E123: 0 | F123: 2 | G123: 0 | H123: 1 | I123: 1 | J123: 2 | K123: 1 | L123: 1 | M123: 3 | N123: 2 | O123: 0 | P123: 0 | Q123: 0 | R123: 0 | S123: 1 | T123: 0 | U123: 3 | V123: 1 | W123: 0 | X123: 1 | Y123: 0 | Z123: 2 | AA123: 1 | AB123: 1 | AC123: 0 | AD123: 2 | AE123: 0 | AR123: 26 | AS123: =IF(AR121>0,AVERAGE(D123:AQ123),"") -> 0.9285714286 | AT123: =IF(AR121>0,STDEV(D123:AQ123),"") -> 0.9399988743
A124: Q_3_N | B124: Sel_n_r | C124: =CONCATENATE($BJ$3, " N") -> N | D124: 1 | E124: 12 | F124: 0 | G124: 6 | H124: 2 | I124: 15 | J124: 2 | K124: 1 | L124: 0 | M124: 16 | N124: 1 | O124: 1 | P124: 0 | Q124: 0 | R124: 2 | S124: 2 | T124: 2 | U124: 2 | V124: 1 | W124: 2 | X124: 1 | Y124: 1 | Z124: 1 | AA124: 2 | AB124: 2 | AC124: 0 | AD124: 6 | AE124: 0 | AR124: 81 | AS124: =IF(AR121>0,AVERAGE(D124:AQ124),"") -> 2.892857143 | AT124: =IF(AR121>0,STDEV(D124:AQ124),"") -> 4.331959489 | AU124: =MAX(D124:AQ124) -> 16
A125: Q_3_N | B125: Sel_n_g | C125: =CONCATENATE($BJ$3, " N") -> N | D125: 3 | E125: 3 | F125: 3 | G125: 3 | H125: 3 | I125: 3 | J125: 3 | K125: 3 | L125: 3 | M125: 3 | N125: 3 | O125: 3 | P125: 3 | Q125: 3 | R125: 3 | S125: 3 | T125: 3 | U125: 3 | V125: 3 | W125: 3 | X125: 3 | Y125: 3 | Z125: 3 | AA125: 3 | AB125: 3 | AC125: 3 | AD125: 3 | AE125: 0 | AR125: 81 | AS125: =IF(AR121>0,AVERAGE(D125:AQ125),"") -> 2.892857143 | AT125: =IF(AR121>0,STDEV(D125:AQ125),"") -> 0.5669467095
A126: Q_3_N | B126: Rec_n | C126: =CONCATENATE($BJ$3, " mutual N") -> mutual N | D126: 1 | E126: 1 | F126: 0 | G126: 0 | H126: 0 | I126: 3 | J126: 0 | K126: 0 | L126: 0 | M126: 3 | N126: 1 | O126: 0 | P126: 0 | Q126: 0 | R126: 1 | S126: 1 | T126: 2 | U126: 1 | V126: 0 | W126: 0 | X126: 0 | Y126: 0 | Z126: 0 | AA126: 0 | AB126: 1 | AC126: 0 | AD126: 1 | AE126: 0 | AR126: 16 | AS126: =IF(AR121>0,AVERAGE(D126:AQ126),"") -> 0.5714285714 | AT126: =IF(AR121>0,STDEV(D126:AQ126),"") -> 0.8789122667
A127: Q_3 | B127: IZO p | C127: =CONCATENATE($BJ$3, " izolovaní P") -> izolovaní P | D127: =IF(D133<>"",IF(D121<>"",IF(D121 = 0,IF(D122 = 0,1,""),""),""),"") ->  | E127: =IF(E133<>"",IF(E121<>"",IF(E121 = 0,IF(E122 = 0,1,""),""),""),"") ->  | AR127: 0
A128: Q_3 | B128: OPO p | C128: =CONCATENATE($BJ$3, " opomenutí P") -> opomenutí P | D128: =IF(D121<>"",IF(D121 = 0,IF(D122 > 0,1,""),""),"") ->  | E128: =IF(E121<>"",IF(E121 = 0,IF(E122 > 0,1,""),""),"") -> 1 | G128: 1 | P128: 1 | AR128: 3
A129: Q_3 | B129: IZO n | C129: =CONCATENATE($BJ$3, " izolovaní N") -> izolovaní N | D129: =IF(D134<>"",IF(D124<>"",IF(D124 = 0,IF(D125 = 0,1," ")," ")," "),"") ->  | E129: =IF(E134<>"",IF(E124<>"",IF(E124 = 0,IF(E125 = 0,1," ")," ")," "),"") ->  | AE129: 1 | AR129: 1
A130: Q_3 | B130: OPO n | C130: =CONCATENATE($BJ$3, " opomenutí N") -> opomenutí N | D130: =IF(D124<>"",IF(D124 = 0,IF(D125 > 0,1," ")," ")," ") ->  | F130: 1 | L130: 1 | P130: 1 | Q130: 1 | AC130: 1 | AR130: 5
A131: Podľa Walsha | B131: Social preference and social Impact
A132: Algoritmus 2 používa Group aj Walsh
A133: Q_3 | B133: zLM | C133: z-skóre P | D133: =IF($AT$121<>"",IF(D121<>"",(D121-$AS$121)/$AT$121,""),"") -> -0.9184564814 | E133: =IF($AT$121<>"",IF(E121<>"",(E121-$AS$121)/$AT$121,""),"") -> -1.403678773 | F133: -0.4332341893 | G133: -1.403678773 | H133: 0.5372103948 | I133: -0.4332341893 | J133: 0.5372103948 | K133: 0.5372103948 | L133: 1.022432687 | M133: 0.05198810272 | N133: 0.5372103948 | O133: 0.5372103948 | P133: -1.403678773 | Q133: -0.9184564814 | R133: -0.9184564814 | S133: 0.5372103948 | T133: -0.9184564814 | U133: 1.022432687 | V133: -0.4332341893 | W133: 0.05198810272 | X133: 0.5372103948 | Y133: 0.05198810272 | Z133: 2.963321855 | AA133: -0.9184564814 | AB133: 0.05198810272 | AC133: -0.9184564814 | AD133: 1.507654979 | AE133: 0.5372103948
A134: Q_3 | B134: zLL | C134: z-skóre N | D134: =IF($AT$124<>"",IF($AT$124<>0,IF(D124<>"",(D124-$AS$124)/$AT$124,""),""),"") -> -0.4369517184 | E134: =IF($AT$124<>"",IF($AT$124<>0,IF(E124<>"",(E124-$AS$124)/$AT$124,""),""),"") -> 2.102314872 | F134: -0.6677941357 | G134: 0.7172603679 | H134: -0.2061093011 | I134: 2.794842123 | J134: -0.2061093011 | K134: -0.4369517184 | L134: -0.6677941357 | M134: 3.025684541 | N134: -0.4369517184 | O134: -0.4369517184 | P134: -0.6677941357 | Q134: -0.6677941357 | R134: -0.2061093011 | S134: -0.2061093011 | T134: -0.2061093011 | U134: -0.2061093011 | V134: -0.4369517184 | W134: -0.2061093011 | X134: -0.4369517184 | Y134: -0.4369517184 | Z134: -0.4369517184 | AA134: -0.2061093011 | AB134: -0.2061093011 | AC134: -0.6677941357 | AD134: 0.7172603679 | AE134: -0.6677941357
A135: Q_3 | B135: SP | C135: Social preference (zLM - zLL) | D135: =IF(D134<>"",IF(D133<>"",D133-D134,""),"") -> -0.4815047629 | E135: =IF(E134<>"",IF(E133<>"",E133-E134,""),"") -> -3.505993645 | F135: 0.2345599464 | G135: -2.120939141 | H135: 0.7433196959 | I135: -3.228076313 | J135: 0.7433196959 | K135: 0.9741621132 | L135: 1.690226822 | M135: -2.973696438 | N135: 0.9741621132 | O135: 0.9741621132 | P135: -0.7358846377 | Q135: -0.2506623457 | R135: -0.7123471802 | S135: 0.7433196959 | T135: -0.7123471802 | U135: 1.228541988 | V135: 0.003717529088 | W135: 0.2580974039 | X135: 0.9741621132 | Y135: 0.4889398211 | Z135: 3.400273573 | AA135: -0.7123471802 | AB135: 0.2580974039 | AC135: -0.2506623457 | AD135: 0.7903946109 | AE135: 1.20500453 | BL135: spočíta pozitívne v kategóriách pre z-skóre | CL135: xi | CM135: všetky | CN135: všetky
A136: Q_3 | B136: SI | C136: Social impact (zLM + zLL) | D136: =IF(D134<>"",IF(D133<>"",D133+D134,""),"") -> -1.3554082 | E136: =IF(E134<>"",IF(E133<>"",E133+E134,""),"") -> 0.6986360982 | F136: -1.101028325 | G136: -0.6864184054 | H136: 0.3311010936 | I136: 2.361607934 | J136: 0.3311010936 | K136: 0.1002586763 | L136: 0.3546385511 | M136: 3.077672643 | N136: 0.1002586763 | O136: 0.1002586763 | P136: -2.071472909 | Q136: -1.586250617 | R136: -1.124565782 | S136: 0.3311010936 | T136: -1.124565782 | U136: 0.8163233857 | V136: -0.8701859077 | W136: -0.1541211984 | X136: 0.1002586763 | Y136: -0.3849636157 | Z136: 2.526370137 | AA136: -1.124565782 | AB136: -0.1541211984 | AC136: -1.586250617 | AD136: 2.224915347 | AE136: -0.1305837409 | AW136: 1 | AX136: 2 | AY136: 3 | AZ136: 4 | BA136: 5 | BB136: 6 | BC136: 7 | BD136: 8 | BE136: 9 | BF136: 10 | BG136: 11 | BH136: 12 | BI136: 13 | BJ136: 14 | BK136: 15 | BL136: 16 | BM136: 17 | BN136: 18 | BO136: 19 | BP136: 20 | BQ136: 21 | BR136: 22 | BS136: 23 | BT136: 24 | BU136: 25 | BV136: 26 | BW136: 27 | BX136: 28 | BY136: 29 | BZ136: 30 | CA136: 31 | CB136: 32 | CC136: 33 | CD136: 34 | CE136: 35 | CF136: 36 | CG136: 37 | CH136: 38 | CI136: 39 | CJ136: 40 | CK136: Suma | CL136: AM | CM136: AM all | CN136: SD all | CO136: z-skóre | CP136: kategória
C137: OPOMENUTÍ FILA | D137: =IF(D134<>"",IF(D121<>"",IF(D121 = 0,IF(D122 > 0,"OPO"," ")," ")," "),"") ->  | E137: =IF(E134<>"",IF(E121<>"",IF(E121 = 0,IF(E122 > 0,"OPO"," ")," ")," "),"") -> OPO | G137: OPO | P137: OPO | AR137: =COUNTIF(D137:AQ137,"OPO") -> 3 | AW137: =IF(D137="OPO",D121," ") ->  | AX137: =IF(E137="OPO",E121,"") -> 0 | AZ137: 0 | BI137: 0 | CK137: =SUM(AW137:CJ137) -> 0 | CL137: =IF(CK137>0,AVERAGE(AW137:CJ137),"") ->  | CM137: =AS121 -> 2.892857143 | CN137: =AT121 -> 2.060911084 | CO137: =IF(CK137>0,(CL137-CM137)/CN137,"") ->  | CP137: OPO Fila | CQ137: 1
C138: POPULAR | D138: =IF(D134<>"",IF(D135>1,IF(D133>0,IF(D134<0,"POP",""),""),""),"") ->  | E138: =IF(E134<>"",IF(E135>1,IF(E133>0,IF(E134<0,"POP",""),""),""),"") ->  | L138: POP | U138: POP | Z138: POP | AE138: POP | AR138: =COUNTIF(D138:AQ138,"POP") -> 4 | AW138: =IF(D138="POP",D121,"") ->  | BE138: 5 | BN138: 5 | BS138: 9 | BX138: 4 | CK138: =SUM(AW138:CJ138) -> 23 | CL138: 5.75 | CM138: =AS121 -> 2.892857143 | CN138: =AT121 -> 2.060911084 | CO138: 1.386349406 | CP138: POP | CQ138: 2
C139: REJECTED | D139: =IF(D134<>"",IF(D135<-1,IF(D133<0,IF(D134>0,"REJ",""),""),""),"") ->  | E139: =IF(E134<>"",IF(E135<-1,IF(E133<0,IF(E134>0,"REJ",""),""),""),"") -> REJ | G139: REJ | I139: REJ | AR139: =COUNTIF(D139:AQ139,"REJ") -> 3 | AW139: =IF(D139="REJ",D121,"") ->  | AX139: 0 | AZ139: 0 | BB139: 2 | CK139: 2 | CL139: 0.6666666667 | CM139: =AS121 -> 2.892857143 | CN139: =AT121 -> 2.060911084 | CO139: -1.080197245 | CP139: REJ | CQ139: 3
C140: NEGLECTED | D140: =IF(D134<>"",IF(D136<-1,IF(D133=0,IF(D134=0,"NEG",""),""),""),"") ->  | E140: =IF(E134<>"",IF(E136<-1,IF(E133=0,IF(E134=0,"NEG",""),""),""),"") ->  | AR140: =COUNTIF(D140:AQ140,"NEG") -> 0 | AW140: =IF(D140="NEG",D121,"") ->  | CK140: 0 | CM140: =AS121 -> 2.892857143 | CN140: =AT121 -> 2.060911084 | CP140: NEG | CQ140: 4
C141: CONTROVERSIAL | D141: =IF(D134<>"",IF(D133<>"",IF(D136>1,IF(D133>0,IF(D134>0,"CON",""),""),""),""),"") ->  | E141: =IF(E134<>"",IF(E133<>"",IF(E136>1,IF(E133>0,IF(E134>0,"CON",""),""),""),""),"") ->  | M141: CON | AD141: CON | AR141: =COUNTIF(D141:AQ141,"CON") -> 2 | AW141: =IF(D141="CON",D121,"") ->  | CK141: 0 | CM141: =AS121 -> 2.892857143 | CN141: =AT121 -> 2.060911084 | CP141: CON | CQ141: 5
A142: *zmenený vzorec | C142: AVERAGE STATUS | D142: =IF(D133<>"",IF(D138<>"POP",IF(D139<>"REJ",IF(D140<>"NEG",IF(D141<>"CON","AVE",""),""),""),""),"") -> AVE | F142: AVE | H142: AVE | J142: AVE | K142: AVE | N142: AVE | O142: AVE | P142: AVE | Q142: AVE | R142: AVE | S142: AVE | T142: AVE | V142: AVE | W142: AVE | X142: AVE | Y142: AVE | AA142: AVE | AB142: AVE | AC142: AVE | AR142: =COUNTIF(D142:AQ142,"AVE") -> 19 | AW142: =IF(D142="AVE",D121,"") -> 1 | AY142: 2 | BA142: 4 | BC142: 4 | BD142: 4 | BG142: 4 | BH142: 4 | BI142: 0 | BJ142: 1 | BK142: 1 | BL142: 4 | BM142: 1 | BO142: 2 | BP142: 3 | BQ142: 4 | BR142: 3 | BT142: 1 | BU142: 3 | BV142: 1 | CK142: 47 | CL142: 2.473684211 | CM142: =AS121 -> 2.892857143 | CN142: =AT121 -> 2.060911084 | CO142: -0.203392051 | CP142: AVE | CQ142: 6
C143: OPOMENUTÍ WALSH | D143: =IF(D139<>"REJ",IF(D134<>"",IF(D121<>"",IF(D121 = 0,IF(D122 > 0,"OPO"," ")," ")," "),""),"") ->  | E143: =IF(E139<>"REJ",IF(E134<>"",IF(E121<>"",IF(E121 = 0,IF(E122 > 0,"OPO"," ")," ")," "),""),"") ->  | P143: OPO | AR143: =COUNTIF(D143:AQ143,"OPO") -> 1 | AW143: =IF(D143="OPO",D121,"") ->  | BI143: 0 | CK143: 0 | CM143: =AS121 -> 2.892857143 | CN143: =AT121 -> 2.060911084 | CP143: OPO Walsh | CQ143: 7
C144: IZOLOVANÍ | D144: =IF(D133<>"",IF(D134<>"",IF(D121<>"",IF(D121 = 0,IF(D122 = 0,"IZO","")," ")," "),""),"") ->  | E144: =IF(E133<>"",IF(E134<>"",IF(E121<>"",IF(E121 = 0,IF(E122 = 0,"IZO","")," ")," "),""),"") ->  | AR144: =COUNTIF(D144:AQ144,"IZO") -> 0 | BL144: spočíta negatívne v kategóriách pre z-skóre | CL144: xi | CM144: všetky | CN144: všetky
D145: =IF(D141="CON","CON",IF(D138="POP","POP","")) ->  | E145: =IF(E141="CON","CON",IF(E138="POP","POP","")) ->  | L145: POP | M145: CON | U145: POP | Z145: POP | AC145: =IF(AC138="POP","POP","") ->  | AE145: POP | AW145: 1 | AX145: 2 | AY145: 3 | AZ145: 4 | BA145: 5 | BB145: 6 | BC145: 7 | BD145: 8 | BE145: 9 | BF145: 10 | BG145: 11 | BH145: 12 | BI145: 13 | BJ145: 14 | BK145: 15 | BL145: 16 | BM145: 17 | BN145: 18 | BO145: 19 | BP145: 20 | BQ145: 21 | BR145: 22 | BS145: 23 | BT145: 24 | BU145: 25 | BV145: 26 | BW145: 27 | BX145: 28 | BY145: 29 | BZ145: 30 | CA145: 31 | CB145: 32 | CC145: 33 | CD145: 34 | CE145: 35 | CF145: 36 | CG145: 37 | CH145: 38 | CI145: 39 | CJ145: 40 | CK145: Suma | CL145: AM | CM145: AM all | CN145: SD all | CO145: z-skóre | CP145: kategória
C146: Prekódované pre Target graf 2 Q_3 | D146: =IF(D138="POP",13,IF(D139="REJ",33,IF(D140="NEG",46,IF(D141="CON",60,IF(D142="AVE",74,IF(D137="OPO",46,"")))))) -> 74 | E146: 33 | F146: 74 | G146: 33 | H146: 74 | I146: 33 | J146: 74 | K146: 74 | L146: 13 | M146: 60 | N146: 74 | O146: 74 | P146: 74 | Q146: 74 | R146: 74 | S146: =IF(S138="POP",13,IF(S139="REJ",33,IF(S140="NEG",46,IF(S141="CON",60,IF(S142="AVE",74,IF(S137="OPO",46,"")))))) -> 74 | T146: =IF(T138="POP",13,IF(T139="REJ",33,IF(T140="NEG",46,IF(T141="CON",60,IF(T142="AVE",74,IF(T137="OPO",46,"")))))) -> 74 | U146: 13 | V146: 74 | W146: 74 | X146: 74 | Y146: 74 | Z146: 13 | AA146: 74 | AB146: 74 | AC146: 74 | AD146: 60 | AE146: 13 | AW146: =IF(D137="OPO",D124,"") ->  | AX146: 12 | AZ146: 6 | BI146: 0 | CK146: =SUM(AW146:CJ146) -> 18 | CL146: =IF(CK146>0,AVERAGE(AW146:CJ146),"") -> 6 | CM146: =AS124 -> 2.892857143 | CN146: =AT124 -> 4.331959489 | CO146: =IF(CK146>0,(CL146-CM146)/CN146,"") -> 0.7172603679 | CP146: OPO Fila | CQ146: 1
D147: =IF(D141="CON","CON",IF(D139="REJ","REJ","")) ->  | E147: =IF(E141="CON","CON",IF(E139="REJ","REJ","")) -> REJ | G147: REJ | I147: REJ | M147: CON | AW147: =IF(D138="POP",D124,"") ->  | BE147: 0 | BN147: 2 | BS147: 1 | BX147: 0 | CK147: 3 | CL147: 0.75 | CM147: =AS124 -> 2.892857143 | CN147: =AT124 -> 4.331959489 | CO147: -0.4946623227 | CP147: POP | CQ147: 2
A148: Podľa Group Dynamnics | C148: Algoritmus 3 Target | AW148: =IF(D139="NEG",D124,"") ->  | CK148: 0 | CM148: =AS124 -> 2.892857143 | CN148: =AT124 -> 4.331959489 | CP148: REJ | CQ148: 3
A149: Recieved accteptance | C149: Kategórie | D149: =IF(D134<>"",IF(D121<>"",IF(D121>=TRUNC(0.75*$AU$5),"A",IF(D121>=TRUNC(0.5*$AU$5),"B",IF(D121>=TRUNC(0.25*$AU$5),"C",IF(D121<TRUNC(0.25*$AU$5),"D","")))),""),"") -> D | E149: =IF(E134<>"",IF(E121<>"",IF(E121>=TRUNC(0.75*$AU$5),"A",IF(E121>=TRUNC(0.5*$AU$5),"B",IF(E121>=TRUNC(0.25*$AU$5),"C",IF(E121<TRUNC(0.25*$AU$5),"D","")))),""),"") -> D | F149: C | G149: D | H149: C | I149: C | J149: C | K149: C | L149: B | M149: C | N149: C | O149: C | P149: D | Q149: D | R149: D | S149: C | T149: D | U149: B | V149: C | W149: C | X149: C | Y149: C | Z149: A | AA149: D | AB149: C | AC149: D | AD149: B | AE149: C | AW149: =IF(D140="CON",D124,"") ->  | CK149: 0 | CM149: =AS124 -> 2.892857143 | CN149: =AT124 -> 4.331959489 | CP149: NEG | CQ149: 4
C150: Prekódované pre Target graf 3 Q_3 | D150: =IF(D134<>"",IF(D121<>"",IF(D121>=TRUNC(0.75*$AU$5),15,IF(D121>=TRUNC(0.5*$AU$5),40,IF(D121>=TRUNC(0.25*$AU$5),56,IF(D121<TRUNC(0.25*$AU$5),73,"")))),""),"") -> 73 | E150: =IF(E134<>"",IF(E121<>"",IF(E121>=TRUNC(0.75*$AU$5),15,IF(E121>=TRUNC(0.5*$AU$5),40,IF(E121>=TRUNC(0.25*$AU$5),56,IF(E121<TRUNC(0.25*$AU$5),73,"")))),""),"") -> 73 | F150: 56 | G150: 73 | H150: 56 | I150: 56 | J150: 56 | K150: 56 | L150: 40 | M150: 56 | N150: 56 | O150: 56 | P150: 73 | Q150: 73 | R150: 73 | S150: 56 | T150: 73 | U150: 40 | V150: 56 | W150: 56 | X150: 56 | Y150: 56 | Z150: 15 | AA150: 73 | AB150: 56 | AC150: 73 | AD150: 40 | AE150: 56 | AW150: =IF(D141="NEG",D124,"") ->  | CK150: 0 | CM150: =AS124 -> 2.892857143 | CN150: =AT124 -> 4.331959489 | CP150: CON | CQ150: 5
AW151: =IF(D142="AVE",D124,"") -> 1 | AY151: 0 | BA151: 2 | BC151: 2 | BD151: 1 | BG151: 1 | BH151: 1 | BI151: 0 | BJ151: 0 | BK151: 2 | BL151: 2 | BM151: 2 | BO151: 1 | BP151: 2 | BQ151: 1 | BR151: 1 | BT151: 2 | BU151: 2 | BV151: 0 | CK151: 23 | CL151: 1.210526316 | CM151: =AS124 -> 2.892857143 | CN151: =AT124 -> 4.331959489 | CO151: -0.3883533148 | CP151: AVE | CQ151: 6
A152: Podľa Group Dynamnics | C152: Algoritmus 4 Target | AW152: =IF(D143="OPO",D124,"") ->  | BI152: 0 | CK152: 0 | CM152: =AS124 -> 2.892857143 | CN152: =AT124 -> 4.331959489 | CP152: OPO Walsh | CQ152: 7
A153: Recieved rejections | C153: Kategórie | D153: =IF(D134<>"",IF(D124<>"",IF(D124>=TRUNC(0.75*$AU$8),"A",IF(D124>=TRUNC(0.5*$AU$8),"B",IF(D124>=TRUNC(0.25*$AU$8),"C",IF(D124<TRUNC(0.25*$AU$8),"D","")))),""),"") -> D | E153: =IF(E134<>"",IF(E124<>"",IF(E124>=TRUNC(0.75*$AU$8),"A",IF(E124>=TRUNC(0.5*$AU$8),"B",IF(E124>=TRUNC(0.25*$AU$8),"C",IF(E124<TRUNC(0.25*$AU$8),"D","")))),""),"") -> B | F153: D | G153: C | H153: D | I153: A | J153: D | K153: D | L153: D | M153: A | N153: D | O153: D | P153: D | Q153: D | R153: D | S153: D | T153: D | U153: D | V153: D | W153: D | X153: D | Y153: D | Z153: D | AA153: D | AB153: D | AC153: D | AD153: C | AE153: D | BL153: spočíta mutuály pozitívne v kategóriách pre z-skóre | CL153: xi
C154: Prekódované pre Target graf 4 Q_3 | D154: =IF(D134<>"",IF(D124<>"",IF(D124>=TRUNC(0.75*$AU$8),15,IF(D124>=TRUNC(0.5*$AU$8),40,IF(D124>=TRUNC(0.25*$AU$8),56,IF(D124<TRUNC(0.25*$AU$8),73,"")))),""),"") -> 73 | E154: =IF(E134<>"",IF(E124<>"",IF(E124>=TRUNC(0.75*$AU$8),15,IF(E124>=TRUNC(0.5*$AU$8),40,IF(E124>=TRUNC(0.25*$AU$8),56,IF(E124<TRUNC(0.25*$AU$8),73,"")))),""),"") -> 40 | F154: 73 | G154: 56 | H154: 73 | I154: 15 | J154: 73 | K154: 73 | L154: 73 | M154: 15 | N154: 73 | O154: 73 | P154: 73 | Q154: 73 | R154: 73 | S154: 73 | T154: 73 | U154: 73 | V154: 73 | W154: 73 | X154: 73 | Y154: 73 | Z154: 73 | AA154: 73 | AB154: 73 | AC154: 73 | AD154: 56 | AE154: 73 | AW154: 1 | AX154: 2 | AY154: 3 | AZ154: 4 | BA154: 5 | BB154: 6 | BC154: 7 | BD154: 8 | BE154: 9 | BF154: 10 | BG154: 11 | BH154: 12 | BI154: 13 | BJ154: 14 | BK154: 15 | BL154: 16 | BM154: 17 | BN154: 18 | BO154: 19 | BP154: 20 | BQ154: 21 | BR154: 22 | BS154: 23 | BT154: 24 | BU154: 25 | BV154: 26 | BW154: 27 | BX154: 28 | BY154: 29 | BZ154: 30 | CA154: 31 | CB154: 32 | CC154: 33 | CD154: 34 | CE154: 35 | CF154: 36 | CG154: 37 | CH154: 38 | CI154: 39 | CJ154: 40 | CK154: Suma | CL154: AM | CM154: AM all | CN154: SD all | CO154: z-skóre | CP154: kategória
AW155: =IF(D137="OPO",D123,"") ->  | AX155: 0 | AZ155: 0 | BI155: 0 | CK155: =SUM(AW155:CJ155) -> 0 | CL155: =IF(CK155>0,AVERAGE(AW155:CJ155),"") ->  | CM155: =AS123 -> 0.9285714286 | CN155: =AT123 -> 0.9399988743 | CO155: =IF(CK155>0,(CL155-CM155)/CN155,"") ->  | CP155: OPO Fila | CQ155: 1
A156: Podľa Group Dynamnics | C156: Algoritmus 5 Target | AW156: =IF(D138="POP",D123,"") ->  | BE156: 1 | BN156: 3 | BS156: 2 | BX156: 0 | CK156: 6 | CL156: 1.5 | CM156: =AS123 -> 0.9285714286 | CN156: =AT123 -> 0.9399988743 | CO156: 0.6079034636 | CP156: POP | CQ156: 2
A157: Mutual acceptance | B157: Cs+ | C157: Index sociability P | D157: =IF($B$2<>0,IF(D134<>"",IF(D123<>"",D123/($B$2),""),""),"") -> 0.3333333333 | E157: =IF($B$2<>0,IF(E134<>"",IF(E123<>"",E123/($B$2),""),""),"") -> 0 | F157: 0.6666666667 | G157: 0 | H157: 0.3333333333 | I157: 0.3333333333 | J157: 0.6666666667 | K157: 0.3333333333 | L157: 0.3333333333 | M157: 1 | N157: 0.6666666667 | O157: 0 | P157: 0 | Q157: 0 | R157: 0 | S157: 0.3333333333 | T157: 0 | U157: 1 | V157: 0.3333333333 | W157: 0 | X157: 0.3333333333 | Y157: 0 | Z157: 0.6666666667 | AA157: 0.3333333333 | AB157: 0.3333333333 | AC157: 0 | AD157: 0.6666666667 | AE157: 0 | AW157: =IF(D139="REJ",D123,"") ->  | AX157: 0 | AZ157: 0 | BB157: 1 | CK157: 1 | CL157: 0.3333333333 | CM157: =AS123 -> 0.9285714286 | CN157: =AT123 -> 0.9399988743 | CO157: -0.6332327746 | CP157: REJ | CQ157: 3
C158: Index sociability P kategória | D158: =IF(D157<>"",(IF(D157>=0.75,"A",IF(D157>=0.5,"B",IF(D157>=0.25,"C",IF(D157<0.25,"D","x"))))),"") -> C | E158: D | F158: B | G158: D | H158: C | I158: C | J158: B | K158: C | L158: C | M158: A | N158: B | O158: D | P158: D | Q158: D | R158: D | S158: C | T158: D | U158: A | V158: C | W158: D | X158: C | Y158: D | Z158: B | AA158: C | AB158: C | AC158: D | AD158: B | AE158: D | AW158: =IF(D140="NEG",D123,"") ->  | CK158: 0 | CM158: =AS123 -> 0.9285714286 | CN158: =AT123 -> 0.9399988743 | CP158: NEG | CQ158: 4
C159: Prekódované pre Target graf 5 Q_3 | D159: =IF(D157<>"",(IF(D157>=0.75,15,IF(D157>=0.5,40,IF(D157>=0.25,56,IF(D157<0.25,73,"x"))))),"") -> 56 | E159: 73 | F159: 40 | G159: 73 | H159: 56 | I159: 56 | J159: 40 | K159: 56 | L159: 56 | M159: 15 | N159: 40 | O159: 73 | P159: 73 | Q159: 73 | R159: 73 | S159: 56 | T159: 73 | U159: 15 | V159: 56 | W159: 73 | X159: 56 | Y159: 73 | Z159: 40 | AA159: 56 | AB159: 56 | AC159: 73 | AD159: 40 | AE159: 73 | AW159: =IF(D141="CON",D123,"") ->  | BF159: 3 | BW159: 2 | CK159: 5 | CL159: 2.5 | CM159: =AS123 -> 0.9285714286 | CN159: =AT123 -> 0.9399988743 | CO159: 1.671734525 | CP159: CON | CQ159: 5
AW160: =IF(D142="AVE",D123,"") -> 1 | AY160: 2 | BA160: 1 | BC160: 2 | BD160: 1 | BG160: 2 | BH160: 0 | BI160: 0 | BJ160: 0 | BK160: 0 | BL160: 1 | BM160: 0 | BO160: 1 | BP160: 0 | BQ160: 1 | BR160: 0 | BT160: 1 | BU160: 1 | BV160: 0 | CK160: 14 | CL160: 0.7368421053 | CM160: =AS123 -> 0.9285714286 | CN160: =AT123 -> 0.9399988743 | CO160: -0.2039676095 | CP160: AVE | CQ160: 6
A161: Podľa Group Dynamnics | C161: Algoritmus 6 Target | AW161: =IF(D143="OPO",D123,"") ->  | BI161: 0 | CK161: 0 | CM161: =AS123 -> 0.9285714286 | CN161: =AT123 -> 0.9399988743 | CP161: OPO Walsh | CQ161: 7
A162: Mutual rejection | B162: Cs– | C162: Index odmietania N | D162: =IF($B$2<>0,IF(D134<>"",IF(D126<>"",D126/$B$2,""),""),"") -> 0.3333333333 | E162: =IF($B$2<>0,IF(E134<>"",IF(E126<>"",E126/$B$2,""),""),"") -> 0.3333333333 | F162: 0 | G162: 0 | H162: 0 | I162: 1 | J162: 0 | K162: 0 | L162: 0 | M162: 1 | N162: 0.3333333333 | O162: 0 | P162: 0 | Q162: 0 | R162: 0.3333333333 | S162: 0.3333333333 | T162: 0.6666666667 | U162: 0.3333333333 | V162: 0 | W162: 0 | X162: 0 | Y162: 0 | Z162: 0 | AA162: 0 | AB162: 0.3333333333 | AC162: 0 | AD162: 0.3333333333 | AE162: 0 | BL162: spočíta mutuály negatívne v kategóriách pre z-skóre | CL162: xi
C163: Index odmietania P kategória | D163: =IF(D162<>"",(IF(D162>=0.75,"A",IF(D162>=0.5,"B",IF(D162>=0.25,"C",IF(D162<0.25,"D","x"))))),"") -> C | E163: =IF(E162<>"",(IF(E162>=0.75,"A",IF(E162>=0.5,"B",IF(E162>=0.25,"C",IF(E162<0.25,"D","x"))))),"") -> C | F163: D | G163: D | H163: D | I163: A | J163: D | K163: D | L163: D | M163: A | N163: C | O163: D | P163: D | Q163: D | R163: C | S163: C | T163: B | U163: C | V163: D | W163: D | X163: D | Y163: D | Z163: D | AA163: D | AB163: C | AC163: D | AD163: C | AE163: D | AW163: 1 | AX163: 2 | AY163: 3 | AZ163: 4 | BA163: 5 | BB163: 6 | BC163: 7 | BD163: 8 | BE163: 9 | BF163: 10 | BG163: 11 | BH163: 12 | BI163: 13 | BJ163: 14 | BK163: 15 | BL163: 16 | BM163: 17 | BN163: 18 | BO163: 19 | BP163: 20 | BQ163: 21 | BR163: 22 | BS163: 23 | BT163: 24 | BU163: 25 | BV163: 26 | BW163: 27 | BX163: 28 | BY163: 29 | BZ163: 30 | CA163: 31 | CB163: 32 | CC163: 33 | CD163: 34 | CE163: 35 | CF163: 36 | CG163: 37 | CH163: 38 | CI163: 39 | CJ163: 40 | CK163: Suma | CL163: AM | CM163: AM all | CN163: SD all | CO163: z-skóre | CP163: kategória
C164: Prekódované pre Target graf 6 Q_3 | D164: =IF(D162<>"",(IF(D162>=0.75,15,IF(D162>=0.5,40,IF(D162>=0.25,56,IF(D162<0.25,73,"x"))))),"") -> 56 | E164: 56 | F164: 73 | G164: 73 | H164: 73 | I164: 15 | J164: 73 | K164: 73 | L164: 73 | M164: 15 | N164: 56 | O164: 73 | P164: 73 | Q164: 73 | R164: 56 | S164: 56 | T164: 40 | U164: 56 | V164: 73 | W164: 73 | X164: 73 | Y164: 73 | Z164: 73 | AA164: 73 | AB164: 56 | AC164: 73 | AD164: 56 | AE164: 73 | AW164: =IF(D137="OPO",D126,"") ->  | AX164: 1 | AZ164: 0 | BI164: 0 | CK164: =SUM(AW164:CJ164) -> 1 | CL164: =IF(CK164>0,AVERAGE(AW164:CJ164),"") -> 0.3333333333 | CM164: =AS126 -> 0.5714285714 | CN164: =AT126 -> 0.8789122667 | CO164: =IF(CK164>0,(CL164-CM164)/CN164,"") -> -0.2708976164 | CP164: OPO Fila | CQ164: 1
AW165: =IF(D138="POP",D126,"") ->  | BE165: 0 | BN165: 1 | BS165: 0 | BX165: 0 | CK165: 1 | CL165: 0.25 | CM165: =AS126 -> 0.5714285714 | CN165: =AT126 -> 0.8789122667 | CO165: -0.3657117822 | CP165: POP | CQ165: 2
AW166: =IF(D139="REJ",D126,"") ->  | AX166: 1 | AZ166: 0 | BB166: 3 | CK166: 4 | CL166: 1.333333333 | CM166: =AS126 -> 0.5714285714 | CN166: =AT126 -> 0.8789122667 | CO166: 0.8668723726 | CP166: REJ | CQ166: 3
A167: Podľa Group Dynamnics | C167: Algoritmus 1 Target | AW167: =IF(D140="NEG",D126,"") ->  | CK167: 0 | CM167: =AS126 -> 0.5714285714 | CN167: =AT126 -> 0.8789122667 | CP167: NEG | CQ167: 4
C168: Frequenties of positive questions | AW168: =IF(D141="CON",D126,"") ->  | BF168: 3 | BW168: 1 | CK168: 4 | CL168: 2 | CM168: =AS126 -> 0.5714285714 | CN168: =AT126 -> 0.8789122667 | CO168: 1.625385699 | CP168: CON | CQ168: 5
AW169: =IF(D142="AVE",D126,"") -> 1 | AY169: 0 | BA169: 0 | BC169: 0 | BD169: 0 | BG169: 1 | BH169: 0 | BI169: 0 | BJ169: 0 | BK169: 1 | BL169: 1 | BM169: 2 | BO169: 0 | BP169: 0 | BQ169: 0 | BR169: 0 | BT169: 0 | BU169: 1 | BV169: 0 | CK169: 7 | CL169: 0.3684210526 | CM169: =AS126 -> 0.5714285714 | CN169: =AT126 -> 0.8789122667 | CO169: -0.2309758624 | CP169: AVE | CQ169: 6
B170: A | C170: Popular "A" | D170: =IF(D134<>"",IF(D121<>"",IF(D121>3,IF(D124<=1,"A",""),""),""),"") ->  | E170: =IF(E134<>"",IF(E121<>"",IF(E121>3,IF(E124<=1,"A",""),""),""),"") ->  | K170: A | L170: A | N170: A | O170: A | X170: A | Z170: A | AE170: A | AW170: =IF(D143="OPO",D126,"") ->  | BI170: 0 | CK170: 0 | CM170: =AS126 -> 0.5714285714 | CN170: =AT126 -> 0.8789122667 | CP170: OPO Walsh | CQ170: 7
B171: B | C171: Liked more than disliked "B" | D171: =IF(D134<>"",IF(D121<>"",IF(D121>D124,IF(D170<>"A","B",""),""),""),"") ->  | E171: =IF(E134<>"",IF(E121<>"",IF(E121>E124,IF(E170<>"A","B",""),""),""),"") ->  | F171: B | H171: B | J171: B | Q171: B | S171: B | U171: B | V171: B | W171: B | Y171: B | AB171: B | AC171: B
B172: C | C172: Disliked more than liked "C" | D172: =IF(D134<>"",IF(D121<>"",IF(D121<D124,IF(D170<>"A",IF(D174<>"E","C",""),""),""),""),"") ->  | E172: =IF(E134<>"",IF(E121<>"",IF(E121<E124,IF(E170<>"A",IF(E174<>"E","C",""),""),""),""),"") ->  | I172: C | M172: C | R172: C | T172: C | AA172: C
B173: D | C173: Controversial "D" | D173: =IF(D134<>"",IF(D121<>"",IF(D121>0,IF(D121>0,IF(D121=D124,IF(D170<>"A","D",""),""),""),""),""),"") -> D | E173: =IF(E134<>"",IF(E121<>"",IF(E121>0,IF(E121>0,IF(E121=E124,IF(E170<>"A","D",""),""),""),""),""),"") ->  | AD173: D
B174: E | C174: Rejected "E" | D174: =IF(D134<>"",IF(D121<>"",IF(D121<=1,IF(D124>3,"E",""),""),""),"") ->  | E174: =IF(E134<>"",IF(E121<>"",IF(E121<=1,IF(E124>3,"E",""),""),""),"") -> E | G174: E
B175: F | C175: Neglected "F" | D175: =IF(D134<>"",IF(D121<>"",IF(D121=0,IF(D124=0,"F",""),""),""),"") ->  | E175: =IF(E134<>"",IF(E121<>"",IF(E121=0,IF(E124=0,"F",""),""),""),"") ->  | P175: F
C176: Pomo B | D176: =IF(D133=0,IF(D134=0,"B",""),IF(D171="B","B","")) ->  | E176: =IF(E133=0,IF(E134=0,"B",""),IF(E171="B","B","")) ->  | F176: B | H176: B | J176: B | Q176: B | S176: B | U176: B | V176: B | W176: B | Y176: B | AB176: B | AC176: B
C177: Prekódované pre Target graf 1 Q_3 | D177: =IF(D175="F",87,IF(D173="D",60,IF(D174="E",74,IF(D172="C",46,IF(D170="A",13,IF(D171="B",33,IF(D176="B",33,""))))))) -> 60 | E177: 74 | F177: 33 | G177: 74 | H177: 33 | I177: 46 | J177: 33 | K177: 13 | L177: 13 | M177: 46 | N177: 13 | O177: 13 | P177: 87 | Q177: 33 | R177: 46 | S177: 33 | T177: 46 | U177: 33 | V177: 33 | W177: 33 | X177: 13 | Y177: 33 | Z177: 13 | AA177: 46 | AB177: 33 | AC177: 33 | AD177: 60 | AE177: 13
A178: Otázka č.4 | AS178: AM | AT178: SD | AU178: MAX
A179: Q_4_P | B179: Sel_p_r | C179: =CONCATENATE($BJ$3, " P") -> P | D179: 0 | E179: 0 | F179: 0 | G179: 0 | H179: 2 | I179: 0 | J179: 2 | K179: 1 | L179: 10 | M179: 0 | N179: 0 | O179: 0 | P179: 0 | Q179: 0 | R179: 8 | S179: 0 | T179: 0 | U179: 2 | V179: 0 | W179: 3 | X179: 0 | Y179: 0 | Z179: 25 | AA179: 0 | AB179: 12 | AC179: 8 | AD179: 0 | AE179: 8 | AR179: =SUM(D179:AQ179) -> 81 | AS179: =IF(AR179>0,AVERAGE(D179:AQ179),"") -> 2.892857143 | AT179: =IF(AR179>0,STDEV(D179:AQ179),"") -> 5.606473016 | AU179: =MAX(D179:AQ179) -> 25
A180: Q_4_P | B180: Sel_p_g | C180: =CONCATENATE($BJ$3, " P") -> P | D180: 3 | E180: 3 | F180: 3 | G180: 3 | H180: 3 | I180: 3 | J180: 3 | K180: 3 | L180: 3 | M180: 3 | N180: 3 | O180: 3 | P180: 3 | Q180: 3 | R180: 3 | S180: 3 | T180: 3 | U180: 3 | V180: 3 | W180: 3 | X180: 3 | Y180: 3 | Z180: 3 | AA180: 3 | AB180: 3 | AC180: 3 | AD180: 3 | AE180: 0 | AR180: =SUM(D180:AQ180) -> 81 | AS180: =IF(AR179>0,AVERAGE(D180:AQ180),"") -> 2.892857143 | AT180: =IF(AR179>0,STDEV(D180:AQ180),"") -> 0.5669467095
A181: Q_4_P | B181: Rec_p | C181: =CONCATENATE($BJ$3, " mutual P") -> mutual P | D181: 0 | E181: 0 | F181: 0 | G181: 0 | H181: 1 | I181: 0 | J181: 0 | K181: 0 | L181: 0 | M181: 0 | N181: 0 | O181: 0 | P181: 0 | Q181: 0 | R181: 1 | S181: 0 | T181: 0 | U181: 2 | V181: 0 | W181: 2 | X181: 0 | Y181: 0 | Z181: 3 | AA181: 0 | AB181: 2 | AC181: 1 | AD181: 0 | AE181: 0 | AR181: 12 | AS181: =IF(AR179>0,AVERAGE(D181:AQ181),"") -> 0.4285714286 | AT181: =IF(AR179>0,STDEV(D181:AQ181),"") -> 0.835710894
A182: Q_4_N | B182: Sel_n_r | C182: =CONCATENATE($BJ$3, " N") -> N | D182: 0 | E182: 20 | F182: 0 | G182: 5 | H182: 1 | I182: 18 | J182: 0 | K182: 3 | L182: 0 | M182: 20 | N182: 1 | O182: 2 | P182: 1 | Q182: 0 | R182: 0 | S182: 1 | T182: 1 | U182: 1 | V182: 0 | W182: 0 | X182: 0 | Y182: 0 | Z182: 0 | AA182: 4 | AB182: 1 | AC182: 0 | AD182: 2 | AE182: 0 | AR182: 81 | AS182: =IF(AR179>0,AVERAGE(D182:AQ182),"") -> 2.892857143 | AT182: =IF(AR179>0,STDEV(D182:AQ182),"") -> 5.94629848 | AU182: =MAX(D182:AQ182) -> 20
A183: Q_4_N | B183: Sel_n_g | C183: =CONCATENATE($BJ$3, " N") -> N | D183: 3 | E183: 3 | F183: 3 | G183: 3 | H183: 3 | I183: 3 | J183: 3 | K183: 3 | L183: 3 | M183: 3 | N183: 3 | O183: 3 | P183: 3 | Q183: 3 | R183: 3 | S183: 3 | T183: 3 | U183: 3 | V183: 3 | W183: 3 | X183: 3 | Y183: 3 | Z183: 3 | AA183: 3 | AB183: 3 | AC183: 3 | AD183: 3 | AE183: 0 | AR183: 81 | AS183: =IF(AR179>0,AVERAGE(D183:AQ183),"") -> 2.892857143 | AT183: =IF(AR179>0,STDEV(D183:AQ183),"") -> 0.5669467095
A184: Q_4_N | B184: Rec_n | C184: =CONCATENATE($BJ$3, " mutual N") -> mutual N | D184: 0 | E184: 3 | F184: 0 | G184: 2 | H184: 1 | I184: 2 | J184: 0 | K184: 0 | L184: 0 | M184: 3 | N184: 0 | O184: 0 | P184: 0 | Q184: 0 | R184: 0 | S184: 0 | T184: 0 | U184: 1 | V184: 0 | W184: 0 | X184: 0 | Y184: 0 | Z184: 0 | AA184: 1 | AB184: 1 | AC184: 0 | AD184: 0 | AE184: 0 | AR184: 14 | AS184: =IF(AR179>0,AVERAGE(D184:AQ184),"") -> 0.5 | AT184: =IF(AR179>0,STDEV(D184:AQ184),"") -> 0.922958207
A185: Q_4 | B185: IZO p | C185: =CONCATENATE($BJ$3, " izolovaní P") -> izolovaní P | D185: =IF(D191<>"",IF(D179<>"",IF(D179 = 0,IF(D180 = 0,1,""),""),""),"") ->  | E185: =IF(E191<>"",IF(E179<>"",IF(E179 = 0,IF(E180 = 0,1,""),""),""),"") ->  | AR185: 0
A186: Q_4 | B186: OPO p | C186: =CONCATENATE($BJ$3, " opomenutí P") -> opomenutí P | D186: =IF(D179<>"",IF(D179 = 0,IF(D180 > 0,1,""),""),"") -> 1 | E186: =IF(E179<>"",IF(E179 = 0,IF(E180 > 0,1,""),""),"") -> 1 | F186: 1 | G186: 1 | I186: 1 | M186: 1 | N186: 1 | O186: 1 | P186: 1 | Q186: 1 | S186: 1 | T186: 1 | V186: 1 | X186: 1 | Y186: 1 | AA186: 1 | AD186: 1 | AR186: 17
A187: Q_4 | B187: IZO n | C187: =CONCATENATE($BJ$3, " izolovaní N") -> izolovaní N | D187: =IF(D192<>"",IF(D182<>"",IF(D182 = 0,IF(D183 = 0,1," ")," ")," "),"") ->  | E187: =IF(E192<>"",IF(E182<>"",IF(E182 = 0,IF(E183 = 0,1," ")," ")," "),"") ->  | AE187: 1 | AR187: 1
A188: Q_4 | B188: OPO n | C188: =CONCATENATE($BJ$3, " opomenutí N") -> opomenutí N | D188: =IF(D182<>"",IF(D182 = 0,IF(D183 > 0,1," ")," ")," ") -> 1 | F188: 1 | J188: 1 | L188: 1 | Q188: 1 | R188: 1 | V188: 1 | W188: 1 | X188: 1 | Y188: 1 | Z188: 1 | AC188: 1 | AR188: 12
A189: Podľa Walsha | B189: Social preference and social Impact
A190: Algoritmus 2 používa Group aj Walsh
A191: Q_4 | B191: zLM | C191: z-skóre P | D191: =IF($AT$179<>"",IF(D179<>"",(D179-$AS$179)/$AT$179,""),"") -> -0.5159852075 | E191: =IF($AT$179<>"",IF(E179<>"",(E179-$AS$179)/$AT$179,""),"") -> -0.5159852075 | F191: -0.5159852075 | G191: -0.5159852075 | H191: -0.1592546937 | I191: -0.5159852075 | J191: -0.1592546937 | K191: -0.3376199506 | L191: 1.267667362 | M191: -0.5159852075 | N191: -0.5159852075 | O191: -0.5159852075 | P191: -0.5159852075 | Q191: -0.5159852075 | R191: 0.9109368479 | S191: -0.5159852075 | T191: -0.5159852075 | U191: -0.1592546937 | V191: -0.5159852075 | W191: 0.01911056324 | X191: -0.5159852075 | Y191: -0.5159852075 | Z191: 3.943146216 | AA191: -0.5159852075 | AB191: 1.624397876 | AC191: 0.9109368479 | AD191: -0.5159852075 | AE191: 0.9109368479
A192: Q_4 | B192: zLL | C192: z-skóre N | D192: =IF($AT$182<>"",IF($AT$182<>0,IF(D182<>"",(D182-$AS$182)/$AT$182,""),""),"") -> -0.4864971297 | E192: =IF($AT$182<>"",IF($AT$182<>0,IF(E182<>"",(E182-$AS$182)/$AT$182,""),""),"") -> 2.876939817 | F192: -0.4864971297 | G192: 0.3543621068 | H192: -0.3183252824 | I192: 2.540596122 | J192: -0.4864971297 | K192: 0.01801841221 | L192: -0.4864971297 | M192: 2.876939817 | N192: -0.3183252824 | O192: -0.1501534351 | P192: -0.3183252824 | Q192: -0.4864971297 | R192: -0.4864971297 | S192: -0.3183252824 | T192: -0.3183252824 | U192: -0.3183252824 | V192: -0.4864971297 | W192: -0.4864971297 | X192: -0.4864971297 | Y192: -0.4864971297 | Z192: -0.4864971297 | AA192: 0.1861902595 | AB192: -0.3183252824 | AC192: -0.4864971297 | AD192: -0.1501534351 | AE192: -0.4864971297
A193: Q_4 | B193: SP | C193: Social preference (zLM - zLL) | D193: =IF(D192<>"",IF(D191<>"",D191-D192,""),"") -> -0.0294880778 | E193: =IF(E192<>"",IF(E191<>"",E191-E192,""),"") -> -3.392925024 | F193: -0.0294880778 | G193: -0.8703473144 | H193: 0.1590705887 | I193: -3.056581329 | J193: 0.327242436 | K193: -0.3556383628 | L193: 1.754164491 | M193: -3.392925024 | N193: -0.1976599251 | O193: -0.3658317724 | P193: -0.1976599251 | Q193: -0.0294880778 | R193: 1.397433978 | S193: -0.1976599251 | T193: -0.1976599251 | U193: 0.1590705887 | V193: -0.0294880778 | W193: 0.505607693 | X193: -0.0294880778 | Y193: -0.0294880778 | Z193: 4.429643345 | AA193: -0.7021754671 | AB193: 1.942723158 | AC193: 1.397433978 | AD193: -0.3658317724 | AE193: 1.397433978 | BL193: spočíta pozitívne v kategóriách pre z-skóre | CL193: xi | CM193: všetky | CN193: všetky
A194: Q_4 | B194: SI | C194: Social impact (zLM + zLL) | D194: =IF(D192<>"",IF(D191<>"",D191+D192,""),"") -> -1.002482337 | E194: =IF(E192<>"",IF(E191<>"",E191+E192,""),"") -> 2.360954609 | F194: -1.002482337 | G194: -0.1616231007 | H194: -0.4775799761 | I194: 2.024610914 | J194: -0.6457518234 | K194: -0.3196015384 | L194: 0.781170232 | M194: 2.360954609 | N194: -0.83431049 | O194: -0.6661386426 | P194: -0.83431049 | Q194: -1.002482337 | R194: 0.4244397181 | S194: -0.83431049 | T194: -0.83431049 | U194: -0.4775799761 | V194: -1.002482337 | W194: -0.4673865665 | X194: -1.002482337 | Y194: -1.002482337 | Z194: 3.456649086 | AA194: -0.329794948 | AB194: 1.306072593 | AC194: 0.4244397181 | AD194: -0.6661386426 | AE194: 0.4244397181 | AW194: 1 | AX194: 2 | AY194: 3 | AZ194: 4 | BA194: 5 | BB194: 6 | BC194: 7 | BD194: 8 | BE194: 9 | BF194: 10 | BG194: 11 | BH194: 12 | BI194: 13 | BJ194: 14 | BK194: 15 | BL194: 16 | BM194: 17 | BN194: 18 | BO194: 19 | BP194: 20 | BQ194: 21 | BR194: 22 | BS194: 23 | BT194: 24 | BU194: 25 | BV194: 26 | BW194: 27 | BX194: 28 | BY194: 29 | BZ194: 30 | CA194: 31 | CB194: 32 | CC194: 33 | CD194: 34 | CE194: 35 | CF194: 36 | CG194: 37 | CH194: 38 | CI194: 39 | CJ194: 40 | CK194: Suma | CL194: AM | CM194: AM all | CN194: SD all | CO194: z-skóre | CP194: kategória
C195: OPOMENUTÍ FILA | D195: =IF(D192<>"",IF(D179<>"",IF(D179 = 0,IF(D180 > 0,"OPO"," ")," ")," "),"") -> OPO | E195: =IF(E192<>"",IF(E179<>"",IF(E179 = 0,IF(E180 > 0,"OPO"," ")," ")," "),"") -> OPO | F195: OPO | G195: OPO | I195: OPO | M195: OPO | N195: OPO | O195: OPO | P195: OPO | Q195: OPO | S195: OPO | T195: OPO | V195: OPO | X195: OPO | Y195: OPO | AA195: OPO | AD195: OPO | AR195: =COUNTIF(D195:AQ195,"OPO") -> 17 | AW195: =IF(D195="OPO",D179," ") -> 0 | AX195: =IF(E195="OPO",E179,"") -> 0 | AY195: 0 | AZ195: 0 | BB195: 0 | BF195: 0 | BG195: 0 | BH195: 0 | BI195: 0 | BJ195: 0 | BL195: 0 | BM195: 0 | BO195: 0 | BQ195: 0 | BR195: 0 | BT195: 0 | BW195: 0 | CK195: =SUM(AW195:CJ195) -> 0 | CL195: =IF(CK195>0,AVERAGE(AW195:CJ195),"") ->  | CM195: =AS179 -> 2.892857143 | CN195: =AT179 -> 5.606473016 | CO195: =IF(CK195>0,(CL195-CM195)/CN195,"") ->  | CP195: OPO Fila | CQ195: 1
C196: POPULAR | D196: =IF(D192<>"",IF(D193>1,IF(D191>0,IF(D192<0,"POP",""),""),""),"") ->  | E196: =IF(E192<>"",IF(E193>1,IF(E191>0,IF(E192<0,"POP",""),""),""),"") ->  | L196: POP | R196: POP | Z196: POP | AB196: POP | AC196: POP | AE196: POP | AR196: =COUNTIF(D196:AQ196,"POP") -> 6 | AW196: =IF(D196="POP",D179,"") ->  | BE196: 10 | BK196: 8 | BS196: 25 | BU196: 12 | BV196: 8 | BX196: 8 | CK196: =SUM(AW196:CJ196) -> 71 | CL196: 11.83333333 | CM196: =AS179 -> 2.892857143 | CN196: =AT179 -> 5.606473016 | CO196: 1.594670333 | CP196: POP | CQ196: 2
C197: REJECTED | D197: =IF(D192<>"",IF(D193<-1,IF(D191<0,IF(D192>0,"REJ",""),""),""),"") ->  | E197: =IF(E192<>"",IF(E193<-1,IF(E191<0,IF(E192>0,"REJ",""),""),""),"") -> REJ | I197: REJ | M197: REJ | AR197: =COUNTIF(D197:AQ197,"REJ") -> 3 | AW197: =IF(D197="REJ",D179,"") ->  | AX197: 0 | BB197: 0 | BF197: 0 | CK197: 0 | CM197: =AS179 -> 2.892857143 | CN197: =AT179 -> 5.606473016 | CP197: REJ | CQ197: 3
C198: NEGLECTED | D198: =IF(D192<>"",IF(D194<-1,IF(D191=0,IF(D192=0,"NEG",""),""),""),"") ->  | E198: =IF(E192<>"",IF(E194<-1,IF(E191=0,IF(E192=0,"NEG",""),""),""),"") ->  | AR198: =COUNTIF(D198:AQ198,"NEG") -> 0 | AW198: =IF(D198="NEG",D179,"") ->  | CK198: 0 | CM198: =AS179 -> 2.892857143 | CN198: =AT179 -> 5.606473016 | CP198: NEG | CQ198: 4
C199: CONTROVERSIAL | D199: =IF(D192<>"",IF(D191<>"",IF(D194>1,IF(D191>0,IF(D192>0,"CON",""),""),""),""),"") ->  | E199: =IF(E192<>"",IF(E191<>"",IF(E194>1,IF(E191>0,IF(E192>0,"CON",""),""),""),""),"") ->  | AR199: =COUNTIF(D199:AQ199,"CON") -> 0 | AW199: =IF(D199="CON",D179,"") ->  | CK199: 0 | CM199: =AS179 -> 2.892857143 | CN199: =AT179 -> 5.606473016 | CP199: CON | CQ199: 5
A200: *zmenený vzorec | C200: AVERAGE STATUS | D200: =IF(D191<>"",IF(D196<>"POP",IF(D197<>"REJ",IF(D198<>"NEG",IF(D199<>"CON","AVE",""),""),""),""),"") -> AVE | E200: =IF(E191<>"",IF(E196<>"POP",IF(E197<>"REJ",IF(E198<>"NEG",IF(E199<>"CON","AVE",""),""),""),""),"") ->  | F200: AVE | G200: AVE | H200: AVE | J200: AVE | K200: AVE | N200: AVE | O200: AVE | P200: AVE | Q200: AVE | S200: AVE | T200: AVE | U200: AVE | V200: AVE | W200: AVE | X200: AVE | Y200: AVE | AA200: AVE | AD200: AVE | AR200: =COUNTIF(D200:AQ200,"AVE") -> 19 | AW200: =IF(D200="AVE",D179,"") -> 0 | AY200: 0 | AZ200: 0 | BA200: 2 | BC200: 2 | BD200: 1 | BG200: 0 | BH200: 0 | BI200: 0 | BJ200: 0 | BL200: 0 | BM200: 0 | BN200: 2 | BO200: 0 | BP200: 3 | BQ200: 0 | BR200: 0 | BT200: 0 | BW200: 0 | CK200: 10 | CL200: 0.5263157895 | CM200: =AS179 -> 2.892857143 | CN200: =AT179 -> 5.606473016 | CO200: -0.4221087565 | CP200: AVE | CQ200: 6
... 210 more rows

Sheet Target_All_Sumar
B1: 2 | C1: 3 | D1: 4 | E1: 5 | F1: 6 | G1: 7 | H1: 8 | I1: 9 | J1: 10 | K1: 11 | L1: 12 | M1: 13 | N1: 14 | O1: 15 | P1: 16 | Q1: 17 | R1: 18 | S1: 19 | X1: 24 | Y1: 25 | Z1: 26 | AA1: 27 | AB1: 28 | AC1: 29 | AD1: 30 | AE1: 31 | AF1: 32 | AG1: 33 | AH1: 34 | AI1: 35 | AJ1: 36 | AK1: 37 | AL1: 38 | AM1: 39 | AN1: 40 | AO1: 41 | AP1: 42 | AQ1: 43 | AR1: 44 | AS1: 45 | AT1: 46 | AU1: 47 | AV1: 48 | AW1: 49 | AX1: 50 | AY1: 51 | AZ1: 52 | BA1: 53 | BB1: 54 | BC1: 55 | BD1: 56 | BE1: 57 | BF1: 58 | BG1: 59 | BH1: 60 | BI1: 61 | BJ1: 62 | BK1: 63
A2: TG 1 | G2: TG 2 | K2: TG 3 | L2: prijímanie | N2: TG 4 | O2: odmietanie | Q2: TG 5 | R2: mutual akceptácia | T2: TG 6 | U2: mutual rejection | X2: 1 | Y2: 2 | Z2: 3 | AA2: 4 | AB2: 5 | AC2: 6 | AD2: 7 | AE2: 8 | AF2: 9 | AG2: 10 | AH2: 11 | AI2: 12 | AJ2: 13 | AK2: 14 | AL2: 15 | AM2: 16 | AN2: 17 | AO2: 18 | AP2: 19 | AQ2: 20 | AR2: 21 | AS2: 22 | AT2: 23 | AU2: 24 | AV2: 25 | AW2: 26 | AX2: 27 | AY2: 28 | AZ2: 29 | BA2: 30 | BB2: 31 | BC2: 32 | BD2: 33 | BE2: 34 | BF2: 35 | BG2: 36 | BH2: 37 | BI2: 38 | BJ2: 39 | BK2: 40
A3: A | B3: POP | C3: Populárni | G3: A | H3: POP | I3: Populárni | K3: A | L3: VYS | M3: Vysoké | N3: A | O3: VYS | P3: Vysoké | Q3: A | R3: VYS | S3: Vysoké | T3: A | U3: VYS | V3: Vysoké | X3: 0.6 | Y3: 0.6 | Z3: 0.6 | AA3: 0.6 | AB3: 0.6 | AC3: 0.6 | AD3: 0.6 | AE3: 0.6 | AF3: 0.6 | AG3: 0.6 | AH3: 0.6 | AI3: 0.6 | AJ3: 0.6 | AK3: 0.6 | AL3: 0.6 | AM3: 0.6 | AN3: 0.6 | AO3: 0.6 | AP3: 0.6 | AQ3: 0.6 | AR3: 0.6 | AS3: 0.6 | AT3: 0.6 | AU3: 0.6 | AV3: 0.6 | AW3: 0.6 | AX3: 0.6 | AY3: 0.6 | AZ3: 0.6 | BA3: 0.6 | BB3: 0.6 | BC3: 0.6 | BD3: 0.6 | BE3: 0.6 | BF3: 0.6 | BG3: 0.6 | BH3: 0.6 | BI3: 0.6 | BJ3: 0.6 | BK3: 0.6
A4: B | B4: OBL | C4: Viac obľúbení ako neobľúbení | G4: B | H4: REJ | I4: Odmietaní | K4: B | L4: MIE | M4: Mierne | N4: B | O4: MIE | P4: Mierne | Q4: B | R4: MIE | S4: Mierne | T4: B | U4: MIE | V4: Mierne | X4: =X3*(-1) -> -0.6 | Y4: =Y3*(-1) -> -0.6 | Z4: -0.6 | AA4: -0.6 | AB4: -0.6 | AC4: -0.6 | AD4: -0.6 | AE4: -0.6 | AF4: -0.6 | AG4: -0.6 | AH4: -0.6 | AI4: -0.6 | AJ4: -0.6 | AK4: -0.6 | AL4: -0.6 | AM4: -0.6 | AN4: -0.6 | AO4: -0.6 | AP4: -0.6 | AQ4: -0.6 | AR4: -0.6 | AS4: -0.6 | AT4: -0.6 | AU4: -0.6 | AV4: -0.6 | AW4: -0.6 | AX4: -0.6 | AY4: -0.6 | AZ4: -0.6 | BA4: -0.6 | BB4: -0.6 | BC4: -0.6 | BD4: -0.6 | BE4: -0.6 | BF4: -0.6 | BG4: -0.6 | BH4: -0.6 | BI4: -0.6 | BJ4: -0.6 | BK4: -0.6
A5: C | B5: NEO | C5: Viac neobľúbení ako obľúbení | G5: C | H5: OPO | I5: Opomenutí | K5: C | L5: SLA | M5: Slabšie | N5: C | O5: SLA | P5: Slabšie | Q5: C | R5: SLA | S5: Slabšie | T5: C | U5: SLA | V5: Slabšie
A6: D | B6: KON | C6: Kontroverzní | G6: D | H6: KON | I6: Kontroverzní | K6: D | L6: NIZ | M6: Nízke | N6: D | O6: NIZ | P6: Nízke | Q6: D | R6: NIZ | S6: Nízke | T6: D | U6: NIZ | V6: Nízke
A7: E | B7: REJ | C7: Odmietaní | G7: E | H7: AVE | I7: Priemerný status
A8: F | B8: OPO | C8: Opomenutí | H8: TG_Q_1_1 | I8: TG_Q_1_1 | J8: TG_Q_1_2 | K8: TG_Q_1_2 | L8: TG_Q_1_3 | M8: TG_Q_1_3 | N8: TG_Q_1_4 | O8: TG_Q_1_4 | P8: TG_Q_1_5 | Q8: TG_Q_1_5 | R8: TG_Q_1_6 | S8: TG_Q_1_6
H9: Pozit vs. Negat | J9: Pozit vs. Negat | L9: Prijímanie | N9: Odmietanie | P9: Mutual | R9: Murual
F10: Mutual | G10: Mutual | H10: K priemeru AM | J10: K z-skóre | L10: Acceptacne k MAX | N10: Rejection k MAX | P10: Acceptance | R10: Rejection
B11: 28 | X11: =IF(Individualne!D4<>"",Individualne!D4,"") -> "01_Oso m" | Y11: =IF(Individualne!E4<>"",Individualne!E4,"") -> "02_Oso m" | Z11: =IF(Individualne!F4<>"",Individualne!F4,"") -> "03_Oso m" | AA11: =IF(Individualne!G4<>"",Individualne!G4,"") -> "04_Oso m" | AB11: =IF(Individualne!H4<>"",Individualne!H4,"") -> "05_Oso m" | AC11: =IF(Individualne!I4<>"",Individualne!I4,"") -> "*06_Oso m" | AD11: =IF(Individualne!J4<>"",Individualne!J4,"") -> "07_Oso m" | AE11: =IF(Individualne!K4<>"",Individualne!K4,"") -> "08_Oso m" | AF11: =IF(Individualne!L4<>"",Individualne!L4,"") -> "09_Oso f" | AG11: =IF(Individualne!M4<>"",Individualne!M4,"") -> "**10_Oso m" | AH11: =IF(Individualne!N4<>"",Individualne!N4,"") -> "11_Oso m" | AI11: =IF(Individualne!O4<>"",Individualne!O4,"") -> "12_Oso m" | AJ11: =IF(Individualne!P4<>"",Individualne!P4,"") -> "13_Oso m" | AK11: =IF(Individualne!Q4<>"",Individualne!Q4,"") -> "14_Oso m" | AL11: =IF(Individualne!R4<>"",Individualne!R4,"") -> "15_Oso f" | AM11: =IF(Individualne!S4<>"",Individualne!S4,"") -> "16_Oso f" | AN11: =IF(Individualne!T4<>"",Individualne!T4,"") -> "17_Oso f" | AO11: =IF(Individualne!U4<>"",Individualne!U4,"") -> "18_Oso f" | AP11: =IF(Individualne!V4<>"",Individualne!V4,"") -> "19_Oso f" | AQ11: =IF(Individualne!W4<>"",Individualne!W4,"") -> "20_Oso f" | AR11: =IF(Individualne!X4<>"",Individualne!X4,"") -> "21_Oso f" | AS11: =IF(Individualne!Y4<>"",Individualne!Y4,"") -> "22_Oso f" | AT11: =IF(Individualne!Z4<>"",Individualne!Z4,"") -> "23_Oso f" | AU11: =IF(Individualne!AA4<>"",Individualne!AA4,"") -> "24_Oso f" | AV11: =IF(Individualne!AB4<>"",Individualne!AB4,"") -> "25_Oso f" | AW11: =IF(Individualne!AC4<>"",Individualne!AC4,"") -> "26_Oso f" | AX11: =IF(Individualne!AD4<>"",Individualne!AD4,"") -> "27_Oso f" | AY11: =IF(Individualne!AE4<>"",Individualne!AE4,"") -> "28_Oso f" | AZ11: =IF(Individualne!AF4<>"",Individualne!AF4,"") ->  | BA11: =IF(Individualne!AG4<>"",Individualne!AG4,"") ->  | BB11: =IF(Individualne!AH4<>"",Individualne!AH4,"") ->  | BC11: =IF(Individualne!AI4<>"",Individualne!AI4,"") ->  | BD11: =IF(Individualne!AJ4<>"",Individualne!AJ4,"") ->  | BE11: =IF(Individualne!AK4<>"",Individualne!AK4,"") ->  | BF11: =IF(Individualne!AL4<>"",Individualne!AL4,"") ->  | BG11: =IF(Individualne!AM4<>"",Individualne!AM4,"") ->  | BH11: =IF(Individualne!AN4<>"",Individualne!AN4,"") ->  | BI11: =IF(Individualne!AO4<>"",Individualne!AO4,"") ->  | BJ11: =IF(Individualne!AP4<>"",Individualne!AP4,"") ->  | BK11: =IF(Individualne!AQ4<>"",Individualne!AQ4,"") -> 
C12: Sedieť | V12: Q_1 | W12: TG_1 Pozitívne voľby P | X12: =Individualne!D373 -> OBL | Y12: =Individualne!E373 -> REJ | Z12: =Individualne!F373 -> OBL | AA12: =Individualne!G373 -> REJ | AB12: =Individualne!H373 -> OBL | AC12: =Individualne!I373 -> REJ | AD12: =Individualne!J373 -> POP | AE12: =Individualne!K373 -> POP | AF12: =Individualne!L373 -> POP | AG12: =Individualne!M373 -> NEO | AH12: =Individualne!N373 -> OBL | AI12: =Individualne!O373 -> KON | AJ12: =Individualne!P373 -> OBL | AK12: =Individualne!Q373 -> OBL | AL12: =Individualne!R373 -> NEO | AM12: =Individualne!S373 -> KON | AN12: =Individualne!T373 -> NEO | AO12: =Individualne!U373 -> POP | AP12: =Individualne!V373 -> OBL | AQ12: =Individualne!W373 -> OBL | AR12: =Individualne!X373 -> KON | AS12: =Individualne!Y373 -> OBL | AT12: =Individualne!Z373 -> OBL | AU12: =Individualne!AA373 -> OBL | AV12: =Individualne!AB373 -> OBL | AW12: =Individualne!AC373 -> OBL | AX12: =Individualne!AD373 -> POP | AY12: =Individualne!AE373 -> POP | AZ12: =Individualne!AF373 ->  | BA12: =Individualne!AG373 ->  | BB12: =Individualne!AH373 ->  | BC12: =Individualne!AI373 ->  | BD12: =Individualne!AJ373 ->  | BE12: =Individualne!AK373 ->  | BF12: =Individualne!AL373 ->  | BG12: =Individualne!AM373 ->  | BH12: =Individualne!AN373 ->  | BI12: =Individualne!AO373 ->  | BJ12: =Individualne!AP373 ->  | BK12: =Individualne!AQ373 -> 
B13: 1 | C13: "01_Oso m" | D13: 2 | E13: 0 | F13: 2 | G13: 0 | H13: B | I13: OBL | J13: E | K13: AVE | L13: C | M13: SLA | N13: D | O13: NIZ | P13: B | Q13: MIE | R13: D | S13: NIZ | V13: Sedieť | W13: TG_2 Sociálny vplyv | X13: =Individualne!D375 -> AVE | Y13: =Individualne!E375 -> REJ | Z13: =Individualne!F375 -> AVE | AA13: =Individualne!G375 -> REJ | AB13: =Individualne!H375 -> AVE | AC13: =Individualne!I375 -> REJ | AD13: =Individualne!J375 -> AVE | AE13: =Individualne!K375 -> AVE | AF13: =Individualne!L375 -> POP | AG13: =Individualne!M375 -> REJ | AH13: =Individualne!N375 -> AVE | AI13: =Individualne!O375 -> AVE | AJ13: =Individualne!P375 -> AVE | AK13: =Individualne!Q375 -> AVE | AL13: =Individualne!R375 -> AVE | AM13: =Individualne!S375 -> AVE | AN13: =Individualne!T375 -> AVE | AO13: =Individualne!U375 -> AVE | AP13: =Individualne!V375 -> AVE | AQ13: =Individualne!W375 -> AVE | AR13: =Individualne!X375 -> AVE | AS13: =Individualne!Y375 -> POP | AT13: =Individualne!Z375 -> POP | AU13: =Individualne!AA375 -> AVE | AV13: =Individualne!AB375 -> AVE | AW13: =Individualne!AC375 -> AVE | AX13: =Individualne!AD375 -> POP | AY13: =Individualne!AE375 -> POP | AZ13: =Individualne!AF375 ->  | BA13: =Individualne!AG375 ->  | BB13: =Individualne!AH375 ->  | BC13: =Individualne!AI375 ->  | BD13: =Individualne!AJ375 ->  | BE13: =Individualne!AK375 ->  | BF13: =Individualne!AL375 ->  | BG13: =Individualne!AM375 ->  | BH13: =Individualne!AN375 ->  | BI13: =Individualne!AO375 ->  | BJ13: =Individualne!AP375 ->  | BK13: =Individualne!AQ375 -> 
B14: 2 | C14: "02_Oso m" | D14: 0 | E14: 12 | F14: 0 | G14: 12 | H14: E | I14: REJ | J14: B | K14: REJ | L14: D | M14: NIZ | N14: B | O14: MIE | P14: D | Q14: NIZ | R14: D | S14: NIZ | W14: TG_3 Prijímanie | X14: =Individualne!D377 -> SLA | Y14: =Individualne!E377 -> NIZ | Z14: =Individualne!F377 -> NIZ | AA14: =Individualne!G377 -> NIZ | AB14: =Individualne!H377 -> SLA | AC14: =Individualne!I377 -> NIZ | AD14: =Individualne!J377 -> SLA | AE14: =Individualne!K377 -> SLA | AF14: =Individualne!L377 -> MIE | AG14: =Individualne!M377 -> SLA | AH14: =Individualne!N377 -> SLA | AI14: =Individualne!O377 -> SLA | AJ14: =Individualne!P377 -> NIZ | AK14: =Individualne!Q377 -> SLA | AL14: =Individualne!R377 -> NIZ | AM14: =Individualne!S377 -> SLA | AN14: =Individualne!T377 -> NIZ | AO14: =Individualne!U377 -> SLA | AP14: =Individualne!V377 -> NIZ | AQ14: =Individualne!W377 -> SLA | AR14: =Individualne!X377 -> SLA | AS14: =Individualne!Y377 -> MIE | AT14: =Individualne!Z377 -> VYS | AU14: =Individualne!AA377 -> SLA | AV14: =Individualne!AB377 -> SLA | AW14: =Individualne!AC377 -> SLA | AX14: =Individualne!AD377 -> VYS | AY14: =Individualne!AE377 -> MIE | AZ14: =Individualne!AF377 ->  | BA14: =Individualne!AG377 ->  | BB14: =Individualne!AH377 ->  | BC14: =Individualne!AI377 ->  | BD14: =Individualne!AJ377 ->  | BE14: =Individualne!AK377 ->  | BF14: =Individualne!AL377 ->  | BG14: =Individualne!AM377 ->  | BH14: =Individualne!AN377 ->  | BI14: =Individualne!AO377 ->  | BJ14: =Individualne!AP377 ->  | BK14: =Individualne!AQ377 -> 
B15: 3 | C15: "03_Oso m" | D15: 1 | E15: 0 | F15: 1 | G15: 0 | H15: B | I15: OBL | J15: E | K15: AVE | L15: D | M15: NIZ | N15: D | O15: NIZ | P15: C | Q15: SLA | R15: D | S15: NIZ | W15: TG_4 Odmietanie | X15: =Individualne!D379 -> NIZ | Y15: =Individualne!E379 -> MIE | Z15: =Individualne!F379 -> NIZ | AA15: =Individualne!G379 -> SLA | AB15: =Individualne!H379 -> NIZ | AC15: =Individualne!I379 -> VYS | AD15: =Individualne!J379 -> NIZ | AE15: =Individualne!K379 -> NIZ | AF15: =Individualne!L379 -> NIZ | AG15: =Individualne!M379 -> VYS | AH15: =Individualne!N379 -> NIZ | AI15: =Individualne!O379 -> NIZ | AJ15: =Individualne!P379 -> NIZ | AK15: =Individualne!Q379 -> NIZ | AL15: =Individualne!R379 -> NIZ | AM15: =Individualne!S379 -> NIZ | AN15: =Individualne!T379 -> NIZ | AO15: =Individualne!U379 -> NIZ | AP15: =Individualne!V379 -> NIZ | AQ15: =Individualne!W379 -> NIZ | AR15: =Individualne!X379 -> NIZ | AS15: =Individualne!Y379 -> NIZ | AT15: =Individualne!Z379 -> NIZ | AU15: =Individualne!AA379 -> NIZ | AV15: =Individualne!AB379 -> NIZ | AW15: =Individualne!AC379 -> NIZ | AX15: =Individualne!AD379 -> NIZ | AY15: =Individualne!AE379 -> NIZ | AZ15: =Individualne!AF379 ->  | BA15: =Individualne!AG379 ->  | BB15: =Individualne!AH379 ->  | BC15: =Individualne!AI379 ->  | BD15: =Individualne!AJ379 ->  | BE15: =Individualne!AK379 ->  | BF15: =Individualne!AL379 ->  | BG15: =Individualne!AM379 ->  | BH15: =Individualne!AN379 ->  | BI15: =Individualne!AO379 ->  | BJ15: =Individualne!AP379 ->  | BK15: =Individualne!AQ379 -> 
B16: 4 | C16: "04_Oso m" | D16: 1 | E16: 6 | F16: 0 | G16: 6 | H16: E | I16: REJ | J16: B | K16: REJ | L16: D | M16: NIZ | N16: C | O16: SLA | P16: D | Q16: NIZ | R16: C | S16: SLA | W16: TG_5 Sociabilita CS+ | X16: =Individualne!D381 -> MIE | Y16: =Individualne!E381 -> NIZ | Z16: =Individualne!F381 -> SLA | AA16: =Individualne!G381 -> NIZ | AB16: =Individualne!H381 -> MIE | AC16: =Individualne!I381 -> NIZ | AD16: =Individualne!J381 -> MIE | AE16: =Individualne!K381 -> NIZ | AF16: =Individualne!L381 -> MIE | AG16: =Individualne!M381 -> SLA | AH16: =Individualne!N381 -> NIZ | AI16: =Individualne!O381 -> NIZ | AJ16: =Individualne!P381 -> SLA | AK16: =Individualne!Q381 -> SLA | AL16: =Individualne!R381 -> NIZ | AM16: =Individualne!S381 -> SLA | AN16: =Individualne!T381 -> NIZ | AO16: =Individualne!U381 -> VYS | AP16: =Individualne!V381 -> NIZ | AQ16: =Individualne!W381 -> SLA | AR16: =Individualne!X381 -> SLA | AS16: =Individualne!Y381 -> SLA | AT16: =Individualne!Z381 -> MIE | AU16: =Individualne!AA381 -> MIE | AV16: =Individualne!AB381 -> MIE | AW16: =Individualne!AC381 -> SLA | AX16: =Individualne!AD381 -> MIE | AY16: =Individualne!AE381 -> NIZ | AZ16: =Individualne!AF381 ->  | BA16: =Individualne!AG381 ->  | BB16: =Individualne!AH381 ->  | BC16: =Individualne!AI381 ->  | BD16: =Individualne!AJ381 ->  | BE16: =Individualne!AK381 ->  | BF16: =Individualne!AL381 ->  | BG16: =Individualne!AM381 ->  | BH16: =Individualne!AN381 ->  | BI16: =Individualne!AO381 ->  | BJ16: =Individualne!AP381 ->  | BK16: =Individualne!AQ381 -> 
B17: 5 | C17: "05_Oso m" | D17: 4 | E17: 2 | F17: 2 | G17: 2 | H17: B | I17: OBL | J17: E | K17: AVE | L17: C | M17: SLA | N17: D | O17: NIZ | P17: B | Q17: MIE | R17: C | S17: SLA | W17: TG_6 NonSociabilita CS- | X17: =Individualne!D383 -> NIZ | Y17: =Individualne!E383 -> NIZ | Z17: =Individualne!F383 -> NIZ | AA17: =Individualne!G383 -> SLA | AB17: =Individualne!H383 -> SLA | AC17: =Individualne!I383 -> VYS | AD17: =Individualne!J383 -> NIZ | AE17: =Individualne!K383 -> NIZ | AF17: =Individualne!L383 -> NIZ | AG17: =Individualne!M383 -> VYS | AH17: =Individualne!N383 -> NIZ | AI17: =Individualne!O383 -> SLA | AJ17: =Individualne!P383 -> NIZ | AK17: =Individualne!Q383 -> NIZ | AL17: =Individualne!R383 -> NIZ | AM17: =Individualne!S383 -> SLA | AN17: =Individualne!T383 -> SLA | AO17: =Individualne!U383 -> SLA | AP17: =Individualne!V383 -> NIZ | AQ17: =Individualne!W383 -> SLA | AR17: =Individualne!X383 -> NIZ | AS17: =Individualne!Y383 -> SLA | AT17: =Individualne!Z383 -> NIZ | AU17: =Individualne!AA383 -> NIZ | AV17: =Individualne!AB383 -> NIZ | AW17: =Individualne!AC383 -> NIZ | AX17: =Individualne!AD383 -> NIZ | AY17: =Individualne!AE383 -> NIZ | AZ17: =Individualne!AF383 ->  | BA17: =Individualne!AG383 ->  | BB17: =Individualne!AH383 ->  | BC17: =Individualne!AI383 ->  | BD17: =Individualne!AJ383 ->  | BE17: =Individualne!AK383 ->  | BF17: =Individualne!AL383 ->  | BG17: =Individualne!AM383 ->  | BH17: =Individualne!AN383 ->  | BI17: =Individualne!AO383 ->  | BJ17: =Individualne!AP383 ->  | BK17: =Individualne!AQ383 -> 
B18: 6 | C18: "*06_Oso m" | D18: 0 | E18: 19 | F18: 0 | G18: 19 | H18: E | I18: REJ | J18: B | K18: REJ | L18: D | M18: NIZ | N18: A | O18: VYS | P18: D | Q18: NIZ | R18: A | S18: VYS | V18: Q_2 | W18: TG_1 Pozitívne voľby P | X18: =Individualne!D385 -> KON | Y18: =Individualne!E385 -> REJ | Z18: =Individualne!F385 -> OBL | AA18: =Individualne!G385 -> REJ | AB18: =Individualne!H385 -> NEO | AC18: =Individualne!I385 -> REJ | AD18: =Individualne!J385 -> POP | AE18: =Individualne!K385 -> POP | AF18: =Individualne!L385 -> POP | AG18: =Individualne!M385 -> REJ | AH18: =Individualne!N385 -> OBL | AI18: =Individualne!O385 -> REJ | AJ18: =Individualne!P385 -> OBL | AK18: =Individualne!Q385 -> OBL | AL18: =Individualne!R385 -> OBL | AM18: =Individualne!S385 -> NEO | AN18: =Individualne!T385 -> NEO | AO18: =Individualne!U385 -> POP | AP18: =Individualne!V385 -> OBL | AQ18: =Individualne!W385 -> KON | AR18: =Individualne!X385 -> OBL | AS18: =Individualne!Y385 -> OBL | AT18: =Individualne!Z385 -> OBL | AU18: =Individualne!AA385 -> NEO | AV18: =Individualne!AB385 -> POP | AW18: =Individualne!AC385 -> POP | AX18: =Individualne!AD385 -> OBL | AY18: =Individualne!AE385 -> POP | AZ18: =Individualne!AF385 ->  | BA18: =Individualne!AG385 ->  | BB18: =Individualne!AH385 ->  | BC18: =Individualne!AI385 ->  | BD18: =Individualne!AJ385 ->  | BE18: =Individualne!AK385 ->  | BF18: =Individualne!AL385 ->  | BG18: =Individualne!AM385 ->  | BH18: =Individualne!AN385 ->  | BI18: =Individualne!AO385 ->  | BJ18: =Individualne!AP385 ->  | BK18: =Individualne!AQ385 -> 
B19: 7 | C19: "07_Oso m" | D19: 4 | E19: 0 | F19: 2 | G19: 0 | H19: A | I19: POP | J19: E | K19: AVE | L19: C | M19: SLA | N19: D | O19: NIZ | P19: B | Q19: MIE | R19: D | S19: NIZ | V19: Učiť sa | W19: TG_2 Sociálny vplyv | X19: =Individualne!D387 -> AVE | Y19: =Individualne!E387 -> REJ | Z19: =Individualne!F387 -> AVE | AA19: =Individualne!G387 -> REJ | AB19: =Individualne!H387 -> AVE | AC19: =Individualne!I387 -> REJ | AD19: =Individualne!J387 -> POP | AE19: =Individualne!K387 -> AVE | AF19: =Individualne!L387 -> POP | AG19: =Individualne!M387 -> REJ | AH19: =Individualne!N387 -> AVE | AI19: =Individualne!O387 -> REJ | AJ19: =Individualne!P387 -> AVE | AK19: =Individualne!Q387 -> AVE | AL19: =Individualne!R387 -> AVE | AM19: =Individualne!S387 -> AVE | AN19: =Individualne!T387 -> AVE | AO19: =Individualne!U387 -> POP | AP19: =Individualne!V387 -> AVE | AQ19: =Individualne!W387 -> AVE | AR19: =Individualne!X387 -> AVE | AS19: =Individualne!Y387 -> AVE | AT19: =Individualne!Z387 -> POP | AU19: =Individualne!AA387 -> AVE | AV19: =Individualne!AB387 -> POP | AW19: =Individualne!AC387 -> POP | AX19: =Individualne!AD387 -> AVE | AY19: =Individualne!AE387 -> POP | AZ19: =Individualne!AF387 ->  | BA19: =Individualne!AG387 ->  | BB19: =Individualne!AH387 ->  | BC19: =Individualne!AI387 ->  | BD19: =Individualne!AJ387 ->  | BE19: =Individualne!AK387 ->  | BF19: =Individualne!AL387 ->  | BG19: =Individualne!AM387 ->  | BH19: =Individualne!AN387 ->  | BI19: =Individualne!AO387 ->  | BJ19: =Individualne!AP387 ->  | BK19: =Individualne!AQ387 -> 
B20: 8 | C20: "08_Oso m" | D20: 4 | E20: 1 | F20: 0 | G20: 1 | H20: A | I20: POP | J20: E | K20: AVE | L20: C | M20: SLA | N20: D | O20: NIZ | P20: D | Q20: NIZ | R20: D | S20: NIZ | W20: TG_3 Prijímanie | X20: =Individualne!D389 -> NIZ | Y20: =Individualne!E389 -> NIZ | Z20: =Individualne!F389 -> SLA | AA20: =Individualne!G389 -> NIZ | AB20: =Individualne!H389 -> NIZ | AC20: =Individualne!I389 -> NIZ | AD20: =Individualne!J389 -> MIE | AE20: =Individualne!K389 -> SLA | AF20: =Individualne!L389 -> VYS | AG20: =Individualne!M389 -> NIZ | AH20: =Individualne!N389 -> NIZ | AI20: =Individualne!O389 -> NIZ | AJ20: =Individualne!P389 -> NIZ | AK20: =Individualne!Q389 -> SLA | AL20: =Individualne!R389 -> SLA | AM20: =Individualne!S389 -> NIZ | AN20: =Individualne!T389 -> NIZ | AO20: =Individualne!U389 -> MIE | AP20: =Individualne!V389 -> SLA | AQ20: =Individualne!W389 -> NIZ | AR20: =Individualne!X389 -> NIZ | AS20: =Individualne!Y389 -> NIZ | AT20: =Individualne!Z389 -> VYS | AU20: =Individualne!AA389 -> NIZ | AV20: =Individualne!AB389 -> VYS | AW20: =Individualne!AC389 -> MIE | AX20: =Individualne!AD389 -> MIE | AY20: =Individualne!AE389 -> VYS | AZ20: =Individualne!AF389 ->  | BA20: =Individualne!AG389 ->  | BB20: =Individualne!AH389 ->  | BC20: =Individualne!AI389 ->  | BD20: =Individualne!AJ389 ->  | BE20: =Individualne!AK389 ->  | BF20: =Individualne!AL389 ->  | BG20: =Individualne!AM389 ->  | BH20: =Individualne!AN389 ->  | BI20: =Individualne!AO389 ->  | BJ20: =Individualne!AP389 ->  | BK20: =Individualne!AQ389 -> 
B21: 9 | C21: "09_Oso f" | D21: 6 | E21: 0 | F21: 2 | G21: 0 | H21: A | I21: POP | J21: A | K21: POP | L21: B | M21: MIE | N21: D | O21: NIZ | P21: B | Q21: MIE | R21: D | S21: NIZ | W21: TG_4 Odmietanie | X21: =Individualne!D391 -> NIZ | Y21: =Individualne!E391 -> MIE | Z21: =Individualne!F391 -> NIZ | AA21: =Individualne!G391 -> MIE | AB21: =Individualne!H391 -> NIZ | AC21: =Individualne!I391 -> VYS | AD21: =Individualne!J391 -> NIZ | AE21: =Individualne!K391 -> NIZ | AF21: =Individualne!L391 -> NIZ | AG21: =Individualne!M391 -> VYS | AH21: =Individualne!N391 -> NIZ | AI21: =Individualne!O391 -> NIZ | AJ21: =Individualne!P391 -> NIZ | AK21: =Individualne!Q391 -> NIZ | AL21: =Individualne!R391 -> NIZ | AM21: =Individualne!S391 -> NIZ | AN21: =Individualne!T391 -> NIZ | AO21: =Individualne!U391 -> NIZ | AP21: =Individualne!V391 -> NIZ | AQ21: =Individualne!W391 -> NIZ | AR21: =Individualne!X391 -> NIZ | AS21: =Individualne!Y391 -> NIZ | AT21: =Individualne!Z391 -> NIZ | AU21: =Individualne!AA391 -> NIZ | AV21: =Individualne!AB391 -> NIZ | AW21: =Individualne!AC391 -> NIZ | AX21: =Individualne!AD391 -> NIZ | AY21: =Individualne!AE391 -> NIZ | AZ21: =Individualne!AF391 ->  | BA21: =Individualne!AG391 ->  | BB21: =Individualne!AH391 ->  | BC21: =Individualne!AI391 ->  | BD21: =Individualne!AJ391 ->  | BE21: =Individualne!AK391 ->  | BF21: =Individualne!AL391 ->  | BG21: =Individualne!AM391 ->  | BH21: =Individualne!AN391 ->  | BI21: =Individualne!AO391 ->  | BJ21: =Individualne!AP391 ->  | BK21: =Individualne!AQ391 -> 
B22: 10 | C22: "**10_Oso m" | D22: 2 | E22: 20 | F22: 1 | G22: 20 | H22: C | I22: NEO | J22: B | K22: REJ | L22: C | M22: SLA | N22: A | O22: VYS | P22: C | Q22: SLA | R22: A | S22: VYS | W22: TG_5 Sociabilita CS+ | X22: =Individualne!D393 -> SLA | Y22: =Individualne!E393 -> NIZ | Z22: =Individualne!F393 -> SLA | AA22: =Individualne!G393 -> SLA | AB22: =Individualne!H393 -> SLA | AC22: =Individualne!I393 -> NIZ | AD22: =Individualne!J393 -> MIE | AE22: =Individualne!K393 -> NIZ | AF22: =Individualne!L393 -> SLA | AG22: =Individualne!M393 -> NIZ | AH22: =Individualne!N393 -> NIZ | AI22: =Individualne!O393 -> NIZ | AJ22: =Individualne!P393 -> SLA | AK22: =Individualne!Q393 -> NIZ | AL22: =Individualne!R393 -> SLA | AM22: =Individualne!S393 -> NIZ | AN22: =Individualne!T393 -> NIZ | AO22: =Individualne!U393 -> VYS | AP22: =Individualne!V393 -> SLA | AQ22: =Individualne!W393 -> SLA | AR22: =Individualne!X393 -> NIZ | AS22: =Individualne!Y393 -> SLA | AT22: =Individualne!Z393 -> VYS | AU22: =Individualne!AA393 -> NIZ | AV22: =Individualne!AB393 -> VYS | AW22: =Individualne!AC393 -> MIE | AX22: =Individualne!AD393 -> SLA | AY22: =Individualne!AE393 -> NIZ | AZ22: =Individualne!AF393 ->  | BA22: =Individualne!AG393 ->  | BB22: =Individualne!AH393 ->  | BC22: =Individualne!AI393 ->  | BD22: =Individualne!AJ393 ->  | BE22: =Individualne!AK393 ->  | BF22: =Individualne!AL393 ->  | BG22: =Individualne!AM393 ->  | BH22: =Individualne!AN393 ->  | BI22: =Individualne!AO393 ->  | BJ22: =Individualne!AP393 ->  | BK22: =Individualne!AQ393 -> 
B23: 11 | C23: "11_Oso m" | D23: 3 | E23: 0 | F23: 0 | G23: 0 | H23: B | I23: OBL | J23: E | K23: AVE | L23: C | M23: SLA | N23: D | O23: NIZ | P23: D | Q23: NIZ | R23: D | S23: NIZ | W23: TG_6 NonSociabilita CS- | X23: =Individualne!D395 -> SLA | Y23: =Individualne!E395 -> VYS | Z23: =Individualne!F395 -> NIZ | AA23: =Individualne!G395 -> MIE | AB23: =Individualne!H395 -> NIZ | AC23: =Individualne!I395 -> MIE | AD23: =Individualne!J395 -> NIZ | AE23: =Individualne!K395 -> NIZ | AF23: =Individualne!L395 -> NIZ | AG23: =Individualne!M395 -> MIE | AH23: =Individualne!N395 -> NIZ | AI23: =Individualne!O395 -> SLA | AJ23: =Individualne!P395 -> NIZ | AK23: =Individualne!Q395 -> NIZ | AL23: =Individualne!R395 -> NIZ | AM23: =Individualne!S395 -> NIZ | AN23: =Individualne!T395 -> SLA | AO23: =Individualne!U395 -> NIZ | AP23: =Individualne!V395 -> NIZ | AQ23: =Individualne!W395 -> NIZ | AR23: =Individualne!X395 -> NIZ | AS23: =Individualne!Y395 -> NIZ | AT23: =Individualne!Z395 -> NIZ | AU23: =Individualne!AA395 -> NIZ | AV23: =Individualne!AB395 -> NIZ | AW23: =Individualne!AC395 -> NIZ | AX23: =Individualne!AD395 -> NIZ | AY23: =Individualne!AE395 -> NIZ | AZ23: =Individualne!AF395 ->  | BA23: =Individualne!AG395 ->  | BB23: =Individualne!AH395 ->  | BC23: =Individualne!AI395 ->  | BD23: =Individualne!AJ395 ->  | BE23: =Individualne!AK395 ->  | BF23: =Individualne!AL395 ->  | BG23: =Individualne!AM395 ->  | BH23: =Individualne!AN395 ->  | BI23: =Individualne!AO395 ->  | BJ23: =Individualne!AP395 ->  | BK23: =Individualne!AQ395 -> 
B24: 12 | C24: "12_Oso m" | D24: 3 | E24: 3 | F24: 0 | G24: 3 | H24: D | I24: KON | J24: E | K24: AVE | L24: C | M24: SLA | N24: D | O24: NIZ | P24: D | Q24: NIZ | R24: C | S24: SLA | V24: Q_3 | W24: TG_1 Pozitívne voľby P | X24: =Individualne!D397 -> KON | Y24: =Individualne!E397 -> REJ | Z24: =Individualne!F397 -> OBL | AA24: =Individualne!G397 -> REJ | AB24: =Individualne!H397 -> OBL | AC24: =Individualne!I397 -> NEO | AD24: =Individualne!J397 -> OBL | AE24: =Individualne!K397 -> POP | AF24: =Individualne!L397 -> POP | AG24: =Individualne!M397 -> NEO | AH24: =Individualne!N397 -> POP | AI24: =Individualne!O397 -> POP | AJ24: =Individualne!P397 -> OPO | AK24: =Individualne!Q397 -> OBL | AL24: =Individualne!R397 -> NEO | AM24: =Individualne!S397 -> OBL | AN24: =Individualne!T397 -> NEO | AO24: =Individualne!U397 -> OBL | AP24: =Individualne!V397 -> OBL | AQ24: =Individualne!W397 -> OBL | AR24: =Individualne!X397 -> POP | AS24: =Individualne!Y397 -> OBL | AT24: =Individualne!Z397 -> POP | AU24: =Individualne!AA397 -> NEO | AV24: =Individualne!AB397 -> OBL | AW24: =Individualne!AC397 -> OBL | AX24: =Individualne!AD397 -> KON | AY24: =Individualne!AE397 -> POP | AZ24: =Individualne!AF397 ->  | BA24: =Individualne!AG397 ->  | BB24: =Individualne!AH397 ->  | BC24: =Individualne!AI397 ->  | BD24: =Individualne!AJ397 ->  | BE24: =Individualne!AK397 ->  | BF24: =Individualne!AL397 ->  | BG24: =Individualne!AM397 ->  | BH24: =Individualne!AN397 ->  | BI24: =Individualne!AO397 ->  | BJ24: =Individualne!AP397 ->  | BK24: =Individualne!AQ397 -> 
B25: 13 | C25: "13_Oso m" | D25: 1 | E25: 0 | F25: 1 | G25: 0 | H25: B | I25: OBL | J25: E | K25: AVE | L25: D | M25: NIZ | N25: D | O25: NIZ | P25: C | Q25: SLA | R25: D | S25: NIZ | V25: Pustý ostrov | W25: TG_2 Sociálny vplyv | X25: =Individualne!D399 -> AVE | Y25: =Individualne!E399 -> REJ | Z25: =Individualne!F399 -> AVE | AA25: =Individualne!G399 -> REJ | AB25: =Individualne!H399 -> AVE | AC25: =Individualne!I399 -> REJ | AD25: =Individualne!J399 -> AVE | AE25: =Individualne!K399 -> AVE | AF25: =Individualne!L399 -> POP | AG25: =Individualne!M399 -> CON | AH25: =Individualne!N399 -> AVE | AI25: =Individualne!O399 -> AVE | AJ25: =Individualne!P399 -> AVE | AK25: =Individualne!Q399 -> AVE | AL25: =Individualne!R399 -> AVE | AM25: =Individualne!S399 -> AVE | AN25: =Individualne!T399 -> AVE | AO25: =Individualne!U399 -> POP | AP25: =Individualne!V399 -> AVE | AQ25: =Individualne!W399 -> AVE | AR25: =Individualne!X399 -> AVE | AS25: =Individualne!Y399 -> AVE | AT25: =Individualne!Z399 -> POP | AU25: =Individualne!AA399 -> AVE | AV25: =Individualne!AB399 -> AVE | AW25: =Individualne!AC399 -> AVE | AX25: =Individualne!AD399 -> CON | AY25: =Individualne!AE399 -> POP | AZ25: =Individualne!AF399 ->  | BA25: =Individualne!AG399 ->  | BB25: =Individualne!AH399 ->  | BC25: =Individualne!AI399 ->  | BD25: =Individualne!AJ399 ->  | BE25: =Individualne!AK399 ->  | BF25: =Individualne!AL399 ->  | BG25: =Individualne!AM399 ->  | BH25: =Individualne!AN399 ->  | BI25: =Individualne!AO399 ->  | BJ25: =Individualne!AP399 ->  | BK25: =Individualne!AQ399 -> 
B26: 14 | C26: "14_Oso m" | D26: 2 | E26: 0 | F26: 1 | G26: 0 | H26: B | I26: OBL | J26: E | K26: AVE | L26: C | M26: SLA | N26: D | O26: NIZ | P26: C | Q26: SLA | R26: D | S26: NIZ | W26: TG_3 Prijímanie | X26: =Individualne!D401 -> NIZ | Y26: =Individualne!E401 -> NIZ | Z26: =Individualne!F401 -> SLA | AA26: =Individualne!G401 -> NIZ | AB26: =Individualne!H401 -> SLA | AC26: =Individualne!I401 -> SLA | AD26: =Individualne!J401 -> SLA | AE26: =Individualne!K401 -> SLA | AF26: =Individualne!L401 -> MIE | AG26: =Individualne!M401 -> SLA | AH26: =Individualne!N401 -> SLA | AI26: =Individualne!O401 -> SLA | AJ26: =Individualne!P401 -> NIZ | AK26: =Individualne!Q401 -> NIZ | AL26: =Individualne!R401 -> NIZ | AM26: =Individualne!S401 -> SLA | AN26: =Individualne!T401 -> NIZ | AO26: =Individualne!U401 -> MIE | AP26: =Individualne!V401 -> SLA | AQ26: =Individualne!W401 -> SLA | AR26: =Individualne!X401 -> SLA | AS26: =Individualne!Y401 -> SLA | AT26: =Individualne!Z401 -> VYS | AU26: =Individualne!AA401 -> NIZ | AV26: =Individualne!AB401 -> SLA | AW26: =Individualne!AC401 -> NIZ | AX26: =Individualne!AD401 -> MIE | AY26: =Individualne!AE401 -> SLA | AZ26: =Individualne!AF401 ->  | BA26: =Individualne!AG401 ->  | BB26: =Individualne!AH401 ->  | BC26: =Individualne!AI401 ->  | BD26: =Individualne!AJ401 ->  | BE26: =Individualne!AK401 ->  | BF26: =Individualne!AL401 ->  | BG26: =Individualne!AM401 ->  | BH26: =Individualne!AN401 ->  | BI26: =Individualne!AO401 ->  | BJ26: =Individualne!AP401 ->  | BK26: =Individualne!AQ401 -> 
B27: 15 | C27: "15_Oso f" | D27: 0 | E27: 1 | F27: 0 | G27: 1 | H27: C | I27: NEO | J27: E | K27: AVE | L27: D | M27: NIZ | N27: D | O27: NIZ | P27: D | Q27: NIZ | R27: D | S27: NIZ | W27: TG_4 Odmietanie | X27: =Individualne!D403 -> NIZ | Y27: =Individualne!E403 -> MIE | Z27: =Individualne!F403 -> NIZ | AA27: =Individualne!G403 -> SLA | AB27: =Individualne!H403 -> NIZ | AC27: =Individualne!I403 -> VYS | AD27: =Individualne!J403 -> NIZ | AE27: =Individualne!K403 -> NIZ | AF27: =Individualne!L403 -> NIZ | AG27: =Individualne!M403 -> VYS | AH27: =Individualne!N403 -> NIZ | AI27: =Individualne!O403 -> NIZ | AJ27: =Individualne!P403 -> NIZ | AK27: =Individualne!Q403 -> NIZ | AL27: =Individualne!R403 -> NIZ | AM27: =Individualne!S403 -> NIZ | AN27: =Individualne!T403 -> NIZ | AO27: =Individualne!U403 -> NIZ | AP27: =Individualne!V403 -> NIZ | AQ27: =Individualne!W403 -> NIZ | AR27: =Individualne!X403 -> NIZ | AS27: =Individualne!Y403 -> NIZ | AT27: =Individualne!Z403 -> NIZ | AU27: =Individualne!AA403 -> NIZ | AV27: =Individualne!AB403 -> NIZ | AW27: =Individualne!AC403 -> NIZ | AX27: =Individualne!AD403 -> SLA | AY27: =Individualne!AE403 -> NIZ | AZ27: =Individualne!AF403 ->  | BA27: =Individualne!AG403 ->  | BB27: =Individualne!AH403 ->  | BC27: =Individualne!AI403 ->  | BD27: =Individualne!AJ403 ->  | BE27: =Individualne!AK403 ->  | BF27: =Individualne!AL403 ->  | BG27: =Individualne!AM403 ->  | BH27: =Individualne!AN403 ->  | BI27: =Individualne!AO403 ->  | BJ27: =Individualne!AP403 ->  | BK27: =Individualne!AQ403 -> 
B28: 16 | C28: "16_Oso f" | D28: 2 | E28: 2 | F28: 1 | G28: 2 | H28: D | I28: KON | J28: E | K28: AVE | L28: C | M28: SLA | N28: D | O28: NIZ | P28: C | Q28: SLA | R28: C | S28: SLA | W28: TG_5 Sociabilita CS+ | X28: =Individualne!D405 -> SLA | Y28: =Individualne!E405 -> NIZ | Z28: =Individualne!F405 -> MIE | AA28: =Individualne!G405 -> NIZ | AB28: =Individualne!H405 -> SLA | AC28: =Individualne!I405 -> SLA | AD28: =Individualne!J405 -> MIE | AE28: =Individualne!K405 -> SLA | AF28: =Individualne!L405 -> SLA | AG28: =Individualne!M405 -> VYS | AH28: =Individualne!N405 -> MIE | AI28: =Individualne!O405 -> NIZ | AJ28: =Individualne!P405 -> NIZ | AK28: =Individualne!Q405 -> NIZ | AL28: =Individualne!R405 -> NIZ | AM28: =Individualne!S405 -> SLA | AN28: =Individualne!T405 -> NIZ | AO28: =Individualne!U405 -> VYS | AP28: =Individualne!V405 -> SLA | AQ28: =Individualne!W405 -> NIZ | AR28: =Individualne!X405 -> SLA | AS28: =Individualne!Y405 -> NIZ | AT28: =Individualne!Z405 -> MIE | AU28: =Individualne!AA405 -> SLA | AV28: =Individualne!AB405 -> SLA | AW28: =Individualne!AC405 -> NIZ | AX28: =Individualne!AD405 -> MIE | AY28: =Individualne!AE405 -> NIZ | AZ28: =Individualne!AF405 ->  | BA28: =Individualne!AG405 ->  | BB28: =Individualne!AH405 ->  | BC28: =Individualne!AI405 ->  | BD28: =Individualne!AJ405 ->  | BE28: =Individualne!AK405 ->  | BF28: =Individualne!AL405 ->  | BG28: =Individualne!AM405 ->  | BH28: =Individualne!AN405 ->  | BI28: =Individualne!AO405 ->  | BJ28: =Individualne!AP405 ->  | BK28: =Individualne!AQ405 -> 
B29: 17 | C29: "17_Oso f" | D29: 0 | E29: 2 | F29: 0 | G29: 2 | H29: C | I29: NEO | J29: E | K29: AVE | L29: D | M29: NIZ | N29: D | O29: NIZ | P29: D | Q29: NIZ | R29: C | S29: SLA | W29: TG_6 NonSociabilita CS- | X29: =Individualne!D407 -> SLA | Y29: =Individualne!E407 -> SLA | Z29: =Individualne!F407 -> NIZ | AA29: =Individualne!G407 -> NIZ | AB29: =Individualne!H407 -> NIZ | AC29: =Individualne!I407 -> VYS | AD29: =Individualne!J407 -> NIZ | AE29: =Individualne!K407 -> NIZ | AF29: =Individualne!L407 -> NIZ | AG29: =Individualne!M407 -> VYS | AH29: =Individualne!N407 -> SLA | AI29: =Individualne!O407 -> NIZ | AJ29: =Individualne!P407 -> NIZ | AK29: =Individualne!Q407 -> NIZ | AL29: =Individualne!R407 -> SLA | AM29: =Individualne!S407 -> SLA | AN29: =Individualne!T407 -> MIE | AO29: =Individualne!U407 -> SLA | AP29: =Individualne!V407 -> NIZ | AQ29: =Individualne!W407 -> NIZ | AR29: =Individualne!X407 -> NIZ | AS29: =Individualne!Y407 -> NIZ | AT29: =Individualne!Z407 -> NIZ | AU29: =Individualne!AA407 -> NIZ | AV29: =Individualne!AB407 -> SLA | AW29: =Individualne!AC407 -> NIZ | AX29: =Individualne!AD407 -> SLA | AY29: =Individualne!AE407 -> NIZ | AZ29: =Individualne!AF407 ->  | BA29: =Individualne!AG407 ->  | BB29: =Individualne!AH407 ->  | BC29: =Individualne!AI407 ->  | BD29: =Individualne!AJ407 ->  | BE29: =Individualne!AK407 ->  | BF29: =Individualne!AL407 ->  | BG29: =Individualne!AM407 ->  | BH29: =Individualne!AN407 ->  | BI29: =Individualne!AO407 ->  | BJ29: =Individualne!AP407 ->  | BK29: =Individualne!AQ407 -> 
B30: 18 | C30: "18_Oso f" | D30: 4 | E30: 1 | F30: 3 | G30: 1 | H30: A | I30: POP | J30: E | K30: AVE | L30: C | M30: SLA | N30: D | O30: NIZ | P30: A | Q30: VYS | R30: C | S30: SLA | V30: Q_4 | W30: TG_1 Pozitívne voľby P | X30: =Individualne!D409 -> OPO | Y30: =Individualne!E409 -> REJ | Z30: =Individualne!F409 -> OPO | AA30: =Individualne!G409 -> REJ | AB30: =Individualne!H409 -> OBL | AC30: =Individualne!I409 -> REJ | AD30: =Individualne!J409 -> OBL | AE30: =Individualne!K409 -> NEO | AF30: =Individualne!L409 -> POP | AG30: =Individualne!M409 -> REJ | AH30: =Individualne!N409 -> NEO | AI30: =Individualne!O409 -> NEO | AJ30: =Individualne!P409 -> NEO | AK30: =Individualne!Q409 -> OPO | AL30: =Individualne!R409 -> POP | AM30: =Individualne!S409 -> NEO | AN30: =Individualne!T409 -> NEO | AO30: =Individualne!U409 -> OBL | AP30: =Individualne!V409 -> OPO | AQ30: =Individualne!W409 -> OBL | AR30: =Individualne!X409 -> OPO | AS30: =Individualne!Y409 -> OPO | AT30: =Individualne!Z409 -> POP | AU30: =Individualne!AA409 -> REJ | AV30: =Individualne!AB409 -> POP | AW30: =Individualne!AC409 -> POP | AX30: =Individualne!AD409 -> NEO | AY30: =Individualne!AE409 -> POP | AZ30: =Individualne!AF409 ->  | BA30: =Individualne!AG409 ->  | BB30: =Individualne!AH409 ->  | BC30: =Individualne!AI409 ->  | BD30: =Individualne!AJ409 ->  | BE30: =Individualne!AK409 ->  | BF30: =Individualne!AL409 ->  | BG30: =Individualne!AM409 ->  | BH30: =Individualne!AN409 ->  | BI30: =Individualne!AO409 ->  | BJ30: =Individualne!AP409 ->  | BK30: =Individualne!AQ409 -> 
B31: 19 | C31: "19_Oso f" | D31: 1 | E31: 0 | F31: 0 | G31: 0 | H31: B | I31: OBL | J31: E | K31: AVE | L31: D | M31: NIZ | N31: D | O31: NIZ | P31: D | Q31: NIZ | R31: D | S31: NIZ | V31: Hájiť záujmy | W31: TG_2 Sociálny vplyv | X31: =Individualne!D411 -> AVE | Y31: =Individualne!E411 -> REJ | Z31: =Individualne!F411 -> AVE | AA31: =Individualne!G411 -> AVE | AB31: =Individualne!H411 -> AVE | AC31: =Individualne!I411 -> REJ | AD31: =Individualne!J411 -> AVE | AE31: =Individualne!K411 -> AVE | AF31: =Individualne!L411 -> POP | AG31: =Individualne!M411 -> REJ | AH31: =Individualne!N411 -> AVE | AI31: =Individualne!O411 -> AVE | AJ31: =Individualne!P411 -> AVE | AK31: =Individualne!Q411 -> AVE | AL31: =Individualne!R411 -> POP | AM31: =Individualne!S411 -> AVE | AN31: =Individualne!T411 -> AVE | AO31: =Individualne!U411 -> AVE | AP31: =Individualne!V411 -> AVE | AQ31: =Individualne!W411 -> AVE | AR31: =Individualne!X411 -> AVE | AS31: =Individualne!Y411 -> AVE | AT31: =Individualne!Z411 -> POP | AU31: =Individualne!AA411 -> AVE | AV31: =Individualne!AB411 -> POP | AW31: =Individualne!AC411 -> POP | AX31: =Individualne!AD411 -> AVE | AY31: =Individualne!AE411 -> POP | AZ31: =Individualne!AF411 ->  | BA31: =Individualne!AG411 ->  | BB31: =Individualne!AH411 ->  | BC31: =Individualne!AI411 ->  | BD31: =Individualne!AJ411 ->  | BE31: =Individualne!AK411 ->  | BF31: =Individualne!AL411 ->  | BG31: =Individualne!AM411 ->  | BH31: =Individualne!AN411 ->  | BI31: =Individualne!AO411 ->  | BJ31: =Individualne!AP411 ->  | BK31: =Individualne!AQ411 -> 
B32: 20 | C32: "20_Oso f" | D32: 2 | E32: 1 | F32: 1 | G32: 1 | H32: B | I32: OBL | J32: E | K32: AVE | L32: C | M32: SLA | N32: D | O32: NIZ | P32: C | Q32: SLA | R32: C | S32: SLA | W32: TG_3 Prijímanie | X32: =Individualne!D413 -> NIZ | Y32: =Individualne!E413 -> NIZ | Z32: =Individualne!F413 -> NIZ | AA32: =Individualne!G413 -> NIZ | AB32: =Individualne!H413 -> SLA | AC32: =Individualne!I413 -> NIZ | AD32: =Individualne!J413 -> SLA | AE32: =Individualne!K413 -> NIZ | AF32: =Individualne!L413 -> VYS | AG32: =Individualne!M413 -> NIZ | AH32: =Individualne!N413 -> NIZ | AI32: =Individualne!O413 -> NIZ | AJ32: =Individualne!P413 -> NIZ | AK32: =Individualne!Q413 -> NIZ | AL32: =Individualne!R413 -> VYS | AM32: =Individualne!S413 -> NIZ | AN32: =Individualne!T413 -> NIZ | AO32: =Individualne!U413 -> SLA | AP32: =Individualne!V413 -> NIZ | AQ32: =Individualne!W413 -> SLA | AR32: =Individualne!X413 -> NIZ | AS32: =Individualne!Y413 -> NIZ | AT32: =Individualne!Z413 -> VYS | AU32: =Individualne!AA413 -> NIZ | AV32: =Individualne!AB413 -> VYS | AW32: =Individualne!AC413 -> VYS | AX32: =Individualne!AD413 -> NIZ | AY32: =Individualne!AE413 -> VYS | AZ32: =Individualne!AF413 ->  | BA32: =Individualne!AG413 ->  | BB32: =Individualne!AH413 ->  | BC32: =Individualne!AI413 ->  | BD32: =Individualne!AJ413 ->  | BE32: =Individualne!AK413 ->  | BF32: =Individualne!AL413 ->  | BG32: =Individualne!AM413 ->  | BH32: =Individualne!AN413 ->  | BI32: =Individualne!AO413 ->  | BJ32: =Individualne!AP413 ->  | BK32: =Individualne!AQ413 -> 
B33: 21 | C33: "21_Oso f" | D33: 2 | E33: 2 | F33: 1 | G33: 2 | H33: D | I33: KON | J33: E | K33: AVE | L33: C | M33: SLA | N33: D | O33: NIZ | P33: C | Q33: SLA | R33: D | S33: NIZ | W33: TG_4 Odmietanie | X33: =Individualne!D415 -> NIZ | Y33: =Individualne!E415 -> VYS | Z33: =Individualne!F415 -> NIZ | AA33: =Individualne!G415 -> SLA | AB33: =Individualne!H415 -> NIZ | AC33: =Individualne!I415 -> VYS | AD33: =Individualne!J415 -> NIZ | AE33: =Individualne!K415 -> NIZ | AF33: =Individualne!L415 -> NIZ | AG33: =Individualne!M415 -> VYS | AH33: =Individualne!N415 -> NIZ | AI33: =Individualne!O415 -> NIZ | AJ33: =Individualne!P415 -> NIZ | AK33: =Individualne!Q415 -> NIZ | AL33: =Individualne!R415 -> NIZ | AM33: =Individualne!S415 -> NIZ | AN33: =Individualne!T415 -> NIZ | AO33: =Individualne!U415 -> NIZ | AP33: =Individualne!V415 -> NIZ | AQ33: =Individualne!W415 -> NIZ | AR33: =Individualne!X415 -> NIZ | AS33: =Individualne!Y415 -> NIZ | AT33: =Individualne!Z415 -> NIZ | AU33: =Individualne!AA415 -> NIZ | AV33: =Individualne!AB415 -> NIZ | AW33: =Individualne!AC415 -> NIZ | AX33: =Individualne!AD415 -> NIZ | AY33: =Individualne!AE415 -> NIZ | AZ33: =Individualne!AF415 ->  | BA33: =Individualne!AG415 ->  | BB33: =Individualne!AH415 ->  | BC33: =Individualne!AI415 ->  | BD33: =Individualne!AJ415 ->  | BE33: =Individualne!AK415 ->  | BF33: =Individualne!AL415 ->  | BG33: =Individualne!AM415 ->  | BH33: =Individualne!AN415 ->  | BI33: =Individualne!AO415 ->  | BJ33: =Individualne!AP415 ->  | BK33: =Individualne!AQ415 -> 
B34: 22 | C34: "22_Oso f" | D34: 5 | E34: 2 | F34: 1 | G34: 2 | H34: B | I34: OBL | J34: A | K34: POP | L34: B | M34: MIE | N34: D | O34: NIZ | P34: C | Q34: SLA | R34: C | S34: SLA | W34: TG_5 Sociabilita CS+ | X34: =Individualne!D417 -> NIZ | Y34: =Individualne!E417 -> NIZ | Z34: =Individualne!F417 -> NIZ | AA34: =Individualne!G417 -> NIZ | AB34: =Individualne!H417 -> SLA | AC34: =Individualne!I417 -> NIZ | AD34: =Individualne!J417 -> NIZ | AE34: =Individualne!K417 -> NIZ | AF34: =Individualne!L417 -> NIZ | AG34: =Individualne!M417 -> NIZ | AH34: =Individualne!N417 -> NIZ | AI34: =Individualne!O417 -> NIZ | AJ34: =Individualne!P417 -> NIZ | AK34: =Individualne!Q417 -> NIZ | AL34: =Individualne!R417 -> SLA | AM34: =Individualne!S417 -> NIZ | AN34: =Individualne!T417 -> NIZ | AO34: =Individualne!U417 -> MIE | AP34: =Individualne!V417 -> NIZ | AQ34: =Individualne!W417 -> MIE | AR34: =Individualne!X417 -> NIZ | AS34: =Individualne!Y417 -> NIZ | AT34: =Individualne!Z417 -> VYS | AU34: =Individualne!AA417 -> NIZ | AV34: =Individualne!AB417 -> MIE | AW34: =Individualne!AC417 -> SLA | AX34: =Individualne!AD417 -> NIZ | AY34: =Individualne!AE417 -> NIZ | AZ34: =Individualne!AF417 ->  | BA34: =Individualne!AG417 ->  | BB34: =Individualne!AH417 ->  | BC34: =Individualne!AI417 ->  | BD34: =Individualne!AJ417 ->  | BE34: =Individualne!AK417 ->  | BF34: =Individualne!AL417 ->  | BG34: =Individualne!AM417 ->  | BH34: =Individualne!AN417 ->  | BI34: =Individualne!AO417 ->  | BJ34: =Individualne!AP417 ->  | BK34: =Individualne!AQ417 -> 
B35: 23 | C35: "23_Oso f" | D35: 10 | E35: 2 | F35: 2 | G35: 2 | H35: B | I35: OBL | J35: A | K35: POP | L35: A | M35: VYS | N35: D | O35: NIZ | P35: B | Q35: MIE | R35: D | S35: NIZ | W35: TG_6 NonSociabilita CS- | X35: =Individualne!D419 -> NIZ | Y35: =Individualne!E419 -> VYS | Z35: =Individualne!F419 -> NIZ | AA35: =Individualne!G419 -> MIE | AB35: =Individualne!H419 -> SLA | AC35: =Individualne!I419 -> MIE | AD35: =Individualne!J419 -> NIZ | AE35: =Individualne!K419 -> NIZ | AF35: =Individualne!L419 -> NIZ | AG35: =Individualne!M419 -> VYS | AH35: =Individualne!N419 -> NIZ | AI35: =Individualne!O419 -> NIZ | AJ35: =Individualne!P419 -> NIZ | AK35: =Individualne!Q419 -> NIZ | AL35: =Individualne!R419 -> NIZ | AM35: =Individualne!S419 -> NIZ | AN35: =Individualne!T419 -> NIZ | AO35: =Individualne!U419 -> SLA | AP35: =Individualne!V419 -> NIZ | AQ35: =Individualne!W419 -> NIZ | AR35: =Individualne!X419 -> NIZ | AS35: =Individualne!Y419 -> NIZ | AT35: =Individualne!Z419 -> NIZ | AU35: =Individualne!AA419 -> SLA | AV35: =Individualne!AB419 -> SLA | AW35: =Individualne!AC419 -> NIZ | AX35: =Individualne!AD419 -> NIZ | AY35: =Individualne!AE419 -> NIZ | AZ35: =Individualne!AF419 ->  | BA35: =Individualne!AG419 ->  | BB35: =Individualne!AH419 ->  | BC35: =Individualne!AI419 ->  | BD35: =Individualne!AJ419 ->  | BE35: =Individualne!AK419 ->  | BF35: =Individualne!AL419 ->  | BG35: =Individualne!AM419 ->  | BH35: =Individualne!AN419 ->  | BI35: =Individualne!AO419 ->  | BJ35: =Individualne!AP419 ->  | BK35: =Individualne!AQ419 -> 
B36: 24 | C36: "24_Oso f" | D36: 3 | E36: 2 | F36: 2 | G36: 2 | H36: B | I36: OBL | J36: E | K36: AVE | L36: C | M36: SLA | N36: D | O36: NIZ | P36: B | Q36: MIE | R36: D | S36: NIZ | V36: Q_5 | W36: TG_1 Pozitívne voľby P | X36: =Individualne!D421 -> OBL | Y36: =Individualne!E421 -> REJ | Z36: =Individualne!F421 -> NEO | AA36: =Individualne!G421 -> REJ | AB36: =Individualne!H421 -> NEO | AC36: =Individualne!I421 -> REJ | AD36: =Individualne!J421 -> OBL | AE36: =Individualne!K421 -> OBL | AF36: =Individualne!L421 -> OBL | AG36: =Individualne!M421 -> REJ | AH36: =Individualne!N421 -> POP | AI36: =Individualne!O421 -> KON | AJ36: =Individualne!P421 -> OBL | AK36: =Individualne!Q421 -> OBL | AL36: =Individualne!R421 -> NEO | AM36: =Individualne!S421 -> NEO | AN36: =Individualne!T421 -> NEO | AO36: =Individualne!U421 -> POP | AP36: =Individualne!V421 -> OBL | AQ36: =Individualne!W421 -> KON | AR36: =Individualne!X421 -> OBL | AS36: =Individualne!Y421 -> KON | AT36: =Individualne!Z421 -> OBL | AU36: =Individualne!AA421 -> KON | AV36: =Individualne!AB421 -> OBL | AW36: =Individualne!AC421 -> OBL | AX36: =Individualne!AD421 -> OBL | AY36: =Individualne!AE421 -> POP | AZ36: =Individualne!AF421 ->  | BA36: =Individualne!AG421 ->  | BB36: =Individualne!AH421 ->  | BC36: =Individualne!AI421 ->  | BD36: =Individualne!AJ421 ->  | BE36: =Individualne!AK421 ->  | BF36: =Individualne!AL421 ->  | BG36: =Individualne!AM421 ->  | BH36: =Individualne!AN421 ->  | BI36: =Individualne!AO421 ->  | BJ36: =Individualne!AP421 ->  | BK36: =Individualne!AQ421 -> 
B37: 25 | C37: "25_Oso f" | D37: 3 | E37: 1 | F37: 2 | G37: 1 | H37: B | I37: OBL | J37: E | K37: AVE | L37: C | M37: SLA | N37: D | O37: NIZ | P37: B | Q37: MIE | R37: D | S37: NIZ | V37: Tajomstvo | W37: TG_2 Sociálny vplyv | X37: =Individualne!D423 -> AVE | Y37: =Individualne!E423 -> REJ | Z37: =Individualne!F423 -> AVE | AA37: =Individualne!G423 -> REJ | AB37: =Individualne!H423 -> REJ | AC37: =Individualne!I423 -> REJ | AD37: =Individualne!J423 -> POP | AE37: =Individualne!K423 -> AVE | AF37: =Individualne!L423 -> AVE | AG37: =Individualne!M423 -> REJ | AH37: =Individualne!N423 -> POP | AI37: =Individualne!O423 -> AVE | AJ37: =Individualne!P423 -> AVE | AK37: =Individualne!Q423 -> AVE | AL37: =Individualne!R423 -> AVE | AM37: =Individualne!S423 -> AVE | AN37: =Individualne!T423 -> AVE | AO37: =Individualne!U423 -> POP | AP37: =Individualne!V423 -> AVE | AQ37: =Individualne!W423 -> AVE | AR37: =Individualne!X423 -> AVE | AS37: =Individualne!Y423 -> AVE | AT37: =Individualne!Z423 -> CON | AU37: =Individualne!AA423 -> AVE | AV37: =Individualne!AB423 -> CON | AW37: =Individualne!AC423 -> AVE | AX37: =Individualne!AD423 -> CON | AY37: =Individualne!AE423 -> POP | AZ37: =Individualne!AF423 ->  | BA37: =Individualne!AG423 ->  | BB37: =Individualne!AH423 ->  | BC37: =Individualne!AI423 ->  | BD37: =Individualne!AJ423 ->  | BE37: =Individualne!AK423 ->  | BF37: =Individualne!AL423 ->  | BG37: =Individualne!AM423 ->  | BH37: =Individualne!AN423 ->  | BI37: =Individualne!AO423 ->  | BJ37: =Individualne!AP423 ->  | BK37: =Individualne!AQ423 -> 
B38: 26 | C38: "26_Oso f" | D38: 2 | E38: 0 | F38: 1 | G38: 0 | H38: B | I38: OBL | J38: E | K38: AVE | L38: C | M38: SLA | N38: D | O38: NIZ | P38: C | Q38: SLA | R38: D | S38: NIZ | W38: TG_3 Prijímanie | X38: =Individualne!D425 -> SLA | Y38: =Individualne!E425 -> NIZ | Z38: =Individualne!F425 -> NIZ | AA38: =Individualne!G425 -> NIZ | AB38: =Individualne!H425 -> SLA | AC38: =Individualne!I425 -> NIZ | AD38: =Individualne!J425 -> MIE | AE38: =Individualne!K425 -> SLA | AF38: =Individualne!L425 -> SLA | AG38: =Individualne!M425 -> NIZ | AH38: =Individualne!N425 -> SLA | AI38: =Individualne!O425 -> SLA | AJ38: =Individualne!P425 -> SLA | AK38: =Individualne!Q425 -> SLA | AL38: =Individualne!R425 -> NIZ | AM38: =Individualne!S425 -> NIZ | AN38: =Individualne!T425 -> NIZ | AO38: =Individualne!U425 -> MIE | AP38: =Individualne!V425 -> SLA | AQ38: =Individualne!W425 -> SLA | AR38: =Individualne!X425 -> SLA | AS38: =Individualne!Y425 -> SLA | AT38: =Individualne!Z425 -> VYS | AU38: =Individualne!AA425 -> SLA | AV38: =Individualne!AB425 -> MIE | AW38: =Individualne!AC425 -> SLA | AX38: =Individualne!AD425 -> MIE | AY38: =Individualne!AE425 -> MIE | AZ38: =Individualne!AF425 ->  | BA38: =Individualne!AG425 ->  | BB38: =Individualne!AH425 ->  | BC38: =Individualne!AI425 ->  | BD38: =Individualne!AJ425 ->  | BE38: =Individualne!AK425 ->  | BF38: =Individualne!AL425 ->  | BG38: =Individualne!AM425 ->  | BH38: =Individualne!AN425 ->  | BI38: =Individualne!AO425 ->  | BJ38: =Individualne!AP425 ->  | BK38: =Individualne!AQ425 -> 
B39: 27 | C39: "27_Oso f" | D39: 8 | E39: 1 | F39: 2 | G39: 1 | H39: A | I39: POP | J39: A | K39: POP | L39: A | M39: VYS | N39: D | O39: NIZ | P39: B | Q39: MIE | R39: D | S39: NIZ | W39: TG_4 Odmietanie | X39: =Individualne!D427 -> NIZ | Y39: =Individualne!E427 -> SLA | Z39: =Individualne!F427 -> NIZ | AA39: =Individualne!G427 -> SLA | AB39: =Individualne!H427 -> SLA | AC39: =Individualne!I427 -> MIE | AD39: =Individualne!J427 -> NIZ | AE39: =Individualne!K427 -> NIZ | AF39: =Individualne!L427 -> NIZ | AG39: =Individualne!M427 -> VYS | AH39: =Individualne!N427 -> NIZ | AI39: =Individualne!O427 -> NIZ | AJ39: =Individualne!P427 -> NIZ | AK39: =Individualne!Q427 -> NIZ | AL39: =Individualne!R427 -> NIZ | AM39: =Individualne!S427 -> NIZ | AN39: =Individualne!T427 -> NIZ | AO39: =Individualne!U427 -> NIZ | AP39: =Individualne!V427 -> NIZ | AQ39: =Individualne!W427 -> NIZ | AR39: =Individualne!X427 -> NIZ | AS39: =Individualne!Y427 -> NIZ | AT39: =Individualne!Z427 -> NIZ | AU39: =Individualne!AA427 -> NIZ | AV39: =Individualne!AB427 -> NIZ | AW39: =Individualne!AC427 -> NIZ | AX39: =Individualne!AD427 -> NIZ | AY39: =Individualne!AE427 -> NIZ | AZ39: =Individualne!AF427 ->  | BA39: =Individualne!AG427 ->  | BB39: =Individualne!AH427 ->  | BC39: =Individualne!AI427 ->  | BD39: =Individualne!AJ427 ->  | BE39: =Individualne!AK427 ->  | BF39: =Individualne!AL427 ->  | BG39: =Individualne!AM427 ->  | BH39: =Individualne!AN427 ->  | BI39: =Individualne!AO427 ->  | BJ39: =Individualne!AP427 ->  | BK39: =Individualne!AQ427 -> 
